Workbook

Sheet About WALLDRY-NZ
D3: WALLDRY- NZ
D5: Intended use - | F5: As an educational tool for learning about how to improve the ability of walls to manage water.
F6: It provides a path for research findings into the conversation about weathertight buildings and will be updated as new results become available.
F7: It is not a design or code compliance tool. While it explains some of the physics of water, it will never be able to account for variable build quality.
D9: Capabilities - | F9: Estimates rain and wind loads on walls
F10: Estimates rain leakage rates through weatherboard and brick claddings
F11: Compares rain leakage rates with drying rates in cavity walls
F12: Estimates drying times for wet framing
D14: Limitations | F14: WALLDRY-NZ applies only to residential buildings (maximum height 10m)
F15: Rain leakage rates through claddings depend on workmanship and maintenance etc and are hard to predict - the data given here is a guide
F16: Water leakage through defects such as poor or missing flashings is impossible to predict and has not been accounted for in WALLDRY-NZ
F17: Drying rates from claddings are for uniformly wet absorbent surfaces and do not represent drying from water trapped between components
F18: Sheltering from eaves is dealt with approximately because the effect on rain admittance has been measured in relatively few configurations
D20: Future | F20: Data on the weathertightness of joints and the importance of upstand heights on flashings
F21: Extending the guide to taller buildings - where wind pressures play a bigger role in water leakage

Sheet Driving Rain Display
D17: 1
D21: 4
A61: Met Station | B61: Data averaged over all time STATION NAME | C61: Latitude | D61: Longitude | E61: Terrain category | F61: Anemoneter height m | G61: g | H61: a | I61: WIND SPEED MODIFIER | J61: LOCAL ACCELERATION MODIFIER | K61: Building roof height | L61: Sheltered factor g= 0.35 a=0.47 | M61: S Sheltered factor g=0.25 a=0.67 | N61: S exposed factor g=0.20 a=0.85 | O61: Exposed factor g=0.15 a=1.0 | P61: Weather Stn | Q61: Rain averaged over all time N | R61: NE | S61: E | T61: SE | U61: S | V61: SW | W61: W | X61: NW | Y61: Average while blowing in this direction N wind | Z61: NE wind | AA61: E wind | AB61: SE wind | AC61: S wind | AD61: SW wind | AE61: W wind | AF61: NW wind | AG61: rain averaged over summer N | AH61: NE | AI61: E | AJ61: SE | AK61: S | AL61: SW | AM61: W | AN61: NW | AO61: N wind | AP61: NE wind | AQ61: E wind | AR61: SE wind | AS61: S wind | AT61: SW wind | AU61: W wind | AV61: NW wind | AW61: rain averaged over winter N | AX61: NE | AY61: E | AZ61: SE | BA61: S | BB61: SW | BC61: W | BD61: NW | BE61: N wind | BF61: NE wind | BG61: E wind | BH61: SE wind | BI61: S wind | BJ61: SW wind | BK61: W wind | BL61: NW wind | BM61: rain averaged over wet time all year N | BN61: NE | BO61: E | BP61: SE | BQ61: S | BR61: SW | BS61: W | BT61: NW | BU61: N wind | BV61: NE wind | BW61: E wind | BX61: SE wind | BY61: S wind | BZ61: SW wind | CA61: W wind | CB61: NW wind | CC61: rain averaged over wet times in summer N | CD61: NE | CE61: E | CF61: SE | CG61: S | CH61: SW | CI61: W | CJ61: NW | CK61: N wind | CL61: NE wind | CM61: E wind | CN61: SE wind | CO61: S wind | CP61: SW wind | CQ61: W wind | CR61: NW wind | CS61: rain averaged over wet times in winter N | CT61: NE | CU61: E | CV61: SE | CW61: S | CX61: SW | CY61: W | CZ61: NW | DA61: N wind | DB61: NE wind | DC61: E wind | DD61: SE wind | DE61: S wind | DF61: SW wind | DG61: W wind | DH61: NW wind
A62: =INDIRECT("DrivingRainData!" & ADDRESS( $AG$78,COLUMN())) -> 1770 | B62: ROTORUA | C62: -38.1 | D62: 176.3 | E62: 2 | F62: 10 | G62: 0.15 | H62: 1 | I62: 1 | J62: 1 | K62: 4 | L62: 0.341050629 | M62: 0.5328313883 | N62: 0.7076702263 | O62: 0.8715834974 | P62: 1770 | Q62: 0.2725791854 | R62: 0.2845403426 | S62: 0.1653611201 | T62: 0.0558287161 | U62: 0.04635191432 | V62: 0.04296389296 | W62: 0.04994769978 | X62: 0.0690784263 | Y62: 4.481527584 | Z62: 3.897993089 | AA62: 2.325887221 | AB62: 2.929244999 | AC62: 3.197174206 | AD62: 3.805394894 | AE62: 4.942126901 | AF62: 3.70520309 | AG62: =INDIRECT("DrivingRainData!" & ADDRESS( $AG$78,COLUMN())) -> 0.2067872168 | AH62: 0.2043943737 | AI62: 0.1179155309 | AJ62: 0.04714757742 | AK62: 0.04617779232 | AL62: 0.04267309907 | AM62: 0.04981653553 | AN62: 0.06788331642 | AO62: 4.565805737 | AP62: 3.720717304 | AQ62: 2.013337879 | AR62: 3.257584166 | AS62: 3.30130444 | AT62: 3.902705585 | AU62: 5.374886177 | AV62: 3.889153981 | AW62: 0.3358311349 | AX62: 0.3618853685 | AY62: 0.2116574687 | AZ62: 0.06560938081 | BA62: 0.04737325008 | BB62: 0.0437013039 | BC62: 0.05013513394 | BD62: 0.06987839957 | BE62: 4.31701397 | BF62: 4.142404409 | BG62: 2.615336866 | BH62: 2.682411921 | BI62: 3.126709218 | BJ62: 3.754526133 | BK62: 4.332140541 | BL62: 3.455057998 | BM62: =INDIRECT("DrivingRainData!" & ADDRESS( $AG$78,COLUMN())) -> 2.282707264 | BN62: 2.382875662 | BO62: 1.384812378 | BP62: 0.4675361238 | BQ62: 0.3881728949 | BR62: 0.3597999986 | BS62: 0.4182857064 | BT62: 0.5784954756 | BU62: 1.470143645 | BV62: 1.70432098 | BW62: 0.2042582835 | BX62: 0.1961493618 | BY62: 0.2828298479 | BZ62: 0.1744097501 | CA62: 0.4345909288 | CB62: 0.3380082417 | CC62: 2.011726925 | CD62: 1.994377863 | CE62: 1.146463204 | CF62: 0.441661439 | CG62: 0.4329463126 | CH62: 0.4032539126 | CI62: 0.475054747 | CJ62: 0.6519610946 | CK62: 1.481107655 | CL62: 1.675132149 | CM62: 0.1297168402 | CN62: 0.1803112676 | CO62: 0.3065607165 | CP62: 0.1593488365 | CQ62: 0.488606338 | CR62: 0.3950198347 | CS62: =INDIRECT("DrivingRainData!" & ADDRESS( $AG$78,COLUMN())) -> 2.49873771 | CT62: 2.692593161 | CU62: 1.574828667 | CV62: 0.4881638922 | CW62: 0.3524787135 | CX62: 0.3251577494 | CY62: 0.3730283965 | CZ62: 0.5199273503 | DA62: 1.461405612 | DB62: 1.727583724 | DC62: 0.2636658858 | DD62: 0.2087719131 | DE62: 0.2639169595 | DF62: 0.1864129087 | DG62: 0.3915420449 | DH62: 0.2925575647
Q63: Units of all rain loads
A64: Met Ref | B64: LOCATION | C64: Row | E64: Wind exposure Classifications | G64: Factors | Q64: kg/m2.h converted to kg/2ay.m2 later | AN64: Col40
A65: 1134 | B65: KAIKOHE | C65: 2 | F65: Sheltered | G65: =(G95*0.47*(G91/10)^0.35)/(I62*H62*(F62/10)^G62) -> 0.341050629 | AM65: Raw data from row 62 | AP65: Wind in m/s | AR65: Rain in Kg/h.m2
A66: 1287 | B66: WHANGAREI | C66: 3 | F66: Semi-sheltered | G66: =(G95*0.67*(G91/10)^0.25)/(I62*H62*(F62/10)^G62) -> 0.5328313883 | AM66: Plotting data | AN66: N | AO66: NE | AP66: E | AQ66: SE | AR66: S | AS66: SW | AT66: W | AU66: NW
A67: 1520 | B67: WHITIANGA | C67: 4 | F67: Semi-Exposed | G67: =(G95*0.85*(G91/10)^0.2)/(I62*H62*(F62/10)^G62) -> 0.7076702263 | AM67: Rain Kg/h.m2 | AN67: =INDIRECT(ADDRESS(62,COLUMN()+$AJ$73)) -> 0.2725791854 | AO67: =INDIRECT(ADDRESS(62,COLUMN()+$AJ$73)) -> 0.2845403426 | AP67: 0.1653611201 | AQ67: 0.0558287161 | AR67: 0.04635191432 | AS67: 0.04296389296 | AT67: 0.04994769978 | AU67: 0.0690784263
A68: 1547 | B68: PAEROA AWS | C68: 5 | F68: Exposed | G68: =(G95*1*(G91/10)^0.15)/(I62*H62*(F62/10)^G62) -> 0.8715834974 | AE68: Selection of plotted data | AM68: Wind m/s | AN68: =INDIRECT(ADDRESS(62,COLUMN()+$AJ$73+8)) -> 4.481527584 | AO68: =INDIRECT(ADDRESS(62,COLUMN()+$AJ$73+8)) -> 3.897993089 | AP68: 2.325887221 | AQ68: 2.929244999 | AR68: 3.197174206 | AS68: 3.805394894 | AT68: 4.942126901 | AU68: 3.70520309
A69: 1615 | B69: TAURANGA | C69: 6
A70: 1673 | B70: WHAKATANE | C70: 7 | AI70: Row ref
A71: 1770 | B71: ROTORUA | C71: 8 | AE71: Data Type | AF71: Average wind and rain | AI71: =VLOOKUP(AF71,F76:J79,5, FALSE) -> 0 | AM71: Changed rain units | AP71: Wind in m/s | AR71: Rain (Kg/day.m2)
A72: 1858 | B72: TAUPO AWS | C72: 9 | AM72: Plotting data | AN72: N | AO72: NE | AP72: E | AQ72: SE | AR72: S | AS72: SW | AT72: W | AU72: NW
A73: 1962 | B73: AUCKLAND | C73: 10 | AG73: Row ref | AI73: Row start | AJ73: =AI71*48+AG74*16-23 -> -23 | AM73: Rain Kg/day.m | AN73: =AN67*24 -> 6.541900449 | AO73: =AO67*24 -> 6.828968222 | AP73: 3.968666882 | AQ73: 1.339889186 | AR73: 1.112445944 | AS73: 1.031133431 | AT73: 1.198744795 | AU73: 1.657882231
A74: 2112 | B74: HAMILTON | C74: 11 | AE74: Season | AF74: All year | AG74: =VLOOKUP(AF74,F84:G86,2, FALSE) -> 0 | AM74: Wind m/s | AN74: =AN68 -> 4.481527584 | AO74: =AO68 -> 3.897993089 | AP74: 2.325887221 | AQ74: 2.929244999 | AR74: 3.197174206 | AS74: 3.805394894 | AT74: 4.942126901 | AU74: 3.70520309
A75: 2283 | B75: NEW PLYMOUTH | C75: 12 | E75: Dataset plotted | J75: Factor
A76: 2592 | B76: CASTLEPOINT | C76: 13 | F76: Average wind and rain | J76: 0
A77: 2612 | B77: EAST TARATAHI | C77: 14 | F77: Average wind and rain - while raining | J77: 1 | AG77: Row ref | AM77: Factor in building exposure and RAF | AP77: Wind in m/s | AR77: Rain (Kg/day.m2)
A78: 2692 | B78: HICKS BAY | C78: 15 | F78: 10 year return wind and rain - while raining | J78: 2 | AE78: Location | AF78: ROTORUA | AG78: =VLOOKUP(AF78,B65:C104,2, FALSE) -> 8 | AM78: Plotting data | AN78: N | AO78: NE | AP78: E | AQ78: SE | AR78: S | AS78: SW | AT78: W | AU78: NW
A79: 2810 | B79: GISBORNE | C79: 16 | F79: 20 year return wind and rain - while raining | J79: 3 | AM79: Rain Kg/day.m | AN79: =AN73*$AG$82*$AG$86 -> 1.900604158 | AO79: =AO73*$AG$82*$AG$86 -> 1.984005335 | AP79: 1.153008187 | AQ79: 0.3892751011 | AR79: 0.3231965087 | AS79: 0.2995729607 | AT79: 0.3482687269 | AU79: 0.4816609311
A80: 2980 | B80: NAPIER | C80: 17 | AM80: Wind m/s | AN80: =AN74*$AG$82 -> 3.906025486 | AO80: =AO74*$AG$82 -> 3.397426449 | AP80: 2.027204918 | AQ80: 2.553081601 | AR80: 2.786604276 | AS80: 3.316719391 | AT80: 4.307476249 | AU80: 3.229393868
A81: 3142 | B81: MAHIA | C81: 18 | AG81: Factor
A82: 3243 | B82: PALMERSTON NORTH | C82: 19 | AE82: Exposure | AF82: Exposed | AG82: =VLOOKUP(AF82,F65:G68,2, FALSE) -> 0.8715834974
A83: 3445 | B83: WELLINGTON | C83: 20 | E83: Season | G83: factor
A84: 3551 | B84: NORMANBY | C84: 21 | F84: All year | G84: 0
A85: 3910 | B85: HOKITIKA | C85: 22 | F85: Summer | G85: 1 | AG85: Factor
A86: 4141 | B86: PUYSEGUR POINT | C86: 23 | F86: Winter | G86: 2 | AE86: Eaves | AF86: Eaves 600 mm - average over the wall | AG86: =VLOOKUP(AF86,F99:L101,7, FALSE) -> 0.3333333333
A87: 4271 | B87: NELSON | C87: 24
A88: 4326 | B88: BLENHEIM | C88: 25
A89: 4395 | B89: BROTHERS ISLAND | C89: 26
A90: 4506 | B90: KAIKOURA | C90: 27 | E90: Height of building
A91: 4843 | B91: CHRISTCHURCH | C91: 28 | F91: Height | G91: =D21 -> 4
A92: 5086 | B92: TIMARU | C92: 29
A93: 5212 | B93: TARA HILLS | C93: 30
A94: 5430 | B94: MANAPOURI | C94: 31 | E94: Wind speed modifier
A95: 5451 | B95: QUEENSTOWN | C95: 32 | F95: Description | G95: =D17 -> 1
A96: 5778 | B96: GORE | C96: 33
A97: 5909 | B97: SOUTH WEST CAPE | C97: 34
A98: 7339 | B98: DUNEDIN | C98: 35 | E98: Building eaves | K98: RAF | L98: factor
A99: 7342 | B99: WESTPORT | C99: 36 | F99: No eaves -maximum wetting at corners | K99: 0.9 | L99: =K99/0.9 -> 1
A100: 7426 | B100: WANAKA | C100: 37 | F100: No eaves - average over the wall | K100: 0.5 | L100: =K100/0.9 -> 0.5555555556
A101: 8567 | B101: PARAPARAUMU | C101: 38 | F101: Eaves 600 mm - average over the wall | K101: 0.3 | L101: 0.3333333333
A102: 9533 | B102: SECRETARY ISLAND | C102: 39 | E102: "factor" on basis that base calculated with RAF=1
A103: 9654 | B103: MOKOHINAU | C103: 40
A104: 11104 | B104: INVERCARGILL | C104: 41

Sheet Wall Drying Display
A47: Data taken from (CombinedData) sheet | T47: 20 | U47: 21 | V47: 22 | W47: 23 | X47: 24 | Y47: 25 | Z47: 26 | AA47: 27 | AB47: 28 | AC47: 29 | AD47: 30 | AE47: 31 | AF47: 32 | AG47: 33 | AH47: 34 | AI47: 35 | AJ47: 36 | AK47: 37 | AL47: 38 | AM47: 39 | AN47: 40 | AO47: 41 | AP47: 42 | AQ47: 43 | AR47: 44 | AS47: 45 | AT47: 46 | AU47: 47 | AV47: 48 | AW47: 49 | AX47: 50 | AY47: 51 | AZ47: 52 | BA47: 53 | BB47: 54 | BC47: 55 | BD47: 56 | BE47: 57 | BF47: 58 | BG47: 59 | BH47: 60 | BI47: 61 | BJ47: 62 | BK47: 63 | BL47: 64 | BM47: 65 | BN47: 66 | BO47: 67 | BP47: 68 | BQ47: 69 | BR47: 70 | BS47: 71 | BT47: 72 | BU47: 73 | BV47: 74 | BW47: 75 | BX47: 76 | BY47: 77 | BZ47: 78 | CA47: 79 | CB47: 80 | CC47: 81 | CD47: 82 | CE47: 83 | CF47: 84 | CG47: 85 | CH47: 86 | CI47: 87 | CJ47: 88 | CK47: 89 | CL47: 90 | CM47: 91 | CN47: 92 | CO47: 93 | CP47: 94 | CQ47: 95 | CR47: 96 | CS47: 97 | CT47: 98 | CU47: 99 | CV47: 100 | CW47: 101 | CX47: 102 | CY47: 103 | CZ47: 104 | DA47: 105 | DB47: 106 | DC47: 107 | DD47: 108 | DE47: 109 | DF47: 110 | DG47: 111 | DH47: 112 | DI47: 113 | DJ47: 114 | DK47: 115 | DL47: 116 | DM47: 117 | DN47: 118 | DO47: 119 | DP47: 120 | DQ47: 121 | DR47: 122 | DS47: 123 | DT47: 124 | DU47: 125 | DV47: 126 | DW47: 127 | DX47: 128 | DY47: 129 | DZ47: 130 | EA47: 131 | EB47: 132 | EC47: 133 | ED47: 134 | EE47: 135 | EF47: 136 | EG47: 137 | EH47: 138 | EI47: 139 | EJ47: 140 | EK47: 141 | EL47: 142 | EM47: 143 | EN47: 144 | EO47: 145 | EP47: 146 | EQ47: 147 | ER47: 148 | ES47: 149 | ET47: 150 | EU47: 151 | EV47: 152 | EW47: 153 | EX47: 154 | EY47: 155 | EZ47: 156 | FA47: 157 | FB47: 158 | FC47: 159 | FD47: 160 | FE47: 161 | FF47: 162 | FG47: 163 | FH47: 164 | FI47: 165 | FJ47: 166 | FK47: 167 | FL47: 168 | FM47: 169 | FN47: 170 | FO47: 171 | FP47: 172 | FQ47: 173 | FR47: 174 | FS47: 175 | FT47: 176 | FU47: 177 | FV47: 178 | FW47: 179
D48: Fresh air ventilation rates | L48: Fresh air drying rates | T48: Bottom plate Winter drying out times (vapour permeable linings) | AA48: Numbers are days to reach MC value starting in winter (July) | AN48: Bottom plate Summer drying out times (Vapour permeable linings) | AU48: Numbers are days to reach MC value starting in summer (January) | BH48: Stud drying out times in winter (vapour permeable linings) | BP48: Number of days to reach MC value starting in winter (July) | CB48: Stud drying out times in summer (vapour permeable linings) | CJ48: Number of days to reach MC value starting in summer (January) | CV48: Bottom plate Winter drying out times (vapour barrier linings) | DC48: Numbers are days to reach MC value starting in winter (July) | DP48: Bottom plate Summer drying out times (Vapour barrier linings) | DW48: Numbers are days to reach MC value starting in summer (January) | EJ48: Stud drying out times in winter (vapour barrier linings) | ER48: Number of days to reach MC value starting in winter (July) | FD48: Stud drying out times in summer (vapour barrier linings) | FL48: Number of days to reach MC value starting in summer (January)
A49: Location | B49: Cavity Type | C49: Exposure | D49: N/win | E49: W/win | F49: S/win | G49: E/win | H49: N/sum | I49: W/sum | J49: S/sum | K49: E/sum | L49: N/win | M49: W/win | N49: S/win | O49: E/win | P49: N/sum | Q49: W/sum | R49: S/sum | S49: E/sum | T49: N15 | U49: N20 | V49: N25 | W49: N30 | X49: N35 | Y49: S15 | Z49: S20 | AA49: S25 | AB49: S30 | AC49: S35 | AD49: E15 | AE49: E20 | AF49: E25 | AG49: E30 | AH49: E35 | AI49: W15 | AJ49: W20 | AK49: W25 | AL49: W30 | AM49: W35 | AN49: N15 | AO49: N20 | AP49: N25 | AQ49: N30 | AR49: N35 | AS49: S15 | AT49: S20 | AU49: S25 | AV49: S30 | AW49: S35 | AX49: E15 | AY49: E20 | AZ49: E25 | BA49: E30 | BB49: E35 | BC49: W15 | BD49: W20 | BE49: W25 | BF49: W30 | BG49: W35 | BH49: N15 | BI49: N20 | BJ49: N25 | BK49: N30 | BL49: N35 | BM49: S15 | BN49: S20 | BO49: S25 | BP49: S30 | BQ49: S35 | BR49: E15 | BS49: E20 | BT49: E25 | BU49: E30 | BV49: E35 | BW49: W15 | BX49: W20 | BY49: W25 | BZ49: W30 | CA49: W35 | CB49: N15 | CC49: N20 | CD49: N25 | CE49: N30 | CF49: N35 | CG49: S15 | CH49: S20 | CI49: S25 | CJ49: S30 | CK49: S35 | CL49: E15 | CM49: E20 | CN49: E25 | CO49: E30 | CP49: E35 | CQ49: W15 | CR49: W20 | CS49: W25 | CT49: W30 | CU49: W35 | CV49: N15 | CW49: N20 | CX49: N25 | CY49: N30 | CZ49: N35 | DA49: S15 | DB49: S20 | DC49: S25 | DD49: S30 | DE49: S35 | DF49: E15 | DG49: E20 | DH49: E25 | DI49: E30 | DJ49: E35 | DK49: W15 | DL49: W20 | DM49: W25 | DN49: W30 | DO49: W35 | DP49: N15 | DQ49: N20 | DR49: N25 | DS49: N30 | DT49: N35 | DU49: S15 | DV49: S20 | DW49: S25 | DX49: S30 | DY49: S35 | DZ49: E15 | EA49: E20 | EB49: E25 | EC49: E30 | ED49: E35 | EE49: W15 | EF49: W20 | EG49: W25 | EH49: W30 | EI49: W35 | EJ49: N15 | EK49: N20 | EL49: N25 | EM49: N30 | EN49: N35 | EO49: S15 | EP49: S20 | EQ49: S25 | ER49: S30 | ES49: S35 | ET49: E15 | EU49: E20 | EV49: E25 | EW49: E30 | EX49: E35 | EY49: W15 | EZ49: W20 | FA49: W25 | FB49: W30 | FC49: W35 | FD49: N15 | FE49: N20 | FF49: N25 | FG49: N30 | FH49: N35 | FI49: S15 | FJ49: S20 | FK49: S25 | FL49: S30 | FM49: S35 | FN49: E15 | FO49: E20 | FP49: E25 | FQ49: E30 | FR49: E35 | FS49: W15 | FT49: W20 | FU49: W25 | FV49: W30 | FW49: W35
A50: =INDIRECT("CavityDryingData!" & ADDRESS( $O$65,COLUMN())) -> Wellington | B50: =INDIRECT("CavityDryingData!" & ADDRESS( $O$65,COLUMN())) -> Open rainscreen with non-ventilated battens | C50: =INDIRECT("CavityDryingData!" & ADDRESS( $O$65,COLUMN())) -> Exposed | D50: =INDIRECT("CavityDryingData!" & ADDRESS( $O$65,COLUMN())) -> 0.1133949387 | E50: 0.07372444849 | F50: 0.06368431449 | G50: 0.07632312862 | H50: 0.6898362324 | I50: 0.3282603861 | J50: 0.1643434594 | K50: 0.1481719249 | L50: 94.77237834 | M50: 63.02519116 | N50: 51.05500376 | O50: 62.99959916 | P50: 378.1452583 | Q50: 212.1249921 | R50: 126.4027363 | S50: 122.6276232 | T50: 80.15 | U50: 60.4 | V50: 42.05 | W50: 26.05 | X50: 14.55 | Y50: 117.15 | Z50: 82.5 | AA50: 55.85 | AB50: 32.4 | AC50: 17.15 | AD50: 96.6 | AE50: 69.6 | AF50: 48.05 | AG50: 28.9 | AH50: 15.6 | AI50: 101.05 | AJ50: 73.05 | AK50: 49.8 | AL50: 29.6 | AM50: 15.9 | AN50: 48.8 | AO50: 37.7 | AP50: 27.8 | AQ50: 17.95 | AR50: 10.95 | AS50: 64.7 | AT50: 45.95 | AU50: 31.6 | AV50: 20.25 | AW50: 11.9 | AX50: 49.6 | AY50: 37.5 | AZ50: 27.35 | BA50: 17.5 | BB50: 10.35 | BC50: 50.6 | BD50: 37.7 | BE50: 27.6 | BF50: 17.7 | BG50: 10.65 | BH50: 69.05 | BI50: 55.8 | BJ50: 37.75 | BK50: 21.55 | BL50: 6.95 | BM50: 80.45 | BN50: 61.45 | BO50: 40.25 | BP50: =INDIRECT("CavityDryingData!" & ADDRESS( $O$65,COLUMN())) -> 22.15 | BQ50: 6.5 | BR50: 76.5 | BS50: 59.6 | BT50: 39.5 | BU50: 22.3 | BV50: 6.9 | BW50: 76.2 | BX50: 59.4 | BY50: 39.5 | BZ50: 22.2 | CA50: 6.9 | CB50: 48.15 | CC50: 35.45 | CD50: 24.4 | CE50: 13.9 | CF50: 4.8 | CG50: 51.75 | CH50: 37.45 | CI50: 25.75 | CJ50: 14.95 | CK50: 5.05 | CL50: 48.4 | CM50: 35.55 | CN50: 24.5 | CO50: 14.2 | CP50: 4.8 | CQ50: 47.4 | CR50: 34.65 | CS50: 24 | CT50: 14.1 | CU50: 4.95 | CV50: 137.375 | CW50: 109.4375 | CX50: 85.66666667 | CY50: 63.54166667 | CZ50: 31.10416667 | DA50: 172.0833335 | DB50: 142.5 | DC50: 112.0208333 | DD50: 78.125 | DE50: 36.5625 | DF50: 150.875 | DG50: 124.1875 | DH50: 98.35416667 | DI50: 71.4375 | DJ50: 35.02083333 | DK50: 154.9166667 | DL50: 129.1666667 | DM50: 102.1458333 | DN50: 73.625 | DO50: 35.64583333 | DP50: 89.89583333 | DQ50: 70.125 | DR50: 55.60416667 | DS50: 40.9375 | DT50: 20.66666667 | DU50: 137.9375 | DV50: 98.08333333 | DW50: 73.52083333 | DX50: 52.95833333 | DY50: 29.125 | DZ50: 95.02083333 | EA50: 72.0625 | EB50: =INDIRECT("CavityDryingData!" & ADDRESS( $O$65,COLUMN())) -> 56.02083333 | EC50: 41.04166667 | ED50: 20.60416667 | EE50: 99.08333333 | EF50: 74.1875 | EG50: 57.20833333 | EH50: 42.0625 | EI50: 22.58333333 | EJ50: 121.1041667 | EK50: 93.41666667 | EL50: 69.375 | EM50: 40.79166667 | EN50: 6.875 | EO50: 135.3958333 | EP50: 104.5416667 | EQ50: 75.6875 | ER50: 44.29166667 | ES50: 7.541666667 | ET50: 128.625 | EU50: 99.47916667 | EV50: 72.66666667 | EW50: 42 | EX50: 7.416666667 | EY50: 128.4375 | EZ50: 99.16666667 | FA50: 72.4375 | FB50: 41.5625 | FC50: 7.416666667 | FD50: 81.02083333 | FE50: 61.47916667 | FF50: 46.29166667 | FG50: 27.5 | FH50: 4.979166667 | FI50: 87.58333333 | FJ50: 64.60416667 | FK50: 47.35416667 | FL50: 27.35416667 | FM50: 4.916666667 | FN50: 81.79166667 | FO50: 61.77083333 | FP50: 46.3125 | FQ50: 27.66666667 | FR50: 5 | FS50: 79.875 | FT50: 60.3125 | FU50: 44.83333333 | FV50: 27.47916667 | FW50: 4.833333333
A52: Location | B52: row start | C52: Type | D52: row add | E52: Exposure | F52: row add | G52: Bottom vent | H52: Top vent | I52: Batten vent | J52: Factor | P52: Plotting data | Q52: N | R52: S | S52: E | T52: W | V52: Drying from framing/bottom plate | AA52: Drying from framing/bottom plate | AF52: Drying from framing/bottom plate | AJ52: Drying from framing/bottom plate
A53: Northland | B53: 3 | C53: Brick veneer cavity with top and bottom vents | D53: 0 | E53: Exposed | F53: 0 | G53: 0.1 | H53: 0.1 | I53: 0.1 | J53: 0.4719567249 | N53: Winter | P53: Cavity drying | Q53: =L50*$O$72/2.4 -> 39.48849097 | R53: =N50*$O$72/2.4 -> 21.27291823 | S53: =O50*$O$72/2.4 -> 26.24983298 | T53: =M50*$O$72/2.4 -> 26.26049632
A54: Auckland | B54: 35 | C54: Open rainscreen with ventilated battens and vented corner battens | D54: 4 | E54: Semi-exposed | F54: 1 | G54: 0.5 | H54: 0.1 | I54: 0.1 | J54: 0.7632607941 | N54: Summer | P54: Cavity drying | Q54: =P50*$O$72/2.4 -> 157.5605243 | R54: =R50*$O$72/2.4 -> 52.66780679 | S54: =S50*$O$72/2.4 -> 51.09484299 | T54: =Q50*$O$72/2.4 -> 88.38541338
A55: Hamilton | B55: 67 | C55: Open rainscreen with ventilated battens and solid corner battens | D55: 8 | E55: Semi-sheltered | F55: 2 | G55: 1 | H55: 0.1 | I55: 0.1 | J55: 0.8639063011 | N55: Winter | P55: Frame drying | Q55: =INDIRECT(ADDRESS(50,$Q$74)) -> 55.8 | R55: =INDIRECT(ADDRESS(50,$R$74)) -> 61.45 | S55: =INDIRECT(ADDRESS(50,$S$74)) -> 59.6 | T55: =INDIRECT(ADDRESS(50,$T$74)) -> 59.4
A56: Bay Of Plenty | B56: 99 | C56: Open rainscreen with non-ventilated battens | D56: 12 | E56: Sheltered | F56: 3 | G56: 5 | H56: 0.1 | I56: 0.1 | J56: 1.144655848 | N56: Summer | P56: Frame drying | Q56: =INDIRECT(ADDRESS(50,$Q$75)) -> 35.45 | R56: =INDIRECT(ADDRESS(50,$R$75)) -> 37.45 | S56: =INDIRECT(ADDRESS(50,$S$75)) -> 35.55 | T56: =INDIRECT(ADDRESS(50,$T$75)) -> 34.65
A57: Napier | B57: 131 | C57: Drainage plane with top and bottom vents | D57: 16 | G57: 10 | H57: 0.1 | I57: 0.1 | J57: 1.337444807
A58: Rotorua | B58: 163 | C58: Direct fixed weatherboards warped and leaky | D58: 20 | G58: 0.1 | H58: 0.5 | I58: 0.1 | J58: 0.7987463959
A59: Wellington | B59: 195 | C59: Direct fixed weatherboards (average) | D59: 24 | G59: 0.5 | H59: 0.5 | I59: 0.1 | J59: 1.994264498 | N59: Dropdown Result | O59: row to add result:
A60: West Coast | B60: 227 | C60: Direct fixed weatherboards (Tight) | D60: 28 | G60: 1 | H60: 0.5 | I60: 0.1 | J60: 2.489984384 | M60: Selected Items:
A61: Nelson | B61: 259 | C61: Open rainscreen with a 20 mm cavity and custom vents | D61: =D56 -> 12 | G61: 5 | H61: 0.5 | I61: 0.1 | J61: 2.865171021 | M61: Location: | N61: Wellington | O61: =VLOOKUP(N61,A53:B66,2, FALSE) -> 195 | Q61: Is custom Vents selected?
A62: Christchurch | B62: 291 | G62: 10 | H62: 0.5 | I62: 0.1 | J62: 2.91158302 | M62: Cavity Type: | N62: Open rainscreen with non-ventilated battens | O62: =VLOOKUP(N62,C53:D61,2, FALSE) -> 12 | Q62: =IF(N62=C61,TRUE,FALSE) -> FALSE
A63: Queenstown | B63: 323 | G63: 0.1 | H63: 1 | I63: 0.1 | J63: 0.9191590703 | M63: Exposure: | N63: Exposed | O63: =VLOOKUP(N63,E53:F56,2, FALSE) -> 0
A64: Central Otago | B64: 355 | C64: Timber location | D64: column add | G64: 0.5 | H64: 1 | I64: 0.1 | J64: 2.543640732 | W64: South | AC64: North
A65: Dunedin | B65: 387 | C65: Bottom plate | D65: 20 | G65: 1 | H65: 1 | I65: 0.1 | J65: 3.692215178 | M65: Data row | O65: =SUM(O61:O63) -> 207 | V65: Drying from back of cladding | AA65: Drying from back of cladding
A66: Invercargill | B66: 419 | C66: Stud/Dwang | D66: 60 | G66: 5 | H66: 1 | I66: 0.1 | J66: 4.906721429 | AG66: West | AK66: East
C67: Timber MC | D67: column add | G67: 10 | H67: 1 | I67: 0.1 | J67: 4.982433518 | M67: Batten Vent: | N67: 10 | O67: =VLOOKUP(--N67,A84:B86,2,FALSE) -> 103 | AF67: Drying from back of cladding | AJ67: Drying from back of cladding
C68: 25 % | D68: 2 | G68: 0.1 | H68: 5 | I68: 0.1 | J68: 1.310451406 | M68: Top Vent: | N68: 0.1 | O68: =VLOOKUP(--N68,A76:C80,2,FALSE) -> 0
C69: 20 % | D69: 1 | G69: 0.5 | H69: 5 | I69: 0.1 | J69: 3.188521157 | M69: Bottom Vent: | N69: 0.5 | O69: =VLOOKUP(--N69,A76:C80,3,FALSE) -> 1
C70: 15 % | D70: 0 | G70: 1 | H70: 5 | I70: 0.1 | J70: 5.18680724 | M70: Calibration row: | O70: =SUM(O67:O69) -> 104
C71: Vapour permeability of internal lining | D71: row add | G71: 5 | H71: 5 | I71: 0.1 | J71: 12.31818942 | M71: Calibration value: | O71: =INDIRECT(ADDRESS(O70,10)) -> 2.076259174
C72: Vapour permeable | D72: 0 | G72: 10 | H72: 5 | I72: 0.1 | J72: 14.1948992 | N72: Calibration to apply (test for custom): | O72: =IF(Q62,O71,1) -> 1
C73: Vapour barrier | D73: 80 | G73: 0.1 | H73: 10 | I73: 0.1 | J73: 1.617179194 | M73: Timber Location: | N73: Stud/Dwang | O73: =VLOOKUP(N73,C65:D66,2, FALSE) -> 60 | P73: Plotting Cols | Q73: N | R73: S | S73: E | T73: W
B74: Data for filling drop downs: | G74: 0.5 | H74: 10 | I74: 0.1 | J74: 3.551210617 | K74: Target moisture content: % | N74: 20 % | O74: =VLOOKUP(N74,C68:D70,2, FALSE) -> 1 | P74: Winter | Q74: =O76 -> 61 | R74: =O76+5 -> 66 | S74: =O76+10 -> 71 | T74: =O76+15 -> 76
A75: Vent Size | B75: rowstart (top) | C75: rowstart(bottom) | G75: 1 | H75: 10 | I75: 0.1 | J75: 5.472700208 | K75: Lining vapour resistance | N75: Vapour permeable | O75: =VLOOKUP(N75,C72:D73,2, FALSE) -> 0 | P75: Summer | Q75: =O76+20 -> 81 | R75: =O76+25 -> 86 | S75: =O76+30 -> 91 | T75: =O76+35 -> 96
A76: 0.1 | B76: 0 | C76: 0 | G76: 5 | H76: 10 | I76: 0.1 | J76: 14.17479528 | M76: Row total | O76: =SUM(O73:O75) -> 61
A77: 0.5 | B77: 5 | C77: 1 | G77: 10 | H77: 10 | I77: 0.1 | J77: 17.59815264
A78: 1 | B78: 10 | C78: 2 | G78: 0.1 | H78: 0.1 | I78: 1 | J78: 0.7015730995
A79: 5 | B79: 15 | C79: 3 | G79: 0.5 | H79: 0.1 | I79: 1 | J79: 1.461008497
A80: 10 | B80: 20 | C80: 4 | G80: 1 | H80: 0.1 | I80: 1 | J80: 1.978422492
G81: 5 | H81: 0.1 | I81: 1 | J81: 2.954970615
G82: 10 | H82: 0.1 | I82: 1 | J82: 3.256436764
A83: Vent size | B83: row start (batten) | G83: 0.1 | H83: 0.5 | I83: 1 | J83: 1.528595267
A84: 0.1 | B84: 53 | G84: 0.5 | H84: 0.5 | I84: 1 | J84: 2.35451287
A85: 1 | B85: 78 | G85: 1 | H85: 0.5 | I85: 1 | J85: 2.936778422
A86: 10 | B86: 103 | G86: 5 | H86: 0.5 | I86: 1 | J86: 4.152458163
G87: 10 | H87: 0.5 | I87: 1 | J87: 4.533969002
G88: 0.1 | H88: 1 | I88: 1 | J88: 1.998130605
G89: 0.5 | H89: 1 | I89: 1 | J89: 3.033919644
G90: 1 | H90: 1 | I90: 1 | J90: 3.933376638
G91: 5 | H91: 1 | I91: 1 | J91: 5.668580211
G92: 10 | H92: 1 | I92: 1 | J92: 6.071874714
G93: 0.1 | H93: 5 | I93: 1 | J93: 2.929889073
G94: 0.5 | H94: 5 | I94: 1 | J94: 4.341742739
G95: 1 | H95: 5 | I95: 1 | J95: 5.940309347
G96: 5 | H96: 5 | I96: 1 | J96: 12.15450119
G97: 10 | H97: 5 | I97: 1 | J97: 13.93467899
G98: 0.1 | H98: 10 | I98: 1 | J98: 3.357133503
G99: 0.5 | H99: 10 | I99: 1 | J99: 4.703286019
G100: 1 | H100: 10 | I100: 1 | J100: 6.402446694
G101: 5 | H101: 10 | I101: 1 | J101: 14.17426985
G102: 10 | H102: 10 | I102: 1 | J102: 17.45734859
G103: 0.1 | H103: 0.1 | I103: 10 | J103: 0.853244394
G104: 0.5 | H104: 0.1 | I104: 10 | J104: 2.076259174
G105: 1 | H105: 0.1 | I105: 10 | J105: 3.105051426
G106: 5 | H106: 0.1 | I106: 10 | J106: 6.57033671
G107: 10 | H107: 0.1 | I107: 10 | J107: 8.393217679
G108: 0.1 | H108: 0.5 | I108: 10 | J108: 2.206602529
G109: 0.5 | H109: 0.5 | I109: 10 | J109: 3.137400183
G110: 1 | H110: 0.5 | I110: 10 | J110: 3.94578883
G111: 5 | H111: 0.5 | I111: 10 | J111: 7.164377506
G112: 10 | H112: 0.5 | I112: 10 | J112: 8.84258656
G113: 0.1 | H113: 1 | I113: 10 | J113: 3.296821686
G114: 0.5 | H114: 1 | I114: 10 | J114: 4.098078207
G115: 1 | H115: 1 | I115: 10 | J115: 4.821656118
G116: 5 | H116: 1 | I116: 10 | J116: 7.855503155
G117: 10 | H117: 1 | I117: 10 | J117: 9.364753249
G118: 0.1 | H118: 5 | I118: 10 | J118: 6.748602867
G119: 0.5 | H119: 5 | I119: 10 | J119: 7.568371833
G120: 1 | H120: 5 | I120: 10 | J120: 8.444266119
G121: 5 | H121: 5 | I121: 10 | J121: 12.03844132
G122: 10 | H122: 5 | I122: 10 | J122: 13.47764479
G123: 0.1 | H123: 10 | I123: 10 | J123: 8.05452524
G124: 0.5 | H124: 10 | I124: 10 | J124: 8.898407868
G125: 1 | H125: 10 | I125: 10 | J125: 9.838378488
G126: 5 | H126: 10 | I126: 10 | J126: 14.51450283
G127: 10 | H127: 10 | I127: 10 | J127: 16.88494066

Sheet Wetting & Drying (Absolute)
E47: Brick veneer wall with wetting in kg/m2.hour | N47: Medium proportional leakage in kg/m2.hour | V47: Low proportional leakage | AD47: Leaky proportional leakage in kg.m2.h
A48: Location code | B48: STATION | C48: Exposure | D48: Season | E48: N | F48: NE | G48: E | H48: SE | I48: S | J48: SW | K48: W | L48: NW | M48: N | N48: NE | O48: E | P48: SE | Q48: S | R48: SW | S48: W | T48: NW | U48: N | V48: NE | W48: E | X48: SE | Y48: S | Z48: SW | AA48: W | AB48: NW | AC48: N | AD48: NE | AE48: E | AF48: SE | AG48: S | AH48: SW | AI48: W | AJ48: NW
A49: =INDIRECT("WettingData!" & ADDRESS( $I$73,COLUMN())) -> 0 | B49: =INDIRECT("WettingData!" & ADDRESS( $I$73,COLUMN())) -> 0 | C49: 0 | D49: Y | E49: 0.007566916697 | F49: 0.006326020982 | G49: 0.003436712292 | H49: 0.001706899732 | I49: 0.001273011986 | J49: 0.00205827124 | K49: 0.003871516176 | L49: 0.005443319621 | M49: 2.21756966e-05 | N49: 1.954130737e-05 | O49: 1.328758388e-05 | P49: 7.802637081e-06 | Q49: 6.659646178e-06 | R49: 1.251958561e-05 | S49: 2.034388053e-05 | T49: 1.978832425e-05 | U49: 1.942979704e-06 | V49: 1.715110502e-06 | W49: 1.193126998e-06 | X49: 7.304265562e-07 | Y49: 6.029747588e-07 | Z49: 1.028736863e-06 | AA49: 1.589571477e-06 | AB49: 1.633580635e-06 | AC49: 0.0006865677271 | AD49: 0.000604820238 | AE49: 0.0004165347731 | AF49: 0.0002529344514 | AG49: 0.0002101166822 | AH49: 0.0003595258269 | AI49: 0.0005657588616 | AJ49: 0.0005817520794
A50: DRYING DATA | D50: Fresh air ventilation rates | L50: Fresh air drying rates | T50: Bottom plate Winter drying out times | X50: Numbers are days to reach MC value starting in winter (July) | AN50: Bottom plate Summer drying out times | AR50: Numbers are days to reach MC value starting in summer (January) | BH50: Stud drying out times in winter | BM50: Number of days to reach MC value starting in winter (July) | CB50: Stud drying out times in summer | CG50: Number of days to reach MC value starting in summer (January)
A51: Location | B51: Cavity Type | C51: Exposure | D51: N/win | E51: W/win | F51: S/win | G51: E/win | H51: N/year | I51: W/year | J51: S/year | K51: E/year | L51: N/win | M51: W/win | N51: S/win | O51: E/win | P51: N/sum | Q51: W/sum | R51: S/sum | S51: E/sum | T51: N15 | U51: N20 | V51: N25 | W51: N30 | X51: N35 | Y51: S15 | Z51: S20 | AA51: S25 | AB51: S30 | AC51: S35 | AD51: E15 | AE51: E20 | AF51: E25 | AG51: E30 | AH51: E35 | AI51: W15 | AJ51: W20 | AK51: W25 | AL51: W30 | AM51: W35 | AN51: N15 | AO51: N20 | AP51: N25 | AQ51: N30 | AR51: N35 | AS51: S15 | AT51: S20 | AU51: S25 | AV51: S30 | AW51: S35 | AX51: E15 | AY51: E20 | AZ51: E25 | BA51: E30 | BB51: E35 | BC51: W15 | BD51: W20 | BE51: W25 | BF51: W30 | BG51: W35 | BH51: N15 | BI51: N20 | BJ51: N25 | BK51: N30 | BL51: N35 | BM51: S15 | BN51: S20 | BO51: S25 | BP51: S30 | BQ51: S35 | BR51: E15 | BS51: E20 | BT51: E25 | BU51: E30 | BV51: E35 | BW51: W15 | BX51: W20 | BY51: W25 | BZ51: W30 | CA51: W35 | CB51: N15 | CC51: N20 | CD51: N25 | CE51: N30 | CF51: N35 | CG51: S15 | CH51: S20 | CI51: S25 | CJ51: S30 | CK51: S35 | CL51: E15 | CM51: E20 | CN51: E25 | CO51: E30 | CP51: E35 | CQ51: W15 | CR51: W20 | CS51: W25 | CT51: W30 | CU51: W35
A52: =INDIRECT("CavityDryingData!"&ADDRESS($J$73,COLUMN())) -> Hamilton | B52: Direct fixed weatherboards warped and leaky | C52: Exposed | D52: 1.550930699 | E52: 1.804062726 | F52: 1.504310366 | G52: 1.595057459 | H52: =(L52+P52)/2 -> 537.5479531 | I52: =(M52+Q52)/2 -> 491.2188893 | J52: 409.8806966 | K52: 469.2932893 | L52: =INDIRECT("CavityDryingData!"&ADDRESS($J$73,COLUMN())) -> 425.1593728 | M52: 342.2536583 | N52: 292.6091842 | O52: 329.4565799 | P52: 649.9365334 | Q52: 640.1841203 | R52: 527.152209 | S52: 609.1299986 | T52: 80.95 | U52: 61.55 | V52: 43 | W52: 27.2 | X52: 15.7 | Y52: 126.05 | Z52: 92.4 | AA52: 63.75 | AB52: 38.65 | AC52: 22.1 | AD52: 99 | AE52: 72 | AF52: 50.25 | AG52: 30.5 | AH52: 16.75 | AI52: 104.6 | AJ52: 76.6 | AK52: 52.9 | AL52: 31.6 | AM52: 17.65 | AN52: 48.3 | AO52: 36.9 | AP52: 26.35 | AQ52: 16.65 | AR52: 10.15 | AS52: 66.45 | AT52: 45.8 | AU52: 31.3 | AV52: 18.95 | AW52: 11.1 | AX52: 49.1 | AY52: 36.7 | AZ52: 25.9 | BA52: 16.2 | BB52: 9.75 | BC52: 51.35 | BD52: 38 | BE52: 27 | BF52: 17.1 | BG52: 10.15 | BH52: 68.65 | BI52: 57.25 | BJ52: 38.55 | BK52: 21.8 | BL52: 7.1 | BM52: 83.25 | BN52: 64.15 | BO52: 42 | BP52: 21.4 | BQ52: 5.825 | BR52: 76.1 | BS52: 59.7 | BT52: 37.3 | BU52: 20 | BV52: 5.3 | BW52: 76.55 | BX52: =INDIRECT("CavityDryingData!"&ADDRESS($J$73,COLUMN())) -> 60.25 | BY52: 38.9 | BZ52: 20.2 | CA52: 5.6 | CB52: 47.75 | CC52: 34.6 | CD52: 23.75 | CE52: 13.5 | CF52: 4.85 | CG52: 51.55 | CH52: 37.05 | CI52: 25.65 | CJ52: 14.8 | CK52: 5.15 | CL52: 47.95 | CM52: 34.55 | CN52: 23.8 | CO52: 13.6 | CP52: 4.8 | CQ52: 47.75 | CR52: 34.45 | CS52: 23.7 | CT52: 13.45 | CU52: 4.75
A54: Wetting Location | B54: row start | C54: Drying Location | D54: Approx locat | G54: WETTING ROW START DATA | J54: Drying
A55: KAIKOHE | B55: 3 | C55: Northland | D55: 3 | E55: Exposure | G55: row start | H55: Season | I55: row start | J55: Col start | O55: PLOTTING DATA | Q55: N | R55: S | S55: E | T55: W
A56: WHANGAREI | B56: =B55+12 -> 15 | C56: Northland | D56: 3 | E56: Exposed | G56: 0 | H56: Summer | I56: 0 | J56: 8 | O56: Wetting Kg/m2.hour | Q56: =INDIRECT(ADDRESS(49,$Q$60)) -> 2.21756966e-05 | R56: =INDIRECT(ADDRESS(49,$R$60)) -> 6.659646178e-06 | S56: =INDIRECT(ADDRESS(49,$S$60)) -> 1.328758388e-05 | T56: =INDIRECT(ADDRESS(49,$T$60)) -> 2.034388053e-05 | W56: NORTH DATA | AF56: EAST DATA
A57: WHITIANGA | B57: =B56+12 -> 27 | C57: Northland | D57: 3 | E57: Semi exposed | G57: 3 | H57: Winter | I57: 1 | J57: 4 | O57: Wetting g/m2.day | Q57: =Q56*24*1000*$I$94 -> 0.5322167184 | R57: =R56*24*1000*$I$94 -> 0.1598315083 | S57: 0.318902013 | T57: 0.4882531328
A58: PAEROA AWS | B58: 39 | C58: Northland | D58: 3 | E58: Semi sheltered | G58: 6 | H58: All year | I58: 2 | J58: 0 | O58: Drying g/m.day | Q58: =INDIRECT(ADDRESS(52,$Q$61)) -> 537.5479531 | R58: =INDIRECT(ADDRESS(52,$R$61)) -> 409.8806966 | S58: =INDIRECT(ADDRESS(52,$S$61)) -> 469.2932893 | T58: =INDIRECT(ADDRESS(52,$T$61)) -> 491.2188893
A59: TAURANGA | B59: 51 | C59: Northland | D59: 3 | E59: Sheltered | G59: 9 | O59: Drying g/m2.day | Q59: =Q58/2.4 -> 223.9783138 | R59: =R58/2.4 -> 170.7836236 | S59: 195.5388705 | T59: 204.6745372
A60: WHAKATANE | B60: 63 | C60: Rotorua | D60: 163 | O60: Wetting column | Q60: =K74 -> 13 | R60: =K74+4 -> 17 | S60: =K74+2 -> 15 | T60: =K74+6 -> 19
A61: ROTORUA | B61: 75 | C61: Rotorua | D61: 163 | F61: CLADDING TYPES | O61: Drying column | Q61: =L74 -> 8 | R61: =L74+2 -> 10 | S61: =L74+3 -> 11 | T61: =L74+1 -> 9
A62: TAUPO AWS | B62: 87 | C62: Rotorua | D62: 163 | E62: Brick veneer | H62: 5
A63: AUCKLAND | B63: 99 | C63: Auckland | D63: 35 | E63: Weatherboards - low leakage | H63: 21
A64: HAMILTON | B64: 111 | C64: Hamilton | D64: 67 | E64: Weatherboards - medium leakage | H64: 13 | O64: Max Y value on plots | Q64: 500
A65: NEW PLYMOUTH | B65: 123 | C65: Hamilton | D65: 67 | E65: Weatherboards - high leakage | H65: 29 | I65: Row calculation | K65: Column calculation | O65: WETTING DATA | Q65: N | R65: S | S65: E | T65: W
A66: CASTLEPOINT | B66: 135 | C66: Wellington | D66: 195 | I66: WETTING | J66: DRYING | K66: WETTING | L66: DRYING | O66: 20 | P66: 1 | Q66: =IF(Q$57>$O66,20,Q$57) -> 0.5322167184 | R66: =IF(R$57>$O66,20,R$57) -> 0.1598315083 | S66: 0.318902013 | T66: 0.4882531328
A67: EAST TARATAHI | B67: 147 | C67: Wellington | D67: 195 | E67: SELECTED ITEMS | I67: Result | J67: Result | O67: =O66+20 -> 40 | P67: 2 | Q67: =IF(Q$57>$O67,20,IF((Q$57-$O66)>0,Q$57-$O66,0)) -> 0 | R67: =IF(R$57>$O67,20,IF((R$57-$O66)>0,R$57-$O66,0)) -> 0 | S67: =IF(S$57>$O67,20,IF((S$57-$O66)>0,S$57-$O66,0)) -> 0 | T67: 0
A68: HICKS BAY | B68: 159 | C68: Bay Of Plenty | D68: 99 | E68: Location | F68: HAMILTON | I68: =+VLOOKUP(F68,A55:B94,2,FALSE) -> 111 | J68: =+VLOOKUP(F68,A55:D94,4,FALSE) -> 67 | O68: =O67+20 -> 60 | P68: 3 | Q68: 0 | R68: =IF(R$57>$O68,20,IF((R$57-$O67)>0,R$57-$O67,0)) -> 0 | S68: =IF(S$57>$O68,20,IF((S$57-$O67)>0,S$57-$O67,0)) -> 0 | T68: =IF(T$57>$O68,20,IF((T$57-$O67)>0,T$57-$O67,0)) -> 0
A69: GISBORNE | B69: 171 | C69: Bay Of Plenty | D69: 99 | E69: Cladding type | F69: Weatherboards - medium leakage | K69: =+VLOOKUP(F69,E62:H65,4,FALSE) -> 13 | O69: 80 | P69: 4 | Q69: 0 | R69: 0 | S69: 0 | T69: 0
A70: NAPIER | B70: 183 | C70: Napier | D70: 131 | E70: Exposure | F70: Exposed | I70: =+VLOOKUP(F70,E56:G59,3,FALSE) -> 0 | J70: =I70/3 -> 0 | O70: 100 | P70: 5 | Q70: 0 | R70: 0 | S70: 0 | T70: 0 | W70: SOUTH DATA | AF70: WEST DATA
A71: MAHIA | B71: 195 | C71: Bay Of Plenty | D71: 99 | E71: Season | F71: All year | I71: =+VLOOKUP(F71,H56:J58,2,FALSE) -> 2 | L71: =+VLOOKUP(F71,H56:J58,3,FALSE) -> 0 | O71: 120 | P71: 6 | Q71: 0 | R71: 0 | S71: 0 | T71: 0
A72: PALMERSTON NORTH | B72: 207 | C72: Wellington | D72: 195 | E72: Cavity | F72: Direct fixed weatherboards warped and leaky | J72: =VLOOKUP(F72,E76:K84,7,FALSE) -> 20 | O72: 140 | P72: 7 | Q72: =IF(Q$57>$O72,20,IF((Q$57-$O71)>0,Q$57-$O71,0)) -> 0 | R72: 0 | S72: 0 | T72: 0
A73: WELLINGTON | B73: 219 | C73: Wellington | D73: 195 | G73: ROW SELECTED | I73: =I68+I70+I71 -> 113 | J73: =J68+J70+J72 -> 87 | O73: 160 | P73: 8 | Q73: =IF(Q$57>$O73,20,IF((Q$57-$O72)>0,Q$57-$O72,0)) -> 0 | R73: 0 | S73: 0 | T73: 0
A74: NORMANBY | B74: 231 | C74: Bay Of Plenty | D74: 99 | G74: COLUMN SELECTED | K74: =K69 -> 13 | L74: =8+L71 -> 8 | O74: 180 | P74: 9 | Q74: 0 | R74: 0 | S74: 0 | T74: 0
A75: HOKITIKA | B75: 243 | C75: West Coast | D75: 227 | E75: Type | K75: row add | O75: 200 | P75: 10 | Q75: 0 | R75: 0 | S75: 0 | T75: 0
A76: PUYSEGUR POINT | B76: 255 | C76: West Coast | D76: 227 | E76: Brick veneer cavity with top and bottom vents | K76: 0 | O76: 220 | P76: 11 | Q76: 0 | R76: 0 | S76: 0 | T76: 0
A77: NELSON | B77: 267 | C77: Nelson | D77: 259 | E77: Open rainscreen with ventilated battens and vented corner battens | K77: 4 | O77: 240 | P77: 12 | Q77: 0 | R77: 0 | S77: 0 | T77: 0
A78: BLENHEIM | B78: 279 | C78: Nelson | D78: 259 | E78: Open rainscreen with ventilated battens and solid corner battens | K78: 8 | O78: 260 | P78: 13 | Q78: 0 | R78: 0 | S78: 0 | T78: 0
A79: BROTHERS ISLAND | B79: 291 | C79: West Coast | D79: 227 | E79: Open rainscreen with non-ventilated battens | K79: 12 | O79: 280 | P79: 14 | Q79: 0 | R79: 0 | S79: 0 | T79: 0
A80: KAIKOURA | B80: 303 | C80: Christchurch | D80: 291 | E80: Drainage plane with top and bottom vents | K80: 16 | O80: 300 | P80: 15 | Q80: 0 | R80: 0 | S80: 0 | T80: 0
A81: CHRISTCHURCH | B81: 315 | C81: Christchurch | D81: 291 | E81: Direct fixed weatherboards warped and leaky | K81: 20 | O81: 320 | P81: 16 | Q81: 0 | R81: 0 | S81: 0 | T81: 0
A82: TIMARU | B82: 327 | C82: Christchurch | D82: 291 | E82: Direct fixed weatherboards (average) | K82: 24 | O82: 340 | P82: 17 | Q82: 0 | R82: 0 | S82: 0 | T82: 0
A83: TARA HILLS | B83: 339 | C83: Christchurch | D83: 291 | E83: Direct fixed sheet (barrier) claddings | K83: 28 | O83: 360 | P83: 18 | Q83: 0 | R83: 0 | S83: 0 | T83: 0
A84: MANAPOURI | B84: 351 | C84: Queenstown | D84: 323 | E84: Open rainscreen with a 20 mm cavity and custom vents | K84: =K79 -> 12 | O84: 380 | P84: 19 | Q84: 0 | R84: 0 | S84: 0 | T84: 0
A85: QUEENSTOWN | B85: 363 | C85: Queenstown | D85: 323 | E85: Building eaves wetting factors | J85: Brick | K85: Lo | L85: Med | M85: Leaky | O85: 400 | P85: 20 | Q85: 0 | R85: 0 | S85: 0 | T85: 0
A86: GORE | B86: 375 | C86: Invercargill | D86: 419 | E86: No eaves -maximum wetting at corners | J86: 1 | K86: 1 | L86: 1 | M86: 1 | N86: 86 | O86: 420 | P86: 21 | Q86: 0 | R86: 0 | S86: 0 | T86: 0
A87: SOUTH WEST CAPE | B87: 387 | C87: Invercargill | D87: 419 | E87: No eaves - average over the wall | J87: 0.4453924819 | K87: 0.9976152867 | L87: 0.9563301118 | M87: 0.5759544959 | N87: 87 | O87: 440 | P87: 22 | Q87: 0 | R87: 0 | S87: 0 | T87: 0
A88: DUNEDIN | B88: 399 | C88: Dunedin | D88: 387 | E88: Eaves 600 mm - average over the wall | J88: 0.2285353687 | K88: 0.9923829267 | L88: 0.901474338 | M88: 0.349556713 | N88: 88 | O88: 460 | P88: 23 | Q88: 0 | R88: 0 | S88: 0 | T88: 0
A89: WESTPORT | B89: 411 | C89: West Coast | D89: 227 | I89: cladding | J89: 5 | K89: 13 | L89: 21 | M89: 29 | O89: 480 | P89: 24 | Q89: 0 | R89: 0 | S89: 0 | T89: 0
A90: WANAKA | B90: 423 | C90: Central Otago | D90: 355 | O90: 500 | P90: 25 | Q90: 0 | R90: 0 | S90: 0 | T90: 0
A91: PARAPARAUMU | B91: 435 | C91: Wellington | D91: 195 | G91: Chosen eaves description | J91: No eaves -maximum wetting at corners
A92: SECRETARY ISLAND | B92: 447 | C92: Invercargill | D92: 419 | H92: ROW # | I92: =+VLOOKUP(J91,E86:N88,10,FALSE) -> 86
A93: MOKOHINAU | B93: 459 | C93: Invercargill | D93: 419 | H93: COL # | I93: =IF(K69=5,10,IF(K69=21,11,IF(K69=13,12,13))) -> 12 | O93: WETTING DATA | Q93: N | R93: S | S93: E | T93: W
A94: INVERCARGILL | B94: 471 | C94: Invercargill | D94: 419 | H94: Factor | I94: =INDIRECT(ADDRESS(I92,I93)) -> 1 | O94: 500 | P94: 1 | Q94: =IF(Q$59>$O94,20,IF((Q$59-$O95)>0,Q$59-$O95,0)) -> 0 | R94: =IF(R$59>$O94,20,IF((R$59-$O95)>0,R$59-$O95,0)) -> 0 | S94: =IF(S$59>$O94,20,IF((S$59-$O95)>0,S$59-$O95,0)) -> 0 | T94: =IF(T$59>$O94,20,IF((T$59-$O95)>0,T$59-$O95,0)) -> 0
O95: 480 | P95: 2 | Q95: 0 | R95: 0 | S95: 0 | T95: 0
O96: 460 | P96: 3 | Q96: 0 | R96: 0 | S96: 0 | T96: 0
O97: 440 | P97: 4 | Q97: 0 | R97: 0 | S97: 0 | T97: 0
O98: 420 | P98: 5 | Q98: 0 | R98: 0 | S98: 0 | T98: 0
O99: 400 | P99: 6 | Q99: 0 | R99: 0 | S99: 0 | T99: 0
O100: 380 | P100: 7 | Q100: 0 | R100: 0 | S100: 0 | T100: 0
O101: 360 | P101: 8 | Q101: 0 | R101: 0 | S101: 0 | T101: 0
O102: 340 | P102: 9 | Q102: 0 | R102: 0 | S102: 0 | T102: 0
O103: 320 | P103: 10 | Q103: 0 | R103: 0 | S103: 0 | T103: 0
O104: 300 | P104: 11 | Q104: 0 | R104: 0 | S104: 0 | T104: 0
O105: 280 | P105: 12 | Q105: 0 | R105: 0 | S105: 0 | T105: 0
O106: 260 | P106: 13 | Q106: 0 | R106: 0 | S106: 0 | T106: 0
O107: 240 | P107: 14 | Q107: 3.978313785 | R107: 0 | S107: 0 | T107: 0
O108: 220 | P108: 15 | Q108: 20 | R108: 0 | S108: 0 | T108: 4.674537205
O109: 200 | P109: 16 | Q109: 20 | R109: 0 | S109: 15.53887052 | T109: 20
O110: 180 | P110: 17 | Q110: 20 | R110: 10.78362359 | S110: 20 | T110: 20
O111: 160 | P111: 18 | Q111: 20 | R111: 20 | S111: 20 | T111: 20
O112: 140 | P112: 19 | Q112: 20 | R112: 20 | S112: 20 | T112: 20
O113: 120 | P113: 20 | Q113: 20 | R113: 20 | S113: 20 | T113: 20
O114: 100 | P114: 21 | Q114: 20 | R114: 20 | S114: 20 | T114: 20
O115: 80 | P115: 22 | Q115: 20 | R115: 20 | S115: 20 | T115: 20
O116: 60 | P116: 23 | Q116: 20 | R116: 20 | S116: 20 | T116: 20
O117: 40 | P117: 24 | Q117: =IF(Q$59>$O117,20,IF((Q$59-$O118)>0,Q$59-$O118,0)) -> 20 | R117: =IF(R$59>$O117,20,IF((R$59-$O118)>0,R$59-$O118,0)) -> 20 | S117: 20 | T117: 20
O118: 20 | P118: 25 | Q118: =IF(Q$59>$O118,20,Q$59) -> 20 | R118: =IF(R$59>$O118,20,R$59) -> 20 | S118: 20 | T118: 20

Sheet Wetting & Drying (Relative)
E47: Brick veneer wall with wetting in kg/m2.hour | N47: Medium proportional leakage in kg/m2.hour | V47: Low proportional leakage | AD47: Leaky proportional leakage in kg.m2.h
A48: Location code | B48: STATION | C48: Exposure | D48: Season | E48: N | F48: NE | G48: E | H48: SE | I48: S | J48: SW | K48: W | L48: NW | M48: N | N48: NE | O48: E | P48: SE | Q48: S | R48: SW | S48: W | T48: NW | U48: N | V48: NE | W48: E | X48: SE | Y48: S | Z48: SW | AA48: W | AB48: NW | AC48: N | AD48: NE | AE48: E | AF48: SE | AG48: S | AH48: SW | AI48: W | AJ48: NW
A49: =INDIRECT("WettingData!" & ADDRESS( $I$73,COLUMN())) -> 0 | B49: =INDIRECT("WettingData!" & ADDRESS( $I$73,COLUMN())) -> 0 | C49: 0 | D49: Y | E49: 0.009561228216 | F49: 0.01028528595 | G49: 0.00693883578 | H49: 0.003259853424 | I49: 0.002823305462 | J49: 0.004919031564 | K49: 0.006542002058 | L49: 0.00527956334 | M49: 2.220998061e-05 | N49: 2.375935738e-05 | O49: 1.63223787e-05 | P49: 9.303337753e-06 | Q49: 1.250035286e-05 | R49: 2.681172031e-05 | S49: 2.846197215e-05 | T49: 1.695365952e-05 | U49: 1.877003576e-06 | V49: 1.890709971e-06 | W49: 1.380084005e-06 | X49: 8.28075935e-07 | Y49: 1.047155385e-06 | Z49: 1.893057708e-06 | AA49: 2.087810001e-06 | AB49: 1.440483075e-06 | AC49: 0.0006699887478 | AD49: 0.0006835374099 | AE49: 0.0004947517776 | AF49: 0.0002951653453 | AG49: 0.0003639646895 | AH49: 0.0006689873698 | AI49: 0.0007383889132 | AJ49: 0.0005042527316
A50: DRYING DATA | D50: Fresh air ventilation rates | L50: Fresh air drying rates | T50: Bottom plate Winter drying out times | X50: Numbers are days to reach MC value starting in winter (July) | AN50: Bottom plate Summer drying out times | AR50: Numbers are days to reach MC value starting in summer (January) | BH50: Stud drying out times in winter | BM50: Number of days to reach MC value starting in winter (July) | CB50: Stud drying out times in summer | CG50: Number of days to reach MC value starting in summer (January)
A51: Location | B51: Cavity Type | C51: Exposure | D51: N/win | E51: W/win | F51: S/win | G51: E/win | H51: N/year | I51: W/year | J51: S/year | K51: E/year | L51: N/win | M51: W/win | N51: S/win | O51: E/win | P51: N/sum | Q51: W/sum | R51: S/sum | S51: E/sum | T51: N15 | U51: N20 | V51: N25 | W51: N30 | X51: N35 | Y51: S15 | Z51: S20 | AA51: S25 | AB51: S30 | AC51: S35 | AD51: E15 | AE51: E20 | AF51: E25 | AG51: E30 | AH51: E35 | AI51: W15 | AJ51: W20 | AK51: W25 | AL51: W30 | AM51: W35 | AN51: N15 | AO51: N20 | AP51: N25 | AQ51: N30 | AR51: N35 | AS51: S15 | AT51: S20 | AU51: S25 | AV51: S30 | AW51: S35 | AX51: E15 | AY51: E20 | AZ51: E25 | BA51: E30 | BB51: E35 | BC51: W15 | BD51: W20 | BE51: W25 | BF51: W30 | BG51: W35 | BH51: N15 | BI51: N20 | BJ51: N25 | BK51: N30 | BL51: N35 | BM51: S15 | BN51: S20 | BO51: S25 | BP51: S30 | BQ51: S35 | BR51: E15 | BS51: E20 | BT51: E25 | BU51: E30 | BV51: E35 | BW51: W15 | BX51: W20 | BY51: W25 | BZ51: W30 | CA51: W35 | CB51: N15 | CC51: N20 | CD51: N25 | CE51: N30 | CF51: N35 | CG51: S15 | CH51: S20 | CI51: S25 | CJ51: S30 | CK51: S35 | CL51: E15 | CM51: E20 | CN51: E25 | CO51: E30 | CP51: E35 | CQ51: W15 | CR51: W20 | CS51: W25 | CT51: W30 | CU51: W35
A52: =INDIRECT("CavityDryingData!"&ADDRESS($J$73,COLUMN())) -> Auckland | B52: Direct fixed weatherboards (tight) | C52: Exposed | D52: 0.01127566639 | E52: 0.02791546572 | F52: 0.01116982813 | G52: 0.01091660459 | H52: =(L52+P52)/2 -> 32.48163571 | I52: =(M52+Q52)/2 -> 47.39948435 | J52: 22.66568531 | K52: 20.14098609 | L52: =INDIRECT("CavityDryingData!"&ADDRESS($J$73,COLUMN())) -> 26.72988618 | M52: 32.56631098 | N52: 17.94144168 | O52: 15.67367537 | P52: 38.23338523 | Q52: 62.23265773 | R52: 27.38992894 | S52: 24.60829682 | T52: 130.6 | U52: 88.9 | V52: 58.5 | W52: 32 | X52: 15.5 | Y52: 168.7 | Z52: 123.8 | AA52: 79.5 | AB52: 43 | AC52: 18 | AD52: 144.5 | AE52: 105.4 | AF52: 70 | AG52: 36.8 | AH52: 16 | AI52: 146.1 | AJ52: 107.4 | AK52: 71 | AL52: 37.5 | AM52: 16.9 | AN52: 77.7 | AO52: 54.7 | AP52: 37.5 | AQ52: 21.8 | AR52: 11.1 | AS52: 111 | AT52: 71.3 | AU52: 46.2 | AV52: 25.5 | AW52: 11.9 | AX52: 84.2 | AY52: 56.1 | AZ52: 38.2 | BA52: 21.9 | BB52: 11.3 | BC52: 82.8 | BD52: 55.8 | BE52: 37 | BF52: 22.4 | BG52: 10.8 | BH52: 101.7 | BI52: 64.9 | BJ52: 39.5 | BK52: 18.9 | BL52: 5.5 | BM52: 122.5 | BN52: 81.3 | BO52: 50.3 | BP52: 22.4 | BQ52: 5.6 | BR52: 111.5 | BS52: 73.4 | BT52: 44.8 | BU52: 20.5 | BV52: 5 | BW52: 109.1 | BX52: =INDIRECT("CavityDryingData!"&ADDRESS($J$73,COLUMN())) -> 74.1 | BY52: 46.3 | BZ52: 22.3 | CA52: 6.2 | CB52: 61.9 | CC52: 43.3 | CD52: 28.2 | CE52: 14.8 | CF52: 5.2 | CG52: 70.1 | CH52: 47.9 | CI52: 30.5 | CJ52: 15.5 | CK52: 4.9 | CL52: 63.3 | CM52: 44.3 | CN52: 28.9 | CO52: 15.2 | CP52: 5.2 | CQ52: 59.9 | CR52: 41.9 | CS52: 26.9 | CT52: 13.9 | CU52: 4.8
A54: Wetting Location | B54: row start | C54: Drying Location | D54: Approx locat | G54: WETTING ROW START DATA | J54: Drying
A55: KAIKOHE | B55: 3 | C55: Northland | D55: 3 | E55: Exposure | G55: row start | H55: Season | I55: row start | J55: Col start | O55: PLOTTING DATA | Q55: N | R55: S | S55: E | T55: W
A56: WHANGAREI | B56: =B55+12 -> 15 | C56: Northland | D56: 3 | E56: Exposed | G56: 0 | H56: Summer | I56: 0 | J56: 8 | O56: Wetting Kg/m2.hour | Q56: =INDIRECT(ADDRESS(49,$Q$60)) -> 0.0006699887478 | R56: =INDIRECT(ADDRESS(49,$R$60)) -> 0.0003639646895 | S56: =INDIRECT(ADDRESS(49,$S$60)) -> 0.0004947517776 | T56: =INDIRECT(ADDRESS(49,$T$60)) -> 0.0007383889132 | W56: NORTH DATA | AF56: EAST DATA
A57: WHITIANGA | B57: =B56+12 -> 27 | C57: Northland | D57: 3 | E57: Semi exposed | G57: 3 | H57: Winter | I57: 1 | J57: 4 | O57: Wetting g/m2.day | Q57: =Q56*24*1000*$I$94 -> 5.620777546 | R57: =R56*24*1000*$I$94 -> 3.053431212 | S57: 4.150651324 | T57: 6.194611235
A58: PAEROA AWS | B58: 39 | C58: Northland | D58: 3 | E58: Semi sheltered | G58: 6 | H58: All year | I58: 2 | J58: 0 | O58: Drying g/m.day | Q58: =INDIRECT(ADDRESS(52,$Q$61)) -> 32.48163571 | R58: =INDIRECT(ADDRESS(52,$R$61)) -> 22.66568531 | S58: =INDIRECT(ADDRESS(52,$S$61)) -> 20.14098609 | T58: =INDIRECT(ADDRESS(52,$T$61)) -> 47.39948435
A59: TAURANGA | B59: 51 | C59: Northland | D59: 3 | E59: Sheltered | G59: 9 | O59: Drying g/m2.day | Q59: =Q58/2.4 -> 13.53401488 | R59: =R58/2.4 -> 9.444035546 | S59: 8.392077538 | T59: 19.74978515
A60: WHAKATANE | B60: 63 | C60: Rotorua | D60: 163 | O60: Wetting column | Q60: =K74 -> 29 | R60: =K74+4 -> 33 | S60: =K74+2 -> 31 | T60: =K74+6 -> 35
A61: ROTORUA | B61: 75 | C61: Rotorua | D61: 163 | F61: CLADDING TYPES | O61: Drying column | Q61: =L74 -> 8 | R61: =L74+2 -> 10 | S61: =L74+3 -> 11 | T61: =L74+1 -> 9
A62: TAUPO AWS | B62: 87 | C62: Rotorua | D62: 163 | E62: Brick veneer | H62: 5 | P62: Proportion | Q62: =400*Q57/(Q57+Q59) -> 117.375901 | R62: =400*R57/(R57+R59) -> 97.7296046 | S62: 132.3683664 | T62: 95.50596042
A63: AUCKLAND | B63: 99 | C63: Auckland | D63: 35 | E63: Weatherboards - low leakage | H63: 21
A64: HAMILTON | B64: 111 | C64: Hamilton | D64: 67 | E64: Weatherboards - medium leakage | H64: 13 | O64: Max Y value on plots | Q64: 400
A65: NEW PLYMOUTH | B65: 123 | C65: Hamilton | D65: 67 | E65: Weatherboards - high leakage | H65: 29 | I65: Row calculation | K65: Column calculation | O65: BALANCE DATA | Q65: N | R65: S | S65: E | T65: W
A66: CASTLEPOINT | B66: 135 | C66: Wellington | D66: 195 | I66: WETTING | J66: DRYING | K66: WETTING | L66: DRYING | O66: 20 | P66: 1 | Q66: =IF(Q$62>$O66,20,Q$62) -> 20 | R66: =IF(R$62>$O66,20,R$62) -> 20 | S66: 20 | T66: 20
A67: EAST TARATAHI | B67: 147 | C67: Wellington | D67: 195 | E67: SELECTED ITEMS | I67: Result | J67: Result | O67: =O66+20 -> 40 | P67: 2 | Q67: =IF(Q$62>$O67,20,IF((Q$62-$O66)>0,Q$62-$O66,0)) -> 20 | R67: =IF(R$62>$O67,20,IF((R$62-$O66)>0,R$62-$O66,0)) -> 20 | S67: 20 | T67: 20
A68: HICKS BAY | B68: 159 | C68: Bay Of Plenty | D68: 99 | E68: Location | F68: AUCKLAND | I68: =+VLOOKUP(F68,A55:B94,2,FALSE) -> 99 | J68: =+VLOOKUP(F68,A55:D94,4,FALSE) -> 35 | O68: =O67+20 -> 60 | P68: 3 | Q68: =IF(Q$62>$O68,20,IF((Q$62-$O67)>0,Q$62-$O67,0)) -> 20 | R68: =IF(R$62>$O68,20,IF((R$62-$O67)>0,R$62-$O67,0)) -> 20 | S68: =IF(S$62>$O68,20,IF((S$62-$O67)>0,S$62-$O67,0)) -> 20 | T68: =IF(T$62>$O68,20,IF((T$62-$O67)>0,T$62-$O67,0)) -> 20
A69: GISBORNE | B69: 171 | C69: Bay Of Plenty | D69: 99 | E69: Cladding type | F69: Weatherboards - high leakage | K69: =+VLOOKUP(F69,E62:H65,4,FALSE) -> 29 | O69: 80 | P69: 4 | Q69: 20 | R69: 20 | S69: 20 | T69: 20
A70: NAPIER | B70: 183 | C70: Napier | D70: 131 | E70: Exposure | F70: Exposed | I70: =+VLOOKUP(F70,E56:G59,3,FALSE) -> 0 | J70: =I70/3 -> 0 | O70: 100 | P70: 5 | Q70: 20 | R70: 17.7296046 | S70: 20 | T70: 15.50596042 | W70: SOUTH DATA | AF70: WEST DATA
A71: MAHIA | B71: 195 | C71: Bay Of Plenty | D71: 99 | E71: Season | F71: All year | I71: =+VLOOKUP(F71,H56:J58,2,FALSE) -> 2 | L71: =+VLOOKUP(F71,H56:J58,3,FALSE) -> 0 | O71: 120 | P71: 6 | Q71: 17.37590097 | R71: 0 | S71: 20 | T71: 0
A72: PALMERSTON NORTH | B72: 207 | C72: Wellington | D72: 195 | E72: Cavity | F72: Direct fixed sheet (barrier) claddings | J72: =VLOOKUP(F72,E76:K84,7,FALSE) -> 28 | O72: 140 | P72: 7 | Q72: 0 | R72: 0 | S72: 12.36836639 | T72: 0
A73: WELLINGTON | B73: 219 | C73: Wellington | D73: 195 | G73: ROW SELECTED | I73: =I68+I70+I71 -> 101 | J73: =J68+J70+J72 -> 63 | O73: 160 | P73: 8 | Q73: 0 | R73: 0 | S73: 0 | T73: 0
A74: NORMANBY | B74: 231 | C74: Bay Of Plenty | D74: 99 | G74: COLUMN SELECTED | K74: =K69 -> 29 | L74: =8+L71 -> 8 | O74: 180 | P74: 9 | Q74: 0 | R74: 0 | S74: 0 | T74: 0
A75: HOKITIKA | B75: 243 | C75: West Coast | D75: 227 | E75: Type | K75: row add | O75: 200 | P75: 10 | Q75: 0 | R75: 0 | S75: 0 | T75: 0
A76: PUYSEGUR POINT | B76: 255 | C76: West Coast | D76: 227 | E76: Brick veneer cavity with top and bottom vents | K76: 0 | O76: 220 | P76: 11 | Q76: 0 | R76: 0 | S76: 0 | T76: 0
A77: NELSON | B77: 267 | C77: Nelson | D77: 259 | E77: Open rainscreen with ventilated battens and vented corner battens | K77: 4 | O77: 240 | P77: 12 | Q77: 0 | R77: 0 | S77: 0 | T77: 0
A78: BLENHEIM | B78: 279 | C78: Nelson | D78: 259 | E78: Open rainscreen with ventilated battens and solid corner battens | K78: 8 | O78: 260 | P78: 13 | Q78: 0 | R78: 0 | S78: 0 | T78: 0
A79: BROTHERS ISLAND | B79: 291 | C79: West Coast | D79: 227 | E79: Open rainscreen with non-ventilated battens | K79: 12 | O79: 280 | P79: 14 | Q79: 0 | R79: 0 | S79: 0 | T79: 0
A80: KAIKOURA | B80: 303 | C80: Christchurch | D80: 291 | E80: Drainage plane with top and bottom vents | K80: 16 | O80: 300 | P80: 15 | Q80: 0 | R80: 0 | S80: 0 | T80: 0
A81: CHRISTCHURCH | B81: 315 | C81: Christchurch | D81: 291 | E81: Direct fixed weatherboards warped and leaky | K81: 20 | O81: 320 | P81: 16 | Q81: 0 | R81: 0 | S81: 0 | T81: 0
A82: TIMARU | B82: 327 | C82: Christchurch | D82: 291 | E82: Direct fixed weatherboards (average) | K82: 24 | O82: 340 | P82: 17 | Q82: 0 | R82: 0 | S82: 0 | T82: 0
A83: TARA HILLS | B83: 339 | C83: Christchurch | D83: 291 | E83: Direct fixed sheet (barrier) claddings | K83: 28 | O83: 360 | P83: 18 | Q83: 0 | R83: 0 | S83: 0 | T83: 0
A84: MANAPOURI | B84: 351 | C84: Queenstown | D84: 323 | E84: Open rainscreen with a 20 mm cavity and custom vents | K84: =K79 -> 12 | O84: 380 | P84: 19 | Q84: 0 | R84: 0 | S84: 0 | T84: 0
A85: QUEENSTOWN | B85: 363 | C85: Queenstown | D85: 323 | E85: Building eaves wetting factors | J85: Brick | K85: Lo | L85: Med | M85: Leaky | O85: 400 | P85: 20 | Q85: 0 | R85: 0 | S85: 0 | T85: 0
A86: GORE | B86: 375 | C86: Invercargill | D86: 419 | E86: No eaves -maximum wetting at corners | J86: 1 | K86: 1 | L86: 1 | M86: 1 | N86: 86 | O86: 420 | P86: 21 | Q86: 0 | R86: 0 | S86: 0 | T86: 0
A87: SOUTH WEST CAPE | B87: 387 | C87: Invercargill | D87: 419 | E87: No eaves - average over the wall | J87: 0.4453924819 | K87: 0.9976152867 | L87: 0.9563301118 | M87: 0.5759544959 | N87: 87 | O87: 440 | P87: 22 | Q87: 0 | R87: 0 | S87: 0 | T87: 0
A88: DUNEDIN | B88: 399 | C88: Dunedin | D88: 387 | E88: Eaves 600 mm - average over the wall | J88: 0.2285353687 | K88: 0.9923829267 | L88: 0.901474338 | M88: 0.349556713 | N88: 88 | O88: 460 | P88: 23 | Q88: 0 | R88: 0 | S88: 0 | T88: 0
A89: WESTPORT | B89: 411 | C89: West Coast | D89: 227 | I89: cladding | J89: 5 | K89: 13 | L89: 21 | M89: 29 | O89: 480 | P89: 24 | Q89: 0 | R89: 0 | S89: 0 | T89: 0
A90: WANAKA | B90: 423 | C90: Central Otago | D90: 355 | O90: 500 | P90: 25 | Q90: 0 | R90: 0 | S90: 0 | T90: 0
A91: PARAPARAUMU | B91: 435 | C91: Wellington | D91: 195 | G91: Chosen eaves description | J91: Eaves 600 mm - average over the wall
A92: SECRETARY ISLAND | B92: 447 | C92: Invercargill | D92: 419 | H92: ROW # | I92: =+VLOOKUP(J91,E86:N88,10,FALSE) -> 88
A93: MOKOHINAU | B93: 459 | C93: Invercargill | D93: 419 | H93: COL # | I93: =IF(K69=5,10,IF(K69=21,11,IF(K69=13,12,13))) -> 13
A94: INVERCARGILL | B94: 471 | C94: Invercargill | D94: 419 | H94: Factor | I94: =INDIRECT(ADDRESS(I92,I93)) -> 0.349556713

Sheet FrameDryingdata
B1: Cavity walls with vapour permeable internal lining | V1: Direct fixed walls with vapour permeable internal lining | AP1: Cavity walls with vapour barrier internal lining | BJ1: Direct fixed walls with vapour barrier internal lining
A2: Bottom plate winter | B2: North | G2: South | L2: East | Q2: West | V2: North | AA2: South | AF2: East | AK2: West | AP2: North | AU2: South | AZ2: East | BE2: West | BJ2: North | BO2: South | BT2: East | BY2: West
A3: Location | B3: 15 | C3: 20 | D3: 25 | E3: 30 | F3: 35 | G3: 15 | H3: 20 | I3: 25 | J3: 30 | K3: 35 | L3: 15 | M3: 20 | N3: 25 | O3: 30 | P3: 35 | Q3: 15 | R3: 20 | S3: 25 | T3: 30 | U3: 35 | V3: 15 | W3: 20 | X3: 25 | Y3: 30 | Z3: 35 | AA3: 15 | AB3: 20 | AC3: 25 | AD3: 30 | AE3: 35 | AF3: 15 | AG3: 20 | AH3: 25 | AI3: 30 | AJ3: 35 | AK3: 15 | AL3: 20 | AM3: 25 | AN3: 30 | AO3: 35 | AP3: 15 | AQ3: 20 | AR3: 25 | AS3: 30 | AT3: 35 | AU3: 15 | AV3: 20 | AW3: 25 | AX3: 30 | AY3: 35 | AZ3: 15 | BA3: 20 | BB3: 25 | BC3: 30 | BD3: 35 | BE3: 15 | BF3: 20 | BG3: 25 | BH3: 30 | BI3: 35 | BJ3: 15 | BK3: 20 | BL3: 25 | BM3: 30 | BN3: 35 | BO3: 15 | BP3: 20 | BQ3: 25 | BR3: 30 | BS3: 35 | BT3: 15 | BU3: 20 | BV3: 25 | BW3: 30 | BX3: 35 | BY3: 15 | BZ3: 20 | CA3: 25 | CB3: 30 | CC3: 35
A4: Auckland | B4: 80.91 | C4: 61.65 | D4: 42.95 | E4: 26.5 | F4: 15.1 | G4: 124.05 | H4: 89.1 | I4: 62.1 | J4: 36.35 | K4: 19.4 | L4: 99.8 | M4: 72.8 | N4: 52.1 | O4: 31.45 | P4: 17 | Q4: 109.25 | R4: 81.25 | S4: 54 | T4: 32.5 | U4: 17.4 | V4: 130.6 | W4: 88.9 | X4: 58.5 | Y4: 32 | Z4: 15.5 | AA4: 168.7 | AB4: 123.8 | AC4: 79.5 | AD4: 43 | AE4: 18 | AF4: 144.5 | AG4: 105.4 | AH4: 70 | AI4: 36.8 | AJ4: 16 | AK4: 146.1 | AL4: 107.4 | AM4: 71 | AN4: 37.5 | AO4: 16.9 | AP4: 143.6041667 | AQ4: 113.4791667 | AR4: 89.4375 | AS4: 66.47916667 | AT4: 32.70833333 | AU4: 191.041665 | AV4: 156.5625 | AW4: 125.6041667 | AX4: 91.54166667 | AY4: 46.02083333 | AZ4: 159.5416667 | BA4: 130.4791667 | BB4: 104.1041667 | BC4: 76.5625 | BD4: 36.5625 | BE4: 164 | BF4: 135.1458333 | BG4: 108.5208333 | BH4: 79.64583333 | BI4: 37.625 | BJ4: 288.9583 | BK4: 226.91667 | BL4: 168.9583333 | BM4: 106.125 | BN4: 40.20833333 | BO4: 385 | BP4: 276.083333 | BQ4: 207 | BR4: 136.0833333 | BS4: 54.16666667 | BT4: 321.125 | BU4: 243.16667 | BV4: 189.875 | BW4: 123.875 | BX4: 47.04166667 | BY4: 321.2083 | BZ4: 242.29167 | CA4: 191 | CB4: 123.3333333 | CC4: 45.16666667
A5: Bay of Plenty | B5: 79.75 | C5: 60.55 | D5: 42.65 | E5: 26.6 | F5: 15.1 | G5: 118.5 | H5: 83.95 | I5: 57.8 | J5: 33.9 | K5: 18.2 | L5: 97.3 | M5: 70.3 | N5: 49.5 | O5: 29.85 | P5: 16.2 | Q5: 102.05 | R5: 74.05 | S5: 51.9 | T5: 30.95 | U5: 16.9 | V5: 130 | W5: 89.5 | X5: 59.4 | Y5: 32.5 | Z5: 15.1 | AA5: 166.5 | AB5: 123.8 | AC5: 80.8 | AD5: 44.25 | AE5: 18 | AF5: 143.5 | AG5: 103.7 | AH5: 70.9 | AI5: 38 | AJ5: 16.7 | AK5: 146.2 | AL5: 109.5 | AM5: 72.8 | AN5: 40.3 | AO5: 17.2 | AP5: 137.6041667 | AQ5: 109.6041667 | AR5: 87.08333333 | AS5: 65.08333333 | AT5: 32.66666667 | AU5: 178.5416667 | AV5: 147.0625 | AW5: 117.0208333 | AX5: 83.52083333 | AY5: 39.5 | AZ5: 152.0416667 | BA5: 124.4583333 | BB5: 98.875 | BC5: 72.54166667 | BD5: 34 | BE5: 156.9583333 | BF5: 129.5 | BG5: 102.5208333 | BH5: 74.6875 | BI5: 35.08333333 | BJ5: 281 | BK5: 219.95833 | BL5: 161.875 | BM5: 101.2916667 | BN5: 31.20833333 | BO5: 370 | BP5: 264.04167 | BQ5: 197.20833 | BR5: 129.0416667 | BS5: 46.08333333 | BT5: 296.0417 | BU5: 231.875 | BV5: 179.25 | BW5: 111.9583333 | BX5: 36.04166667 | BY5: 303 | BZ5: 234 | CA5: 184.041667 | CB5: 120.125 | CC5: 40.20833333
A6: Central Otago | B6: 76.25 | C6: 57.65 | D6: 40.2 | E6: 25.2 | F6: 13.7 | G6: 109.55 | H6: 75.35 | I6: 50.15 | J6: 30.6 | K6: 16.5 | L6: 93.7 | M6: 66.7 | N6: 46.45 | O6: 29.1 | P6: 15.65 | Q6: 97.05 | R6: 69.05 | S6: 47.35 | T6: 29.45 | U6: 15.95 | V6: 144.1 | W6: 103.6 | X6: 73.3 | Y6: 41.6 | Z6: 15.4 | AA6: 176 | AB6: 135.6 | AC6: 94.5 | AD6: 53.5 | AE6: 18.3 | AF6: 159.4 | AG6: 118.9 | AH6: 85.2 | AI6: 46.2 | AJ6: 16.7 | AK6: 157.5 | AL6: 121.6 | AM6: 85.6 | AN6: 48.3 | AO6: 18.1 | AP6: 118.8958333 | AQ6: 96.10416667 | AR6: 76.625 | AS6: 55.9375 | AT6: 24.8125 | AU6: 146.9583333 | AV6: 122.0208333 | AW6: 96.45833333 | AX6: 70.02083333 | AY6: 31.0625 | AZ6: 132.3541667 | BA6: 107.9166667 | BB6: 86.1875 | BC6: 62.47916667 | BD6: 28.58333333 | BE6: 134.0833333 | BF6: 110.5208333 | BG6: 88.54166667 | BH6: 64.10416667 | BI6: 29.14583333 | BJ6: 262.125 | BK6: 213.95833 | BL6: 164.5416667 | BM6: 97.08333333 | BN6: 28.125 | BO6: 307.0417 | BP6: 233.91667 | BQ6: 180.1666667 | BR6: 112.9166667 | BS6: 34.16666667 | BT6: 264.08333 | BU6: 215.61667 | BV6: 167.9166667 | BW6: 98.20833333 | BX6: 30.125 | BY6: 277.08333 | BZ6: 226.375 | CA6: 178.25 | CB6: 110.1666667 | CC6: 32.08333333
A7: Christchurch | B7: 78.3 | C7: 59.4 | D7: 41.75 | E7: 26.6 | F7: 14.2 | G7: 112.2 | H7: 78 | I7: 53 | J7: 31.6 | K7: 16.675 | L7: 95.7 | M7: 68.7 | N7: 47.7 | O7: 29.85 | P7: 15.65 | Q7: 99.4 | R7: 71.4 | S7: 49.55 | T7: 30.7 | U7: 16.45 | V7: 139.1 | W7: 99.5 | X7: 68.5 | Y7: 38.6 | Z7: 15.25 | AA7: 174.6 | AB7: 133.4 | AC7: 85.6 | AD7: 45.6 | AE7: 17.5 | AF7: 153.1 | AG7: 113 | AH7: 78.1 | AI7: 41.3 | AJ7: 16 | AK7: 159 | AL7: 120.9 | AM7: 78.3 | AN7: 41.7 | AO7: 16.75 | AP7: 125.9791667 | AQ7: 101.1041667 | AR7: 81.4375 | AS7: 60.4375 | AT7: 27.54166667 | AU7: 157.0625 | AV7: 130.0625 | AW7: 103.4791667 | AX7: 76.625 | AY7: 36.52083333 | AZ7: 138.6666667 | BA7: 112.9791667 | BB7: 90.91666667 | BC7: 66.125 | BD7: 30.52083333 | BE7: 141.1666667 | BF7: 115.5833333 | BG7: 93.08333333 | BH7: 68.14583333 | BI7: 30.625 | BJ7: 263.29167 | BK7: 210.91667 | BL7: 159.125 | BM7: 97.125 | BN7: 29.04166667 | BO7: 328.9167 | BP7: 240.125 | BQ7: 187.16667 | BR7: 113.1666667 | BS7: 38.04166667 | BT7: 319.2083 | BU7: 242.16667 | BV7: 191.83333 | BW7: 106.0833333 | BX7: 30.08333333 | BY7: 287.2083 | BZ7: 229.08333 | CA7: 186.958333 | CB7: 116.0833333 | CC7: 40.20833333
A8: Dunedin | B8: 77.85 | C8: 57.5 | D8: 39.9 | E8: 25.25 | F8: 14.05 | G8: 111.15 | H8: 76.95 | I8: 50.75 | J8: 30.8 | K8: 16.95 | L8: 93.2 | M8: 66.2 | N8: 44.9 | O8: 27.8 | P8: 15.35 | Q8: 97.55 | R8: 69.55 | S8: 46.8 | T8: 29.3 | U8: 16 | V8: 144.3 | W8: 101.9 | X8: 69.9 | Y8: 37.5 | Z8: 15.4 | AA8: 173.4 | AB8: 130.1 | AC8: 86.3 | AD8: 44.8 | AE8: 17.4 | AF8: 155.1 | AG8: 113.8 | AH8: 78.2 | AI8: 39.8 | AJ8: 16 | AK8: 157.8 | AL8: 120.5 | AM8: 80.2 | AN8: 41.3 | AO8: 17 | AP8: 124.4166667 | AQ8: 100.1041667 | AR8: 79.16666667 | AS8: 57.33333333 | AT8: 26.58333333 | AU8: 154.125 | AV8: 128 | AW8: 101.4375 | AX8: 72.54166667 | AY8: 37.08333333 | AZ8: 135.8541667 | BA8: 111.8541667 | BB8: 89.35416667 | BC8: 63.14583333 | BD8: 31.5 | BE8: 139.7291667 | BF8: 115.5416667 | BG8: 91.64583333 | BH8: 65.16666667 | BI8: 32.10416667 | BJ8: 283.16667 | BK8: 217.5 | BL8: 158.0833333 | BM8: 95.16666667 | BN8: 31.25 | BO8: 363.75 | BP8: 248.08333 | BQ8: 181.125 | BR8: 113.0416667 | BS8: 39 | BT8: 288.75 | BU8: 220.70833 | BV8: 166.7916667 | BW8: 101.1666667 | BX8: 34.125 | BY8: 339.16667 | BZ8: 243.16667 | CA8: 178.25 | CB8: 112.125 | CC8: 38.125
A9: Napier | B9: 76.3 | C9: 57.2 | D9: 39.85 | E9: 25.4 | F9: 14.2 | G9: 111.8 | H9: 78.25 | I9: 52.35 | J9: 31.7 | K9: 17.25 | L9: 104.95 | M9: 77.95 | N9: 56.125 | O9: 38.1 | P9: 22.5 | Q9: 98.7 | R9: 70.7 | S9: 48.6 | T9: 30.4 | U9: 16.7 | V9: 128.5 | W9: 88.6 | X9: 58.6 | Y9: 31.8 | Z9: 15.3 | AA9: 166.5 | AB9: 123.6 | AC9: 80.3 | AD9: 42.6 | AE9: 18.3 | AF9: 143.6 | AG9: 105.3 | AH9: 69.8 | AI9: 38.8 | AJ9: 17.5 | AK9: 146.4 | AL9: 109.5 | AM9: 71.9 | AN9: 38.6 | AO9: 17.7 | AP9: 129.2916667 | AQ9: 102.9583333 | AR9: 81.58333333 | AS9: 60.97916667 | AT9: 31.60416667 | AU9: 164.5625 | AV9: 136.1041667 | AW9: 108.0625 | AX9: 77.47916667 | AY9: 39 | AZ9: 142.1666667 | BA9: 116.5 | BB9: 93.54166667 | BC9: 68.91666667 | BD9: 36.45833333 | BE9: 148.1666667 | BF9: 122.9791667 | BG9: 98.02083333 | BH9: 71.625 | BI9: 38.0625 | BJ9: 265.04167 | BK9: 212.91667 | BL9: 160.9583333 | BM9: 100.0833333 | BN9: 39.08333333 | BO9: 343.9583 | BP9: 251.91667 | BQ9: 190.25 | BR9: 125.9166667 | BS9: 47.95833333 | BT9: 275 | BU9: 220.83333 | BV9: 174.875 | BW9: 107.125 | BX9: 38.95833333 | BY9: 284.16667 | BZ9: 224.95833 | CA9: 176.2916667 | CB9: 113.0833333 | CC9: 38.16666667
A10: Hamilton | B10: 80.95 | C10: 61.55 | D10: 43 | E10: 27.2 | F10: 15.7 | G10: 126.05 | H10: 92.4 | I10: 63.75 | J10: 38.65 | K10: 22.1 | L10: 99 | M10: 72 | N10: 50.25 | O10: 30.5 | P10: 16.75 | Q10: 104.6 | R10: 76.6 | S10: 52.9 | T10: 31.6 | U10: 17.65 | V10: 134.6 | W10: 95.6 | X10: 61.8 | Y10: 32.3 | Z10: 16.1 | AA10: 174.8 | AB10: 131.5 | AC10: 85.4 | AD10: 46.5 | AE10: 18.5 | AF10: 147.8 | AG10: 108.5 | AH10: 72.5 | AI10: 37.9 | AJ10: 16.5 | AK10: 153.6 | AL10: 113.5 | AM10: 77.2 | AN10: 40.3 | AO10: 17.5 | AP10: 142.4166667 | AQ10: 113.5 | AR10: 88.97916667 | AS10: 64.625 | AT10: 32.66666667 | AU10: 184 | AV10: 153.5625 | AW10: 123 | AX10: 85.54166667 | AY10: 38.47916667 | AZ10: 156.3958333 | BA10: 129.0625 | BB10: 101.5208333 | BC10: 72.08333333 | BD10: 33.04166667 | BE10: 163.1458333 | BF10: 135.625 | BG10: 108.5833333 | BH10: 76.5625 | BI10: 36.04166667 | BJ10: 303 | BK10: 233.70833 | BL10: 176 | BM10: 112 | BN10: 32.20833333 | BO10: 390 | BP10: 274.125 | BQ10: 203.04167 | BR10: 137.0416667 | BS10: 41 | BT10: 327.125 | BU10: 246.16667 | BV10: 191.8333 | BW10: 118.125 | BX10: 36 | BY10: 356.125 | BZ10: 252.20833 | CA10: 196.0833 | CB10: 132.0833333 | CC10: 38.95833333
A11: Invercargill | B11: 79.65 | C11: 60.75 | D11: 42.85 | E11: 27.35 | F11: 14.7 | G11: 112.6 | H11: 78.4 | I11: 53.05 | J11: 31.1 | K11: 16.55 | L11: 97.55 | M11: 70.55 | N11: 49.55 | O11: 31.25 | P11: 16.6 | Q11: 100.2 | R11: 72.2 | S11: 50.4 | T11: 31.15 | U11: 16.9 | V11: 149.2 | W11: 106.1 | X11: 72.8 | Y11: 40.3 | Z11: 14.9 | AA11: 180.6 | AB11: 137.3 | AC11: 91.8 | AD11: 47.4 | AE11: 17.4 | AF11: 163.4 | AG11: 121.1 | AH11: 81.8 | AI11: 43.8 | AJ11: 15.9 | AK11: 160 | AL11: 120.1 | AM11: 81.3 | AN11: 43.9 | AO11: 17.1 | AP11: 130.1041667 | AQ11: 104.4166667 | AR11: 82 | AS11: 60.45833333 | AT11: 28.08333333 | AU11: 161.8958333 | AV11: 133.5 | AW11: 105.5 | AX11: 75.16666667 | AY11: 36.0625 | AZ11: 144.8125 | BA11: 118.8541667 | BB11: 94.02083333 | BC11: 68.60416667 | BD11: 34.04166667 | BE11: 145.5416667 | BF11: 119.9583333 | BG11: 94.6875 | BH11: 69.125 | BI11: 31.64583333 | BJ11: 283.25 | BK11: 221.29167 | BL11: 166.9583333 | BM11: 96.04166667 | BN11: 29.16666667 | BO11: 364.75 | BP11: 257.04167 | BQ11: 187.041667 | BR11: 113.0416667 | BS11: 34.08333333 | BT11: 302.8333 | BU11: 228.29167 | BV11: 173.25 | BW11: 102.0833333 | BX11: 33.95833333 | BY11: 366 | BZ11: 269.08333 | CA11: 199.0833 | CB11: 122.0416667 | CC11: 33.20833333
A12: Nelson-Marlborough | B12: 77.25 | C12: 58 | D12: 40 | E12: 25.1 | F12: 14.55 | G12: 113.2 | H12: 79.9 | I12: 54 | J12: 31.7 | K12: 17.6 | L12: 95.95 | M12: 68.95 | N12: 47.6 | O12: 29.05 | P12: 16.45 | Q12: 99.1 | R12: 71.1 | S12: 49 | T12: 29.55 | U12: 16.75 | V12: 132 | W12: 90.3 | X12: 61.3 | Y12: 32.5 | Z12: 15.2 | AA12: 214.9 | AB12: 171.6 | AC12: 82.9 | AD12: 42 | AE12: 17.5 | AF12: 149.8 | AG12: 110.5 | AH12: 73.3 | AI12: 38.7 | AJ12: 16.5 | AK12: 150.7 | AL12: 111.6 | AM12: 74.9 | AN12: 39.8 | AO12: 17.7 | AP12: 126.9166667 | AQ12: 101.4791667 | AR12: 80.39583333 | AS12: 58.625 | AT12: 29.08333333 | AU12: 166.5208333 | AV12: 136.0208333 | AW12: 109 | AX12: 78.125 | AY12: 38.60416667 | AZ12: 144.2708333 | BA12: 118.5 | BB12: 94.52083333 | BC12: 69.10416667 | BD12: 36 | BE12: 145.9583333 | BF12: 120.9375 | BG12: 96.14583333 | BH12: 69.70833333 | BI12: 35.16666667 | BJ12: 276 | BK12: 216.29167 | BL12: 164.9166667 | BM12: 102 | BN12: 38.16666667 | BO12: 364.9167 | BP12: 260 | BQ12: 193.125 | BR12: 124.9166667 | BS12: 41.125 | BT12: 287.125 | BU12: 225.20833 | BV12: 174.875 | BW12: 102.0833333 | BX12: 33.95833333 | BY12: 293.25 | BZ12: 227.3333 | CA12: 179.125 | CB12: 112.1666667 | CC12: 36.20833333
A13: Northland | B13: 81.2 | C13: 61.55 | D13: 42.9 | E13: 26.6 | F13: 15.15 | G13: 126.25 | H13: 92.3 | I13: 64.05 | J13: 37.75 | K13: 20.1 | L13: 103.15 | M13: 74.2 | N13: 53.4 | O13: 32.75 | P13: 18.35 | Q13: 107.6 | R13: 77.45 | S13: 55.4 | T13: 33.5 | U13: 18.45 | V13: 127.5 | W13: 88 | X13: 58.3 | Y13: 32.2 | Z13: 15.6 | AA13: 167.9 | AB13: 122.8 | AC13: 79.4 | AD13: 43.5 | AE13: 17.7 | AF13: 144.4 | AG13: 102.8 | AH13: 67.7 | AI13: 35.8 | AJ13: 16.2 | AK13: 145.8 | AL13: 108.4 | AM13: 69.1 | AN13: 37.9 | AO13: 16.9 | AP13: 147.4375 | AQ13: 116.4583333 | AR13: 91.45833333 | AS13: 67.64583333 | AT13: 35.02083333 | AU13: 202.0833333 | AV13: 164.6250002 | AW13: 133.9791667 | AX13: 98.02083333 | AY13: 52 | AZ13: 166.3958317 | BA13: 135.5416667 | BB13: 108.375 | BC13: 78.97916667 | BD13: 38.0625 | BE13: 172.1249833 | BF13: 140.0416667 | BG13: 112.6458333 | BH13: 82.5625 | BI13: 42.08333333 | BJ13: 328.9583 | BK13: 239 | BL13: 174.9166667 | BM13: 111.2083333 | BN13: 40.20833333 | BO13: 400 | BP13: 296.0417 | BQ13: 215.04167 | BR13: 141.0833333 | BS13: 61.04166667 | BT13: 325 | BU13: 256.125 | BV13: 195.25 | BW13: 124.2083333 | BX13: 47.04166667 | BY13: 360 | BZ13: 261.20833 | CA13: 201.16667 | CB13: 131.125 | CC13: 56.16666667
A14: Queenstown-Lakes | B14: 76.6 | C14: 58.05 | D14: 40.6 | E14: 26 | F14: 14 | G14: 110.8 | H14: 76.6 | I14: 52.15 | J14: 32.05 | K14: 17.15 | L14: 94.35 | M14: 67.35 | N14: 46.9 | O14: 29.5 | P14: 15.7 | Q14: 97 | R14: 69 | S14: 47.5 | T14: 29.7 | U14: 16.1 | V14: 143.7 | W14: 103.6 | X14: 73.5 | Y14: 41.2 | Z14: 15.5 | AA14: 180.5 | AB14: 137.2 | AC14: 95 | AD14: 52.3 | AE14: 17.9 | AF14: 160.4 | AG14: 119.9 | AH14: 84.3 | AI14: 47.1 | AJ14: 16.3 | AK14: 155.3 | AL14: 119.5 | AM14: 81.5 | AN14: 44.7 | AO14: 16.9 | AP14: 118.8541667 | AQ14: 96.45833333 | AR14: 77.10416667 | AS14: 56.4375 | AT14: 25.45833333 | AU14: 147.7708333 | AV14: 122.9583333 | AW14: 97.9375 | AX14: 71.0625 | AY14: 32.60416667 | AZ14: 131.9166667 | BA14: 108.5208333 | BB14: 87.4375 | BC14: 63.0625 | BD14: 28.58333333 | BE14: 133.4166667 | BF14: 110.5625 | BG14: 89.04166667 | BH14: 65.0625 | BI14: 29.125 | BJ14: 252.91667 | BK14: 204.29167 | BL14: 152.2916667 | BM14: 89.29166667 | BN14: 28.16666667 | BO14: 320.0417 | BP14: 240.20833 | BQ14: 183.041667 | BR14: 113.1666667 | BS14: 37.95833333 | BT14: 269 | BU14: 215.91667 | BV14: 166.5833333 | BW14: 99.16666667 | BX14: 30 | BY14: 295.0417 | BZ14: 238.20833 | CA14: 190.291667 | CB14: 121.25 | CC14: 33.16666667
A15: Rotorua | B15: 81.6 | C15: 62.75 | D15: 44.1 | E15: 26.3 | F15: 14.5 | G15: 120.95 | H15: 85.9 | I15: 59.5 | J15: 34.85 | K15: 17.5 | L15: 99.7 | M15: 72.7 | N15: 51.5 | O15: 30.35 | P15: 15.8 | Q15: 104.45 | R15: 76.45 | S15: 279.35 | T15: 31.6 | U15: 16.55 | V15: 140.7 | W15: 98.3 | X15: 65.3 | Y15: 34.4 | Z15: 15.3 | AA15: 177.2 | AB15: 133.9 | AC15: 89.1 | AD15: 44.6 | AE15: 18 | AF15: 155.2 | AG15: 115 | AH15: 76.1 | AI15: 39.8 | AJ15: 17 | AK15: 156.7 | AL15: 119.4 | AM15: 78.3 | AN15: 40.4 | AO15: 17.5 | AP15: 142.0416667 | AQ15: 113.375 | AR15: 88.45833333 | AS15: 65.9375 | AT15: 31.125 | AU15: 182.0208333 | AV15: 150 | AW15: 119.4791667 | AX15: 83.5 | AY15: 37.04166667 | AZ15: 155.3541667 | BA15: 128.3958333 | BB15: 100.9791667 | BC15: 73.10416667 | BD15: 34 | BE15: 160.0416667 | BF15: 133.4791667 | BG15: 105.4375 | BH15: 75.64583333 | BI15: 34.64583333 | BJ15: 357 | BK15: 248.25 | BL15: 191.291667 | BM15: 108.0416667 | BN15: 29.08333333 | BO15: 402 | BP15: 282.9167 | BQ15: 206.04167 | BR15: 129.125 | BS15: 41.125 | BT15: 345 | BU15: 252.20833 | BV15: 197.875 | BW15: 110.0833333 | BX15: 36.04166667 | BY15: 365 | BZ15: 267.16667 | CA15: 207.25 | CB15: 124.2083333 | CC15: 39.08333333
A16: Welligton | B16: 80.15 | C16: 60.4 | D16: 42.05 | E16: 26.05 | F16: 14.55 | G16: 117.15 | H16: 82.5 | I16: 55.85 | J16: 32.4 | K16: 17.15 | L16: 96.6 | M16: 69.6 | N16: 48.05 | O16: 28.9 | P16: 15.6 | Q16: 101.05 | R16: 73.05 | S16: 49.8 | T16: 29.6 | U16: 15.9 | V16: 136.5 | W16: 95.7 | X16: 62.4 | Y16: 34.2 | Z16: 15.3 | AA16: 174.6 | AB16: 128.4 | AC16: 83.2 | AD16: 45.4 | AE16: 18.1 | AF16: 151.8 | AG16: 108.8 | AH16: 71.5 | AI16: 38.2 | AJ16: 16.3 | AK16: 153.8 | AL16: 114.3 | AM16: 74.9 | AN16: 39.9 | AO16: 17.2 | AP16: 137.375 | AQ16: 109.4375 | AR16: 85.66666667 | AS16: 63.54166667 | AT16: 31.10416667 | AU16: 172.0833335 | AV16: 142.5 | AW16: 112.0208333 | AX16: 78.125 | AY16: 36.5625 | AZ16: 150.875 | BA16: 124.1875 | BB16: 98.35416667 | BC16: 71.4375 | BD16: 35.02083333 | BE16: 154.9166667 | BF16: 129.1666667 | BG16: 102.1458333 | BH16: 73.625 | BI16: 35.64583333 | BJ16: 291.2917 | BK16: 226.91667 | BL16: 166.9166667 | BM16: 103.125 | BN16: 34.20833333 | BO16: 375 | BP16: 261.125 | BQ16: 195.08333 | BR16: 122.125 | BS16: 41 | BT16: 307.0417 | BU16: 234.20833 | BV16: 179.0833333 | BW16: 108.0833333 | BX16: 36.08333333 | BY16: 307.625 | BZ16: 234.08333 | CA16: 183.083333 | CB16: 111.2083333 | CC16: 36.16666667
A17: Westcoast | B17: 79.85 | C17: 60.1 | D17: 41.9 | E17: 26.3 | F17: 14.6 | G17: 118 | H17: 83.45 | I17: 55.55 | J17: 32.75 | K17: 17.8 | L17: 97.2 | M17: 70.2 | N17: 47.65 | O17: 28.65 | P17: 15.95 | Q17: 100.6 | R17: 72.6 | S17: 49.45 | T17: 29.7 | U17: 16.35 | V17: 142.2 | W17: 100.1 | X17: 66.8 | Y17: 36.3 | Z17: 15.8 | AA17: 177.8 | AB17: 134.5 | AC17: 88.2 | AD17: 45.3 | AE17: 18.1 | AF17: 158.2 | AG17: 116 | AH17: 78 | AI17: 40.1 | AJ17: 16.5 | AK17: 156 | AL17: 115.7 | AM17: 77 | AN17: 39.7 | AO17: 16.9 | AP17: 135.1041667 | AQ17: 107.6666667 | AR17: 84.41666667 | AS17: 60.97916667 | AT17: 28.625 | AU17: 174.8750017 | AV17: 143.5416667 | AW17: 112.6041667 | AX17: 78.54166667 | AY17: 37.54166667 | AZ17: 151.8958333 | BA17: 124.8541667 | BB17: 97.54166667 | BC17: 69.625 | BD17: 34 | BE17: 153.8125 | BF17: 126.9375 | BG17: 100.0208333 | BH17: 71.1875 | BI17: 34.625 | BJ17: 327.9167 | BK17: 240.958333 | BL17: 183.33333 | BM17: 115.9583333 | BN17: 33.20833333 | BO17: 390 | BP17: 273.04167 | BQ17: 197.08333 | BR17: 122.0416667 | BS17: 39.04166667 | BT17: 334.08333 | BU17: 240.16667 | BV17: 185.25 | BW17: 111.25 | BX17: 39.95833333 | BY17: 370 | BZ17: 277.25 | CA17: 216 | CB17: 129.2916667 | CC17: 38.16666667
A19: Dwang winter | B19: North | G19: South | L19: East | Q19: West | V19: North | AA19: South | AF19: East | AK19: West | AP19: North | AU19: South | AZ19: East | BE19: West | BJ19: North | BO19: South | BT19: East | BY19: West
A20: Location | B20: 15 | C20: 20 | D20: 25 | E20: 30 | F20: 35 | G20: 15 | H20: 20 | I20: 25 | J20: 30 | K20: 35 | L20: 15 | M20: 20 | N20: 25 | O20: 30 | P20: 35 | Q20: 15 | R20: 20 | S20: 25 | T20: 30 | U20: 35 | V20: 15 | W20: 20 | X20: 25 | Y20: 30 | Z20: 35 | AA20: 15 | AB20: 20 | AC20: 25 | AD20: 30 | AE20: 35 | AF20: 15 | AG20: 20 | AH20: 25 | AI20: 30 | AJ20: 35 | AK20: 15 | AL20: 20 | AM20: 25 | AN20: 30 | AO20: 35 | AP20: 15 | AQ20: 20 | AR20: 25 | AS20: 30 | AT20: 35 | AU20: 15 | AV20: 20 | AW20: 25 | AX20: 30 | AY20: 35 | AZ20: 15 | BA20: 20 | BB20: 25 | BC20: 30 | BD20: 35 | BE20: 15 | BF20: 20 | BG20: 25 | BH20: 30 | BI20: 35 | BJ20: 15 | BK20: 20 | BL20: 25 | BM20: 30 | BN20: 35 | BO20: 15 | BP20: 20 | BQ20: 25 | BR20: 30 | BS20: 35 | BT20: 15 | BU20: 20 | BV20: 25 | BW20: 30 | BX20: 35 | BY20: 15 | BZ20: 20 | CA20: 25 | CB20: 30 | CC20: 35
A21: Auckland | B21: 72.15 | C21: 51.6 | D21: 33.65 | E21: 18.8 | F21: 5.6 | G21: 82 | H21: 61.8 | I21: 41.45 | J21: 24.2 | K21: 8.4 | L21: 71 | M21: 55.6 | N21: 36.5 | O21: 20.1 | P21: 5.75 | Q21: 70.75 | R21: 56.8 | S21: 37.8 | T21: 21.55 | U21: 6.9 | V21: 101.7 | W21: 64.9 | X21: 39.5 | Y21: 18.9 | Z21: 5.5 | AA21: 122.5 | AB21: 81.3 | AC21: 50.3 | AD21: 22.4 | AE21: 5.6 | AF21: 111.5 | AG21: 73.4 | AH21: 44.8 | AI21: 20.5 | AJ21: 5 | AK21: 109.1 | AL21: 74.1 | AM21: 46.3 | AN21: 22.3 | AO21: 6.2 | AP21: 118.4166667 | AQ21: 91.35416667 | AR21: 68.625 | AS21: 42.52083333 | AT21: 5.9375 | AU21: 132.625 | AV21: 100.7083333 | AW21: 73.20833333 | AX21: 41.27083333 | AY21: 5.125 | AZ21: 126.8125 | BA21: 98.3125 | BB21: 73.35416667 | BC21: 44.47916667 | BD21: 6.208333333 | BE21: 127.125 | BF21: 99.27083333 | BG21: 74.16666667 | BH21: 46.16666667 | BI21: 7.083333333 | BJ21: 127.9166667 | BK21: 100 | BL21: 79.91666667 | BM21: 60.70833333 | BN21: 32.20833333 | BO21: 172.125 | BP21: 140.0416667 | BQ21: 111.0416667 | BR21: 81.04166667 | BS21: 39.04166667 | BT21: 143.8333333 | BU21: 117.0833333 | BV21: 93 | BW21: 69.125 | BX21: 34 | BY21: 146.0416667 | BZ21: 120.25 | CA21: 96 | CB21: 72.04166667 | CC21: 36.125
A22: Bay of Plenty | B22: 72.9 | C22: 53.1 | D22: 35.35 | E22: 19.55 | F22: 5.95 | G22: 79.5 | H22: 60.9 | I22: 40.9 | J22: 22.95 | K22: 6.9 | L22: 71.75 | M22: 57.25 | N22: 38.05 | O22: 20.95 | P22: 5.8 | Q22: 71.9 | R22: 56.85 | S22: 37.7 | T22: 20.6 | U22: 5.85 | V22: 103.1 | W22: 66.3 | X22: 40.5 | Y22: 18.3 | Z22: 4.8 | AA22: 123.3 | AB22: 82.1 | AC22: 51.4 | AD22: 21.7 | AE22: 5.2 | AF22: 115.4 | AG22: 77.3 | AH22: 49.5 | AI22: 23.8 | AJ22: 6.4 | AK22: 111.7 | AL22: 76.7 | AM22: 49.4 | AN22: 23.8 | AO22: 6.5 | AP22: 116.125 | AQ22: 90.4375 | AR22: 68.75 | AS22: 41.3125 | AT22: 6.6875 | AU22: 131 | AV22: 101.5833333 | AW22: 75.02083333 | AX22: 44.10416667 | AY22: 6.416666667 | AZ22: 123.3958333 | BA22: 96.64583333 | BB22: 72.41666667 | BC22: 43.375 | BD22: 6.770833333 | BE22: 123.4791667 | BF22: 96.47916667 | BG22: 72.27083333 | BH22: 42.97916667 | BI22: 6.770833333 | BJ22: 122.9166667 | BK22: 97.91666667 | BL22: 78.875 | BM22: 59.91666667 | BN22: 31.25 | BO22: 162.9583333 | BP22: 133.1666667 | BQ22: 105.9166667 | BR22: 76.08333333 | BS22: 38 | BT22: 139.2083333 | BU22: 112.9166667 | BV22: 90.83333333 | BW22: 67.91666667 | BX22: 34 | BY22: 142.875 | BZ22: 116.0833333 | CA22: 92.125 | CB22: 69.08333333 | CC22: 34.08333333
A23: Central Otago | B23: 76.5 | C23: 63.45 | D23: 43.25 | E23: 24.75 | F23: 7.75 | G23: 87.31875 | H23: 68.05 | I23: 46.8 | J23: 26.45 | K23: 8.25 | L23: 84.5 | M23: 66.9 | N23: 45.3 | O23: 24.65 | P23: 6.6 | Q23: 83.425 | R23: 66.75 | S23: 45.6 | T23: 25.65 | U23: 7.8 | V23: 126.2 | W23: 92.1 | X23: 64.2 | Y23: 30.6 | Z23: 7.8 | AA23: 149.7 | AB23: 112.2 | AC23: 75.3 | AD23: 32.4 | AE23: 6.2 | AF23: 138 | AG23: 104.7 | AH23: 71.2 | AI23: 32.6 | AJ23: 6.9 | AK23: 133.5 | AL23: 102.3 | AM23: 71.4 | AN23: 37.5 | AO23: 8.8 | AP23: 115.8125 | AQ23: 91.72916667 | AR23: 67.3125 | AS23: 37.20833333 | AT23: 7.291666667 | AU23: 128.0416667 | AV23: 100.2083333 | AW23: 72.39583333 | AX23: 39.33333333 | AY23: 7.583333333 | AZ23: 123.8541667 | BA23: 97.54166667 | BB23: 71.10416667 | BC23: 38.75 | BD23: 7.583333333 | BE23: 120.5208333 | BF23: 96.08333333 | BG23: 70.20833333 | BH23: 38.04166667 | BI23: 7.541666667 | BJ23: 112.7916667 | BK23: 92 | BL23: 73.29166667 | BM23: 53.91666667 | BN23: 24.33333333 | BO23: 141.7916667 | BP23: 117 | BQ23: 92.125 | BR23: 67.91666667 | BS23: 30.04166667 | BT23: 127.7916667 | BU23: 103.9166667 | BV23: 83.20833333 | BW23: 60 | BX23: 28.08333333 | BY23: 127.25 | BZ23: 104.9583333 | CA23: 84 | CB23: 61.04166667 | CC23: 28.125
A24: Christchurch | B24: 74.05 | C24: 60.3 | D24: 41.65 | E24: 23.6 | F24: 6.95 | G24: 85.86875 | H24: 66.6 | I24: 46.35 | J24: 26.35 | K24: 7.95 | L24: 80.45 | M24: 64.05 | N24: 44 | O24: 24.6 | P24: 6.9 | Q24: 79.35 | R24: 63.3 | S24: 43.95 | T24: 24.9 | U24: 7.2 | V24: 120.7 | W24: 84 | X24: 55.8 | Y24: 27.3 | Z24: 7.3 | AA24: 141 | AB24: 100.2 | AC24: 65.8 | AD24: 30.3 | AE24: 6.6 | AF24: 131 | AG24: 93.2 | AH24: 61.4 | AI24: 27.4 | AJ24: 6.1 | AK24: 127.7 | AL24: 91.6 | AM24: 62.3 | AN24: 31.5 | AO24: 8.3 | AP24: 118.6875 | AQ24: 93.47916667 | AR24: 70.1875 | AS24: 40.14583333 | AT24: 7.291666667 | AU24: 128.4166667 | AV24: 99 | AW24: 73.02083333 | AX24: 39.66666667 | AY24: 6.5 | AZ24: 124.2916667 | BA24: 97.16666667 | BB24: 72.29166667 | BC24: 39.97916667 | BD24: 6.791666667 | BE24: 122 | BF24: 95.70833333 | BG24: 71.5 | BH24: 40.08333333 | BI24: 6.9375 | BJ24: 117.875 | BK24: 95.25 | BL24: 76.875 | BM24: 57.91666667 | BN24: 26.04166667 | BO24: 148.9166667 | BP24: 121.9583333 | BQ24: 97.04166667 | BR24: 72.16666667 | BS24: 34.04166667 | BT24: 132.2083333 | BU24: 107.125 | BV24: 86.95833333 | BW24: 63.125 | BX24: 29 | BY24: 133.0416667 | BZ24: 108.0833333 | CA24: 88.08333333 | CB24: 65.08333333 | CC24: 29.16666667
A25: Dunedin | B25: 73.3 | C25: 56.55 | D25: 37.3 | E25: 21.4 | F25: 6.65 | G25: 82.5 | H25: 62.75 | I25: 40.55 | J25: 23.5 | K25: 7.275 | L25: 80.35 | M25: 61.35 | N25: 39.8 | O25: 23.1 | P25: 7.2 | Q25: 79.6 | R25: 60.65 | S25: 39.45 | T25: 23 | U25: 7.2 | V25: 122.5 | W25: 85.4 | X25: 54.2 | Y25: 24.8 | Z25: 6.1 | AA25: 142.9 | AB25: 98.1 | AC25: 60.7 | AD25: 24.8 | AE25: 5.5 | AF25: 134.1 | AG25: 95.8 | AH25: 62.8 | AI25: 29.4 | AJ25: 7.9 | AK25: 129.7 | AL25: 91.2 | AM25: 57.1 | AN25: 24 | AO25: 5.6 | AP25: 117.0208333 | AQ25: 91.85416667 | AR25: 66.125 | AS25: 37.66666667 | AT25: 7.041666667 | AU25: 126.0416667 | AV25: 96.89583333 | AW25: 68.97916667 | AX25: 37.75 | AY25: 6.6875 | AZ25: 122.5 | BA25: 95.45833333 | BB25: 68.52083333 | BC25: 38.125 | BD25: 7.145833333 | BE25: 122.625 | BF25: 95.41666667 | BG25: 68.66666667 | BH25: 38.5625 | BI25: 7.270833333 | BJ25: 117.9166667 | BK25: 94.95833333 | BL25: 74.79166667 | BM25: 54.75 | BN25: 27.08333333 | BO25: 146.0833333 | BP25: 120.9166667 | BQ25: 95.91666667 | BR25: 69.04166667 | BS25: 36.04166667 | BT25: 128.875 | BU25: 105.8333333 | BV25: 83.875 | BW25: 59.20833333 | BX25: 29.04166667 | BY25: 132.3333333 | BZ25: 108.125 | CA25: 86.08333333 | CB25: 61.125 | CC25: 31.04166667
A26: Napier | B26: 69.85 | C26: 49.7 | D26: 32.4 | E26: 18.35 | F26: 6 | G26: 76.1 | H26: 57.2 | I26: 37.65 | J26: 21.35 | K26: 6.7 | L26: 69.3 | M26: 55.55 | N26: 36.85 | O26: 20.9 | P26: 6.7 | Q26: 76.5 | R26: 54.85 | S26: 36.2 | T26: 20.65 | U26: 6.7 | V26: 104.7 | W26: 67.9 | X26: 43.1 | Y26: 21.7 | Z26: 6.5 | AA26: 122.6 | AB26: 86.2 | AC26: 54.2 | AD26: 24.7 | AE26: 7 | AF26: 115.2 | AG26: 77.1 | AH26: 49.5 | AI26: 23.5 | AJ26: 6.87 | AK26: 113.1 | AL26: 78.1 | AM26: 49.7 | AN26: 23.4 | AO26: 6.7 | AP26: 108.1875 | AQ26: 84.85416667 | AR26: 63.02083333 | AS26: 37.66666667 | AT26: 6.104166667 | AU26: 123.375 | AV26: 96.16666667 | AW26: 69.77083333 | AX26: 40.5625 | AY26: 7.0625 | AZ26: 114.1458333 | BA26: 89.875 | BB26: 65.85416667 | BC26: 37.625 | BD26: 6.083333333 | BE26: 114.9166667 | BF26: 89.8125 | BG26: 65.29166667 | BH26: 36.75 | BI26: 5.75 | BJ26: 115.2916667 | BK26: 91.95833333 | BL26: 73.875 | BM26: 55.95833333 | BN26: 31.04166667 | BO26: 153.2916667 | BP26: 124.0833333 | BQ26: 99.08333333 | BR26: 71.95833333 | BS26: 38.04166667 | BT26: 129.125 | BU26: 105.875 | BV26: 85.04166667 | BW26: 62.95833333 | BX26: 33.91666667 | BY26: 136.0416667 | BZ26: 112 | CA26: 89.04166667 | CB26: 66.16666667 | CC26: 37.125
A27: Hamiltron | B27: 68.65 | C27: 57.25 | D27: 38.55 | E27: 21.8 | F27: 7.1 | G27: 83.25 | H27: 64.15 | I27: 42 | J27: 21.4 | K27: 5.825 | L27: 76.1 | M27: 59.7 | N27: 37.3 | O27: 20 | P27: 5.3 | Q27: 76.55 | R27: 60.25 | S27: 38.9 | T27: 20.2 | U27: 5.6 | V27: 111.1 | W27: 74.3 | X27: 47.2 | Y27: 22.7 | Z27: 6.7 | AA27: 130.3 | AB27: 91 | AC27: 58.5 | AD27: 24.1 | AE27: 5.9 | AF27: 121.1 | AG27: 83 | AH27: 54.4 | AI27: 24.4 | AJ27: 6.7 | AK27: 118.3 | AL27: 83.7 | AM27: 55.1 | AN27: 24.8 | AO27: 6.8 | AP27: 125.1875 | AQ27: 97.5625 | AR27: 72.33333333 | AS27: 43.35416667 | AT27: 7.354166667 | AU27: 140.6666667 | AV27: 109.875 | AW27: 78.52083333 | AX27: 42.47916667 | AY27: 6.25 | AZ27: 133.3541667 | BA27: 105.1875 | BB27: 77.60416667 | BC27: 45.16666667 | BD27: 8.541666667 | BE27: 132.1041667 | BF27: 103.4583333 | BG27: 75.6875 | BH27: 41.9375 | BI27: 6.229166667 | BJ27: 128.9166667 | BK27: 102 | BL27: 80.875 | BM27: 60 | BN27: 32.16666667 | BO27: 171 | BP27: 141.9583333 | BQ27: 112.7916667 | BR27: 79.08333333 | BS27: 38 | BT27: 143.9166667 | BU27: 117.875 | BV27: 92.16666667 | BW27: 67 | BX27: 32.08333333 | BY27: 148.3333333 | BZ27: 122.2916667 | CA27: 97.16666667 | CB27: 70.04166667 | CC27: 33.125
A28: Invercargill | B28: 70.1 | C28: 62.9 | D28: 42.7 | E28: 23.95 | F28: 6.65 | G28: 86.81875 | H28: 67.55 | I28: 45.45 | J28: 23.8 | K28: 6.05 | L28: 86.35 | M28: 67.7 | N28: 46.35 | O28: 25.4 | P28: 7.15 | Q28: 82.2 | R28: 65.7 | S28: 45 | T28: 25.1 | U28: 7.15 | V28: 130.3 | W28: 90.3 | X28: 58.2 | Y28: 24.8 | Z28: 5.5 | AA28: 154.3 | AB28: 110.1 | AC28: 72.2 | AD28: 30.9 | AE28: 5.9 | AF28: 144.3 | AG28: 102.2 | AH28: 65.9 | AI28: 27.9 | AJ28: 5.6 | AK28: 137.2 | AL28: 98.3 | AM28: 64.6 | AN28: 30.3 | AO28: 7 | AP28: 126 | AQ28: 97.02083333 | AR28: 71.02083333 | AS28: 39.60416667 | AT28: 6.8125 | AU28: 137.1875 | AV28: 105.2291667 | AW28: 75.1875 | AX28: 40.97916667 | AY28: 7.354166667 | AZ28: 132.8333333 | BA28: 102.4166667 | BB28: 73.625 | BC28: 39.70833333 | BD28: 6.729166667 | BE28: 129.6458333 | BF28: 100.5 | BG28: 73.02083333 | BH28: 40.52083333 | BI28: 7.125 | BJ28: 123.2916667 | BK28: 98.91666667 | BL28: 78 | BM28: 57.95833333 | BN28: 27.08333333 | BO28: 154.9166667 | BP28: 127 | BQ28: 100.0416667 | BR28: 72.16666667 | BS28: 34 | BT28: 140.8333333 | BU28: 115.8333333 | BV28: 91.875 | BW28: 68.04166667 | BX28: 35.95833333 | BY28: 138 | BZ28: 112.9166667 | CA28: 89.125 | CB28: 65.20833333 | CC28: 30.08333333
A29: Nelson Marlborough | B29: 65.95 | C29: 54.45 | D29: 35.85 | E29: 20.3 | F29: 6.575 | G29: 81.7 | H29: 62.55 | I29: 40.8 | J29: 22.9 | K29: 7.25 | L29: 76.2 | M29: 59.25 | N29: 38.65 | O29: 21.45 | P29: 6.4 | Q29: 73.05 | R29: 58.25 | S29: 38.4 | T29: 21.7 | U29: 6.85 | V29: 109.3 | W29: 72.5 | X29: 46.4 | Y29: 22.3 | Z29: 6.6 | AA29: 134.1 | AB29: 94.5 | AC29: 61.7 | AD29: 28 | AE29: 7.6 | AF29: 122.3 | AG29: 87 | AH29: 57.8 | AI29: 26.2 | AJ29: 7.3 | AK29: 116.7 | AL29: 81.7 | AM29: 54.4 | AN29: 25.2 | AO29: 7.1 | AP29: 112.75 | AQ29: 88.1875 | AR29: 65.41666667 | AS29: 36.33333333 | AT29: 6.395833333 | AU29: 129.8333333 | AV29: 101.4166667 | AW29: 74.02083333 | AX29: 41.47916667 | AY29: 7.729166667 | AZ29: 122.6041667 | BA29: 96.375 | BB29: 70.72916667 | BC29: 39.5625 | BD29: 7.125 | BE29: 119.2916667 | BF29: 93.54166667 | BG29: 68.77083333 | BH29: 37.95833333 | BI29: 6.583333333 | BJ29: 115.875 | BK29: 92.95833333 | BL29: 74.75 | BM29: 55.25 | BN29: 30 | BO29: 153.9583333 | BP29: 125.875 | BQ29: 99.91666667 | BR29: 72.08333333 | BS29: 36.08333333 | BT29: 134.75 | BU29: 110.8333333 | BV29: 88.125 | BW29: 65.04166667 | BX29: 33.95833333 | BY29: 133.9166667 | BZ29: 110.9583333 | CA29: 88.125 | CB29: 65.16666667 | CC29: 34.125
A30: Northland | B30: 70.65 | C30: 50.15 | D30: 32.9 | E30: 18.35 | F30: 5.7 | G30: 75.95 | H30: 56.45 | I30: 36.05 | J30: 19.05 | K30: 4.8 | L30: 76.9 | M30: 54.3 | N30: 35.4 | O30: 19.35 | P30: 5.5 | Q30: 75.3 | R30: 53.65 | S30: 35 | T30: 18.95 | U30: 5.3 | V30: 100.2 | W30: 63.4 | X30: 29.2 | Y30: 19.5 | Z30: 5.7 | AA30: 121 | AB30: 79.8 | AC30: 47.8 | AD30: 21.4 | AE30: 5.2 | AF30: 111.8 | AG30: 73.7 | AH30: 44.8 | AI30: 21.4 | AJ30: 5.7 | AK30: 106.9 | AL30: 71.9 | AM30: 44.7 | AN30: 21.4 | AO30: 5.7 | AP30: 118.4583333 | AQ30: 91.52083333 | AR30: 68.10416667 | AS30: 43.375 | AT30: 6.083333333 | AU30: 135.8958333 | AV30: 104.6458333 | AW30: 74.45833333 | AX30: 43.72916667 | AY30: 5.416666667 | AZ30: 128.2083333 | BA30: 98.5 | BB30: 71.70833333 | BC30: 43.58333333 | BD30: 5.958333333 | BE30: 126.4791667 | BF30: 97.91666667 | BG30: 71.70833333 | BH30: 44.60416667 | BI30: 6.3125 | BJ30: 128.9583333 | BK30: 101.9583333 | BL30: 80.91666667 | BM30: 61.33333333 | BN30: 35.95833333 | BO30: 181.0416667 | BP30: 145.9583333 | BQ30: 119 | BR30: 85.04166667 | BS30: 47.04166667 | BT30: 148.8333333 | BU30: 121.2083333 | BV30: 95.875 | BW30: 70.91666667 | BX30: 36.08333333 | BY30: 150.9166667 | BZ30: 123.0416667 | CA30: 98 | CB30: 73 | CC30: 39
A31: Queenstown Lakes | B31: 76.9 | C31: 63.65 | D31: 43.7 | E31: 25.75 | F31: 8 | G31: 91.16875 | H31: 71.9 | I31: 50.1 | J31: 28.9 | K31: 8.7 | L31: 86.71 | M31: 69.55 | N31: 48.55 | O31: 28 | P31: 8.25 | Q31: 83.225 | R31: 66.45 | S31: 45.65 | T31: 25.95 | U31: 7.55 | V31: 129.3 | W31: 93.4 | X31: 63.5 | Y31: 32.2 | Z31: 8.5 | AA31: 155.4 | AB31: 114.3 | AC31: 78.5 | AD31: 36 | AE31: 7.2 | AF31: 146.5 | AG31: 109 | AH31: 76.1 | AI31: 38.3 | AJ31: 9.2 | AK31: 136.3 | AL31: 111.3 | AM31: 71.3 | AN31: 37.3 | AO31: 9.3 | AP31: 115.5833333 | AQ31: 92 | AR31: 67.79166667 | AS31: 37.16666667 | AT31: 7.5625 | AU31: 128.9791667 | AV31: 101.4375 | AW31: 74.3125 | AX31: 41.02083333 | AY31: 8.020833333 | AZ31: 124.9791667 | BA31: 98.6875 | BB31: 72.91666667 | BC31: 40.29166667 | BD31: 7.979166667 | BE31: 120.5208333 | BF31: 96.54166667 | BG31: 71.375 | BH31: 39.45833333 | BI31: 7.979166667 | BJ31: 112.7916667 | BK31: 91.91666667 | BL31: 73.29166667 | BM31: 53.95833333 | BN31: 24.95833333 | BO31: 142.6666667 | BP31: 118.9583333 | BQ31: 94.83333333 | BR31: 69.08333333 | BS31: 31.08333333 | BT31: 127.875 | BU31: 105.8333333 | BV31: 85.70833333 | BW31: 61.95833333 | BX31: 29 | BY31: 126.9166667 | BZ31: 105.2083333 | CA31: 85.91666667 | CB31: 62.95833333 | CC31: 29.08333333
A32: Rotorua | B32: 73.4 | C32: 60.45 | D32: 40 | E32: 21.75 | F32: 6.8 | G32: 86.01875 | H32: 66.75 | I32: 43.05 | J32: 21.6 | K32: 5.55 | L32: 80.65 | M32: 64.25 | N32: 42.15 | O32: 22.25 | P32: 6.5 | Q32: 81.3 | R32: 64.5 | S32: 42.05 | T32: 22.25 | U32: 6.475 | V32: 117.1 | W32: 80.3 | X32: 50.9 | Y32: 24.4 | Z32: 7 | AA32: 142 | AB32: 99 | AC32: 60.9 | AD32: 24.1 | AE32: 5.4 | AF32: 126.3 | AG32: 87 | AH32: 54.4 | AI32: 22.7 | AJ32: 5.4 | AK32: 128.1 | AL32: 90.3 | AM32: 59 | AN32: 26.1 | AO32: 7 | AP32: 128.7916667 | AQ32: 99.08333333 | AR32: 71.97916667 | AS32: 40.47916667 | AT32: 6.5625 | AU32: 145.75 | AV32: 111.75 | AW32: 78.27083333 | AX32: 42.77083333 | AY32: 6.229166667 | AZ32: 138.3958333 | BA32: 108.0208333 | BB32: 78.35416667 | BC32: 46.3125 | BD32: 7.6875 | BE32: 137.8333333 | BF32: 108.0833333 | BG32: 78.02083333 | BH32: 45.39583333 | BI32: 7.125 | BJ32: 130.2916667 | BK32: 102.875 | BL32: 80.95833333 | BM32: 60.91666667 | BN32: 29.04166667 | BO32: 169.9166667 | BP32: 140.7916667 | BQ32: 110.9583333 | BR32: 77.95833333 | BS32: 35.08333333 | BT32: 145.875 | BU32: 119.8333333 | BV32: 94.79166667 | BW32: 69.08333333 | BX32: 33.95833333 | BY32: 149.875 | BZ32: 123.9583333 | CA32: 97.79166667 | CB32: 71.20833333 | CC32: 34.16666667
A33: Welligton | B33: 69.05 | C33: 55.8 | D33: 37.75 | E33: 21.55 | F33: 6.95 | G33: 80.45 | H33: 61.45 | I33: 40.25 | J33: 22.15 | K33: 6.5 | L33: 76.5 | M33: 59.6 | N33: 39.5 | O33: 22.3 | P33: 6.9 | Q33: 76.2 | R33: 59.4 | S33: 39.5 | T33: 22.2 | U33: 6.9 | V33: 112.3 | W33: 75.5 | X33: 47.7 | Y33: 23.8 | Z33: 6.8 | AA33: 132.7 | AB33: 91.6 | AC33: 59.2 | AD33: 27.4 | AE33: 7.5 | AF33: 121.1 | AG33: 83 | AH33: 51.3 | AI33: 23.7 | AJ33: 6.3 | AK33: 118.3 | AL33: 83.3 | AM33: 52.4 | AN33: 24.3 | AO33: 6.4 | AP33: 121.1041667 | AQ33: 93.41666667 | AR33: 69.375 | AS33: 40.79166667 | AT33: 6.875 | AU33: 135.3958333 | AV33: 104.5416667 | AW33: 75.6875 | AX33: 44.29166667 | AY33: 7.541666667 | AZ33: 128.625 | BA33: 99.47916667 | BB33: 72.66666667 | BC33: 42 | BD33: 7.416666667 | BE33: 128.4375 | BF33: 99.16666667 | BG33: 72.4375 | BH33: 41.5625 | BI33: 7.416666667 | BJ33: 125.9166667 | BK33: 98.95833333 | BL33: 78.29166667 | BM33: 58.91666667 | BN33: 29.04166667 | BO33: 161.125 | BP33: 132.0416667 | BQ33: 102.9583333 | BR33: 73.125 | BS33: 36 | BT33: 140.9166667 | BU33: 115.2083333 | BV33: 90.875 | BW33: 67 | BX33: 34 | BY33: 143.9166667 | BZ33: 119 | CA33: 93.125 | CB33: 68.16666667 | CC33: 33.20833333
A34: Westcoast | B34: 70.9 | C34: 57.9 | D34: 38.1 | E34: 21.4 | F34: 6.15 | G34: 84.06875 | H34: 64.8 | I34: 41.7 | J34: 22.4 | K34: 6.3 | L34: 83.05 | M34: 64.6 | N34: 42.3 | O34: 24 | P34: 7.4 | Q34: 77.4 | R34: 61.6 | S34: 40.4 | T34: 22.5 | U34: 6.45 | V34: 119.2 | W34: 82.4 | X34: 52.7 | Y34: 25.4 | Z34: 6.5 | AA34: 146 | AB34: 100.5 | AC34: 61.4 | AD34: 24.8 | AE34: 5.4 | AF34: 135.3 | AG34: 94.1 | AH34: 59.7 | AI34: 25.5 | AJ34: 6.4 | AK34: 125.7 | AL34: 88.2 | AM34: 56.9 | AN34: 25.9 | AO34: 6.6 | AP34: 126.1458333 | AQ34: 96.9375 | AR34: 70.22916667 | AS34: 40.25 | AT34: 7.25 | AU34: 141.7291667 | AV34: 108.1875 | AW34: 76.20833333 | AX34: 41.1875 | AY34: 6.75 | AZ34: 136.6875 | BA34: 106.3541667 | BB34: 76.39583333 | BC34: 43.35416667 | BD34: 7.625 | BE34: 131.1875 | BF34: 101.3541667 | BG34: 73.25 | BH34: 41.72916667 | BI34: 7.270833333 | BJ34: 125.2083333 | BK34: 99 | BL34: 77.91666667 | BM34: 56.95833333 | BN34: 28.04166667 | BO34: 164.8333333 | BP34: 135.0416667 | BQ34: 104.2083333 | BR34: 73.08333333 | BS34: 36 | BT34: 143.9166667 | BU34: 117.8333333 | BV34: 91.91666667 | BW34: 66.08333333 | BX34: 33.95833333 | BY34: 142.6666667 | BZ34: 116.9166667 | CA34: 92 | CB34: 67.125 | CC34: 33.16666667
A36: Bottom plate summer | B36: North | G36: South | L36: East | Q36: West | V36: North | AA36: South | AF36: East | AK36: West | AP36: North | AU36: South | AZ36: East | BE36: West | BJ36: North | BO36: South | BT36: East | BY36: West
A37: Location | B37: 15 | C37: 20 | D37: 25 | E37: 30 | F37: 35 | G37: 15 | H37: 20 | I37: 25 | J37: 30 | K37: 35 | L37: 15 | M37: 20 | N37: 25 | O37: 30 | P37: 35 | Q37: 15 | R37: 20 | S37: 25 | T37: 30 | U37: 35 | V37: 15 | W37: 20 | X37: 25 | Y37: 30 | Z37: 35 | AA37: 15 | AB37: 20 | AC37: 25 | AD37: 30 | AE37: 35 | AF37: 15 | AG37: 20 | AH37: 25 | AI37: 30 | AJ37: 35 | AK37: 15 | AL37: 20 | AM37: 25 | AN37: 30 | AO37: 35 | AP37: 15 | AQ37: 20 | AR37: 25 | AS37: 30 | AT37: 35 | AU37: 15 | AV37: 20 | AW37: 25 | AX37: 30 | AY37: 35 | AZ37: 15 | BA37: 20 | BB37: 25 | BC37: 30 | BD37: 35 | BE37: 15 | BF37: 20 | BG37: 25 | BH37: 30 | BI37: 35 | BJ37: 15 | BK37: 20 | BL37: 25 | BM37: 30 | BN37: 35 | BO37: 15 | BP37: 20 | BQ37: 25 | BR37: 30 | BS37: 35 | BT37: 15 | BU37: 20 | BV37: 25 | BW37: 30 | BX37: 35 | BY37: 15 | BZ37: 20 | CA37: 25 | CB37: 30 | CC37: 35
A38: Auckland | B38: 49.55 | C38: 38.1 | D38: 27.5 | E38: 17.65 | F38: 10.25 | G38: 66.4 | H38: 47.3 | I38: 33.1 | J38: 20.45 | K38: 11.5 | L38: 50.95 | M38: 38.4 | N38: 27.45 | O38: 17.5 | P38: 10.1 | Q38: 52.05 | R38: 38.9 | S38: 28.15 | T38: 17.85 | U38: 10.2 | V38: 77.7 | W38: 54.7 | X38: 37.5 | Y38: 21.8 | Z38: 11.1 | AA38: 111 | AB38: 71.3 | AC38: 46.2 | AD38: 25.5 | AE38: 11.9 | AF38: 84.2 | AG38: 56.1 | AH38: 38.2 | AI38: 21.9 | AJ38: 11.3 | AK38: 82.8 | AL38: 55.8 | AM38: 37 | AN38: 22.4 | AO38: 10.8 | AP38: 94.9375 | AQ38: 73.5 | AR38: 58.625 | AS38: 44.41666667 | AT38: 23.64583333 | AU38: 172.4374983 | AV38: 101.6041667 | AW38: 74.47916667 | AX38: 51.60416667 | AY38: 24.0625 | AZ38: 102.0833333 | BA38: 75.52083333 | BB38: 59.5625 | BC38: 43.91666667 | BD38: 22.41666667 | BE38: 107.6875 | BF38: 78.10416667 | BG38: 61.0625 | BH38: 44.52083333 | BI38: 23.52083333 | BJ38: 174.875 | BK38: 100.125 | BL38: 66.91666667 | BM38: 36.375 | BN38: 4.083333333 | BO38: 197.25 | BP38: 105.2083333 | BQ38: 66.45833333 | BR38: 34.875 | BS38: 4.291666667 | BT38: 171 | BU38: 98.41666667 | BV38: 66.04166667 | BW38: 35.83333333 | BX38: 4.083333333 | BY38: 170.4166667 | BZ38: 97.5 | CA38: 66.91666667 | CB38: 37.41666667 | CC38: 4.208333333
A39: Bay of Plenty | B39: 49.85 | C39: 38.5 | D39: 28.15 | E39: 17.85 | F39: 10.2 | G39: 65.95 | H39: 47.45 | I39: 33.4 | J39: 20.8 | K39: 11.55 | L39: 50.6 | M39: 38.3 | N39: 27.55 | O39: 17.65 | P39: 9.95 | Q39: 52.35 | R39: 39.45 | S39: 28.95 | T39: 18.6 | U39: 10.5 | V39: 77.8 | W39: 55.2 | X39: 38 | Y39: 23.5 | Z39: 11.5 | AA39: 109.3 | AB39: 70.6 | AC39: 46.3 | AD39: 22.5 | AE39: 11.8 | AF39: 81.5 | AG39: 55.5 | AH39: 37.7 | AI39: 22.3 | AJ39: 11.3 | AK39: 85.1 | AL39: 56.6 | AM39: 37.8 | AN39: 23.6 | AO39: 11.4 | AP39: 91.97916667 | AQ39: 73.4375 | AR39: 59.125 | AS39: 44.91666667 | AT39: 23.77083333 | AU39: 143.625 | AV39: 97.04166667 | AW39: 73.5625 | AX39: 52.54166667 | AY39: 24.54166667 | AZ39: 96.97916667 | BA39: 74.89583333 | BB39: 60.02083333 | BC39: 44.4375 | BD39: 23.91666667 | BE39: 103.0416667 | BF39: 77.72916667 | BG39: 61.20833333 | BH39: 45.6875 | BI39: 24.66666667 | BJ39: 172.9583333 | BK39: 104.375 | BL39: 70.41666667 | BM39: 37.79166667 | BN39: 4.541666667 | BO39: 181.875 | BP39: 100.4166667 | BQ39: 64.29166667 | BR39: 31.375 | BS39: 4.166666667 | BT39: 158.5416667 | BU39: 97.125 | BV39: 66.125 | BW39: 35.70833333 | BX39: 4.666666667 | BY39: 159.5 | BZ39: 96.08333333 | CA39: 64.91666667 | CB39: 35.95833333 | CC39: 4.25
A40: Central Otago | B40: 44.6 | C40: 34.3 | D40: 25.35 | E40: 16.55 | F40: 10 | G40: 54.45 | H40: 40.1 | I40: 28.4 | J40: 18.6 | K40: 11 | L40: 45.25 | M40: 34.55 | N40: 25.25 | O40: 16.45 | P40: 9.85 | Q40: 45.5 | R40: 34.55 | S40: 25.4 | T40: 16.7 | U40: 10 | V40: 81.7 | W40: 57.1 | X40: 39 | Y40: 22.1 | Z40: 10.8 | AA40: 116 | AB40: 71.8 | AC40: 45.8 | AD40: 24.2 | AE40: 11.2 | AF40: 88.6 | AG40: 58.6 | AH40: 39 | AI40: 21.7 | AJ40: 10.6 | AK40: 85 | AL40: 56.4 | AM40: 37.5 | AN40: 22.8 | AO40: 10.8 | AP40: 76.89583333 | AQ40: 61.375 | AR40: 49.27083333 | AS40: 37 | AT40: 20.04166667 | AU40: 96.04166667 | AV40: 74.5625 | AW40: 57.47916667 | AX40: 41.9375 | AY40: 22.14583333 | AZ40: 79.10416667 | BA40: 62.47916667 | BB40: 49.83333333 | BC40: 37.1875 | BD40: 19.72916667 | BE40: 79.91666667 | BF40: 63.02083333 | BG40: 50.0625 | BH40: 37.58333333 | BI40: 20.27083333 | BJ40: 141.4166667 | BK40: 89.25 | BL40: 58.20833333 | BM40: 27.16666667 | BN40: 4.166666667 | BO40: 173.3333333 | BP40: 95.79166667 | BQ40: 58.875 | BR40: 28.41666667 | BS40: 4.833333333 | BT40: 151.625 | BU40: 90.83333333 | BV40: 59.75 | BW40: 33.04166667 | BX40: 6.041666667 | BY40: 142.2083333 | BZ40: 88.83333333 | CA40: 60.66666667 | CB40: 33.5 | CC40: 4.208333333
A41: Christchurch | B41: 44.45 | C41: 34.35 | D41: 24.6 | E41: 15.5 | F41: 9.4 | G41: 55.55 | H41: 40.25 | I41: 27.75 | J41: 17.55 | K41: 10.35 | L41: 45.15 | M41: 34.25 | N41: 24.45 | O41: 15.4 | P41: 9.25 | Q41: 45.85 | R41: 34.5 | S41: 24.85 | T41: 15.75 | U41: 9.35 | V41: 80.7 | W41: 56.9 | X41: 38.1 | Y41: 22 | Z41: 10.8 | AA41: 115.54 | AB41: 71.3 | AC41: 45.5 | AD41: 23.8 | AE41: 11.3 | AF41: 86.58 | AG41: 57.6 | AH41: 37.7 | AI41: 20.8 | AJ41: 10.4 | AK41: 85.04 | AL41: 57 | AM41: 37.4 | AN41: 22.1 | AO41: 10.6 | AP41: 78.9375 | AQ41: 62.45833333 | AR41: 49.4375 | AS41: 37.4375 | AT41: 19.64583333 | AU41: 106.4583333 | AV41: 77.54166667 | AW41: 58.91666667 | AX41: 41.58333333 | AY41: 21.54166667 | AZ41: 82.0625 | BA41: 64 | BB41: 50.0625 | BC41: 37.39583333 | BD41: 20.08333333 | BE41: 84.60416667 | BF41: 64.64583333 | BG41: 50.58333333 | BH41: 37.95833333 | BI41: 20.27083333 | BJ41: 155.6666667 | BK41: 91.75 | BL41: 58.875 | BM41: 27.70833333 | BN41: 4.25 | BO41: 186.1667 | BP41: 100.75 | BQ41: 61.75 | BR41: 30.75 | BS41: 5.166666667 | BT41: 161.9166667 | BU41: 92.79166667 | BV41: 60.25 | BW41: 29.70833333 | BX41: 5.166666667 | BY41: 150.2916667 | BZ41: 89.875 | CA41: 58.5 | CB41: 30.08333333 | CC41: 4.666666667
A42: Dunedin | B42: 47.8 | C42: 36.75 | D42: 26.85 | E42: 17.15 | F42: 10.2 | G42: 61 | H42: 43.6 | I42: 30.15 | J42: 19.4 | K42: 11.15 | L42: 48.6 | M42: 36.9 | N42: 26.8 | O42: 17.3 | P42: 10.05 | Q42: 49.1 | R42: 37.05 | S42: 26.85 | T42: 17.2 | U42: 10.2 | V42: 90.96 | W42: 62.8 | X42: 43.3 | Y42: 23.8 | Z42: 10.8 | AA42: 131.46 | AB42: 81.6 | AC42: 51.8 | AD42: 27 | AE42: 11.4 | AF42: 96.85 | AG42: 64 | AH42: 44.2 | AI42: 24.1 | AJ42: 10.6 | AK42: 97.88 | AL42: 63.8 | AM42: 43.1 | AN42: 23.3 | AO42: 10.7 | AP42: 84.60416667 | AQ42: 66.9375 | AR42: 53.41666667 | AS42: 38.91666667 | AT42: 19.60416667 | AU42: 113.875 | AV42: 85.0625 | AW42: 64.5 | AX42: 45 | AY42: 23.08333333 | AZ42: 88.52083333 | BA42: 68.47916667 | BB42: 53.89583333 | BC42: 38.91666667 | BD42: 19.60416667 | BE42: 91.08333333 | BF42: 69.66666667 | BG42: 54.47916667 | BH42: 39.14583333 | BI42: 20.6875 | BJ42: 173.9583333 | BK42: 103.5833333 | BL42: 64.16666667 | BM42: 30.91666667 | BN42: 5.125 | BO42: 207.333 | BP42: 116.125 | BQ42: 67.375 | BR42: 30.58333333 | BS42: 5.416666667 | BT42: 185.0833 | BU42: 106.6666667 | BV42: 66.625 | BW42: 33.125 | BX42: 5.5 | BY42: 177.0833333 | BZ42: 102.0416667 | CA42: 64 | CB42: 30.95833333 | CC42: 5.25
A43: Napier | B43: 46.8 | C43: 36.15 | D43: 26.65 | E43: 17.25 | F43: 10.2 | G43: 59.5 | H43: 43.85 | I43: 30.65 | J43: 20 | K43: 11.35 | L43: 47.2 | M43: 35.95 | N43: 26.3 | O43: 17 | P43: 10.05 | Q43: 48.25 | R43: 36.6 | S43: 27.1 | T43: 17.3 | U43: 10.15 | V43: 77.5 | W43: 54.9 | X43: 37.8 | Y43: 23.5 | Z43: 11.6 | AA43: 107.08 | AB43: 69.7 | AC43: 45.4 | AD43: 25.6 | AE43: 12.5 | AF43: 80.4 | AG43: 55.5 | AH43: 36.9 | AI43: 23.3 | AJ43: 11.3 | AK43: 85.21 | AL43: 56.8 | AM43: 37.9 | AN43: 24.1 | AO43: 11.7 | AP43: 83.5 | AQ43: 66.5 | AR43: 53.9375 | AS43: 40.35416667 | AT43: 22.66666667 | AU43: 122.625 | AV43: 85.45833333 | AW43: 65.02083333 | AX43: 46.60416667 | AY43: 24.79166667 | AZ43: 86.95833333 | BA43: 67.47916667 | BB43: 53.89583333 | BC43: 40.35416667 | BD43: 21.58333333 | BE43: 91.125 | BF43: 69.5625 | BG43: 55.41666667 | BH43: 41.0625 | BI43: 22.10416667 | BJ43: 153.9166667 | BK43: 95.875 | BL43: 64.04166667 | BM43: 33.25 | BN43: 4.666666667 | BO43: 171.0416667 | BP43: 98 | BQ43: 64.16666667 | BR43: 34.54166667 | BS43: 5.75 | BT43: 145.0416667 | BU43: 90.08333333 | BV43: 62.75 | BW43: 34.83333333 | BX43: 5 | BY43: 149.7916667 | BZ43: 91.70833333 | CA43: 63.875 | CB43: 35.75 | CC43: 5.458333333
A44: Hamilton | B44: 48.3 | C44: 36.9 | D44: 26.35 | E44: 16.65 | F44: 10.15 | G44: 66.45 | H44: 45.8 | I44: 31.3 | J44: 18.95 | K44: 11.1 | L44: 49.1 | M44: 36.7 | N44: 25.9 | O44: 16.2 | P44: 9.75 | Q44: 51.35 | R44: 38 | S44: 27 | T44: 17.1 | U44: 10.15 | V44: 80.7 | W44: 56.6 | X44: 38.7 | Y44: 22.2 | Z44: 10.8 | AA44: 115.38 | AB44: 74.1 | AC44: 47.6 | AD44: 25.6 | AE44: 11.4 | AF44: 84.17 | AG44: 56.6 | AH44: 37.7 | AI44: 20.7 | AJ44: 10.3 | AK44: 88.42 | AL44: 58.8 | AM44: 39.5 | AN44: 22.8 | AO44: 10.8 | AP44: 92.95833333 | AQ44: 72.27083333 | AR44: 56.4375 | AS44: 41.75 | AT44: 21.70833333 | AU44: 156.0000002 | AV44: 99 | AW44: 72.0625 | AX44: 48.02083333 | AY44: 22.60416667 | AZ44: 98.97916667 | BA44: 74.91666667 | BB44: 57.1875 | BC44: 41.625 | BD44: 21.4375 | BE44: 104.1875 | BF44: 77.5625 | BG44: 59 | BH44: 42.0625 | BI44: 21.1875 | BJ44: 216.20833 | BK44: 112.375 | BL44: 73.04166667 | BM44: 39.16666667 | BN44: 4.916666667 | BO44: 211.625 | BP44: 108.5416667 | BQ44: 66.66666667 | BR44: 31.79166667 | BS44: 4.25 | BT44: 173.9166667 | BU44: 99.70833333 | BV44: 66.5 | BW44: 34.33333333 | BX44: 4.416666667 | BY44: 216.16667 | BZ44: 117.5833333 | CA44: 75.95833333 | CB44: 40.41666667 | CC44: 5.25
A45: Invercargill | B45: 47.35 | C45: 36.3 | D45: 26.3 | E45: 16.8 | F45: 10 | G45: 60.5 | H45: 43.6 | I45: 30.15 | J45: 19.1 | K45: 11.15 | L45: 48.05 | M45: 36.3 | N45: 26.2 | O45: 16.8 | P45: 9.9 | Q45: 48.95 | R45: 36.9 | S45: 26.75 | T45: 17 | U45: 10.1 | V45: 92.08 | W45: 63 | X45: 42.2 | Y45: 22.8 | Z45: 10.5 | AA45: 137.08 | AB45: 83.75 | AC45: 54.4 | AD45: 27.4 | AE45: 11.7 | AF45: 101.92 | AG45: 67.9 | AH45: 44.2 | AI45: 24.6 | AJ45: 10.8 | AK45: 97.25 | AL45: 63.8 | AM45: 43.1 | AN45: 24.9 | AO45: 10.9 | AP45: 83.60416667 | AQ45: 65.45833333 | AR45: 51.9375 | AS45: 37.52083333 | AT45: 18.625 | AU45: 113.5 | AV45: 84.45833333 | AW45: 62.97916667 | AX45: 43.64583333 | AY45: 21.27083333 | AZ45: 87.45833333 | BA45: 67.02083333 | BB45: 52.4375 | BC45: 37.91666667 | BD45: 18.60416667 | BE45: 89.625 | BF45: 69.08333333 | BG45: 53.45833333 | BH45: 38.72916667 | BI45: 19.66666667 | BJ45: 177.875 | BK45: 103.2916667 | BL45: 63.04166667 | BM45: 30.25 | BN45: 5.5 | BO45: 220.8333 | BP45: 118.7916667 | BQ45: 66.75 | BR45: 29 | BS45: 5 | BT45: 199.875 | BU45: 109.9166667 | BV45: 65.75 | BW45: 32.70833333 | BX45: 5.458333333 | BY45: 183.41667 | BZ45: 104 | CA45: 64 | CB45: 29.79166667 | CC45: 4.375
A46: Nelson-Marlborough | B46: 47.75 | C46: 36.8 | D46: 26.85 | E46: 17.3 | F46: 10.5 | G46: 63.8 | H46: 45.7 | I46: 31.7 | J46: 20.3 | K46: 11.9 | L46: 48.6 | M46: 36.8 | N46: 26.65 | O46: 17.4 | P46: 10.25 | Q46: 49.5 | R46: 37.1 | S46: 27.05 | T46: 17.8 | U46: 10.55 | V46: 80.8 | W46: 56.8 | X46: 39 | Y46: 22.5 | Z46: 11.4 | AA46: 113.33 | AB46: 74 | AC46: 47.8 | AD46: 24.6 | AE46: 11.5 | AF46: 84.4 | AG46: 57 | AH46: 38 | AI46: 21.7 | AJ46: 10.7 | AK46: 85.08 | AL46: 57.5 | AM46: 36.9 | AN46: 22.7 | AO46: 10.8 | AP46: 88.125 | AQ46: 69.60416667 | AR46: 55.1875 | AS46: 40.6875 | AT46: 21.625 | AU46: 128.0208333 | AV46: 93.5625 | AW46: 70.125 | AX46: 49.02083333 | AY46: 26 | AZ46: 92.54166667 | BA46: 71.04166667 | BB46: 55.70833333 | BC46: 40.875 | BD46: 21.60416667 | BE46: 95.08333333 | BF46: 72.16666667 | BG46: 56.0625 | BH46: 41.22916667 | BI46: 22.54166667 | BJ46: 159.2916667 | BK46: 100.25 | BL46: 66.04166667 | BM46: 31.375 | BN46: 4.125 | BO46: 190.625 | BP46: 104.2916667 | BQ46: 64.75 | BR46: 30.08333333 | BS46: 4.208333333 | BT46: 154.625 | BU46: 93.75 | BV46: 62.95833333 | BW46: 32.95833333 | BX46: 4.416666667 | BY46: 151.2083333 | BZ46: 93.91666667 | CA46: 63.20833333 | CB46: 33.66666667 | CC46: 4.208333333
A47: Northland | B47: 49.9 | C47: 36.4 | D47: 27.65 | E47: 17.65 | F47: 10.65 | G47: 72 | H47: 47.8 | I47: 32.6 | J47: 21 | K47: 11.7 | L47: 51.6 | M47: 38 | N47: 27.7 | O47: 17.85 | P47: 10.35 | Q47: 53.65 | R47: 38.85 | S47: 28.2 | T47: 18.25 | U47: 10.6 | V47: 80.7 | W47: 56.8 | X47: 38.1 | Y47: 22.1 | Z47: 11.1 | AA47: 118.25 | AB47: 75.3 | AC47: 48.5 | AD47: 25.7 | AE47: 11.8 | AF47: 85.5 | AG47: 57.6 | AH47: 37.9 | AI47: 21.7 | AJ47: 10.7 | AK47: 88.17 | AL47: 58.8 | AM47: 37.9 | AN47: 22.3 | AO47: 10.7 | AP47: 99.08333333 | AQ47: 76.625 | AR47: 59.4375 | AS47: 43.10416667 | AT47: 22.66666667 | AU47: 195.875 | AV47: 112.5208333 | AW47: 80.4375 | AX47: 51.60416667 | AY47: 24.0625 | AZ47: 108 | BA47: 78.64583333 | BB47: 60.02083333 | BC47: 42.89583333 | BD47: 22.58333333 | BE47: 117.125 | BF47: 82.64583333 | BG47: 61.1875 | BH47: 43.54166667 | BI47: 22.60416667 | BJ47: 206.79167 | BK47: 116.7916667 | BL47: 74.83333333 | BM47: 36.70833333 | BN47: 4.083333333 | BO47: 321.375 | BP47: 118.4166667 | BQ47: 70.125 | BR47: 34.33333333 | BS47: 4.166666667 | BT47: 196.525 | BU47: 113.375 | BV47: 72.91666667 | BW47: 38.875 | BX47: 4.916666667 | BY47: 199.0833 | BZ47: 110.2916667 | CA47: 71.625 | CB47: 36.5 | CC47: 4.041666667
A48: Queenstown-Lakes | B48: 44.4 | C48: 33.8 | D48: 24.6 | E48: 15.8 | F48: 9.9 | G48: 54.7 | H48: 40 | I48: 27.9 | J48: 17.75 | K48: 10.85 | L48: 45.05 | M48: 33.75 | N48: 24.5 | O48: 15.7 | P48: 9.45 | Q48: 46.05 | R48: 34.4 | S48: 25 | T48: 16.25 | U48: 9.85 | V48: 83.1 | W48: 57.7 | X48: 40.8 | Y48: 21.8 | Z48: 11.5 | AA48: 122.42 | AB48: 74.9 | AC48: 49.5 | AD48: 24.3 | AE48: 11.7 | AF48: 91.83 | AG48: 59.6 | AH48: 40.9 | AI48: 21.7 | AJ48: 10.8 | AK48: 86.25 | AL48: 57.8 | AM48: 39 | AN48: 21.8 | AO48: 10.8 | AP48: 75.95833333 | AQ48: 61.10416667 | AR48: 48.91666667 | AS48: 35.77083333 | AT48: 19.20833333 | AU48: 96.58333333 | AV48: 74.5625 | AW48: 57.08333333 | AX48: 40.54166667 | AY48: 21.64583333 | AZ48: 78.54166667 | BA48: 61.89583333 | BB48: 49.35416667 | BC48: 35.97916667 | BD48: 19.20833333 | BE48: 79.66666667 | BF48: 62.66666667 | BG48: 50 | BH48: 36.52083333 | BI48: 20.08333333 | BJ48: 155.2916667 | BK48: 95.95833333 | BL48: 63.91666667 | BM48: 29.25 | BN48: 4.375 | BO48: 193.375 | BP48: 104.9166667 | BQ48: 64.25 | BR48: 31.45833333 | BS48: 5.541666667 | BT48: 158.9583333 | BU48: 93.41666667 | BV48: 61.79166667 | BW48: 32.25 | BX48: 6.125 | BY48: 160.6666667 | BZ48: 97.08333333 | CA48: 66.08333333 | CB48: 33.54166667 | CC48: 4.708333333
A49: Rotorua | B49: 49.3 | C49: 38.35 | D49: 28.3 | E49: 18 | F49: 10.35 | G49: 65.25 | H49: 46.5 | I49: 32.45 | J49: 20.55 | K49: 11.3 | L49: 49.8 | M49: 38.2 | N49: 27.8 | O49: 17.6 | P49: 10.05 | Q49: 51.3 | R49: 39 | S49: 28.55 | T49: 18.25 | U49: 10.35 | V49: 86 | W49: 58.8 | X49: 40.3 | Y49: 22.8 | Z49: 10.8 | AA49: 126.54 | AB49: 77.6 | AC49: 49.9 | AD49: 26.5 | AE49: 11.8 | AF49: 91.46 | AG49: 60.5 | AH49: 40.8 | AI49: 22.9 | AJ49: 10.9 | AK49: 93.88 | AL49: 59.8 | AM49: 40.3 | AN49: 23.7 | AO49: 10.8 | AP49: 94 | AQ49: 72.10416667 | AR49: 57.10416667 | AS49: 43 | AT49: 22.16666667 | AU49: 146.5416667 | AV49: 98.02083333 | AW49: 71.02083333 | AX49: 49.08333333 | AY49: 23.58333333 | AZ49: 99.97916667 | BA49: 73.47916667 | BB49: 57.5 | BC49: 43.10416667 | BD49: 22.08333333 | BE49: 104.6875 | BF49: 76.125 | BG49: 58.66666667 | BH49: 43.5 | BI49: 21.75 | BJ49: 342.0417 | BK49: 188.95833 | BL49: 89.75 | BM49: 46.91666667 | BN49: 4.333333333 | BO49: 236.1667 | BP49: 120.1666667 | BQ49: 68.16666667 | BR49: 31.20833333 | BS49: 4.208333333 | BT49: 184.79167 | BU49: 101.7916667 | BV49: 64.58333333 | BW49: 32.41666667 | BX49: 4 | BY49: 237.79167 | BZ49: 131.5833333 | CA49: 76 | CB49: 43.75 | CC49: 5.125
A50: Wellington | B50: 48.8 | C50: 37.7 | D50: 27.8 | E50: 17.95 | F50: 10.95 | G50: 64.7 | H50: 45.95 | I50: 31.6 | J50: 20.25 | K50: 11.9 | L50: 49.6 | M50: 37.5 | N50: 27.35 | O50: 17.5 | P50: 10.35 | Q50: 50.6 | R50: 37.7 | S50: 27.6 | T50: 17.7 | U50: 10.65 | V50: 85.04 | W50: 58.3 | X50: 40.2 | Y50: 23.5 | Z50: 11.4 | AA50: 122.54 | AB50: 76 | AC50: 48.9 | AD50: 25.5 | AE50: 11.7 | AF50: 88.92 | AG50: 59 | AH50: 39.8 | AI50: 21.8 | AJ50: 10.8 | AK50: 88.54 | AL50: 58.1 | AM50: 38.3 | AN50: 22.7 | AO50: 10.8 | AP50: 89.89583333 | AQ50: 70.125 | AR50: 55.60416667 | AS50: 40.9375 | AT50: 20.66666667 | AU50: 137.9375 | AV50: 98.08333333 | AW50: 73.52083333 | AX50: 52.95833333 | AY50: 29.125 | AZ50: 95.02083333 | BA50: 72.0625 | BB50: 56.02083333 | BC50: 41.04166667 | BD50: 20.60416667 | BE50: 99.08333333 | BF50: 74.1875 | BG50: 57.20833333 | BH50: 42.0625 | BI50: 22.58333333 | BJ50: 179.4166667 | BK50: 105.7916667 | BL50: 66.04166667 | BM50: 31.125 | BN50: 4.25 | BO50: 200.25 | BP50: 108.1666667 | BQ50: 63.79166667 | BR50: 29 | BS50: 4.083333333 | BT50: 182.8333 | BU50: 103.9166667 | BV50: 67.16666667 | BW50: 35.58333333 | BX50: 4.833333333 | BY50: 168.9583333 | BZ50: 98.125 | CA50: 64.45833333 | CB50: 33.54166667 | CC50: 4.125
A51: West Coast | B51: 49.05 | C51: 37.65 | D51: 27.3 | E51: 17.45 | F51: 10.6 | G51: 66.8 | H51: 46.65 | I51: 32.2 | J51: 20.3 | K51: 12.2 | L51: 49.85 | M51: 37.5 | N51: 26.9 | O51: 17.15 | P51: 10.35 | Q51: 51.1 | R51: 38.2 | S51: 22.85 | T51: 17.85 | U51: 10.9 | V51: 80.42 | W51: 61.5 | X51: 41.3 | Y51: 22.8 | Z51: 10.9 | AA51: 135.21 | AB51: 80.7 | AC51: 50.8 | AD51: 26.6 | AE51: 12.4 | AF51: 97.92 | AG51: 64.3 | AH51: 42.3 | AI51: 23 | AJ51: 11.4 | AK51: 91.88 | AL51: 59.8 | AM51: 39.1 | AN51: 23.4 | AO51: 10.7 | AP51: 90.4375 | AQ51: 70.16666667 | AR51: 55.14583333 | AS51: 40.33333333 | AT51: 20.20833333 | AU51: 137.0416667 | AV51: 97.02083333 | AW51: 71.45833333 | AX51: 49.02083333 | AY51: 25.20833333 | AZ51: 95.95833333 | BA51: 72.39583333 | BB51: 55.85416667 | BC51: 40.35416667 | BD51: 20.14583333 | BE51: 98.6875 | BF51: 73.6875 | BG51: 56.60416667 | BH51: 41.10416667 | BI51: 20.6875 | BJ51: 332.0833 | BK51: 191.1667 | BL51: 89.70833333 | BM51: 38.16666667 | BN51: 5.083333333 | BO51: 243.70833 | BP51: 131.9583333 | BQ51: 73.08333333 | BR51: 34.20833333 | BS51: 5.041666667 | BT51: 197.1667 | BU51: 106.125 | BV51: 64.16666667 | BW51: 32.41666667 | BX51: 4.291666667 | BY51: 231.91667 | BZ51: 125.9583333 | CA51: 73.08333333 | CB51: 39.95833333 | CC51: 5.541666667
A53: Dwang summer | B53: North | G53: South | L53: East | Q53: West | V53: North | AA53: South | AF53: East | AK53: West | AP53: North | AU53: South | AZ53: East | BE53: West | BJ53: North | BO53: South | BT53: East | BY53: West
A54: Location | B54: 15 | C54: 20 | D54: 25 | E54: 30 | F54: 35 | G54: 15 | H54: 20 | I54: 25 | J54: 30 | K54: 35 | L54: 15 | M54: 20 | N54: 25 | O54: 30 | P54: 35 | Q54: 15 | R54: 20 | S54: 25 | T54: 30 | U54: 35 | V54: 15 | W54: 20 | X54: 25 | Y54: 30 | Z54: 35 | AA54: 15 | AB54: 20 | AC54: 25 | AD54: 30 | AE54: 35 | AF54: 15 | AG54: 20 | AH54: 25 | AI54: 30 | AJ54: 35 | AK54: 15 | AL54: 20 | AM54: 25 | AN54: 30 | AO54: 35 | AP54: 15 | AQ54: 20 | AR54: 25 | AS54: 30 | AT54: 35 | AU54: 15 | AV54: 20 | AW54: 25 | AX54: 30 | AY54: 35 | AZ54: 15 | BA54: 20 | BB54: 25 | BC54: 30 | BD54: 35 | BE54: 15 | BF54: 20 | BG54: 25 | BH54: 30 | BI54: 35 | BJ54: 15 | BK54: 20 | BL54: 25 | BM54: 30 | BN54: 35 | BO54: 15 | BP54: 20 | BQ54: 25 | BR54: 30 | BS54: 35 | BT54: 15 | BU54: 20 | BV54: 25 | BW54: 30 | BX54: 35 | BY54: 15 | BZ54: 20 | CA54: 25 | CB54: 30 | CC54: 35
A55: Auckland | B55: 45.9 | C55: 33.65 | D55: 23 | E55: 13.15 | F55: 4.85 | G55: 49.45 | H55: 36.1 | I55: 24.95 | J55: 14.4 | K55: 5.35 | L55: 46.3 | M55: 33.95 | N55: 23.35 | O55: 13.25 | P55: 4.75 | Q55: 45.85 | R55: 33.65 | S55: 23.2 | T55: 13.5 | U55: 5 | V55: 61.9 | W55: 43.3 | X55: 28.2 | Y55: 14.8 | Z55: 5.2 | AA55: 70.1 | AB55: 47.9 | AC55: 30.5 | AD55: 15.5 | AE55: 4.9 | AF55: 63.3 | AG55: 44.3 | AH55: 28.9 | AI55: 15.2 | AJ55: 5.2 | AK55: 59.9 | AL55: 41.9 | AM55: 26.9 | AN55: 13.9 | AO55: 4.8 | AP55: 79.58333333 | AQ55: 62.33333333 | AR55: 48.1875 | AS55: 31.83333333 | AT55: 5.729166667 | AU55: 86.60416667 | AV55: 66.33333333 | AW55: 50.70833333 | AX55: 33.04166667 | AY55: 6.25 | AZ55: 80.91666667 | BA55: 63.08333333 | BB55: 49.02083333 | BC55: 32.33333333 | BD55: 5.895833333 | BE55: 78.64583333 | BF55: 61.52083333 | BG55: 46.97916667 | BH55: 30.64583333 | BI55: 5.3125 | BJ55: 174.875 | BK55: 100.125 | BL55: 66.91666667 | BM55: 36.375 | BN55: 4.083333333 | BO55: 197.25 | BP55: 105.2083333 | BQ55: 66.45833333 | BR55: 34.875 | BS55: 4.291666667 | BT55: 171 | BU55: 98.41666667 | BV55: 66.04166667 | BW55: 35.83333333 | BX55: 4.083333333 | BY55: 170.4166667 | BZ55: 97.5 | CA55: 66.91666667 | CB55: 37.41666667 | CC55: 4.208333333
A56: Bay of Plenty | B56: 46.3 | C56: 34.2 | D56: 23.55 | E56: 13.15 | F56: 4.65 | G56: 49.05 | H56: 35.65 | I56: 24.45 | J56: 13.65 | K56: 4.65 | L56: 46.5 | M56: 34.4 | N56: 23.95 | O56: 13.85 | P56: 5.05 | Q56: 46.15 | R56: 34.05 | S56: 23.75 | T56: 13.5 | U56: 4.75 | V56: 61.8 | W56: 43.5 | X56: 28.1 | Y56: 14.7 | Z56: 5.1 | AA56: 70.7 | AB56: 48.5 | AC56: 30.8 | AD56: 15.9 | AE56: 5.5 | AF56: 61.5 | AG56: 43.6 | AH56: 28.2 | AI56: 14.9 | AJ56: 5.2 | AK56: 61.6 | AL56: 42.8 | AM56: 27.9 | AN56: 14.8 | AO56: 5.2 | AP56: 78.5 | AQ56: 62.14583333 | AR56: 48.08333333 | AS56: 30.85416667 | AT56: 5.395833333 | AU56: 84.35416667 | AV56: 65.85416667 | AW56: 50.47916667 | AX56: 32.6875 | AY56: 5.875 | AZ56: 78.47916667 | BA56: 62.04166667 | BB56: 47.95833333 | BC56: 31.54166667 | BD56: 5.4375 | BE56: 79.45833333 | BF56: 62.58333333 | BG56: 48.64583333 | BH56: 32.64583333 | BI56: 5.8125 | BJ56: 172.9583333 | BK56: 104.375 | BL56: 70.41666667 | BM56: 37.79166667 | BN56: 4.541666667 | BO56: 181.875 | BP56: 100.4166667 | BQ56: 64.29166667 | BR56: 31.375 | BS56: 4.166666667 | BT56: 158.5416667 | BU56: 97.125 | BV56: 66.125 | BW56: 35.70833333 | BX56: 4.666666667 | BY56: 159.5 | BZ56: 96.08333333 | CA56: 64.91666667 | CB56: 35.95833333 | CC56: 4.25
A57: Central Otago | B57: 45.6 | C57: 33.35 | D57: 23.35 | E57: 14.1 | F57: 4.95 | G57: 48.3 | H57: 35.15 | I57: 24.45 | J57: 14.95 | K57: 5.15 | L57: 46.1 | M57: 33.75 | N57: 23.7 | O57: 14.6 | P57: 5.3 | Q57: 44.2 | R57: 32.35 | S57: 22.9 | T57: 14.1 | U57: 4.9 | V57: 69.8 | W57: 47.9 | X57: 30.7 | Y57: 15.9 | Z57: 4.9 | AA57: 79.9 | AB57: 53.3 | AC57: 32.2 | AD57: 16.1 | AE57: 5 | AF57: 73.3 | AG57: 49.2 | AH57: 31.5 | AI57: 16.8 | AJ57: 5.7 | AK57: 66.8 | AL57: 45.8 | AM57: 29.9 | AN57: 16.3 | AO57: 5.5 | AP57: 71.1875 | AQ57: 55.16666667 | AR57: 41.04166667 | AS57: 24.9375 | AT57: 5.270833333 | AU57: 75.33333333 | AV57: 57.4375 | AW57: 42.1875 | AX57: 25.22916667 | AY57: 5.3125 | AZ57: 71.95833333 | BA57: 55.4375 | BB57: 41.1875 | BC57: 25.08333333 | BD57: 5.333333333 | BE57: 69.25 | BF57: 54.10416667 | BG57: 40.45833333 | BH57: 25.27083333 | BI57: 5.333333333 | BJ57: 141.4166667 | BK57: 89.25 | BL57: 58.20833333 | BM57: 27.16666667 | BN57: 4.166666667 | BO57: 173.3333333 | BP57: 95.79166667 | BQ57: 58.875 | BR57: 28.41666667 | BS57: 4.833333333 | BT57: 151.625 | BU57: 90.83333333 | BV57: 59.75 | BW57: 33.04166667 | BX57: 6.041666667 | BY57: 142.2083333 | BZ57: 88.83333333 | CA57: 60.66666667 | CB57: 33.5 | CC57: 4.208333333
A58: Christchurch | B58: 44.25 | C58: 32.65 | D58: 21.7 | E58: 12.45 | F58: 4.6 | G58: 46.4 | H58: 33.95 | I58: 22.55 | J58: 12.75 | K58: 4.8 | L58: 44.5 | M58: 32.5 | N58: 21.75 | O58: 12.65 | P58: 4.75 | Q58: 38.55 | R58: 31.8 | S58: 21.4 | T58: 12.55 | U58: 4.75 | V58: 68.3 | W58: 46.4 | X58: 30.8 | Y58: 15.8 | Z58: 5.3 | AA58: 77 | AB58: 50.4 | AC58: 31.9 | AD58: 15.7 | AE58: 4.9 | AF58: 70.5 | AG58: 47 | AH58: 30.6 | AI58: 15.9 | AJ58: 5.4 | AK58: 66.8 | AL58: 44.8 | AM58: 29 | AN58: 15.3 | AO58: 5.3 | AP58: 72.27083333 | AQ58: 55.29166667 | AR58: 41.22916667 | AS58: 24.6875 | AT58: 5.3125 | AU58: 76.89583333 | AV58: 57.85416667 | AW58: 42.47916667 | AX58: 25.39583333 | AY58: 5.583333333 | AZ58: 72.75 | BA58: 55.375 | BB58: 40.875 | BC58: 24.77083333 | BD58: 5.1875 | BE58: 71.70833333 | BF58: 54.91666667 | BG58: 40.91666667 | BH58: 24.95833333 | BI58: 5.520833333 | BJ58: 155.6666667 | BK58: 91.75 | BL58: 58.875 | BM58: 27.70833333 | BN58: 4.25 | BO58: 186.1667 | BP58: 100.75 | BQ58: 61.75 | BR58: 30.75 | BS58: 5.166666667 | BT58: 161.9166667 | BU58: 92.79166667 | BV58: 60.25 | BW58: 29.70833333 | BX58: 5.166666667 | BY58: 150.2916667 | BZ58: 89.875 | CA58: 58.5 | CB58: 30.08333333 | CC58: 4.666666667
A59: Dunedin | B59: 52.3 | C59: 38.5 | D59: 26.45 | E59: 15.85 | F59: 5.35 | G59: 56.1 | H59: 41.2 | I59: 28.3 | J59: 17.45 | K59: 6.05 | L59: 52.8 | M59: 38.85 | N59: 26.85 | O59: 16.25 | P59: 5.4 | Q59: 51.7 | R59: 37.65 | S59: 25.95 | T59: 15.75 | U59: 5.15 | V59: 78.6 | W59: 54.2 | X59: 34.8 | Y59: 16.5 | Z59: 4.9 | AA59: 93.13 | AB59: 60.9 | AC59: 38.8 | AD59: 17.3 | AE59: 4.8 | AF59: 81.4 | AG59: 54.2 | AH59: 33.9 | AI59: 16.1 | AJ59: 4.6 | AK59: 78.4 | AL59: 52.4 | AM59: 32.5 | AN59: 16 | AO59: 4.5 | AP59: 82.39583333 | AQ59: 62.9375 | AR59: 46.3125 | AS59: 26.5625 | AT59: 5.583333333 | AU59: 88.70833333 | AV59: 65.9375 | AW59: 47.91666667 | AX59: 27.52083333 | AY59: 5.9375 | AZ59: 83.64583333 | BA59: 63.3125 | BB59: 46.54166667 | BC59: 27 | BD59: 5.770833333 | BE59: 82.52083333 | BF59: 62.33333333 | BG59: 45.72916667 | BH59: 26.97916667 | BI59: 5.75 | BJ59: 173.9583333 | BK59: 103.5833333 | BL59: 64.16666667 | BM59: 30.91666667 | BN59: 5.125 | BO59: 207.333 | BP59: 116.125 | BQ59: 67.375 | BR59: 30.58333333 | BS59: 5.416666667 | BT59: 185.0833 | BU59: 106.6666667 | BV59: 66.625 | BW59: 33.125 | BX59: 5.5 | BY59: 177.0833333 | BZ59: 102.0416667 | CA59: 64 | CB59: 30.95833333 | CC59: 5.25
A60: Napier | B60: 44.4 | C60: 32.5 | D60: 22.75 | E60: 13.2 | F60: 4.925 | G60: 46.45 | H60: 33.8 | I60: 23.25 | J60: 13.45 | K60: 5 | L60: 44 | M60: 32.1 | N60: 22.45 | O60: 13.15 | P60: 4.8 | Q60: 44 | R60: 32.2 | S60: 22.55 | T60: 13.25 | U60: 4.9 | V60: 60.4 | W60: 41.9 | X60: 26.3 | Y60: 13.2 | Z60: 4.5 | AA60: 69.8 | AB60: 48.7 | AC60: 30.7 | AD60: 16.3 | AE60: 5.8 | AF60: 59.8 | AG60: 41.6 | AH60: 26.2 | AI60: 13.5 | AJ60: 4.5 | AK60: 59.8 | AL60: 41.4 | AM60: 26.3 | AN60: 13.5 | AO60: 4.5 | AP60: 72.22916667 | AQ60: 57.875 | AR60: 44.1875 | AS60: 28.85416667 | AT60: 5.583333333 | AU60: 76.02083333 | AV60: 60.14583333 | AW60: 45.39583333 | AX60: 28.9375 | AY60: 5.604166667 | AZ60: 72.33333333 | BA60: 57.89583333 | BB60: 44.25 | BC60: 29.33333333 | BD60: 5.6875 | BE60: 72.39583333 | BF60: 57.70833333 | BG60: 44.35416667 | BH60: 29.41666667 | BI60: 5.729166667 | BJ60: 153.9166667 | BK60: 95.875 | BL60: 64.04166667 | BM60: 33.25 | BN60: 4.666666667 | BO60: 171.0416667 | BP60: 98 | BQ60: 64.16666667 | BR60: 34.54166667 | BS60: 5.75 | BT60: 145.0416667 | BU60: 90.08333333 | BV60: 62.75 | BW60: 34.83333333 | BX60: 5 | BY60: 149.7916667 | BZ60: 91.70833333 | CA60: 63.875 | CB60: 35.75 | CC60: 5.458333333
A61: Hamilton | B61: 47.75 | C61: 34.6 | D61: 23.75 | E61: 13.5 | F61: 4.85 | G61: 51.55 | H61: 37.05 | I61: 25.65 | J61: 14.8 | K61: 5.15 | L61: 47.95 | M61: 34.55 | N61: 23.8 | O61: 13.6 | P61: 4.8 | Q61: 47.75 | R61: 34.45 | S61: 23.7 | T61: 13.45 | U61: 4.75 | V61: 65.2 | W61: 45.8 | X61: 29.6 | Y61: 15.3 | Z61: 4.9 | AA61: 74.5 | AB61: 50.1 | AC61: 30.9 | AD61: 15 | AE61: 4.2 | AF61: 66.8 | AG61: 46.6 | AH61: 30.1 | AI61: 16 | AJ61: 5.1 | AK61: 66.5 | AL61: 46.4 | AM61: 30.1 | AN61: 16.2 | AO61: 5.2 | AP61: 80.75 | AQ61: 62.375 | AR61: 45.41666667 | AS61: 26.625 | AT61: 4.958333333 | AU61: 89.83333333 | AV61: 67.39583333 | AW61: 49.375 | AX61: 30.45833333 | AY61: 6.020833333 | AZ61: 82.29166667 | BA61: 63.20833333 | BB61: 46.125 | BC61: 28.14583333 | BD61: 5.541666667 | BE61: 81.60416667 | BF61: 62.70833333 | BG61: 45.39583333 | BH61: 27.20833333 | BI61: 4.979166667 | BJ61: 216.20833 | BK61: 112.375 | BL61: 73.04166667 | BM61: 39.16666667 | BN61: 4.916666667 | BO61: 211.725 | BP61: 108.5416667 | BQ61: 66.66666667 | BR61: 31.79166667 | BS61: 4.25 | BT61: 173.9166667 | BU61: 99.70833333 | BV61: 66.5 | BW61: 34.33333333 | BX61: 4.416666667 | BY61: 216.1667 | BZ61: 117.5833333 | CA61: 75.95833333 | CB61: 40.41666667 | CC61: 5.25
A62: Invercargill | B62: 52.2 | C62: 37.55 | D62: 25.8 | E62: 14.85 | F62: 5.2 | G62: 56.75 | H62: 40.6 | I62: 27.95 | J62: 16.7 | K62: 5.75 | L62: 52.6 | M62: 37.65 | N62: 25.9 | O62: 15.15 | P62: 5.2 | Q62: 51.85 | R62: 37.25 | S62: 26.05 | T62: 15.55 | U62: 5.4 | V62: 80.7 | W62: 54.7 | X62: 33.2 | Y62: 16.1 | Z62: 4.6 | AA62: 96.42 | AB62: 62.7 | AC62: 37.9 | AD62: 16.9 | AE62: 4.4 | AF62: 85.38 | AG62: 55.8 | AH62: 33.7 | AI62: 16.3 | AJ62: 4.7 | AK62: 78.6 | AL62: 53.5 | AM62: 33.1 | AN62: 17.1 | AO62: 5 | AP62: 83.125 | AQ62: 62.3125 | AR62: 45.45833333 | AS62: 26.33333333 | AT62: 5.583333333 | AU62: 91.04166667 | AV62: 66.85416667 | AW62: 48.1875 | AX62: 27.66666667 | AY62: 6.083333333 | AZ62: 84.9375 | BA62: 62.77083333 | BB62: 45.64583333 | BC62: 26.625 | BD62: 5.625 | BE62: 82.39583333 | BF62: 61.9375 | BG62: 45.375 | BH62: 26.85416667 | BI62: 5.770833333 | BJ62: 177.875 | BK62: 103.2916667 | BL62: 63.04166667 | BM62: 30.25 | BN62: 5.5 | BO62: 220.8333 | BP62: 118.7916667 | BQ62: 66.75 | BR62: 29 | BS62: 5 | BT62: 199.875 | BU62: 109.9166667 | BV62: 65.75 | BW62: 32.70833333 | BX62: 5.458333333 | BY62: 183.41667 | BZ62: 104 | CA62: 64 | CB62: 29.79166667 | CC62: 4.375
A63: Nelson-Marlborough | B63: 47.6 | C63: 35.05 | D63: 24.2 | E63: 14.6 | F63: 5.3 | G63: 50.6 | H63: 36.75 | I63: 25.25 | J63: 14.9 | K63: 5 | L63: 46.8 | M63: 34.2 | N63: 23.45 | O63: 14.1 | P63: 4.7 | Q63: 45.45 | R63: 32.9 | S63: 22.65 | T63: 13.45 | U63: 4.3 | V63: 66 | W63: 45.8 | X63: 29.7 | Y63: 15.2 | Z63: 5.2 | AA63: 75.2 | AB63: 50.2 | AC63: 30.8 | AD63: 14.7 | AE63: 4.2 | AF63: 67 | AG63: 45.8 | AH63: 29.7 | AI63: 15.8 | AJ63: 5.3 | AK63: 62.9 | AL63: 43.2 | AM63: 27.8 | AN63: 15 | AO63: 5 | AP63: 77.8125 | AQ63: 60.72916667 | AR63: 45.41666667 | AS63: 27.22916667 | AT63: 4.979166667 | AU63: 84.08333333 | AV63: 63.77083333 | AW63: 47.08333333 | AX63: 27.1875 | AY63: 4.729166667 | AZ63: 77.91666667 | BA63: 59.83333333 | BB63: 44.41666667 | BC63: 27.08333333 | BD63: 4.645833333 | BE63: 76.875 | BF63: 59.33333333 | BG63: 44.375 | BH63: 28.10416667 | BI63: 5.166666667 | BJ63: 159.2916667 | BK63: 100.25 | BL63: 66.04166667 | BM63: 31.375 | BN63: 4.125 | BO63: 190.625 | BP63: 104.2916667 | BQ63: 64.75 | BR63: 30.08333333 | BS63: 4.208333333 | BT63: 154.625 | BU63: 93.75 | BV63: 62.95833333 | BW63: 32.95833333 | BX63: 4.416666667 | BY63: 151.2083333 | BZ63: 93.91666667 | CA63: 63.20833333 | CB63: 33.66666667 | CC63: 4.208333333
A64: Northland | B64: 47.3 | C64: 33.85 | D64: 23.2 | E64: 12.9 | F64: 4.45 | G64: 52.3 | H64: 36.5 | I64: 25.3 | J64: 14.3 | K64: 4.6 | L64: 47.35 | M64: 33.6 | N64: 23.15 | O64: 12.75 | P64: 4.15 | Q64: 47.85 | R64: 34 | S64: 23.5 | T64: 13.35 | U64: 4.6 | V64: 65 | W64: 45.1 | X64: 29.2 | Y64: 14.9 | Z64: 4.9 | AA64: 74.3 | AB64: 50.1 | AC64: 30.8 | AD64: 15 | AE64: 4.5 | AF64: 65.9 | AG64: 45.6 | AH64: 29.2 | AI64: 15.2 | AJ64: 4.9 | AK64: 65 | AL64: 44.4 | AM64: 28.3 | AN64: 14.3 | AO64: 4.7 | AP64: 84.66666667 | AQ64: 65.125 | AR64: 47.45833333 | AS64: 30.08333333 | AT64: 5.083333333 | AU64: 92.83333333 | AV64: 69.02083333 | AW64: 49.27083333 | AX64: 29.52083333 | AY64: 4.5625 | AZ64: 85.58333333 | BA64: 65.08333333 | BB64: 47.3125 | BC64: 30.10416667 | BD64: 5.104166667 | BE64: 85.77083333 | BF64: 64.95833333 | BG64: 47.16666667 | BH64: 30.3125 | BI64: 5.166666667 | BJ64: 206.79167 | BK64: 116.7916667 | BL64: 74.83333333 | BM64: 36.70833333 | BN64: 4.083333333 | BO64: 221.375 | BP64: 118.4166667 | BQ64: 70.125 | BR64: 34.33333333 | BS64: 4.166666667 | BT64: 196.75 | BU64: 113.375 | BV64: 72.91666667 | BW64: 38.875 | BX64: 4.916666667 | BY64: 199.0833 | BZ64: 110.2916667 | CA64: 71.625 | CB64: 36.5 | CC64: 4.041666667
A65: Queenstown-Lakes | B65: 45.85 | C65: 33.25 | D65: 22.4 | E65: 12.75 | F65: 4.85 | G65: 49.15 | H65: 35.55 | I65: 24.05 | J65: 13.75 | K65: 5.2 | L65: 46.2 | M65: 33.4 | N65: 22.55 | O65: 13.05 | P65: 5.05 | Q65: 45.45 | R65: 32.9 | S65: 22.55 | T65: 13.15 | U65: 4.95 | V65: 71.9 | W65: 49.1 | X65: 31.8 | Y65: 15.8 | Z65: 5.3 | AA65: 83.5 | AB65: 54.8 | AC65: 33.9 | AD65: 14.9 | AE65: 4.4 | AF65: 74.6 | AG65: 49.8 | AH65: 31.9 | AI65: 15.8 | AJ65: 5.1 | AK65: 68.5 | AL65: 47.7 | AM65: 30.4 | AN65: 15.8 | AO65: 5.3 | AP65: 70.6875 | AQ65: 55.14583333 | AR65: 40.125 | AS65: 23.58333333 | AT65: 5.145833333 | AU65: 75.5 | AV65: 57.625 | AW65: 41.47916667 | AX65: 23.85416667 | AY65: 5.104166667 | AZ65: 71.33333333 | BA65: 55.20833333 | BB65: 39.95833333 | BC65: 23.625 | BD65: 5.145833333 | BE65: 69.91666667 | BF65: 54.70833333 | BG65: 39.8125 | BH65: 24 | BI65: 5.166666667 | BJ65: 155.2916667 | BK65: 95.95833333 | BL65: 63.91666667 | BM65: 29.25 | BN65: 4.375 | BO65: 193.375 | BP65: 104.9166667 | BQ65: 64.25 | BR65: 31.45833333 | BS65: 5.541666667 | BT65: 158.9583333 | BU65: 93.41666667 | BV65: 61.79166667 | BW65: 32.25 | BX65: 6.125 | BY65: 160.6666667 | BZ65: 97.08333333 | CA65: 66.08333333 | CB65: 33.54166667 | CC65: 4.708333333
A66: Rotorua | B66: 49.35 | C66: 36.65 | D66: 25.65 | E66: 14.15 | F66: 4.6 | G66: 52.45 | H66: 38.35 | I66: 26.4 | J66: 14.45 | K66: 4.2 | L66: 48.85 | M66: 36.05 | N66: 25.2 | O66: 14.05 | P66: 4.45 | Q66: 48.45 | R66: 35.75 | S66: 25.15 | T66: 14.2 | U66: 4.6 | V66: 70.8 | W66: 47.7 | X66: 30.9 | Y66: 15.3 | Z66: 4.8 | AA66: 82.7 | AB66: 53.6 | AC66: 33.3 | AD66: 15.4 | AE66: 4.2 | AF66: 70.5 | AG66: 46.5 | AH66: 29.8 | AI66: 14.4 | AJ66: 4.1 | AK66: 68.9 | AL66: 45.9 | AM66: 29.8 | AN66: 14.6 | AO66: 4.2 | AP66: 86.08333333 | AQ66: 64.1875 | AR66: 48.75 | AS66: 30.08333333 | AT66: 5.479166667 | AU66: 94.6875 | AV66: 67.8125 | AW66: 50.375 | AX66: 30.3125 | AY66: 5.416666667 | AZ66: 86.39583333 | BA66: 64.125 | BB66: 48.5625 | BC66: 29.875 | BD66: 6 | BE66: 84.0625 | BF66: 61.89583333 | BG66: 46.375 | BH66: 27.66666667 | BI66: 4.666666667 | BJ66: 342.0417 | BK66: 188.95833 | BL66: 89.75 | BM66: 46.91666667 | BN66: 4.333333333 | BO66: 236.1667 | BP66: 120.1666667 | BQ66: 68.16666667 | BR66: 31.20833333 | BS66: 4.208333333 | BT66: 184.791667 | BU66: 101.7916667 | BV66: 64.58333333 | BW66: 32.41666667 | BX66: 4 | BY66: 237.79167 | BZ66: 131.5833333 | CA66: 76 | CB66: 43.75 | CC66: 5.125
A67: Wellington | B67: 48.15 | C67: 35.45 | D67: 24.4 | E67: 13.9 | F67: 4.8 | G67: 51.75 | H67: 37.45 | I67: 25.75 | J67: 14.95 | K67: 5.05 | L67: 48.4 | M67: 35.55 | N67: 24.5 | O67: 14.2 | P67: 4.8 | Q67: 47.4 | R67: 34.65 | S67: 24 | T67: 14.1 | U67: 4.95 | V67: 70.3 | W67: 47.7 | X67: 31.6 | Y67: 15.9 | Z67: 5.1 | AA67: 79.3 | AB67: 51.5 | AC67: 32.3 | AD67: 15 | AE67: 4.4 | AF67: 70.5 | AG67: 46.9 | AH67: 30.4 | AI67: 15 | AJ67: 4.8 | AK67: 68.1 | AL67: 45.9 | AM67: 29.9 | AN67: 15.8 | AO67: 5.1 | AP67: 81.02083333 | AQ67: 61.47916667 | AR67: 46.29166667 | AS67: 27.5 | AT67: 4.979166667 | AU67: 87.58333333 | AV67: 64.60416667 | AW67: 47.35416667 | AX67: 27.35416667 | AY67: 4.916666667 | AZ67: 81.79166667 | BA67: 61.77083333 | BB67: 46.3125 | BC67: 27.66666667 | BD67: 5 | BE67: 79.875 | BF67: 60.3125 | BG67: 44.83333333 | BH67: 27.47916667 | BI67: 4.833333333 | BJ67: 179.4166667 | BK67: 105.7916667 | BL67: 66.04166667 | BM67: 31.125 | BN67: 4.25 | BO67: 200.25 | BP67: 108.1666667 | BQ67: 63.79166667 | BR67: 29 | BS67: 4.083333333 | BT67: 182.833 | BU67: 103.9166667 | BV67: 67.16666667 | BW67: 35.58333333 | BX67: 4.833333333 | BY67: 168.9583333 | BZ67: 98.125 | CA67: 64.45833333 | CB67: 33.54166667 | CC67: 4.125
A68: West Coast | B68: 52.25 | C68: 37.35 | D68: 25.7 | E68: 15.25 | F68: 5.4 | G68: 57.25 | H68: 40.3 | I68: 27.35 | J68: 16.35 | K68: 5.85 | L68: 52.7 | M68: 37.25 | N68: 25.65 | O68: 15.3 | P68: 5.55 | Q68: 50.55 | R68: 36.05 | S68: 25.1 | T68: 15.05 | U68: 5.25 | V68: 75.9 | W68: 51.9 | X68: 32.9 | Y68: 17.1 | Z68: 5.5 | AA68: 90.08 | AB68: 58.8 | AC68: 34.8 | AD68: 15.8 | AE68: 4.3 | AF68: 76.7 | AG68: 51 | AH68: 31 | AI68: 15.3 | AJ68: 4.5 | AK68: 70.9 | AL68: 47.2 | AM68: 30.1 | AN68: 15.3 | AO68: 4.5 | AP68: 89.83333333 | AQ68: 67.45833333 | AR68: 49.95833333 | AS68: 31.45833333 | AT68: 8.4375 | AU68: 97.91666667 | AV68: 70.95833333 | AW68: 51.0625 | AX68: 30.66666667 | AY68: 6.375 | AZ68: 88.04166667 | BA68: 64.89583333 | BB68: 47 | BC68: 28.02083333 | BD68: 5.4375 | BE68: 85.4375 | BF68: 63.83333333 | BG68: 46.85416667 | BH68: 29.02083333 | BI68: 6.020833333 | BJ68: 332.083 | BK68: 191.1667 | BL68: 89.70833333 | BM68: 38.16666667 | BN68: 5.083333333 | BO68: 243.70833 | BP68: 131.9583333 | BQ68: 73.08333333 | BR68: 34.20833333 | BS68: 5.041666667 | BT68: 197.1667 | BU68: 106.125 | BV68: 64.16666667 | BW68: 32.41666667 | BX68: 4.291666667 | BY68: 231.91667 | BZ68: 125.9583333 | CA68: 73.08333333 | CB68: 39.95833333 | CC68: 5.541666667

Sheet CavityDryingData
D1: Fresh air ventilation rates | L1: Fresh air drying rates | T1: Bottom plate Winter drying out times (vapour permeable linings) | AA1: Numbers are days to reach MC value starting in winter (July) | AN1: Bottom plate Summer drying out times (Vapour permeable linings) | AU1: Numbers are days to reach MC value starting in summer (January) | BH1: Stud drying out times in winter (vapour permeable linings) | BP1: Number of days to reach MC value starting in winter (July) | CB1: Stud drying out times in summer (vapour permeable linings) | CJ1: Number of days to reach MC value starting in summer (January) | CV1: Bottom plate Winter drying out times (vapour barrier linings) | DC1: Numbers are days to reach MC value starting in winter (July) | DP1: Bottom plate Summer drying out times (Vapour barrier linings) | DW1: Numbers are days to reach MC value starting in summer (January) | EJ1: Stud drying out times in winter (vapour barrier linings) | ER1: Number of days to reach MC value starting in winter (July) | FD1: Stud drying out times in summer (vapour barrier linings) | FL1: Number of days to reach MC value starting in summer (January)
A2: Location | B2: Cavity Type | C2: Exposure | D2: N/win | E2: W/win | F2: S/win | G2: E/win | H2: N/sum | I2: W/sum | J2: S/sum | K2: E/sum | L2: N/win | M2: W/win | N2: S/win | O2: E/win | P2: N/sum | Q2: W/sum | R2: S/sum | S2: E/sum | T2: N15 | U2: N20 | V2: N25 | W2: N30 | X2: N35 | Y2: S15 | Z2: S20 | AA2: S25 | AB2: S30 | AC2: S35 | AD2: E15 | AE2: E20 | AF2: E25 | AG2: E30 | AH2: E35 | AI2: W15 | AJ2: W20 | AK2: W25 | AL2: W30 | AM2: W35 | AN2: N15 | AO2: N20 | AP2: N25 | AQ2: N30 | AR2: N35 | AS2: S15 | AT2: S20 | AU2: S25 | AV2: S30 | AW2: S35 | AX2: E15 | AY2: E20 | AZ2: E25 | BA2: E30 | BB2: E35 | BC2: W15 | BD2: W20 | BE2: W25 | BF2: W30 | BG2: W35 | BH2: N15 | BI2: N20 | BJ2: N25 | BK2: N30 | BL2: N35 | BM2: S15 | BN2: S20 | BO2: S25 | BP2: S30 | BQ2: S35 | BR2: E15 | BS2: E20 | BT2: E25 | BU2: E30 | BV2: E35 | BW2: W15 | BX2: W20 | BY2: W25 | BZ2: W30 | CA2: W35 | CB2: N15 | CC2: N20 | CD2: N25 | CE2: N30 | CF2: N35 | CG2: S15 | CH2: S20 | CI2: S25 | CJ2: S30 | CK2: S35 | CL2: E15 | CM2: E20 | CN2: E25 | CO2: E30 | CP2: E35 | CQ2: W15 | CR2: W20 | CS2: W25 | CT2: W30 | CU2: W35 | CV2: N15 | CW2: N20 | CX2: N25 | CY2: N30 | CZ2: N35 | DA2: S15 | DB2: S20 | DC2: S25 | DD2: S30 | DE2: S35 | DF2: E15 | DG2: E20 | DH2: E25 | DI2: E30 | DJ2: E35 | DK2: W15 | DL2: W20 | DM2: W25 | DN2: W30 | DO2: W35 | DP2: N15 | DQ2: N20 | DR2: N25 | DS2: N30 | DT2: N35 | DU2: S15 | DV2: S20 | DW2: S25 | DX2: S30 | DY2: S35 | DZ2: E15 | EA2: E20 | EB2: E25 | EC2: E30 | ED2: E35 | EE2: W15 | EF2: W20 | EG2: W25 | EH2: W30 | EI2: W35 | EJ2: N15 | EK2: N20 | EL2: N25 | EM2: N30 | EN2: N35 | EO2: S15 | EP2: S20 | EQ2: S25 | ER2: S30 | ES2: S35 | ET2: E15 | EU2: E20 | EV2: E25 | EW2: E30 | EX2: E35 | EY2: W15 | EZ2: W20 | FA2: W25 | FB2: W30 | FC2: W35 | FD2: N15 | FE2: N20 | FF2: N25 | FG2: N30 | FH2: N35 | FI2: S15 | FJ2: S20 | FK2: S25 | FL2: S30 | FM2: S35 | FN2: E15 | FO2: E20 | FP2: E25 | FQ2: E30 | FR2: E35 | FS2: W15 | FT2: W20 | FU2: W25 | FV2: W30 | FW2: W35
A3: Northland | B3: Brick veneer cavity with top and bottom vents | C3: Exposed | D3: 0.5309150656 | E3: 0.9843355412 | F3: 0.5407342474 | G3: 0.7599391469 | H3: 0.4325377958 | I3: 0.836500601 | J3: 0.4067638704 | K3: 0.8874169446 | L3: 260.4891982 | M3: 418.8354036 | N3: 293.5028159 | O3: 338.1768538 | P3: 274.5485433 | Q3: 501.2559075 | R3: 278.7726125 | S3: 540.8603657 | T3: =FrameDryingdata!B$13 -> 81.2 | U3: =FrameDryingdata!C$13 -> 61.55 | V3: =FrameDryingdata!D$13 -> 42.9 | W3: =FrameDryingdata!E$13 -> 26.6 | X3: =FrameDryingdata!F$13 -> 15.15 | Y3: =FrameDryingdata!G$13 -> 126.25 | Z3: =FrameDryingdata!H$13 -> 92.3 | AA3: =FrameDryingdata!I$13 -> 64.05 | AB3: =FrameDryingdata!J$13 -> 37.75 | AC3: =FrameDryingdata!K$13 -> 20.1 | AD3: =FrameDryingdata!L$13 -> 103.15 | AE3: =FrameDryingdata!M$13 -> 74.2 | AF3: =FrameDryingdata!N$13 -> 53.4 | AG3: =FrameDryingdata!O$13 -> 32.75 | AH3: =FrameDryingdata!P$13 -> 18.35 | AI3: =FrameDryingdata!Q$13 -> 107.6 | AJ3: =FrameDryingdata!R$13 -> 77.45 | AK3: =FrameDryingdata!S$13 -> 55.4 | AL3: =FrameDryingdata!T$13 -> 33.5 | AM3: =FrameDryingdata!U$13 -> 18.45 | AN3: 49.9 | AO3: 36.4 | AP3: 27.65 | AQ3: 17.65 | AR3: 10.65 | AS3: 72 | AT3: 47.8 | AU3: 32.6 | AV3: 21 | AW3: 11.7 | AX3: 51.6 | AY3: 38 | AZ3: 27.7 | BA3: 17.85 | BB3: 10.35 | BC3: 53.65 | BD3: 38.85 | BE3: 28.2 | BF3: 18.25 | BG3: 10.6 | BH3: =FrameDryingdata!B$30 -> 70.65 | BI3: =FrameDryingdata!C$30 -> 50.15 | BJ3: =FrameDryingdata!D$30 -> 32.9 | BK3: =FrameDryingdata!E$30 -> 18.35 | BL3: =FrameDryingdata!F$30 -> 5.7 | BM3: =FrameDryingdata!G$30 -> 75.95 | BN3: =FrameDryingdata!H$30 -> 56.45 | BO3: =FrameDryingdata!I$30 -> 36.05 | BP3: =FrameDryingdata!J$30 -> 19.05 | BQ3: =FrameDryingdata!K$30 -> 4.8 | BR3: =FrameDryingdata!L$30 -> 76.9 | BS3: =FrameDryingdata!M$30 -> 54.3 | BT3: =FrameDryingdata!N$30 -> 35.4 | BU3: =FrameDryingdata!O$30 -> 19.35 | BV3: =FrameDryingdata!P$30 -> 5.5 | BW3: =FrameDryingdata!Q$30 -> 75.3 | BX3: =FrameDryingdata!R$30 -> 53.65 | BY3: =FrameDryingdata!S$30 -> 35 | BZ3: =FrameDryingdata!T$30 -> 18.95 | CA3: =FrameDryingdata!U$30 -> 5.3 | CB3: =FrameDryingdata!B$64 -> 47.3 | CC3: =FrameDryingdata!C$64 -> 33.85 | CD3: =FrameDryingdata!D$64 -> 23.2 | CE3: =FrameDryingdata!E$64 -> 12.9 | CF3: =FrameDryingdata!F$64 -> 4.45 | CG3: =FrameDryingdata!G$64 -> 52.3 | CH3: =FrameDryingdata!H$64 -> 36.5 | CI3: =FrameDryingdata!I$64 -> 25.3 | CJ3: =FrameDryingdata!J$64 -> 14.3 | CK3: =FrameDryingdata!K$64 -> 4.6 | CL3: =FrameDryingdata!L$64 -> 47.35 | CM3: =FrameDryingdata!M$64 -> 33.6 | CN3: =FrameDryingdata!N$64 -> 23.15 | CO3: =FrameDryingdata!O$64 -> 12.75 | CP3: =FrameDryingdata!P$64 -> 4.15 | CQ3: =FrameDryingdata!Q$64 -> 47.85 | CR3: =FrameDryingdata!R$64 -> 34 | CS3: =FrameDryingdata!S$64 -> 23.5 | CT3: =FrameDryingdata!T$64 -> 13.35 | CU3: =FrameDryingdata!U$64 -> 4.6 | CV3: =FrameDryingdata!AP$13 -> 147.4375 | CW3: =FrameDryingdata!AQ$13 -> 116.4583333 | CX3: =FrameDryingdata!AR$13 -> 91.45833333 | CY3: =FrameDryingdata!AS$13 -> 67.64583333 | CZ3: =FrameDryingdata!AT$13 -> 35.02083333 | DA3: =FrameDryingdata!AU$13 -> 202.0833333 | DB3: =FrameDryingdata!AV$13 -> 164.6250002 | DC3: =FrameDryingdata!AW$13 -> 133.9791667 | DD3: =FrameDryingdata!AX$13 -> 98.02083333 | DE3: =FrameDryingdata!AY$13 -> 52 | DF3: =FrameDryingdata!AZ$13 -> 166.3958317 | DG3: =FrameDryingdata!BA$13 -> 135.5416667 | DH3: =FrameDryingdata!BB$13 -> 108.375 | DI3: =FrameDryingdata!BC$13 -> 78.97916667 | DJ3: =FrameDryingdata!BD$13 -> 38.0625 | DK3: =FrameDryingdata!BE$13 -> 172.1249833 | DL3: =FrameDryingdata!BF$13 -> 140.0416667 | DM3: =FrameDryingdata!BG$13 -> 112.6458333 | DN3: =FrameDryingdata!BH$13 -> 82.5625 | DO3: =FrameDryingdata!BI$13 -> 42.08333333 | DP3: =FrameDryingdata!AP$47 -> 99.08333333 | DQ3: =FrameDryingdata!AQ$47 -> 76.625 | DR3: =FrameDryingdata!AR$47 -> 59.4375 | DS3: =FrameDryingdata!AS$47 -> 43.10416667 | DT3: =FrameDryingdata!AT$47 -> 22.66666667 | DU3: =FrameDryingdata!AU$47 -> 195.875 | DV3: =FrameDryingdata!AV$47 -> 112.5208333 | DW3: =FrameDryingdata!AW$47 -> 80.4375 | DX3: =FrameDryingdata!AX$47 -> 51.60416667 | DY3: =FrameDryingdata!AY$47 -> 24.0625 | DZ3: =FrameDryingdata!AZ$47 -> 108 | EA3: =FrameDryingdata!BA$47 -> 78.64583333 | EB3: =FrameDryingdata!BB$47 -> 60.02083333 | EC3: =FrameDryingdata!BC$47 -> 42.89583333 | ED3: =FrameDryingdata!BD$47 -> 22.58333333 | EE3: =FrameDryingdata!BE$47 -> 117.125 | EF3: =FrameDryingdata!BF$47 -> 82.64583333 | EG3: =FrameDryingdata!BG$47 -> 61.1875 | EH3: =FrameDryingdata!BH$47 -> 43.54166667 | EI3: =FrameDryingdata!BI$47 -> 22.60416667 | EJ3: =FrameDryingdata!AP$30 -> 118.4583333 | EK3: =FrameDryingdata!AQ$30 -> 91.52083333 | EL3: =FrameDryingdata!AR$30 -> 68.10416667 | EM3: =FrameDryingdata!AS$30 -> 43.375 | EN3: =FrameDryingdata!AT$30 -> 6.083333333 | EO3: =FrameDryingdata!AU$30 -> 135.8958333 | EP3: =FrameDryingdata!AV$30 -> 104.6458333 | EQ3: =FrameDryingdata!AW$30 -> 74.45833333 | ER3: =FrameDryingdata!AX$30 -> 43.72916667 | ES3: =FrameDryingdata!AY$30 -> 5.416666667 | ET3: =FrameDryingdata!AZ$30 -> 128.2083333 | EU3: =FrameDryingdata!BA$30 -> 98.5 | EV3: =FrameDryingdata!BB$30 -> 71.70833333 | EW3: =FrameDryingdata!BC$30 -> 43.58333333 | EX3: =FrameDryingdata!BD$30 -> 5.958333333 | EY3: =FrameDryingdata!BE$30 -> 126.4791667 | EZ3: =FrameDryingdata!BF$30 -> 97.91666667 | FA3: =FrameDryingdata!BG$30 -> 71.70833333 | FB3: =FrameDryingdata!BH$30 -> 44.60416667 | FC3: =FrameDryingdata!BI$30 -> 6.3125 | FD3: =FrameDryingdata!AP$64 -> 84.66666667 | FE3: =FrameDryingdata!AQ$64 -> 65.125 | FF3: =FrameDryingdata!AR$64 -> 47.45833333 | FG3: =FrameDryingdata!AS$64 -> 30.08333333 | FH3: =FrameDryingdata!AT$64 -> 5.083333333 | FI3: =FrameDryingdata!AU$64 -> 92.83333333 | FJ3: =FrameDryingdata!AV$64 -> 69.02083333 | FK3: =FrameDryingdata!AW$64 -> 49.27083333 | FL3: =FrameDryingdata!AX$64 -> 29.52083333 | FM3: =FrameDryingdata!AY$64 -> 4.5625 | FN3: =FrameDryingdata!AZ$64 -> 85.58333333 | FO3: =FrameDryingdata!BA$64 -> 65.08333333 | FP3: =FrameDryingdata!BB$64 -> 47.3125 | FQ3: =FrameDryingdata!BC$64 -> 30.10416667 | FR3: =FrameDryingdata!BD$64 -> 5.104166667 | FS3: =FrameDryingdata!BE$64 -> 85.77083333 | FT3: =FrameDryingdata!BF$64 -> 64.95833333 | FU3: =FrameDryingdata!BG$64 -> 47.16666667 | FV3: =FrameDryingdata!BH$64 -> 30.3125 | FW3: =FrameDryingdata!BI$64 -> 5.166666667
A4: Northland | B4: Brick veneer cavity with top and bottom vents | C4: Semi-exposed | D4: 0.4951432057 | E4: 0.6576000389 | F4: 0.5079454005 | G4: 0.5043950686 | H4: 0.4326219793 | I4: 0.6825763481 | J4: 0.4011638412 | K4: 0.6387728356 | L4: 255.8364458 | M4: 348.6338885 | N4: 285.8585736 | O4: 268.4179967 | P4: 284.4607021 | Q4: 443.400224 | R4: 280.7043798 | S4: 443.5564382 | T4: =FrameDryingdata!B$13 -> 81.2 | U4: =FrameDryingdata!C$13 -> 61.55 | V4: =FrameDryingdata!D$13 -> 42.9 | W4: =FrameDryingdata!E$13 -> 26.6 | X4: =FrameDryingdata!F$13 -> 15.15 | Y4: =FrameDryingdata!G$13 -> 126.25 | Z4: =FrameDryingdata!H$13 -> 92.3 | AA4: =FrameDryingdata!I$13 -> 64.05 | AB4: =FrameDryingdata!J$13 -> 37.75 | AC4: =FrameDryingdata!K$13 -> 20.1 | AD4: =FrameDryingdata!L$13 -> 103.15 | AE4: =FrameDryingdata!M$13 -> 74.2 | AF4: =FrameDryingdata!N$13 -> 53.4 | AG4: =FrameDryingdata!O$13 -> 32.75 | AH4: =FrameDryingdata!P$13 -> 18.35 | AI4: =FrameDryingdata!Q$13 -> 107.6 | AJ4: =FrameDryingdata!R$13 -> 77.45 | AK4: =FrameDryingdata!S$13 -> 55.4 | AL4: =FrameDryingdata!T$13 -> 33.5 | AM4: =FrameDryingdata!U$13 -> 18.45 | AN4: 49.9 | AO4: 36.4 | AP4: 27.65 | AQ4: 17.65 | AR4: 10.65 | AS4: 72 | AT4: 47.8 | AU4: 32.6 | AV4: 21 | AW4: 11.7 | AX4: 51.6 | AY4: 38 | AZ4: 27.7 | BA4: 17.85 | BB4: 10.35 | BC4: 53.65 | BD4: 38.85 | BE4: 28.2 | BF4: 18.25 | BG4: 10.6 | BH4: =FrameDryingdata!B$30 -> 70.65 | BI4: =FrameDryingdata!C$30 -> 50.15 | BJ4: =FrameDryingdata!D$30 -> 32.9 | BK4: =FrameDryingdata!E$30 -> 18.35 | BL4: =FrameDryingdata!F$30 -> 5.7 | BM4: =FrameDryingdata!G$30 -> 75.95 | BN4: =FrameDryingdata!H$30 -> 56.45 | BO4: =FrameDryingdata!I$30 -> 36.05 | BP4: =FrameDryingdata!J$30 -> 19.05 | BQ4: =FrameDryingdata!K$30 -> 4.8 | BR4: =FrameDryingdata!L$30 -> 76.9 | BS4: =FrameDryingdata!M$30 -> 54.3 | BT4: =FrameDryingdata!N$30 -> 35.4 | BU4: =FrameDryingdata!O$30 -> 19.35 | BV4: =FrameDryingdata!P$30 -> 5.5 | BW4: =FrameDryingdata!Q$30 -> 75.3 | BX4: =FrameDryingdata!R$30 -> 53.65 | BY4: =FrameDryingdata!S$30 -> 35 | BZ4: =FrameDryingdata!T$30 -> 18.95 | CA4: =FrameDryingdata!U$30 -> 5.3 | CB4: =FrameDryingdata!B$64 -> 47.3 | CC4: =FrameDryingdata!C$64 -> 33.85 | CD4: =FrameDryingdata!D$64 -> 23.2 | CE4: =FrameDryingdata!E$64 -> 12.9 | CF4: =FrameDryingdata!F$64 -> 4.45 | CG4: =FrameDryingdata!G$64 -> 52.3 | CH4: =FrameDryingdata!H$64 -> 36.5 | CI4: =FrameDryingdata!I$64 -> 25.3 | CJ4: =FrameDryingdata!J$64 -> 14.3 | CK4: =FrameDryingdata!K$64 -> 4.6 | CL4: =FrameDryingdata!L$64 -> 47.35 | CM4: =FrameDryingdata!M$64 -> 33.6 | CN4: =FrameDryingdata!N$64 -> 23.15 | CO4: =FrameDryingdata!O$64 -> 12.75 | CP4: =FrameDryingdata!P$64 -> 4.15 | CQ4: =FrameDryingdata!Q$64 -> 47.85 | CR4: =FrameDryingdata!R$64 -> 34 | CS4: =FrameDryingdata!S$64 -> 23.5 | CT4: =FrameDryingdata!T$64 -> 13.35 | CU4: =FrameDryingdata!U$64 -> 4.6 | CV4: =FrameDryingdata!AP$13 -> 147.4375 | CW4: =FrameDryingdata!AQ$13 -> 116.4583333 | CX4: =FrameDryingdata!AR$13 -> 91.45833333 | CY4: =FrameDryingdata!AS$13 -> 67.64583333 | CZ4: =FrameDryingdata!AT$13 -> 35.02083333 | DA4: =FrameDryingdata!AU$13 -> 202.0833333 | DB4: =FrameDryingdata!AV$13 -> 164.6250002 | DC4: =FrameDryingdata!AW$13 -> 133.9791667 | DD4: =FrameDryingdata!AX$13 -> 98.02083333 | DE4: =FrameDryingdata!AY$13 -> 52 | DF4: =FrameDryingdata!AZ$13 -> 166.3958317 | DG4: =FrameDryingdata!BA$13 -> 135.5416667 | DH4: =FrameDryingdata!BB$13 -> 108.375 | DI4: =FrameDryingdata!BC$13 -> 78.97916667 | DJ4: =FrameDryingdata!BD$13 -> 38.0625 | DK4: =FrameDryingdata!BE$13 -> 172.1249833 | DL4: =FrameDryingdata!BF$13 -> 140.0416667 | DM4: =FrameDryingdata!BG$13 -> 112.6458333 | DN4: =FrameDryingdata!BH$13 -> 82.5625 | DO4: =FrameDryingdata!BI$13 -> 42.08333333 | DP4: =FrameDryingdata!AP$47 -> 99.08333333 | DQ4: =FrameDryingdata!AQ$47 -> 76.625 | DR4: =FrameDryingdata!AR$47 -> 59.4375 | DS4: =FrameDryingdata!AS$47 -> 43.10416667 | DT4: =FrameDryingdata!AT$47 -> 22.66666667 | DU4: =FrameDryingdata!AU$47 -> 195.875 | DV4: =FrameDryingdata!AV$47 -> 112.5208333 | DW4: =FrameDryingdata!AW$47 -> 80.4375 | DX4: =FrameDryingdata!AX$47 -> 51.60416667 | DY4: =FrameDryingdata!AY$47 -> 24.0625 | DZ4: =FrameDryingdata!AZ$47 -> 108 | EA4: =FrameDryingdata!BA$47 -> 78.64583333 | EB4: =FrameDryingdata!BB$47 -> 60.02083333 | EC4: =FrameDryingdata!BC$47 -> 42.89583333 | ED4: =FrameDryingdata!BD$47 -> 22.58333333 | EE4: =FrameDryingdata!BE$47 -> 117.125 | EF4: =FrameDryingdata!BF$47 -> 82.64583333 | EG4: =FrameDryingdata!BG$47 -> 61.1875 | EH4: =FrameDryingdata!BH$47 -> 43.54166667 | EI4: =FrameDryingdata!BI$47 -> 22.60416667 | EJ4: =FrameDryingdata!AP$30 -> 118.4583333 | EK4: =FrameDryingdata!AQ$30 -> 91.52083333 | EL4: =FrameDryingdata!AR$30 -> 68.10416667 | EM4: =FrameDryingdata!AS$30 -> 43.375 | EN4: =FrameDryingdata!AT$30 -> 6.083333333 | EO4: =FrameDryingdata!AU$30 -> 135.8958333 | EP4: =FrameDryingdata!AV$30 -> 104.6458333 | EQ4: =FrameDryingdata!AW$30 -> 74.45833333 | ER4: =FrameDryingdata!AX$30 -> 43.72916667 | ES4: =FrameDryingdata!AY$30 -> 5.416666667 | ET4: =FrameDryingdata!AZ$30 -> 128.2083333 | EU4: =FrameDryingdata!BA$30 -> 98.5 | EV4: =FrameDryingdata!BB$30 -> 71.70833333 | EW4: =FrameDryingdata!BC$30 -> 43.58333333 | EX4: =FrameDryingdata!BD$30 -> 5.958333333 | EY4: =FrameDryingdata!BE$30 -> 126.4791667 | EZ4: =FrameDryingdata!BF$30 -> 97.91666667 | FA4: =FrameDryingdata!BG$30 -> 71.70833333 | FB4: =FrameDryingdata!BH$30 -> 44.60416667 | FC4: =FrameDryingdata!BI$30 -> 6.3125 | FD4: =FrameDryingdata!AP$64 -> 84.66666667 | FE4: =FrameDryingdata!AQ$64 -> 65.125 | FF4: =FrameDryingdata!AR$64 -> 47.45833333 | FG4: =FrameDryingdata!AS$64 -> 30.08333333 | FH4: =FrameDryingdata!AT$64 -> 5.083333333 | FI4: =FrameDryingdata!AU$64 -> 92.83333333 | FJ4: =FrameDryingdata!AV$64 -> 69.02083333 | FK4: =FrameDryingdata!AW$64 -> 49.27083333 | FL4: =FrameDryingdata!AX$64 -> 29.52083333 | FM4: =FrameDryingdata!AY$64 -> 4.5625 | FN4: =FrameDryingdata!AZ$64 -> 85.58333333 | FO4: =FrameDryingdata!BA$64 -> 65.08333333 | FP4: =FrameDryingdata!BB$64 -> 47.3125 | FQ4: =FrameDryingdata!BC$64 -> 30.10416667 | FR4: =FrameDryingdata!BD$64 -> 5.104166667 | FS4: =FrameDryingdata!BE$64 -> 85.77083333 | FT4: =FrameDryingdata!BF$64 -> 64.95833333 | FU4: =FrameDryingdata!BG$64 -> 47.16666667 | FV4: =FrameDryingdata!BH$64 -> 30.3125 | FW4: =FrameDryingdata!BI$64 -> 5.166666667
A5: Northland | B5: Brick veneer cavity with top and bottom vents | C5: Semi-sheltered | D5: 0.336736399 | E5: 0.350770897 | F5: 0.3195810811 | G5: 0.2855984279 | H5: 0.3656767131 | I5: 0.5521413565 | J5: 0.2774896218 | K5: 0.4232431313 | L5: 234.7787495 | M5: 236.4259677 | N5: 216.1234468 | O5: 184.9170545 | P5: 268.7861068 | Q5: 372.5692345 | R5: 223.5948694 | S5: 322.4264106 | T5: =FrameDryingdata!B$13 -> 81.2 | U5: =FrameDryingdata!C$13 -> 61.55 | V5: =FrameDryingdata!D$13 -> 42.9 | W5: =FrameDryingdata!E$13 -> 26.6 | X5: =FrameDryingdata!F$13 -> 15.15 | Y5: =FrameDryingdata!G$13 -> 126.25 | Z5: =FrameDryingdata!H$13 -> 92.3 | AA5: =FrameDryingdata!I$13 -> 64.05 | AB5: =FrameDryingdata!J$13 -> 37.75 | AC5: =FrameDryingdata!K$13 -> 20.1 | AD5: =FrameDryingdata!L$13 -> 103.15 | AE5: =FrameDryingdata!M$13 -> 74.2 | AF5: =FrameDryingdata!N$13 -> 53.4 | AG5: =FrameDryingdata!O$13 -> 32.75 | AH5: =FrameDryingdata!P$13 -> 18.35 | AI5: =FrameDryingdata!Q$13 -> 107.6 | AJ5: =FrameDryingdata!R$13 -> 77.45 | AK5: =FrameDryingdata!S$13 -> 55.4 | AL5: =FrameDryingdata!T$13 -> 33.5 | AM5: =FrameDryingdata!U$13 -> 18.45 | AN5: 49.9 | AO5: 36.4 | AP5: 27.65 | AQ5: 17.65 | AR5: 10.65 | AS5: 72 | AT5: 47.8 | AU5: 32.6 | AV5: 21 | AW5: 11.7 | AX5: 51.6 | AY5: 38 | AZ5: 27.7 | BA5: 17.85 | BB5: 10.35 | BC5: 53.65 | BD5: 38.85 | BE5: 28.2 | BF5: 18.25 | BG5: 10.6 | BH5: =FrameDryingdata!B$30 -> 70.65 | BI5: =FrameDryingdata!C$30 -> 50.15 | BJ5: =FrameDryingdata!D$30 -> 32.9 | BK5: =FrameDryingdata!E$30 -> 18.35 | BL5: =FrameDryingdata!F$30 -> 5.7 | BM5: =FrameDryingdata!G$30 -> 75.95 | BN5: =FrameDryingdata!H$30 -> 56.45 | BO5: =FrameDryingdata!I$30 -> 36.05 | BP5: =FrameDryingdata!J$30 -> 19.05 | BQ5: =FrameDryingdata!K$30 -> 4.8 | BR5: =FrameDryingdata!L$30 -> 76.9 | BS5: =FrameDryingdata!M$30 -> 54.3 | BT5: =FrameDryingdata!N$30 -> 35.4 | BU5: =FrameDryingdata!O$30 -> 19.35 | BV5: =FrameDryingdata!P$30 -> 5.5 | BW5: =FrameDryingdata!Q$30 -> 75.3 | BX5: =FrameDryingdata!R$30 -> 53.65 | BY5: =FrameDryingdata!S$30 -> 35 | BZ5: =FrameDryingdata!T$30 -> 18.95 | CA5: =FrameDryingdata!U$30 -> 5.3 | CB5: =FrameDryingdata!B$64 -> 47.3 | CC5: =FrameDryingdata!C$64 -> 33.85 | CD5: =FrameDryingdata!D$64 -> 23.2 | CE5: =FrameDryingdata!E$64 -> 12.9 | CF5: =FrameDryingdata!F$64 -> 4.45 | CG5: =FrameDryingdata!G$64 -> 52.3 | CH5: =FrameDryingdata!H$64 -> 36.5 | CI5: =FrameDryingdata!I$64 -> 25.3 | CJ5: =FrameDryingdata!J$64 -> 14.3 | CK5: =FrameDryingdata!K$64 -> 4.6 | CL5: =FrameDryingdata!L$64 -> 47.35 | CM5: =FrameDryingdata!M$64 -> 33.6 | CN5: =FrameDryingdata!N$64 -> 23.15 | CO5: =FrameDryingdata!O$64 -> 12.75 | CP5: =FrameDryingdata!P$64 -> 4.15 | CQ5: =FrameDryingdata!Q$64 -> 47.85 | CR5: =FrameDryingdata!R$64 -> 34 | CS5: =FrameDryingdata!S$64 -> 23.5 | CT5: =FrameDryingdata!T$64 -> 13.35 | CU5: =FrameDryingdata!U$64 -> 4.6 | CV5: =FrameDryingdata!AP$13 -> 147.4375 | CW5: =FrameDryingdata!AQ$13 -> 116.4583333 | CX5: =FrameDryingdata!AR$13 -> 91.45833333 | CY5: =FrameDryingdata!AS$13 -> 67.64583333 | CZ5: =FrameDryingdata!AT$13 -> 35.02083333 | DA5: =FrameDryingdata!AU$13 -> 202.0833333 | DB5: =FrameDryingdata!AV$13 -> 164.6250002 | DC5: =FrameDryingdata!AW$13 -> 133.9791667 | DD5: =FrameDryingdata!AX$13 -> 98.02083333 | DE5: =FrameDryingdata!AY$13 -> 52 | DF5: =FrameDryingdata!AZ$13 -> 166.3958317 | DG5: =FrameDryingdata!BA$13 -> 135.5416667 | DH5: =FrameDryingdata!BB$13 -> 108.375 | DI5: =FrameDryingdata!BC$13 -> 78.97916667 | DJ5: =FrameDryingdata!BD$13 -> 38.0625 | DK5: =FrameDryingdata!BE$13 -> 172.1249833 | DL5: =FrameDryingdata!BF$13 -> 140.0416667 | DM5: =FrameDryingdata!BG$13 -> 112.6458333 | DN5: =FrameDryingdata!BH$13 -> 82.5625 | DO5: =FrameDryingdata!BI$13 -> 42.08333333 | DP5: =FrameDryingdata!AP$47 -> 99.08333333 | DQ5: =FrameDryingdata!AQ$47 -> 76.625 | DR5: =FrameDryingdata!AR$47 -> 59.4375 | DS5: =FrameDryingdata!AS$47 -> 43.10416667 | DT5: =FrameDryingdata!AT$47 -> 22.66666667 | DU5: =FrameDryingdata!AU$47 -> 195.875 | DV5: =FrameDryingdata!AV$47 -> 112.5208333 | DW5: =FrameDryingdata!AW$47 -> 80.4375 | DX5: =FrameDryingdata!AX$47 -> 51.60416667 | DY5: =FrameDryingdata!AY$47 -> 24.0625 | DZ5: =FrameDryingdata!AZ$47 -> 108 | EA5: =FrameDryingdata!BA$47 -> 78.64583333 | EB5: =FrameDryingdata!BB$47 -> 60.02083333 | EC5: =FrameDryingdata!BC$47 -> 42.89583333 | ED5: =FrameDryingdata!BD$47 -> 22.58333333 | EE5: =FrameDryingdata!BE$47 -> 117.125 | EF5: =FrameDryingdata!BF$47 -> 82.64583333 | EG5: =FrameDryingdata!BG$47 -> 61.1875 | EH5: =FrameDryingdata!BH$47 -> 43.54166667 | EI5: =FrameDryingdata!BI$47 -> 22.60416667 | EJ5: =FrameDryingdata!AP$30 -> 118.4583333 | EK5: =FrameDryingdata!AQ$30 -> 91.52083333 | EL5: =FrameDryingdata!AR$30 -> 68.10416667 | EM5: =FrameDryingdata!AS$30 -> 43.375 | EN5: =FrameDryingdata!AT$30 -> 6.083333333 | EO5: =FrameDryingdata!AU$30 -> 135.8958333 | EP5: =FrameDryingdata!AV$30 -> 104.6458333 | EQ5: =FrameDryingdata!AW$30 -> 74.45833333 | ER5: =FrameDryingdata!AX$30 -> 43.72916667 | ES5: =FrameDryingdata!AY$30 -> 5.416666667 | ET5: =FrameDryingdata!AZ$30 -> 128.2083333 | EU5: =FrameDryingdata!BA$30 -> 98.5 | EV5: =FrameDryingdata!BB$30 -> 71.70833333 | EW5: =FrameDryingdata!BC$30 -> 43.58333333 | EX5: =FrameDryingdata!BD$30 -> 5.958333333 | EY5: =FrameDryingdata!BE$30 -> 126.4791667 | EZ5: =FrameDryingdata!BF$30 -> 97.91666667 | FA5: =FrameDryingdata!BG$30 -> 71.70833333 | FB5: =FrameDryingdata!BH$30 -> 44.60416667 | FC5: =FrameDryingdata!BI$30 -> 6.3125 | FD5: =FrameDryingdata!AP$64 -> 84.66666667 | FE5: =FrameDryingdata!AQ$64 -> 65.125 | FF5: =FrameDryingdata!AR$64 -> 47.45833333 | FG5: =FrameDryingdata!AS$64 -> 30.08333333 | FH5: =FrameDryingdata!AT$64 -> 5.083333333 | FI5: =FrameDryingdata!AU$64 -> 92.83333333 | FJ5: =FrameDryingdata!AV$64 -> 69.02083333 | FK5: =FrameDryingdata!AW$64 -> 49.27083333 | FL5: =FrameDryingdata!AX$64 -> 29.52083333 | FM5: =FrameDryingdata!AY$64 -> 4.5625 | FN5: =FrameDryingdata!AZ$64 -> 85.58333333 | FO5: =FrameDryingdata!BA$64 -> 65.08333333 | FP5: =FrameDryingdata!BB$64 -> 47.3125 | FQ5: =FrameDryingdata!BC$64 -> 30.10416667 | FR5: =FrameDryingdata!BD$64 -> 5.104166667 | FS5: =FrameDryingdata!BE$64 -> 85.77083333 | FT5: =FrameDryingdata!BF$64 -> 64.95833333 | FU5: =FrameDryingdata!BG$64 -> 47.16666667 | FV5: =FrameDryingdata!BH$64 -> 30.3125 | FW5: =FrameDryingdata!BI$64 -> 5.166666667
A6: Northland | B6: Brick veneer cavity with top and bottom vents | C6: Sheltered | D6: 0.1895023442 | E6: 0.1777624779 | F6: 0.1466476813 | G6: 0.163127498 | H6: 0.3183607266 | I6: 0.4894514569 | J6: 0.1732320683 | K6: 0.294801947 | L6: 183.4924605 | M6: 155.0345091 | N6: 118.6406219 | O6: 137.8638905 | P6: 245.9067178 | Q6: 322.7748717 | R6: 156.8388565 | S6: 235.4840618 | T6: =FrameDryingdata!B$13 -> 81.2 | U6: =FrameDryingdata!C$13 -> 61.55 | V6: =FrameDryingdata!D$13 -> 42.9 | W6: =FrameDryingdata!E$13 -> 26.6 | X6: =FrameDryingdata!F$13 -> 15.15 | Y6: =FrameDryingdata!G$13 -> 126.25 | Z6: =FrameDryingdata!H$13 -> 92.3 | AA6: =FrameDryingdata!I$13 -> 64.05 | AB6: =FrameDryingdata!J$13 -> 37.75 | AC6: =FrameDryingdata!K$13 -> 20.1 | AD6: =FrameDryingdata!L$13 -> 103.15 | AE6: =FrameDryingdata!M$13 -> 74.2 | AF6: =FrameDryingdata!N$13 -> 53.4 | AG6: =FrameDryingdata!O$13 -> 32.75 | AH6: =FrameDryingdata!P$13 -> 18.35 | AI6: =FrameDryingdata!Q$13 -> 107.6 | AJ6: =FrameDryingdata!R$13 -> 77.45 | AK6: =FrameDryingdata!S$13 -> 55.4 | AL6: =FrameDryingdata!T$13 -> 33.5 | AM6: =FrameDryingdata!U$13 -> 18.45 | AN6: 49.9 | AO6: 36.4 | AP6: 27.65 | AQ6: 17.65 | AR6: 10.65 | AS6: 72 | AT6: 47.8 | AU6: 32.6 | AV6: 21 | AW6: 11.7 | AX6: 51.6 | AY6: 38 | AZ6: 27.7 | BA6: 17.85 | BB6: 10.35 | BC6: 53.65 | BD6: 38.85 | BE6: 28.2 | BF6: 18.25 | BG6: 10.6 | BH6: =FrameDryingdata!B$30 -> 70.65 | BI6: =FrameDryingdata!C$30 -> 50.15 | BJ6: =FrameDryingdata!D$30 -> 32.9 | BK6: =FrameDryingdata!E$30 -> 18.35 | BL6: =FrameDryingdata!F$30 -> 5.7 | BM6: =FrameDryingdata!G$30 -> 75.95 | BN6: =FrameDryingdata!H$30 -> 56.45 | BO6: =FrameDryingdata!I$30 -> 36.05 | BP6: =FrameDryingdata!J$30 -> 19.05 | BQ6: =FrameDryingdata!K$30 -> 4.8 | BR6: =FrameDryingdata!L$30 -> 76.9 | BS6: =FrameDryingdata!M$30 -> 54.3 | BT6: =FrameDryingdata!N$30 -> 35.4 | BU6: =FrameDryingdata!O$30 -> 19.35 | BV6: =FrameDryingdata!P$30 -> 5.5 | BW6: =FrameDryingdata!Q$30 -> 75.3 | BX6: =FrameDryingdata!R$30 -> 53.65 | BY6: =FrameDryingdata!S$30 -> 35 | BZ6: =FrameDryingdata!T$30 -> 18.95 | CA6: =FrameDryingdata!U$30 -> 5.3 | CB6: =FrameDryingdata!B$64 -> 47.3 | CC6: =FrameDryingdata!C$64 -> 33.85 | CD6: =FrameDryingdata!D$64 -> 23.2 | CE6: =FrameDryingdata!E$64 -> 12.9 | CF6: =FrameDryingdata!F$64 -> 4.45 | CG6: =FrameDryingdata!G$64 -> 52.3 | CH6: =FrameDryingdata!H$64 -> 36.5 | CI6: =FrameDryingdata!I$64 -> 25.3 | CJ6: =FrameDryingdata!J$64 -> 14.3 | CK6: =FrameDryingdata!K$64 -> 4.6 | CL6: =FrameDryingdata!L$64 -> 47.35 | CM6: =FrameDryingdata!M$64 -> 33.6 | CN6: =FrameDryingdata!N$64 -> 23.15 | CO6: =FrameDryingdata!O$64 -> 12.75 | CP6: =FrameDryingdata!P$64 -> 4.15 | CQ6: =FrameDryingdata!Q$64 -> 47.85 | CR6: =FrameDryingdata!R$64 -> 34 | CS6: =FrameDryingdata!S$64 -> 23.5 | CT6: =FrameDryingdata!T$64 -> 13.35 | CU6: =FrameDryingdata!U$64 -> 4.6 | CV6: =FrameDryingdata!AP$13 -> 147.4375 | CW6: =FrameDryingdata!AQ$13 -> 116.4583333 | CX6: =FrameDryingdata!AR$13 -> 91.45833333 | CY6: =FrameDryingdata!AS$13 -> 67.64583333 | CZ6: =FrameDryingdata!AT$13 -> 35.02083333 | DA6: =FrameDryingdata!AU$13 -> 202.0833333 | DB6: =FrameDryingdata!AV$13 -> 164.6250002 | DC6: =FrameDryingdata!AW$13 -> 133.9791667 | DD6: =FrameDryingdata!AX$13 -> 98.02083333 | DE6: =FrameDryingdata!AY$13 -> 52 | DF6: =FrameDryingdata!AZ$13 -> 166.3958317 | DG6: =FrameDryingdata!BA$13 -> 135.5416667 | DH6: =FrameDryingdata!BB$13 -> 108.375 | DI6: =FrameDryingdata!BC$13 -> 78.97916667 | DJ6: =FrameDryingdata!BD$13 -> 38.0625 | DK6: =FrameDryingdata!BE$13 -> 172.1249833 | DL6: =FrameDryingdata!BF$13 -> 140.0416667 | DM6: =FrameDryingdata!BG$13 -> 112.6458333 | DN6: =FrameDryingdata!BH$13 -> 82.5625 | DO6: =FrameDryingdata!BI$13 -> 42.08333333 | DP6: =FrameDryingdata!AP$47 -> 99.08333333 | DQ6: =FrameDryingdata!AQ$47 -> 76.625 | DR6: =FrameDryingdata!AR$47 -> 59.4375 | DS6: =FrameDryingdata!AS$47 -> 43.10416667 | DT6: =FrameDryingdata!AT$47 -> 22.66666667 | DU6: =FrameDryingdata!AU$47 -> 195.875 | DV6: =FrameDryingdata!AV$47 -> 112.5208333 | DW6: =FrameDryingdata!AW$47 -> 80.4375 | DX6: =FrameDryingdata!AX$47 -> 51.60416667 | DY6: =FrameDryingdata!AY$47 -> 24.0625 | DZ6: =FrameDryingdata!AZ$47 -> 108 | EA6: =FrameDryingdata!BA$47 -> 78.64583333 | EB6: =FrameDryingdata!BB$47 -> 60.02083333 | EC6: =FrameDryingdata!BC$47 -> 42.89583333 | ED6: =FrameDryingdata!BD$47 -> 22.58333333 | EE6: =FrameDryingdata!BE$47 -> 117.125 | EF6: =FrameDryingdata!BF$47 -> 82.64583333 | EG6: =FrameDryingdata!BG$47 -> 61.1875 | EH6: =FrameDryingdata!BH$47 -> 43.54166667 | EI6: =FrameDryingdata!BI$47 -> 22.60416667 | EJ6: =FrameDryingdata!AP$30 -> 118.4583333 | EK6: =FrameDryingdata!AQ$30 -> 91.52083333 | EL6: =FrameDryingdata!AR$30 -> 68.10416667 | EM6: =FrameDryingdata!AS$30 -> 43.375 | EN6: =FrameDryingdata!AT$30 -> 6.083333333 | EO6: =FrameDryingdata!AU$30 -> 135.8958333 | EP6: =FrameDryingdata!AV$30 -> 104.6458333 | EQ6: =FrameDryingdata!AW$30 -> 74.45833333 | ER6: =FrameDryingdata!AX$30 -> 43.72916667 | ES6: =FrameDryingdata!AY$30 -> 5.416666667 | ET6: =FrameDryingdata!AZ$30 -> 128.2083333 | EU6: =FrameDryingdata!BA$30 -> 98.5 | EV6: =FrameDryingdata!BB$30 -> 71.70833333 | EW6: =FrameDryingdata!BC$30 -> 43.58333333 | EX6: =FrameDryingdata!BD$30 -> 5.958333333 | EY6: =FrameDryingdata!BE$30 -> 126.4791667 | EZ6: =FrameDryingdata!BF$30 -> 97.91666667 | FA6: =FrameDryingdata!BG$30 -> 71.70833333 | FB6: =FrameDryingdata!BH$30 -> 44.60416667 | FC6: =FrameDryingdata!BI$30 -> 6.3125 | FD6: =FrameDryingdata!AP$64 -> 84.66666667 | FE6: =FrameDryingdata!AQ$64 -> 65.125 | FF6: =FrameDryingdata!AR$64 -> 47.45833333 | FG6: =FrameDryingdata!AS$64 -> 30.08333333 | FH6: =FrameDryingdata!AT$64 -> 5.083333333 | FI6: =FrameDryingdata!AU$64 -> 92.83333333 | FJ6: =FrameDryingdata!AV$64 -> 69.02083333 | FK6: =FrameDryingdata!AW$64 -> 49.27083333 | FL6: =FrameDryingdata!AX$64 -> 29.52083333 | FM6: =FrameDryingdata!AY$64 -> 4.5625 | FN6: =FrameDryingdata!AZ$64 -> 85.58333333 | FO6: =FrameDryingdata!BA$64 -> 65.08333333 | FP6: =FrameDryingdata!BB$64 -> 47.3125 | FQ6: =FrameDryingdata!BC$64 -> 30.10416667 | FR6: =FrameDryingdata!BD$64 -> 5.104166667 | FS6: =FrameDryingdata!BE$64 -> 85.77083333 | FT6: =FrameDryingdata!BF$64 -> 64.95833333 | FU6: =FrameDryingdata!BG$64 -> 47.16666667 | FV6: =FrameDryingdata!BH$64 -> 30.3125 | FW6: =FrameDryingdata!BI$64 -> 5.166666667
A7: Northland | B7: Open rainscreen with ventilated battens | C7: Exposed | D7: 0.2289320196 | E7: 0.2388669001 | F7: 0.222759781 | G7: 0.2058646748 | H7: 0.3204857998 | I7: 0.4952419143 | J7: 0.2100320023 | K7: 0.3438607723 | L7: 201.4769628 | M7: 207.3323205 | N7: 198.4248113 | O7: 164.3114626 | P7: 244.8028644 | Q7: 341.1669662 | R7: 209.6263428 | S7: 290.2992669 | T7: =FrameDryingdata!B$13 -> 81.2 | U7: =FrameDryingdata!C$13 -> 61.55 | V7: =FrameDryingdata!D$13 -> 42.9 | W7: =FrameDryingdata!E$13 -> 26.6 | X7: =FrameDryingdata!F$13 -> 15.15 | Y7: =FrameDryingdata!G$13 -> 126.25 | Z7: =FrameDryingdata!H$13 -> 92.3 | AA7: =FrameDryingdata!I$13 -> 64.05 | AB7: =FrameDryingdata!J$13 -> 37.75 | AC7: =FrameDryingdata!K$13 -> 20.1 | AD7: =FrameDryingdata!L$13 -> 103.15 | AE7: =FrameDryingdata!M$13 -> 74.2 | AF7: =FrameDryingdata!N$13 -> 53.4 | AG7: =FrameDryingdata!O$13 -> 32.75 | AH7: =FrameDryingdata!P$13 -> 18.35 | AI7: =FrameDryingdata!Q$13 -> 107.6 | AJ7: =FrameDryingdata!R$13 -> 77.45 | AK7: =FrameDryingdata!S$13 -> 55.4 | AL7: =FrameDryingdata!T$13 -> 33.5 | AM7: =FrameDryingdata!U$13 -> 18.45 | AN7: 49.9 | AO7: 36.4 | AP7: 27.65 | AQ7: 17.65 | AR7: 10.65 | AS7: 72 | AT7: 47.8 | AU7: 32.6 | AV7: 21 | AW7: 11.7 | AX7: 51.6 | AY7: 38 | AZ7: 27.7 | BA7: 17.85 | BB7: 10.35 | BC7: 53.65 | BD7: 38.85 | BE7: 28.2 | BF7: 18.25 | BG7: 10.6 | BH7: =FrameDryingdata!B$30 -> 70.65 | BI7: =FrameDryingdata!C$30 -> 50.15 | BJ7: =FrameDryingdata!D$30 -> 32.9 | BK7: =FrameDryingdata!E$30 -> 18.35 | BL7: =FrameDryingdata!F$30 -> 5.7 | BM7: =FrameDryingdata!G$30 -> 75.95 | BN7: =FrameDryingdata!H$30 -> 56.45 | BO7: =FrameDryingdata!I$30 -> 36.05 | BP7: =FrameDryingdata!J$30 -> 19.05 | BQ7: =FrameDryingdata!K$30 -> 4.8 | BR7: =FrameDryingdata!L$30 -> 76.9 | BS7: =FrameDryingdata!M$30 -> 54.3 | BT7: =FrameDryingdata!N$30 -> 35.4 | BU7: =FrameDryingdata!O$30 -> 19.35 | BV7: =FrameDryingdata!P$30 -> 5.5 | BW7: =FrameDryingdata!Q$30 -> 75.3 | BX7: =FrameDryingdata!R$30 -> 53.65 | BY7: =FrameDryingdata!S$30 -> 35 | BZ7: =FrameDryingdata!T$30 -> 18.95 | CA7: =FrameDryingdata!U$30 -> 5.3 | CB7: =FrameDryingdata!B$64 -> 47.3 | CC7: =FrameDryingdata!C$64 -> 33.85 | CD7: =FrameDryingdata!D$64 -> 23.2 | CE7: =FrameDryingdata!E$64 -> 12.9 | CF7: =FrameDryingdata!F$64 -> 4.45 | CG7: =FrameDryingdata!G$64 -> 52.3 | CH7: =FrameDryingdata!H$64 -> 36.5 | CI7: =FrameDryingdata!I$64 -> 25.3 | CJ7: =FrameDryingdata!J$64 -> 14.3 | CK7: =FrameDryingdata!K$64 -> 4.6 | CL7: =FrameDryingdata!L$64 -> 47.35 | CM7: =FrameDryingdata!M$64 -> 33.6 | CN7: =FrameDryingdata!N$64 -> 23.15 | CO7: =FrameDryingdata!O$64 -> 12.75 | CP7: =FrameDryingdata!P$64 -> 4.15 | CQ7: =FrameDryingdata!Q$64 -> 47.85 | CR7: =FrameDryingdata!R$64 -> 34 | CS7: =FrameDryingdata!S$64 -> 23.5 | CT7: =FrameDryingdata!T$64 -> 13.35 | CU7: =FrameDryingdata!U$64 -> 4.6 | CV7: =FrameDryingdata!AP$13 -> 147.4375 | CW7: =FrameDryingdata!AQ$13 -> 116.4583333 | CX7: =FrameDryingdata!AR$13 -> 91.45833333 | CY7: =FrameDryingdata!AS$13 -> 67.64583333 | CZ7: =FrameDryingdata!AT$13 -> 35.02083333 | DA7: =FrameDryingdata!AU$13 -> 202.0833333 | DB7: =FrameDryingdata!AV$13 -> 164.6250002 | DC7: =FrameDryingdata!AW$13 -> 133.9791667 | DD7: =FrameDryingdata!AX$13 -> 98.02083333 | DE7: =FrameDryingdata!AY$13 -> 52 | DF7: =FrameDryingdata!AZ$13 -> 166.3958317 | DG7: =FrameDryingdata!BA$13 -> 135.5416667 | DH7: =FrameDryingdata!BB$13 -> 108.375 | DI7: =FrameDryingdata!BC$13 -> 78.97916667 | DJ7: =FrameDryingdata!BD$13 -> 38.0625 | DK7: =FrameDryingdata!BE$13 -> 172.1249833 | DL7: =FrameDryingdata!BF$13 -> 140.0416667 | DM7: =FrameDryingdata!BG$13 -> 112.6458333 | DN7: =FrameDryingdata!BH$13 -> 82.5625 | DO7: =FrameDryingdata!BI$13 -> 42.08333333 | DP7: =FrameDryingdata!AP$47 -> 99.08333333 | DQ7: =FrameDryingdata!AQ$47 -> 76.625 | DR7: =FrameDryingdata!AR$47 -> 59.4375 | DS7: =FrameDryingdata!AS$47 -> 43.10416667 | DT7: =FrameDryingdata!AT$47 -> 22.66666667 | DU7: =FrameDryingdata!AU$47 -> 195.875 | DV7: =FrameDryingdata!AV$47 -> 112.5208333 | DW7: =FrameDryingdata!AW$47 -> 80.4375 | DX7: =FrameDryingdata!AX$47 -> 51.60416667 | DY7: =FrameDryingdata!AY$47 -> 24.0625 | DZ7: =FrameDryingdata!AZ$47 -> 108 | EA7: =FrameDryingdata!BA$47 -> 78.64583333 | EB7: =FrameDryingdata!BB$47 -> 60.02083333 | EC7: =FrameDryingdata!BC$47 -> 42.89583333 | ED7: =FrameDryingdata!BD$47 -> 22.58333333 | EE7: =FrameDryingdata!BE$47 -> 117.125 | EF7: =FrameDryingdata!BF$47 -> 82.64583333 | EG7: =FrameDryingdata!BG$47 -> 61.1875 | EH7: =FrameDryingdata!BH$47 -> 43.54166667 | EI7: =FrameDryingdata!BI$47 -> 22.60416667 | EJ7: =FrameDryingdata!AP$30 -> 118.4583333 | EK7: =FrameDryingdata!AQ$30 -> 91.52083333 | EL7: =FrameDryingdata!AR$30 -> 68.10416667 | EM7: =FrameDryingdata!AS$30 -> 43.375 | EN7: =FrameDryingdata!AT$30 -> 6.083333333 | EO7: =FrameDryingdata!AU$30 -> 135.8958333 | EP7: =FrameDryingdata!AV$30 -> 104.6458333 | EQ7: =FrameDryingdata!AW$30 -> 74.45833333 | ER7: =FrameDryingdata!AX$30 -> 43.72916667 | ES7: =FrameDryingdata!AY$30 -> 5.416666667 | ET7: =FrameDryingdata!AZ$30 -> 128.2083333 | EU7: =FrameDryingdata!BA$30 -> 98.5 | EV7: =FrameDryingdata!BB$30 -> 71.70833333 | EW7: =FrameDryingdata!BC$30 -> 43.58333333 | EX7: =FrameDryingdata!BD$30 -> 5.958333333 | EY7: =FrameDryingdata!BE$30 -> 126.4791667 | EZ7: =FrameDryingdata!BF$30 -> 97.91666667 | FA7: =FrameDryingdata!BG$30 -> 71.70833333 | FB7: =FrameDryingdata!BH$30 -> 44.60416667 | FC7: =FrameDryingdata!BI$30 -> 6.3125 | FD7: =FrameDryingdata!AP$64 -> 84.66666667 | FE7: =FrameDryingdata!AQ$64 -> 65.125 | FF7: =FrameDryingdata!AR$64 -> 47.45833333 | FG7: =FrameDryingdata!AS$64 -> 30.08333333 | FH7: =FrameDryingdata!AT$64 -> 5.083333333 | FI7: =FrameDryingdata!AU$64 -> 92.83333333 | FJ7: =FrameDryingdata!AV$64 -> 69.02083333 | FK7: =FrameDryingdata!AW$64 -> 49.27083333 | FL7: =FrameDryingdata!AX$64 -> 29.52083333 | FM7: =FrameDryingdata!AY$64 -> 4.5625 | FN7: =FrameDryingdata!AZ$64 -> 85.58333333 | FO7: =FrameDryingdata!BA$64 -> 65.08333333 | FP7: =FrameDryingdata!BB$64 -> 47.3125 | FQ7: =FrameDryingdata!BC$64 -> 30.10416667 | FR7: =FrameDryingdata!BD$64 -> 5.104166667 | FS7: =FrameDryingdata!BE$64 -> 85.77083333 | FT7: =FrameDryingdata!BF$64 -> 64.95833333 | FU7: =FrameDryingdata!BG$64 -> 47.16666667 | FV7: =FrameDryingdata!BH$64 -> 30.3125 | FW7: =FrameDryingdata!BI$64 -> 5.166666667
A8: Northland | B8: Open rainscreen with ventilated battens | C8: Semi-exposed | D8: 0.1989520392 | E8: 0.1734603591 | F8: 0.1903342747 | G8: 0.1626544126 | H8: 0.3059746754 | I8: 0.4698730188 | J8: 0.1993246702 | K8: 0.2971415993 | L8: 178.8445046 | M8: 160.0413472 | N8: 168.3899594 | O8: 139.2362258 | P8: 228.9646187 | Q8: 309.2795862 | R8: 189.5374668 | S8: 248.0933574 | T8: =FrameDryingdata!B$13 -> 81.2 | U8: =FrameDryingdata!C$13 -> 61.55 | V8: =FrameDryingdata!D$13 -> 42.9 | W8: =FrameDryingdata!E$13 -> 26.6 | X8: =FrameDryingdata!F$13 -> 15.15 | Y8: =FrameDryingdata!G$13 -> 126.25 | Z8: =FrameDryingdata!H$13 -> 92.3 | AA8: =FrameDryingdata!I$13 -> 64.05 | AB8: =FrameDryingdata!J$13 -> 37.75 | AC8: =FrameDryingdata!K$13 -> 20.1 | AD8: =FrameDryingdata!L$13 -> 103.15 | AE8: =FrameDryingdata!M$13 -> 74.2 | AF8: =FrameDryingdata!N$13 -> 53.4 | AG8: =FrameDryingdata!O$13 -> 32.75 | AH8: =FrameDryingdata!P$13 -> 18.35 | AI8: =FrameDryingdata!Q$13 -> 107.6 | AJ8: =FrameDryingdata!R$13 -> 77.45 | AK8: =FrameDryingdata!S$13 -> 55.4 | AL8: =FrameDryingdata!T$13 -> 33.5 | AM8: =FrameDryingdata!U$13 -> 18.45 | AN8: 49.9 | AO8: 36.4 | AP8: 27.65 | AQ8: 17.65 | AR8: 10.65 | AS8: 72 | AT8: 47.8 | AU8: 32.6 | AV8: 21 | AW8: 11.7 | AX8: 51.6 | AY8: 38 | AZ8: 27.7 | BA8: 17.85 | BB8: 10.35 | BC8: 53.65 | BD8: 38.85 | BE8: 28.2 | BF8: 18.25 | BG8: 10.6 | BH8: =FrameDryingdata!B$30 -> 70.65 | BI8: =FrameDryingdata!C$30 -> 50.15 | BJ8: =FrameDryingdata!D$30 -> 32.9 | BK8: =FrameDryingdata!E$30 -> 18.35 | BL8: =FrameDryingdata!F$30 -> 5.7 | BM8: =FrameDryingdata!G$30 -> 75.95 | BN8: =FrameDryingdata!H$30 -> 56.45 | BO8: =FrameDryingdata!I$30 -> 36.05 | BP8: =FrameDryingdata!J$30 -> 19.05 | BQ8: =FrameDryingdata!K$30 -> 4.8 | BR8: =FrameDryingdata!L$30 -> 76.9 | BS8: =FrameDryingdata!M$30 -> 54.3 | BT8: =FrameDryingdata!N$30 -> 35.4 | BU8: =FrameDryingdata!O$30 -> 19.35 | BV8: =FrameDryingdata!P$30 -> 5.5 | BW8: =FrameDryingdata!Q$30 -> 75.3 | BX8: =FrameDryingdata!R$30 -> 53.65 | BY8: =FrameDryingdata!S$30 -> 35 | BZ8: =FrameDryingdata!T$30 -> 18.95 | CA8: =FrameDryingdata!U$30 -> 5.3 | CB8: =FrameDryingdata!B$64 -> 47.3 | CC8: =FrameDryingdata!C$64 -> 33.85 | CD8: =FrameDryingdata!D$64 -> 23.2 | CE8: =FrameDryingdata!E$64 -> 12.9 | CF8: =FrameDryingdata!F$64 -> 4.45 | CG8: =FrameDryingdata!G$64 -> 52.3 | CH8: =FrameDryingdata!H$64 -> 36.5 | CI8: =FrameDryingdata!I$64 -> 25.3 | CJ8: =FrameDryingdata!J$64 -> 14.3 | CK8: =FrameDryingdata!K$64 -> 4.6 | CL8: =FrameDryingdata!L$64 -> 47.35 | CM8: =FrameDryingdata!M$64 -> 33.6 | CN8: =FrameDryingdata!N$64 -> 23.15 | CO8: =FrameDryingdata!O$64 -> 12.75 | CP8: =FrameDryingdata!P$64 -> 4.15 | CQ8: =FrameDryingdata!Q$64 -> 47.85 | CR8: =FrameDryingdata!R$64 -> 34 | CS8: =FrameDryingdata!S$64 -> 23.5 | CT8: =FrameDryingdata!T$64 -> 13.35 | CU8: =FrameDryingdata!U$64 -> 4.6 | CV8: =FrameDryingdata!AP$13 -> 147.4375 | CW8: =FrameDryingdata!AQ$13 -> 116.4583333 | CX8: =FrameDryingdata!AR$13 -> 91.45833333 | CY8: =FrameDryingdata!AS$13 -> 67.64583333 | CZ8: =FrameDryingdata!AT$13 -> 35.02083333 | DA8: =FrameDryingdata!AU$13 -> 202.0833333 | DB8: =FrameDryingdata!AV$13 -> 164.6250002 | DC8: =FrameDryingdata!AW$13 -> 133.9791667 | DD8: =FrameDryingdata!AX$13 -> 98.02083333 | DE8: =FrameDryingdata!AY$13 -> 52 | DF8: =FrameDryingdata!AZ$13 -> 166.3958317 | DG8: =FrameDryingdata!BA$13 -> 135.5416667 | DH8: =FrameDryingdata!BB$13 -> 108.375 | DI8: =FrameDryingdata!BC$13 -> 78.97916667 | DJ8: =FrameDryingdata!BD$13 -> 38.0625 | DK8: =FrameDryingdata!BE$13 -> 172.1249833 | DL8: =FrameDryingdata!BF$13 -> 140.0416667 | DM8: =FrameDryingdata!BG$13 -> 112.6458333 | DN8: =FrameDryingdata!BH$13 -> 82.5625 | DO8: =FrameDryingdata!BI$13 -> 42.08333333 | DP8: =FrameDryingdata!AP$47 -> 99.08333333 | DQ8: =FrameDryingdata!AQ$47 -> 76.625 | DR8: =FrameDryingdata!AR$47 -> 59.4375 | DS8: =FrameDryingdata!AS$47 -> 43.10416667 | DT8: =FrameDryingdata!AT$47 -> 22.66666667 | DU8: =FrameDryingdata!AU$47 -> 195.875 | DV8: =FrameDryingdata!AV$47 -> 112.5208333 | DW8: =FrameDryingdata!AW$47 -> 80.4375 | DX8: =FrameDryingdata!AX$47 -> 51.60416667 | DY8: =FrameDryingdata!AY$47 -> 24.0625 | DZ8: =FrameDryingdata!AZ$47 -> 108 | EA8: =FrameDryingdata!BA$47 -> 78.64583333 | EB8: =FrameDryingdata!BB$47 -> 60.02083333 | EC8: =FrameDryingdata!BC$47 -> 42.89583333 | ED8: =FrameDryingdata!BD$47 -> 22.58333333 | EE8: =FrameDryingdata!BE$47 -> 117.125 | EF8: =FrameDryingdata!BF$47 -> 82.64583333 | EG8: =FrameDryingdata!BG$47 -> 61.1875 | EH8: =FrameDryingdata!BH$47 -> 43.54166667 | EI8: =FrameDryingdata!BI$47 -> 22.60416667 | EJ8: =FrameDryingdata!AP$30 -> 118.4583333 | EK8: =FrameDryingdata!AQ$30 -> 91.52083333 | EL8: =FrameDryingdata!AR$30 -> 68.10416667 | EM8: =FrameDryingdata!AS$30 -> 43.375 | EN8: =FrameDryingdata!AT$30 -> 6.083333333 | EO8: =FrameDryingdata!AU$30 -> 135.8958333 | EP8: =FrameDryingdata!AV$30 -> 104.6458333 | EQ8: =FrameDryingdata!AW$30 -> 74.45833333 | ER8: =FrameDryingdata!AX$30 -> 43.72916667 | ES8: =FrameDryingdata!AY$30 -> 5.416666667 | ET8: =FrameDryingdata!AZ$30 -> 128.2083333 | EU8: =FrameDryingdata!BA$30 -> 98.5 | EV8: =FrameDryingdata!BB$30 -> 71.70833333 | EW8: =FrameDryingdata!BC$30 -> 43.58333333 | EX8: =FrameDryingdata!BD$30 -> 5.958333333 | EY8: =FrameDryingdata!BE$30 -> 126.4791667 | EZ8: =FrameDryingdata!BF$30 -> 97.91666667 | FA8: =FrameDryingdata!BG$30 -> 71.70833333 | FB8: =FrameDryingdata!BH$30 -> 44.60416667 | FC8: =FrameDryingdata!BI$30 -> 6.3125 | FD8: =FrameDryingdata!AP$64 -> 84.66666667 | FE8: =FrameDryingdata!AQ$64 -> 65.125 | FF8: =FrameDryingdata!AR$64 -> 47.45833333 | FG8: =FrameDryingdata!AS$64 -> 30.08333333 | FH8: =FrameDryingdata!AT$64 -> 5.083333333 | FI8: =FrameDryingdata!AU$64 -> 92.83333333 | FJ8: =FrameDryingdata!AV$64 -> 69.02083333 | FK8: =FrameDryingdata!AW$64 -> 49.27083333 | FL8: =FrameDryingdata!AX$64 -> 29.52083333 | FM8: =FrameDryingdata!AY$64 -> 4.5625 | FN8: =FrameDryingdata!AZ$64 -> 85.58333333 | FO8: =FrameDryingdata!BA$64 -> 65.08333333 | FP8: =FrameDryingdata!BB$64 -> 47.3125 | FQ8: =FrameDryingdata!BC$64 -> 30.10416667 | FR8: =FrameDryingdata!BD$64 -> 5.104166667 | FS8: =FrameDryingdata!BE$64 -> 85.77083333 | FT8: =FrameDryingdata!BF$64 -> 64.95833333 | FU8: =FrameDryingdata!BG$64 -> 47.16666667 | FV8: =FrameDryingdata!BH$64 -> 30.3125 | FW8: =FrameDryingdata!BI$64 -> 5.166666667
A9: Northland | B9: Open rainscreen with ventilated battens | C9: Semi-sheltered | D9: 0.1287200993 | E9: 0.1173160468 | F9: 0.1014582553 | G9: 0.1121238226 | H9: 0.2688781247 | I9: 0.4437920982 | J9: 0.1427833141 | K9: 0.2617363637 | L9: 142.0384495 | M9: 110.9503177 | N9: 93.72895512 | O9: 99.4302869 | P9: 190.8241648 | Q9: 279.374594 | R9: 128.0321109 | S9: 203.5927203 | T9: =FrameDryingdata!B$13 -> 81.2 | U9: =FrameDryingdata!C$13 -> 61.55 | V9: =FrameDryingdata!D$13 -> 42.9 | W9: =FrameDryingdata!E$13 -> 26.6 | X9: =FrameDryingdata!F$13 -> 15.15 | Y9: =FrameDryingdata!G$13 -> 126.25 | Z9: =FrameDryingdata!H$13 -> 92.3 | AA9: =FrameDryingdata!I$13 -> 64.05 | AB9: =FrameDryingdata!J$13 -> 37.75 | AC9: =FrameDryingdata!K$13 -> 20.1 | AD9: =FrameDryingdata!L$13 -> 103.15 | AE9: =FrameDryingdata!M$13 -> 74.2 | AF9: =FrameDryingdata!N$13 -> 53.4 | AG9: =FrameDryingdata!O$13 -> 32.75 | AH9: =FrameDryingdata!P$13 -> 18.35 | AI9: =FrameDryingdata!Q$13 -> 107.6 | AJ9: =FrameDryingdata!R$13 -> 77.45 | AK9: =FrameDryingdata!S$13 -> 55.4 | AL9: =FrameDryingdata!T$13 -> 33.5 | AM9: =FrameDryingdata!U$13 -> 18.45 | AN9: 49.9 | AO9: 36.4 | AP9: 27.65 | AQ9: 17.65 | AR9: 10.65 | AS9: 72 | AT9: 47.8 | AU9: 32.6 | AV9: 21 | AW9: 11.7 | AX9: 51.6 | AY9: 38 | AZ9: 27.7 | BA9: 17.85 | BB9: 10.35 | BC9: 53.65 | BD9: 38.85 | BE9: 28.2 | BF9: 18.25 | BG9: 10.6 | BH9: =FrameDryingdata!B$30 -> 70.65 | BI9: =FrameDryingdata!C$30 -> 50.15 | BJ9: =FrameDryingdata!D$30 -> 32.9 | BK9: =FrameDryingdata!E$30 -> 18.35 | BL9: =FrameDryingdata!F$30 -> 5.7 | BM9: =FrameDryingdata!G$30 -> 75.95 | BN9: =FrameDryingdata!H$30 -> 56.45 | BO9: =FrameDryingdata!I$30 -> 36.05 | BP9: =FrameDryingdata!J$30 -> 19.05 | BQ9: =FrameDryingdata!K$30 -> 4.8 | BR9: =FrameDryingdata!L$30 -> 76.9 | BS9: =FrameDryingdata!M$30 -> 54.3 | BT9: =FrameDryingdata!N$30 -> 35.4 | BU9: =FrameDryingdata!O$30 -> 19.35 | BV9: =FrameDryingdata!P$30 -> 5.5 | BW9: =FrameDryingdata!Q$30 -> 75.3 | BX9: =FrameDryingdata!R$30 -> 53.65 | BY9: =FrameDryingdata!S$30 -> 35 | BZ9: =FrameDryingdata!T$30 -> 18.95 | CA9: =FrameDryingdata!U$30 -> 5.3 | CB9: =FrameDryingdata!B$64 -> 47.3 | CC9: =FrameDryingdata!C$64 -> 33.85 | CD9: =FrameDryingdata!D$64 -> 23.2 | CE9: =FrameDryingdata!E$64 -> 12.9 | CF9: =FrameDryingdata!F$64 -> 4.45 | CG9: =FrameDryingdata!G$64 -> 52.3 | CH9: =FrameDryingdata!H$64 -> 36.5 | CI9: =FrameDryingdata!I$64 -> 25.3 | CJ9: =FrameDryingdata!J$64 -> 14.3 | CK9: =FrameDryingdata!K$64 -> 4.6 | CL9: =FrameDryingdata!L$64 -> 47.35 | CM9: =FrameDryingdata!M$64 -> 33.6 | CN9: =FrameDryingdata!N$64 -> 23.15 | CO9: =FrameDryingdata!O$64 -> 12.75 | CP9: =FrameDryingdata!P$64 -> 4.15 | CQ9: =FrameDryingdata!Q$64 -> 47.85 | CR9: =FrameDryingdata!R$64 -> 34 | CS9: =FrameDryingdata!S$64 -> 23.5 | CT9: =FrameDryingdata!T$64 -> 13.35 | CU9: =FrameDryingdata!U$64 -> 4.6 | CV9: =FrameDryingdata!AP$13 -> 147.4375 | CW9: =FrameDryingdata!AQ$13 -> 116.4583333 | CX9: =FrameDryingdata!AR$13 -> 91.45833333 | CY9: =FrameDryingdata!AS$13 -> 67.64583333 | CZ9: =FrameDryingdata!AT$13 -> 35.02083333 | DA9: =FrameDryingdata!AU$13 -> 202.0833333 | DB9: =FrameDryingdata!AV$13 -> 164.6250002 | DC9: =FrameDryingdata!AW$13 -> 133.9791667 | DD9: =FrameDryingdata!AX$13 -> 98.02083333 | DE9: =FrameDryingdata!AY$13 -> 52 | DF9: =FrameDryingdata!AZ$13 -> 166.3958317 | DG9: =FrameDryingdata!BA$13 -> 135.5416667 | DH9: =FrameDryingdata!BB$13 -> 108.375 | DI9: =FrameDryingdata!BC$13 -> 78.97916667 | DJ9: =FrameDryingdata!BD$13 -> 38.0625 | DK9: =FrameDryingdata!BE$13 -> 172.1249833 | DL9: =FrameDryingdata!BF$13 -> 140.0416667 | DM9: =FrameDryingdata!BG$13 -> 112.6458333 | DN9: =FrameDryingdata!BH$13 -> 82.5625 | DO9: =FrameDryingdata!BI$13 -> 42.08333333 | DP9: =FrameDryingdata!AP$47 -> 99.08333333 | DQ9: =FrameDryingdata!AQ$47 -> 76.625 | DR9: =FrameDryingdata!AR$47 -> 59.4375 | DS9: =FrameDryingdata!AS$47 -> 43.10416667 | DT9: =FrameDryingdata!AT$47 -> 22.66666667 | DU9: =FrameDryingdata!AU$47 -> 195.875 | DV9: =FrameDryingdata!AV$47 -> 112.5208333 | DW9: =FrameDryingdata!AW$47 -> 80.4375 | DX9: =FrameDryingdata!AX$47 -> 51.60416667 | DY9: =FrameDryingdata!AY$47 -> 24.0625 | DZ9: =FrameDryingdata!AZ$47 -> 108 | EA9: =FrameDryingdata!BA$47 -> 78.64583333 | EB9: =FrameDryingdata!BB$47 -> 60.02083333 | EC9: =FrameDryingdata!BC$47 -> 42.89583333 | ED9: =FrameDryingdata!BD$47 -> 22.58333333 | EE9: =FrameDryingdata!BE$47 -> 117.125 | EF9: =FrameDryingdata!BF$47 -> 82.64583333 | EG9: =FrameDryingdata!BG$47 -> 61.1875 | EH9: =FrameDryingdata!BH$47 -> 43.54166667 | EI9: =FrameDryingdata!BI$47 -> 22.60416667 | EJ9: =FrameDryingdata!AP$30 -> 118.4583333 | EK9: =FrameDryingdata!AQ$30 -> 91.52083333 | EL9: =FrameDryingdata!AR$30 -> 68.10416667 | EM9: =FrameDryingdata!AS$30 -> 43.375 | EN9: =FrameDryingdata!AT$30 -> 6.083333333 | EO9: =FrameDryingdata!AU$30 -> 135.8958333 | EP9: =FrameDryingdata!AV$30 -> 104.6458333 | EQ9: =FrameDryingdata!AW$30 -> 74.45833333 | ER9: =FrameDryingdata!AX$30 -> 43.72916667 | ES9: =FrameDryingdata!AY$30 -> 5.416666667 | ET9: =FrameDryingdata!AZ$30 -> 128.2083333 | EU9: =FrameDryingdata!BA$30 -> 98.5 | EV9: =FrameDryingdata!BB$30 -> 71.70833333 | EW9: =FrameDryingdata!BC$30 -> 43.58333333 | EX9: =FrameDryingdata!BD$30 -> 5.958333333 | EY9: =FrameDryingdata!BE$30 -> 126.4791667 | EZ9: =FrameDryingdata!BF$30 -> 97.91666667 | FA9: =FrameDryingdata!BG$30 -> 71.70833333 | FB9: =FrameDryingdata!BH$30 -> 44.60416667 | FC9: =FrameDryingdata!BI$30 -> 6.3125 | FD9: =FrameDryingdata!AP$64 -> 84.66666667 | FE9: =FrameDryingdata!AQ$64 -> 65.125 | FF9: =FrameDryingdata!AR$64 -> 47.45833333 | FG9: =FrameDryingdata!AS$64 -> 30.08333333 | FH9: =FrameDryingdata!AT$64 -> 5.083333333 | FI9: =FrameDryingdata!AU$64 -> 92.83333333 | FJ9: =FrameDryingdata!AV$64 -> 69.02083333 | FK9: =FrameDryingdata!AW$64 -> 49.27083333 | FL9: =FrameDryingdata!AX$64 -> 29.52083333 | FM9: =FrameDryingdata!AY$64 -> 4.5625 | FN9: =FrameDryingdata!AZ$64 -> 85.58333333 | FO9: =FrameDryingdata!BA$64 -> 65.08333333 | FP9: =FrameDryingdata!BB$64 -> 47.3125 | FQ9: =FrameDryingdata!BC$64 -> 30.10416667 | FR9: =FrameDryingdata!BD$64 -> 5.104166667 | FS9: =FrameDryingdata!BE$64 -> 85.77083333 | FT9: =FrameDryingdata!BF$64 -> 64.95833333 | FU9: =FrameDryingdata!BG$64 -> 47.16666667 | FV9: =FrameDryingdata!BH$64 -> 30.3125 | FW9: =FrameDryingdata!BI$64 -> 5.166666667
A10: Northland | B10: Open rainscreen with ventilated battens | C10: Sheltered | D10: 0.07563911324 | E10: 0.05528880287 | F10: 0.04389304184 | G10: 0.05572623062 | H10: 0.250006064 | I10: 0.4147302563 | J10: 0.1052660923 | K10: 0.2138960481 | L10: 109.8794611 | M10: 59.04101609 | N10: 38.67727534 | O10: 56.76004301 | P10: 172.8558308 | Q10: 238.8801855 | R10: 88.02334439 | S10: 151.6819445 | T10: =FrameDryingdata!B$13 -> 81.2 | U10: =FrameDryingdata!C$13 -> 61.55 | V10: =FrameDryingdata!D$13 -> 42.9 | W10: =FrameDryingdata!E$13 -> 26.6 | X10: =FrameDryingdata!F$13 -> 15.15 | Y10: =FrameDryingdata!G$13 -> 126.25 | Z10: =FrameDryingdata!H$13 -> 92.3 | AA10: =FrameDryingdata!I$13 -> 64.05 | AB10: =FrameDryingdata!J$13 -> 37.75 | AC10: =FrameDryingdata!K$13 -> 20.1 | AD10: =FrameDryingdata!L$13 -> 103.15 | AE10: =FrameDryingdata!M$13 -> 74.2 | AF10: =FrameDryingdata!N$13 -> 53.4 | AG10: =FrameDryingdata!O$13 -> 32.75 | AH10: =FrameDryingdata!P$13 -> 18.35 | AI10: =FrameDryingdata!Q$13 -> 107.6 | AJ10: =FrameDryingdata!R$13 -> 77.45 | AK10: =FrameDryingdata!S$13 -> 55.4 | AL10: =FrameDryingdata!T$13 -> 33.5 | AM10: =FrameDryingdata!U$13 -> 18.45 | AN10: 49.9 | AO10: 36.4 | AP10: 27.65 | AQ10: 17.65 | AR10: 10.65 | AS10: 72 | AT10: 47.8 | AU10: 32.6 | AV10: 21 | AW10: 11.7 | AX10: 51.6 | AY10: 38 | AZ10: 27.7 | BA10: 17.85 | BB10: 10.35 | BC10: 53.65 | BD10: 38.85 | BE10: 28.2 | BF10: 18.25 | BG10: 10.6 | BH10: =FrameDryingdata!B$30 -> 70.65 | BI10: =FrameDryingdata!C$30 -> 50.15 | BJ10: =FrameDryingdata!D$30 -> 32.9 | BK10: =FrameDryingdata!E$30 -> 18.35 | BL10: =FrameDryingdata!F$30 -> 5.7 | BM10: =FrameDryingdata!G$30 -> 75.95 | BN10: =FrameDryingdata!H$30 -> 56.45 | BO10: =FrameDryingdata!I$30 -> 36.05 | BP10: =FrameDryingdata!J$30 -> 19.05 | BQ10: =FrameDryingdata!K$30 -> 4.8 | BR10: =FrameDryingdata!L$30 -> 76.9 | BS10: =FrameDryingdata!M$30 -> 54.3 | BT10: =FrameDryingdata!N$30 -> 35.4 | BU10: =FrameDryingdata!O$30 -> 19.35 | BV10: =FrameDryingdata!P$30 -> 5.5 | BW10: =FrameDryingdata!Q$30 -> 75.3 | BX10: =FrameDryingdata!R$30 -> 53.65 | BY10: =FrameDryingdata!S$30 -> 35 | BZ10: =FrameDryingdata!T$30 -> 18.95 | CA10: =FrameDryingdata!U$30 -> 5.3 | CB10: =FrameDryingdata!B$64 -> 47.3 | CC10: =FrameDryingdata!C$64 -> 33.85 | CD10: =FrameDryingdata!D$64 -> 23.2 | CE10: =FrameDryingdata!E$64 -> 12.9 | CF10: =FrameDryingdata!F$64 -> 4.45 | CG10: =FrameDryingdata!G$64 -> 52.3 | CH10: =FrameDryingdata!H$64 -> 36.5 | CI10: =FrameDryingdata!I$64 -> 25.3 | CJ10: =FrameDryingdata!J$64 -> 14.3 | CK10: =FrameDryingdata!K$64 -> 4.6 | CL10: =FrameDryingdata!L$64 -> 47.35 | CM10: =FrameDryingdata!M$64 -> 33.6 | CN10: =FrameDryingdata!N$64 -> 23.15 | CO10: =FrameDryingdata!O$64 -> 12.75 | CP10: =FrameDryingdata!P$64 -> 4.15 | CQ10: =FrameDryingdata!Q$64 -> 47.85 | CR10: =FrameDryingdata!R$64 -> 34 | CS10: =FrameDryingdata!S$64 -> 23.5 | CT10: =FrameDryingdata!T$64 -> 13.35 | CU10: =FrameDryingdata!U$64 -> 4.6 | CV10: =FrameDryingdata!AP$13 -> 147.4375 | CW10: =FrameDryingdata!AQ$13 -> 116.4583333 | CX10: =FrameDryingdata!AR$13 -> 91.45833333 | CY10: =FrameDryingdata!AS$13 -> 67.64583333 | CZ10: =FrameDryingdata!AT$13 -> 35.02083333 | DA10: =FrameDryingdata!AU$13 -> 202.0833333 | DB10: =FrameDryingdata!AV$13 -> 164.6250002 | DC10: =FrameDryingdata!AW$13 -> 133.9791667 | DD10: =FrameDryingdata!AX$13 -> 98.02083333 | DE10: =FrameDryingdata!AY$13 -> 52 | DF10: =FrameDryingdata!AZ$13 -> 166.3958317 | DG10: =FrameDryingdata!BA$13 -> 135.5416667 | DH10: =FrameDryingdata!BB$13 -> 108.375 | DI10: =FrameDryingdata!BC$13 -> 78.97916667 | DJ10: =FrameDryingdata!BD$13 -> 38.0625 | DK10: =FrameDryingdata!BE$13 -> 172.1249833 | DL10: =FrameDryingdata!BF$13 -> 140.0416667 | DM10: =FrameDryingdata!BG$13 -> 112.6458333 | DN10: =FrameDryingdata!BH$13 -> 82.5625 | DO10: =FrameDryingdata!BI$13 -> 42.08333333 | DP10: =FrameDryingdata!AP$47 -> 99.08333333 | DQ10: =FrameDryingdata!AQ$47 -> 76.625 | DR10: =FrameDryingdata!AR$47 -> 59.4375 | DS10: =FrameDryingdata!AS$47 -> 43.10416667 | DT10: =FrameDryingdata!AT$47 -> 22.66666667 | DU10: =FrameDryingdata!AU$47 -> 195.875 | DV10: =FrameDryingdata!AV$47 -> 112.5208333 | DW10: =FrameDryingdata!AW$47 -> 80.4375 | DX10: =FrameDryingdata!AX$47 -> 51.60416667 | DY10: =FrameDryingdata!AY$47 -> 24.0625 | DZ10: =FrameDryingdata!AZ$47 -> 108 | EA10: =FrameDryingdata!BA$47 -> 78.64583333 | EB10: =FrameDryingdata!BB$47 -> 60.02083333 | EC10: =FrameDryingdata!BC$47 -> 42.89583333 | ED10: =FrameDryingdata!BD$47 -> 22.58333333 | EE10: =FrameDryingdata!BE$47 -> 117.125 | EF10: =FrameDryingdata!BF$47 -> 82.64583333 | EG10: =FrameDryingdata!BG$47 -> 61.1875 | EH10: =FrameDryingdata!BH$47 -> 43.54166667 | EI10: =FrameDryingdata!BI$47 -> 22.60416667 | EJ10: =FrameDryingdata!AP$30 -> 118.4583333 | EK10: =FrameDryingdata!AQ$30 -> 91.52083333 | EL10: =FrameDryingdata!AR$30 -> 68.10416667 | EM10: =FrameDryingdata!AS$30 -> 43.375 | EN10: =FrameDryingdata!AT$30 -> 6.083333333 | EO10: =FrameDryingdata!AU$30 -> 135.8958333 | EP10: =FrameDryingdata!AV$30 -> 104.6458333 | EQ10: =FrameDryingdata!AW$30 -> 74.45833333 | ER10: =FrameDryingdata!AX$30 -> 43.72916667 | ES10: =FrameDryingdata!AY$30 -> 5.416666667 | ET10: =FrameDryingdata!AZ$30 -> 128.2083333 | EU10: =FrameDryingdata!BA$30 -> 98.5 | EV10: =FrameDryingdata!BB$30 -> 71.70833333 | EW10: =FrameDryingdata!BC$30 -> 43.58333333 | EX10: =FrameDryingdata!BD$30 -> 5.958333333 | EY10: =FrameDryingdata!BE$30 -> 126.4791667 | EZ10: =FrameDryingdata!BF$30 -> 97.91666667 | FA10: =FrameDryingdata!BG$30 -> 71.70833333 | FB10: =FrameDryingdata!BH$30 -> 44.60416667 | FC10: =FrameDryingdata!BI$30 -> 6.3125 | FD10: =FrameDryingdata!AP$64 -> 84.66666667 | FE10: =FrameDryingdata!AQ$64 -> 65.125 | FF10: =FrameDryingdata!AR$64 -> 47.45833333 | FG10: =FrameDryingdata!AS$64 -> 30.08333333 | FH10: =FrameDryingdata!AT$64 -> 5.083333333 | FI10: =FrameDryingdata!AU$64 -> 92.83333333 | FJ10: =FrameDryingdata!AV$64 -> 69.02083333 | FK10: =FrameDryingdata!AW$64 -> 49.27083333 | FL10: =FrameDryingdata!AX$64 -> 29.52083333 | FM10: =FrameDryingdata!AY$64 -> 4.5625 | FN10: =FrameDryingdata!AZ$64 -> 85.58333333 | FO10: =FrameDryingdata!BA$64 -> 65.08333333 | FP10: =FrameDryingdata!BB$64 -> 47.3125 | FQ10: =FrameDryingdata!BC$64 -> 30.10416667 | FR10: =FrameDryingdata!BD$64 -> 5.104166667 | FS10: =FrameDryingdata!BE$64 -> 85.77083333 | FT10: =FrameDryingdata!BF$64 -> 64.95833333 | FU10: =FrameDryingdata!BG$64 -> 47.16666667 | FV10: =FrameDryingdata!BH$64 -> 30.3125 | FW10: =FrameDryingdata!BI$64 -> 5.166666667
A11: Northland | B11: Open rainscreen with ventilated battens and solid corner battens | C11: Exposed | D11: 0.1916889525 | E11: 0.1735340873 | F11: 0.1862570355 | G11: 0.1562963968 | H11: 0.3210836964 | I11: 0.4705208096 | J11: 0.2035203013 | K11: 0.2790181566 | L11: 171.8144921 | M11: 163.4478385 | N11: 167.7371327 | O11: 140.7308262 | P11: 246.4438026 | Q11: 309.1675422 | R11: 211.807028 | S11: 229.0380836 | T11: =FrameDryingdata!B$13 -> 81.2 | U11: =FrameDryingdata!C$13 -> 61.55 | V11: =FrameDryingdata!D$13 -> 42.9 | W11: =FrameDryingdata!E$13 -> 26.6 | X11: =FrameDryingdata!F$13 -> 15.15 | Y11: =FrameDryingdata!G$13 -> 126.25 | Z11: =FrameDryingdata!H$13 -> 92.3 | AA11: =FrameDryingdata!I$13 -> 64.05 | AB11: =FrameDryingdata!J$13 -> 37.75 | AC11: =FrameDryingdata!K$13 -> 20.1 | AD11: =FrameDryingdata!L$13 -> 103.15 | AE11: =FrameDryingdata!M$13 -> 74.2 | AF11: =FrameDryingdata!N$13 -> 53.4 | AG11: =FrameDryingdata!O$13 -> 32.75 | AH11: =FrameDryingdata!P$13 -> 18.35 | AI11: =FrameDryingdata!Q$13 -> 107.6 | AJ11: =FrameDryingdata!R$13 -> 77.45 | AK11: =FrameDryingdata!S$13 -> 55.4 | AL11: =FrameDryingdata!T$13 -> 33.5 | AM11: =FrameDryingdata!U$13 -> 18.45 | AN11: 49.9 | AO11: 36.4 | AP11: 27.65 | AQ11: 17.65 | AR11: 10.65 | AS11: 72 | AT11: 47.8 | AU11: 32.6 | AV11: 21 | AW11: 11.7 | AX11: 51.6 | AY11: 38 | AZ11: 27.7 | BA11: 17.85 | BB11: 10.35 | BC11: 53.65 | BD11: 38.85 | BE11: 28.2 | BF11: 18.25 | BG11: 10.6 | BH11: =FrameDryingdata!B$30 -> 70.65 | BI11: =FrameDryingdata!C$30 -> 50.15 | BJ11: =FrameDryingdata!D$30 -> 32.9 | BK11: =FrameDryingdata!E$30 -> 18.35 | BL11: =FrameDryingdata!F$30 -> 5.7 | BM11: =FrameDryingdata!G$30 -> 75.95 | BN11: =FrameDryingdata!H$30 -> 56.45 | BO11: =FrameDryingdata!I$30 -> 36.05 | BP11: =FrameDryingdata!J$30 -> 19.05 | BQ11: =FrameDryingdata!K$30 -> 4.8 | BR11: =FrameDryingdata!L$30 -> 76.9 | BS11: =FrameDryingdata!M$30 -> 54.3 | BT11: =FrameDryingdata!N$30 -> 35.4 | BU11: =FrameDryingdata!O$30 -> 19.35 | BV11: =FrameDryingdata!P$30 -> 5.5 | BW11: =FrameDryingdata!Q$30 -> 75.3 | BX11: =FrameDryingdata!R$30 -> 53.65 | BY11: =FrameDryingdata!S$30 -> 35 | BZ11: =FrameDryingdata!T$30 -> 18.95 | CA11: =FrameDryingdata!U$30 -> 5.3 | CB11: =FrameDryingdata!B$64 -> 47.3 | CC11: =FrameDryingdata!C$64 -> 33.85 | CD11: =FrameDryingdata!D$64 -> 23.2 | CE11: =FrameDryingdata!E$64 -> 12.9 | CF11: =FrameDryingdata!F$64 -> 4.45 | CG11: =FrameDryingdata!G$64 -> 52.3 | CH11: =FrameDryingdata!H$64 -> 36.5 | CI11: =FrameDryingdata!I$64 -> 25.3 | CJ11: =FrameDryingdata!J$64 -> 14.3 | CK11: =FrameDryingdata!K$64 -> 4.6 | CL11: =FrameDryingdata!L$64 -> 47.35 | CM11: =FrameDryingdata!M$64 -> 33.6 | CN11: =FrameDryingdata!N$64 -> 23.15 | CO11: =FrameDryingdata!O$64 -> 12.75 | CP11: =FrameDryingdata!P$64 -> 4.15 | CQ11: =FrameDryingdata!Q$64 -> 47.85 | CR11: =FrameDryingdata!R$64 -> 34 | CS11: =FrameDryingdata!S$64 -> 23.5 | CT11: =FrameDryingdata!T$64 -> 13.35 | CU11: =FrameDryingdata!U$64 -> 4.6 | CV11: =FrameDryingdata!AP$13 -> 147.4375 | CW11: =FrameDryingdata!AQ$13 -> 116.4583333 | CX11: =FrameDryingdata!AR$13 -> 91.45833333 | CY11: =FrameDryingdata!AS$13 -> 67.64583333 | CZ11: =FrameDryingdata!AT$13 -> 35.02083333 | DA11: =FrameDryingdata!AU$13 -> 202.0833333 | DB11: =FrameDryingdata!AV$13 -> 164.6250002 | DC11: =FrameDryingdata!AW$13 -> 133.9791667 | DD11: =FrameDryingdata!AX$13 -> 98.02083333 | DE11: =FrameDryingdata!AY$13 -> 52 | DF11: =FrameDryingdata!AZ$13 -> 166.3958317 | DG11: =FrameDryingdata!BA$13 -> 135.5416667 | DH11: =FrameDryingdata!BB$13 -> 108.375 | DI11: =FrameDryingdata!BC$13 -> 78.97916667 | DJ11: =FrameDryingdata!BD$13 -> 38.0625 | DK11: =FrameDryingdata!BE$13 -> 172.1249833 | DL11: =FrameDryingdata!BF$13 -> 140.0416667 | DM11: =FrameDryingdata!BG$13 -> 112.6458333 | DN11: =FrameDryingdata!BH$13 -> 82.5625 | DO11: =FrameDryingdata!BI$13 -> 42.08333333 | DP11: =FrameDryingdata!AP$47 -> 99.08333333 | DQ11: =FrameDryingdata!AQ$47 -> 76.625 | DR11: =FrameDryingdata!AR$47 -> 59.4375 | DS11: =FrameDryingdata!AS$47 -> 43.10416667 | DT11: =FrameDryingdata!AT$47 -> 22.66666667 | DU11: =FrameDryingdata!AU$47 -> 195.875 | DV11: =FrameDryingdata!AV$47 -> 112.5208333 | DW11: =FrameDryingdata!AW$47 -> 80.4375 | DX11: =FrameDryingdata!AX$47 -> 51.60416667 | DY11: =FrameDryingdata!AY$47 -> 24.0625 | DZ11: =FrameDryingdata!AZ$47 -> 108 | EA11: =FrameDryingdata!BA$47 -> 78.64583333 | EB11: =FrameDryingdata!BB$47 -> 60.02083333 | EC11: =FrameDryingdata!BC$47 -> 42.89583333 | ED11: =FrameDryingdata!BD$47 -> 22.58333333 | EE11: =FrameDryingdata!BE$47 -> 117.125 | EF11: =FrameDryingdata!BF$47 -> 82.64583333 | EG11: =FrameDryingdata!BG$47 -> 61.1875 | EH11: =FrameDryingdata!BH$47 -> 43.54166667 | EI11: =FrameDryingdata!BI$47 -> 22.60416667 | EJ11: =FrameDryingdata!AP$30 -> 118.4583333 | EK11: =FrameDryingdata!AQ$30 -> 91.52083333 | EL11: =FrameDryingdata!AR$30 -> 68.10416667 | EM11: =FrameDryingdata!AS$30 -> 43.375 | EN11: =FrameDryingdata!AT$30 -> 6.083333333 | EO11: =FrameDryingdata!AU$30 -> 135.8958333 | EP11: =FrameDryingdata!AV$30 -> 104.6458333 | EQ11: =FrameDryingdata!AW$30 -> 74.45833333 | ER11: =FrameDryingdata!AX$30 -> 43.72916667 | ES11: =FrameDryingdata!AY$30 -> 5.416666667 | ET11: =FrameDryingdata!AZ$30 -> 128.2083333 | EU11: =FrameDryingdata!BA$30 -> 98.5 | EV11: =FrameDryingdata!BB$30 -> 71.70833333 | EW11: =FrameDryingdata!BC$30 -> 43.58333333 | EX11: =FrameDryingdata!BD$30 -> 5.958333333 | EY11: =FrameDryingdata!BE$30 -> 126.4791667 | EZ11: =FrameDryingdata!BF$30 -> 97.91666667 | FA11: =FrameDryingdata!BG$30 -> 71.70833333 | FB11: =FrameDryingdata!BH$30 -> 44.60416667 | FC11: =FrameDryingdata!BI$30 -> 6.3125 | FD11: =FrameDryingdata!AP$64 -> 84.66666667 | FE11: =FrameDryingdata!AQ$64 -> 65.125 | FF11: =FrameDryingdata!AR$64 -> 47.45833333 | FG11: =FrameDryingdata!AS$64 -> 30.08333333 | FH11: =FrameDryingdata!AT$64 -> 5.083333333 | FI11: =FrameDryingdata!AU$64 -> 92.83333333 | FJ11: =FrameDryingdata!AV$64 -> 69.02083333 | FK11: =FrameDryingdata!AW$64 -> 49.27083333 | FL11: =FrameDryingdata!AX$64 -> 29.52083333 | FM11: =FrameDryingdata!AY$64 -> 4.5625 | FN11: =FrameDryingdata!AZ$64 -> 85.58333333 | FO11: =FrameDryingdata!BA$64 -> 65.08333333 | FP11: =FrameDryingdata!BB$64 -> 47.3125 | FQ11: =FrameDryingdata!BC$64 -> 30.10416667 | FR11: =FrameDryingdata!BD$64 -> 5.104166667 | FS11: =FrameDryingdata!BE$64 -> 85.77083333 | FT11: =FrameDryingdata!BF$64 -> 64.95833333 | FU11: =FrameDryingdata!BG$64 -> 47.16666667 | FV11: =FrameDryingdata!BH$64 -> 30.3125 | FW11: =FrameDryingdata!BI$64 -> 5.166666667
A12: Northland | B12: Open rainscreen with ventilated battens and solid corner battens | C12: Semi-exposed | D12: 0.1569717468 | E12: 0.1265742785 | F12: 0.1517100909 | G12: 0.1211812427 | H12: 0.3025440967 | I12: 0.4488254805 | J12: 0.1789134299 | K12: 0.2502173643 | L12: 149.3946611 | M12: 123.1517292 | N12: 141.6413294 | O12: 114.5396533 | P12: 226.1018757 | Q12: 280.6504986 | R12: 185.4764513 | S12: 196.8723188 | T12: =FrameDryingdata!B$13 -> 81.2 | U12: =FrameDryingdata!C$13 -> 61.55 | V12: =FrameDryingdata!D$13 -> 42.9 | W12: =FrameDryingdata!E$13 -> 26.6 | X12: =FrameDryingdata!F$13 -> 15.15 | Y12: =FrameDryingdata!G$13 -> 126.25 | Z12: =FrameDryingdata!H$13 -> 92.3 | AA12: =FrameDryingdata!I$13 -> 64.05 | AB12: =FrameDryingdata!J$13 -> 37.75 | AC12: =FrameDryingdata!K$13 -> 20.1 | AD12: =FrameDryingdata!L$13 -> 103.15 | AE12: =FrameDryingdata!M$13 -> 74.2 | AF12: =FrameDryingdata!N$13 -> 53.4 | AG12: =FrameDryingdata!O$13 -> 32.75 | AH12: =FrameDryingdata!P$13 -> 18.35 | AI12: =FrameDryingdata!Q$13 -> 107.6 | AJ12: =FrameDryingdata!R$13 -> 77.45 | AK12: =FrameDryingdata!S$13 -> 55.4 | AL12: =FrameDryingdata!T$13 -> 33.5 | AM12: =FrameDryingdata!U$13 -> 18.45 | AN12: 49.9 | AO12: 36.4 | AP12: 27.65 | AQ12: 17.65 | AR12: 10.65 | AS12: 72 | AT12: 47.8 | AU12: 32.6 | AV12: 21 | AW12: 11.7 | AX12: 51.6 | AY12: 38 | AZ12: 27.7 | BA12: 17.85 | BB12: 10.35 | BC12: 53.65 | BD12: 38.85 | BE12: 28.2 | BF12: 18.25 | BG12: 10.6 | BH12: =FrameDryingdata!B$30 -> 70.65 | BI12: =FrameDryingdata!C$30 -> 50.15 | BJ12: =FrameDryingdata!D$30 -> 32.9 | BK12: =FrameDryingdata!E$30 -> 18.35 | BL12: =FrameDryingdata!F$30 -> 5.7 | BM12: =FrameDryingdata!G$30 -> 75.95 | BN12: =FrameDryingdata!H$30 -> 56.45 | BO12: =FrameDryingdata!I$30 -> 36.05 | BP12: =FrameDryingdata!J$30 -> 19.05 | BQ12: =FrameDryingdata!K$30 -> 4.8 | BR12: =FrameDryingdata!L$30 -> 76.9 | BS12: =FrameDryingdata!M$30 -> 54.3 | BT12: =FrameDryingdata!N$30 -> 35.4 | BU12: =FrameDryingdata!O$30 -> 19.35 | BV12: =FrameDryingdata!P$30 -> 5.5 | BW12: =FrameDryingdata!Q$30 -> 75.3 | BX12: =FrameDryingdata!R$30 -> 53.65 | BY12: =FrameDryingdata!S$30 -> 35 | BZ12: =FrameDryingdata!T$30 -> 18.95 | CA12: =FrameDryingdata!U$30 -> 5.3 | CB12: =FrameDryingdata!B$64 -> 47.3 | CC12: =FrameDryingdata!C$64 -> 33.85 | CD12: =FrameDryingdata!D$64 -> 23.2 | CE12: =FrameDryingdata!E$64 -> 12.9 | CF12: =FrameDryingdata!F$64 -> 4.45 | CG12: =FrameDryingdata!G$64 -> 52.3 | CH12: =FrameDryingdata!H$64 -> 36.5 | CI12: =FrameDryingdata!I$64 -> 25.3 | CJ12: =FrameDryingdata!J$64 -> 14.3 | CK12: =FrameDryingdata!K$64 -> 4.6 | CL12: =FrameDryingdata!L$64 -> 47.35 | CM12: =FrameDryingdata!M$64 -> 33.6 | CN12: =FrameDryingdata!N$64 -> 23.15 | CO12: =FrameDryingdata!O$64 -> 12.75 | CP12: =FrameDryingdata!P$64 -> 4.15 | CQ12: =FrameDryingdata!Q$64 -> 47.85 | CR12: =FrameDryingdata!R$64 -> 34 | CS12: =FrameDryingdata!S$64 -> 23.5 | CT12: =FrameDryingdata!T$64 -> 13.35 | CU12: =FrameDryingdata!U$64 -> 4.6 | CV12: =FrameDryingdata!AP$13 -> 147.4375 | CW12: =FrameDryingdata!AQ$13 -> 116.4583333 | CX12: =FrameDryingdata!AR$13 -> 91.45833333 | CY12: =FrameDryingdata!AS$13 -> 67.64583333 | CZ12: =FrameDryingdata!AT$13 -> 35.02083333 | DA12: =FrameDryingdata!AU$13 -> 202.0833333 | DB12: =FrameDryingdata!AV$13 -> 164.6250002 | DC12: =FrameDryingdata!AW$13 -> 133.9791667 | DD12: =FrameDryingdata!AX$13 -> 98.02083333 | DE12: =FrameDryingdata!AY$13 -> 52 | DF12: =FrameDryingdata!AZ$13 -> 166.3958317 | DG12: =FrameDryingdata!BA$13 -> 135.5416667 | DH12: =FrameDryingdata!BB$13 -> 108.375 | DI12: =FrameDryingdata!BC$13 -> 78.97916667 | DJ12: =FrameDryingdata!BD$13 -> 38.0625 | DK12: =FrameDryingdata!BE$13 -> 172.1249833 | DL12: =FrameDryingdata!BF$13 -> 140.0416667 | DM12: =FrameDryingdata!BG$13 -> 112.6458333 | DN12: =FrameDryingdata!BH$13 -> 82.5625 | DO12: =FrameDryingdata!BI$13 -> 42.08333333 | DP12: =FrameDryingdata!AP$47 -> 99.08333333 | DQ12: =FrameDryingdata!AQ$47 -> 76.625 | DR12: =FrameDryingdata!AR$47 -> 59.4375 | DS12: =FrameDryingdata!AS$47 -> 43.10416667 | DT12: =FrameDryingdata!AT$47 -> 22.66666667 | DU12: =FrameDryingdata!AU$47 -> 195.875 | DV12: =FrameDryingdata!AV$47 -> 112.5208333 | DW12: =FrameDryingdata!AW$47 -> 80.4375 | DX12: =FrameDryingdata!AX$47 -> 51.60416667 | DY12: =FrameDryingdata!AY$47 -> 24.0625 | DZ12: =FrameDryingdata!AZ$47 -> 108 | EA12: =FrameDryingdata!BA$47 -> 78.64583333 | EB12: =FrameDryingdata!BB$47 -> 60.02083333 | EC12: =FrameDryingdata!BC$47 -> 42.89583333 | ED12: =FrameDryingdata!BD$47 -> 22.58333333 | EE12: =FrameDryingdata!BE$47 -> 117.125 | EF12: =FrameDryingdata!BF$47 -> 82.64583333 | EG12: =FrameDryingdata!BG$47 -> 61.1875 | EH12: =FrameDryingdata!BH$47 -> 43.54166667 | EI12: =FrameDryingdata!BI$47 -> 22.60416667 | EJ12: =FrameDryingdata!AP$30 -> 118.4583333 | EK12: =FrameDryingdata!AQ$30 -> 91.52083333 | EL12: =FrameDryingdata!AR$30 -> 68.10416667 | EM12: =FrameDryingdata!AS$30 -> 43.375 | EN12: =FrameDryingdata!AT$30 -> 6.083333333 | EO12: =FrameDryingdata!AU$30 -> 135.8958333 | EP12: =FrameDryingdata!AV$30 -> 104.6458333 | EQ12: =FrameDryingdata!AW$30 -> 74.45833333 | ER12: =FrameDryingdata!AX$30 -> 43.72916667 | ES12: =FrameDryingdata!AY$30 -> 5.416666667 | ET12: =FrameDryingdata!AZ$30 -> 128.2083333 | EU12: =FrameDryingdata!BA$30 -> 98.5 | EV12: =FrameDryingdata!BB$30 -> 71.70833333 | EW12: =FrameDryingdata!BC$30 -> 43.58333333 | EX12: =FrameDryingdata!BD$30 -> 5.958333333 | EY12: =FrameDryingdata!BE$30 -> 126.4791667 | EZ12: =FrameDryingdata!BF$30 -> 97.91666667 | FA12: =FrameDryingdata!BG$30 -> 71.70833333 | FB12: =FrameDryingdata!BH$30 -> 44.60416667 | FC12: =FrameDryingdata!BI$30 -> 6.3125 | FD12: =FrameDryingdata!AP$64 -> 84.66666667 | FE12: =FrameDryingdata!AQ$64 -> 65.125 | FF12: =FrameDryingdata!AR$64 -> 47.45833333 | FG12: =FrameDryingdata!AS$64 -> 30.08333333 | FH12: =FrameDryingdata!AT$64 -> 5.083333333 | FI12: =FrameDryingdata!AU$64 -> 92.83333333 | FJ12: =FrameDryingdata!AV$64 -> 69.02083333 | FK12: =FrameDryingdata!AW$64 -> 49.27083333 | FL12: =FrameDryingdata!AX$64 -> 29.52083333 | FM12: =FrameDryingdata!AY$64 -> 4.5625 | FN12: =FrameDryingdata!AZ$64 -> 85.58333333 | FO12: =FrameDryingdata!BA$64 -> 65.08333333 | FP12: =FrameDryingdata!BB$64 -> 47.3125 | FQ12: =FrameDryingdata!BC$64 -> 30.10416667 | FR12: =FrameDryingdata!BD$64 -> 5.104166667 | FS12: =FrameDryingdata!BE$64 -> 85.77083333 | FT12: =FrameDryingdata!BF$64 -> 64.95833333 | FU12: =FrameDryingdata!BG$64 -> 47.16666667 | FV12: =FrameDryingdata!BH$64 -> 30.3125 | FW12: =FrameDryingdata!BI$64 -> 5.166666667
A13: Northland | B13: Open rainscreen with ventilated battens and solid corner battens | C13: Semi-sheltered | D13: 0.0856344998 | E13: 0.09888502681 | F13: 0.07342845524 | G13: 0.1026483323 | H13: 0.2586012912 | I13: 0.4379623293 | J13: 0.1295553104 | K13: 0.2393254863 | L13: 96.06745372 | M13: 94.23517458 | N13: 71.04777189 | O13: 96.91715587 | P13: 173.1756715 | Q13: 266.4733527 | R13: 124.0038934 | S13: 178.664781 | T13: =FrameDryingdata!B$13 -> 81.2 | U13: =FrameDryingdata!C$13 -> 61.55 | V13: =FrameDryingdata!D$13 -> 42.9 | W13: =FrameDryingdata!E$13 -> 26.6 | X13: =FrameDryingdata!F$13 -> 15.15 | Y13: =FrameDryingdata!G$13 -> 126.25 | Z13: =FrameDryingdata!H$13 -> 92.3 | AA13: =FrameDryingdata!I$13 -> 64.05 | AB13: =FrameDryingdata!J$13 -> 37.75 | AC13: =FrameDryingdata!K$13 -> 20.1 | AD13: =FrameDryingdata!L$13 -> 103.15 | AE13: =FrameDryingdata!M$13 -> 74.2 | AF13: =FrameDryingdata!N$13 -> 53.4 | AG13: =FrameDryingdata!O$13 -> 32.75 | AH13: =FrameDryingdata!P$13 -> 18.35 | AI13: =FrameDryingdata!Q$13 -> 107.6 | AJ13: =FrameDryingdata!R$13 -> 77.45 | AK13: =FrameDryingdata!S$13 -> 55.4 | AL13: =FrameDryingdata!T$13 -> 33.5 | AM13: =FrameDryingdata!U$13 -> 18.45 | AN13: 49.9 | AO13: 36.4 | AP13: 27.65 | AQ13: 17.65 | AR13: 10.65 | AS13: 72 | AT13: 47.8 | AU13: 32.6 | AV13: 21 | AW13: 11.7 | AX13: 51.6 | AY13: 38 | AZ13: 27.7 | BA13: 17.85 | BB13: 10.35 | BC13: 53.65 | BD13: 38.85 | BE13: 28.2 | BF13: 18.25 | BG13: 10.6 | BH13: =FrameDryingdata!B$30 -> 70.65 | BI13: =FrameDryingdata!C$30 -> 50.15 | BJ13: =FrameDryingdata!D$30 -> 32.9 | BK13: =FrameDryingdata!E$30 -> 18.35 | BL13: =FrameDryingdata!F$30 -> 5.7 | BM13: =FrameDryingdata!G$30 -> 75.95 | BN13: =FrameDryingdata!H$30 -> 56.45 | BO13: =FrameDryingdata!I$30 -> 36.05 | BP13: =FrameDryingdata!J$30 -> 19.05 | BQ13: =FrameDryingdata!K$30 -> 4.8 | BR13: =FrameDryingdata!L$30 -> 76.9 | BS13: =FrameDryingdata!M$30 -> 54.3 | BT13: =FrameDryingdata!N$30 -> 35.4 | BU13: =FrameDryingdata!O$30 -> 19.35 | BV13: =FrameDryingdata!P$30 -> 5.5 | BW13: =FrameDryingdata!Q$30 -> 75.3 | BX13: =FrameDryingdata!R$30 -> 53.65 | BY13: =FrameDryingdata!S$30 -> 35 | BZ13: =FrameDryingdata!T$30 -> 18.95 | CA13: =FrameDryingdata!U$30 -> 5.3 | CB13: =FrameDryingdata!B$64 -> 47.3 | CC13: =FrameDryingdata!C$64 -> 33.85 | CD13: =FrameDryingdata!D$64 -> 23.2 | CE13: =FrameDryingdata!E$64 -> 12.9 | CF13: =FrameDryingdata!F$64 -> 4.45 | CG13: =FrameDryingdata!G$64 -> 52.3 | CH13: =FrameDryingdata!H$64 -> 36.5 | CI13: =FrameDryingdata!I$64 -> 25.3 | CJ13: =FrameDryingdata!J$64 -> 14.3 | CK13: =FrameDryingdata!K$64 -> 4.6 | CL13: =FrameDryingdata!L$64 -> 47.35 | CM13: =FrameDryingdata!M$64 -> 33.6 | CN13: =FrameDryingdata!N$64 -> 23.15 | CO13: =FrameDryingdata!O$64 -> 12.75 | CP13: =FrameDryingdata!P$64 -> 4.15 | CQ13: =FrameDryingdata!Q$64 -> 47.85 | CR13: =FrameDryingdata!R$64 -> 34 | CS13: =FrameDryingdata!S$64 -> 23.5 | CT13: =FrameDryingdata!T$64 -> 13.35 | CU13: =FrameDryingdata!U$64 -> 4.6 | CV13: =FrameDryingdata!AP$13 -> 147.4375 | CW13: =FrameDryingdata!AQ$13 -> 116.4583333 | CX13: =FrameDryingdata!AR$13 -> 91.45833333 | CY13: =FrameDryingdata!AS$13 -> 67.64583333 | CZ13: =FrameDryingdata!AT$13 -> 35.02083333 | DA13: =FrameDryingdata!AU$13 -> 202.0833333 | DB13: =FrameDryingdata!AV$13 -> 164.6250002 | DC13: =FrameDryingdata!AW$13 -> 133.9791667 | DD13: =FrameDryingdata!AX$13 -> 98.02083333 | DE13: =FrameDryingdata!AY$13 -> 52 | DF13: =FrameDryingdata!AZ$13 -> 166.3958317 | DG13: =FrameDryingdata!BA$13 -> 135.5416667 | DH13: =FrameDryingdata!BB$13 -> 108.375 | DI13: =FrameDryingdata!BC$13 -> 78.97916667 | DJ13: =FrameDryingdata!BD$13 -> 38.0625 | DK13: =FrameDryingdata!BE$13 -> 172.1249833 | DL13: =FrameDryingdata!BF$13 -> 140.0416667 | DM13: =FrameDryingdata!BG$13 -> 112.6458333 | DN13: =FrameDryingdata!BH$13 -> 82.5625 | DO13: =FrameDryingdata!BI$13 -> 42.08333333 | DP13: =FrameDryingdata!AP$47 -> 99.08333333 | DQ13: =FrameDryingdata!AQ$47 -> 76.625 | DR13: =FrameDryingdata!AR$47 -> 59.4375 | DS13: =FrameDryingdata!AS$47 -> 43.10416667 | DT13: =FrameDryingdata!AT$47 -> 22.66666667 | DU13: =FrameDryingdata!AU$47 -> 195.875 | DV13: =FrameDryingdata!AV$47 -> 112.5208333 | DW13: =FrameDryingdata!AW$47 -> 80.4375 | DX13: =FrameDryingdata!AX$47 -> 51.60416667 | DY13: =FrameDryingdata!AY$47 -> 24.0625 | DZ13: =FrameDryingdata!AZ$47 -> 108 | EA13: =FrameDryingdata!BA$47 -> 78.64583333 | EB13: =FrameDryingdata!BB$47 -> 60.02083333 | EC13: =FrameDryingdata!BC$47 -> 42.89583333 | ED13: =FrameDryingdata!BD$47 -> 22.58333333 | EE13: =FrameDryingdata!BE$47 -> 117.125 | EF13: =FrameDryingdata!BF$47 -> 82.64583333 | EG13: =FrameDryingdata!BG$47 -> 61.1875 | EH13: =FrameDryingdata!BH$47 -> 43.54166667 | EI13: =FrameDryingdata!BI$47 -> 22.60416667 | EJ13: =FrameDryingdata!AP$30 -> 118.4583333 | EK13: =FrameDryingdata!AQ$30 -> 91.52083333 | EL13: =FrameDryingdata!AR$30 -> 68.10416667 | EM13: =FrameDryingdata!AS$30 -> 43.375 | EN13: =FrameDryingdata!AT$30 -> 6.083333333 | EO13: =FrameDryingdata!AU$30 -> 135.8958333 | EP13: =FrameDryingdata!AV$30 -> 104.6458333 | EQ13: =FrameDryingdata!AW$30 -> 74.45833333 | ER13: =FrameDryingdata!AX$30 -> 43.72916667 | ES13: =FrameDryingdata!AY$30 -> 5.416666667 | ET13: =FrameDryingdata!AZ$30 -> 128.2083333 | EU13: =FrameDryingdata!BA$30 -> 98.5 | EV13: =FrameDryingdata!BB$30 -> 71.70833333 | EW13: =FrameDryingdata!BC$30 -> 43.58333333 | EX13: =FrameDryingdata!BD$30 -> 5.958333333 | EY13: =FrameDryingdata!BE$30 -> 126.4791667 | EZ13: =FrameDryingdata!BF$30 -> 97.91666667 | FA13: =FrameDryingdata!BG$30 -> 71.70833333 | FB13: =FrameDryingdata!BH$30 -> 44.60416667 | FC13: =FrameDryingdata!BI$30 -> 6.3125 | FD13: =FrameDryingdata!AP$64 -> 84.66666667 | FE13: =FrameDryingdata!AQ$64 -> 65.125 | FF13: =FrameDryingdata!AR$64 -> 47.45833333 | FG13: =FrameDryingdata!AS$64 -> 30.08333333 | FH13: =FrameDryingdata!AT$64 -> 5.083333333 | FI13: =FrameDryingdata!AU$64 -> 92.83333333 | FJ13: =FrameDryingdata!AV$64 -> 69.02083333 | FK13: =FrameDryingdata!AW$64 -> 49.27083333 | FL13: =FrameDryingdata!AX$64 -> 29.52083333 | FM13: =FrameDryingdata!AY$64 -> 4.5625 | FN13: =FrameDryingdata!AZ$64 -> 85.58333333 | FO13: =FrameDryingdata!BA$64 -> 65.08333333 | FP13: =FrameDryingdata!BB$64 -> 47.3125 | FQ13: =FrameDryingdata!BC$64 -> 30.10416667 | FR13: =FrameDryingdata!BD$64 -> 5.104166667 | FS13: =FrameDryingdata!BE$64 -> 85.77083333 | FT13: =FrameDryingdata!BF$64 -> 64.95833333 | FU13: =FrameDryingdata!BG$64 -> 47.16666667 | FV13: =FrameDryingdata!BH$64 -> 30.3125 | FW13: =FrameDryingdata!BI$64 -> 5.166666667
A14: Northland | B14: Open rainscreen with ventilated battens and solid corner battens | C14: Sheltered | D14: 0.05094033781 | E14: 0.04671698357 | F14: 0.03902047829 | G14: 0.04722950295 | H14: 0.241182336 | I14: 0.4066100077 | J14: 0.104934877 | K14: 0.2029912647 | L14: 66.48365202 | M14: 50.47396569 | N14: 38.41713612 | O14: 50.08979668 | P14: 148.3779186 | Q14: 226.5608249 | R14: 93.07740188 | S14: 137.1699719 | T14: =FrameDryingdata!B$13 -> 81.2 | U14: =FrameDryingdata!C$13 -> 61.55 | V14: =FrameDryingdata!D$13 -> 42.9 | W14: =FrameDryingdata!E$13 -> 26.6 | X14: =FrameDryingdata!F$13 -> 15.15 | Y14: =FrameDryingdata!G$13 -> 126.25 | Z14: =FrameDryingdata!H$13 -> 92.3 | AA14: =FrameDryingdata!I$13 -> 64.05 | AB14: =FrameDryingdata!J$13 -> 37.75 | AC14: =FrameDryingdata!K$13 -> 20.1 | AD14: =FrameDryingdata!L$13 -> 103.15 | AE14: =FrameDryingdata!M$13 -> 74.2 | AF14: =FrameDryingdata!N$13 -> 53.4 | AG14: =FrameDryingdata!O$13 -> 32.75 | AH14: =FrameDryingdata!P$13 -> 18.35 | AI14: =FrameDryingdata!Q$13 -> 107.6 | AJ14: =FrameDryingdata!R$13 -> 77.45 | AK14: =FrameDryingdata!S$13 -> 55.4 | AL14: =FrameDryingdata!T$13 -> 33.5 | AM14: =FrameDryingdata!U$13 -> 18.45 | AN14: 49.9 | AO14: 36.4 | AP14: 27.65 | AQ14: 17.65 | AR14: 10.65 | AS14: 72 | AT14: 47.8 | AU14: 32.6 | AV14: 21 | AW14: 11.7 | AX14: 51.6 | AY14: 38 | AZ14: 27.7 | BA14: 17.85 | BB14: 10.35 | BC14: 53.65 | BD14: 38.85 | BE14: 28.2 | BF14: 18.25 | BG14: 10.6 | BH14: =FrameDryingdata!B$30 -> 70.65 | BI14: =FrameDryingdata!C$30 -> 50.15 | BJ14: =FrameDryingdata!D$30 -> 32.9 | BK14: =FrameDryingdata!E$30 -> 18.35 | BL14: =FrameDryingdata!F$30 -> 5.7 | BM14: =FrameDryingdata!G$30 -> 75.95 | BN14: =FrameDryingdata!H$30 -> 56.45 | BO14: =FrameDryingdata!I$30 -> 36.05 | BP14: =FrameDryingdata!J$30 -> 19.05 | BQ14: =FrameDryingdata!K$30 -> 4.8 | BR14: =FrameDryingdata!L$30 -> 76.9 | BS14: =FrameDryingdata!M$30 -> 54.3 | BT14: =FrameDryingdata!N$30 -> 35.4 | BU14: =FrameDryingdata!O$30 -> 19.35 | BV14: =FrameDryingdata!P$30 -> 5.5 | BW14: =FrameDryingdata!Q$30 -> 75.3 | BX14: =FrameDryingdata!R$30 -> 53.65 | BY14: =FrameDryingdata!S$30 -> 35 | BZ14: =FrameDryingdata!T$30 -> 18.95 | CA14: =FrameDryingdata!U$30 -> 5.3 | CB14: =FrameDryingdata!B$64 -> 47.3 | CC14: =FrameDryingdata!C$64 -> 33.85 | CD14: =FrameDryingdata!D$64 -> 23.2 | CE14: =FrameDryingdata!E$64 -> 12.9 | CF14: =FrameDryingdata!F$64 -> 4.45 | CG14: =FrameDryingdata!G$64 -> 52.3 | CH14: =FrameDryingdata!H$64 -> 36.5 | CI14: =FrameDryingdata!I$64 -> 25.3 | CJ14: =FrameDryingdata!J$64 -> 14.3 | CK14: =FrameDryingdata!K$64 -> 4.6 | CL14: =FrameDryingdata!L$64 -> 47.35 | CM14: =FrameDryingdata!M$64 -> 33.6 | CN14: =FrameDryingdata!N$64 -> 23.15 | CO14: =FrameDryingdata!O$64 -> 12.75 | CP14: =FrameDryingdata!P$64 -> 4.15 | CQ14: =FrameDryingdata!Q$64 -> 47.85 | CR14: =FrameDryingdata!R$64 -> 34 | CS14: =FrameDryingdata!S$64 -> 23.5 | CT14: =FrameDryingdata!T$64 -> 13.35 | CU14: =FrameDryingdata!U$64 -> 4.6 | CV14: =FrameDryingdata!AP$13 -> 147.4375 | CW14: =FrameDryingdata!AQ$13 -> 116.4583333 | CX14: =FrameDryingdata!AR$13 -> 91.45833333 | CY14: =FrameDryingdata!AS$13 -> 67.64583333 | CZ14: =FrameDryingdata!AT$13 -> 35.02083333 | DA14: =FrameDryingdata!AU$13 -> 202.0833333 | DB14: =FrameDryingdata!AV$13 -> 164.6250002 | DC14: =FrameDryingdata!AW$13 -> 133.9791667 | DD14: =FrameDryingdata!AX$13 -> 98.02083333 | DE14: =FrameDryingdata!AY$13 -> 52 | DF14: =FrameDryingdata!AZ$13 -> 166.3958317 | DG14: =FrameDryingdata!BA$13 -> 135.5416667 | DH14: =FrameDryingdata!BB$13 -> 108.375 | DI14: =FrameDryingdata!BC$13 -> 78.97916667 | DJ14: =FrameDryingdata!BD$13 -> 38.0625 | DK14: =FrameDryingdata!BE$13 -> 172.1249833 | DL14: =FrameDryingdata!BF$13 -> 140.0416667 | DM14: =FrameDryingdata!BG$13 -> 112.6458333 | DN14: =FrameDryingdata!BH$13 -> 82.5625 | DO14: =FrameDryingdata!BI$13 -> 42.08333333 | DP14: =FrameDryingdata!AP$47 -> 99.08333333 | DQ14: =FrameDryingdata!AQ$47 -> 76.625 | DR14: =FrameDryingdata!AR$47 -> 59.4375 | DS14: =FrameDryingdata!AS$47 -> 43.10416667 | DT14: =FrameDryingdata!AT$47 -> 22.66666667 | DU14: =FrameDryingdata!AU$47 -> 195.875 | DV14: =FrameDryingdata!AV$47 -> 112.5208333 | DW14: =FrameDryingdata!AW$47 -> 80.4375 | DX14: =FrameDryingdata!AX$47 -> 51.60416667 | DY14: =FrameDryingdata!AY$47 -> 24.0625 | DZ14: =FrameDryingdata!AZ$47 -> 108 | EA14: =FrameDryingdata!BA$47 -> 78.64583333 | EB14: =FrameDryingdata!BB$47 -> 60.02083333 | EC14: =FrameDryingdata!BC$47 -> 42.89583333 | ED14: =FrameDryingdata!BD$47 -> 22.58333333 | EE14: =FrameDryingdata!BE$47 -> 117.125 | EF14: =FrameDryingdata!BF$47 -> 82.64583333 | EG14: =FrameDryingdata!BG$47 -> 61.1875 | EH14: =FrameDryingdata!BH$47 -> 43.54166667 | EI14: =FrameDryingdata!BI$47 -> 22.60416667 | EJ14: =FrameDryingdata!AP$30 -> 118.4583333 | EK14: =FrameDryingdata!AQ$30 -> 91.52083333 | EL14: =FrameDryingdata!AR$30 -> 68.10416667 | EM14: =FrameDryingdata!AS$30 -> 43.375 | EN14: =FrameDryingdata!AT$30 -> 6.083333333 | EO14: =FrameDryingdata!AU$30 -> 135.8958333 | EP14: =FrameDryingdata!AV$30 -> 104.6458333 | EQ14: =FrameDryingdata!AW$30 -> 74.45833333 | ER14: =FrameDryingdata!AX$30 -> 43.72916667 | ES14: =FrameDryingdata!AY$30 -> 5.416666667 | ET14: =FrameDryingdata!AZ$30 -> 128.2083333 | EU14: =FrameDryingdata!BA$30 -> 98.5 | EV14: =FrameDryingdata!BB$30 -> 71.70833333 | EW14: =FrameDryingdata!BC$30 -> 43.58333333 | EX14: =FrameDryingdata!BD$30 -> 5.958333333 | EY14: =FrameDryingdata!BE$30 -> 126.4791667 | EZ14: =FrameDryingdata!BF$30 -> 97.91666667 | FA14: =FrameDryingdata!BG$30 -> 71.70833333 | FB14: =FrameDryingdata!BH$30 -> 44.60416667 | FC14: =FrameDryingdata!BI$30 -> 6.3125 | FD14: =FrameDryingdata!AP$64 -> 84.66666667 | FE14: =FrameDryingdata!AQ$64 -> 65.125 | FF14: =FrameDryingdata!AR$64 -> 47.45833333 | FG14: =FrameDryingdata!AS$64 -> 30.08333333 | FH14: =FrameDryingdata!AT$64 -> 5.083333333 | FI14: =FrameDryingdata!AU$64 -> 92.83333333 | FJ14: =FrameDryingdata!AV$64 -> 69.02083333 | FK14: =FrameDryingdata!AW$64 -> 49.27083333 | FL14: =FrameDryingdata!AX$64 -> 29.52083333 | FM14: =FrameDryingdata!AY$64 -> 4.5625 | FN14: =FrameDryingdata!AZ$64 -> 85.58333333 | FO14: =FrameDryingdata!BA$64 -> 65.08333333 | FP14: =FrameDryingdata!BB$64 -> 47.3125 | FQ14: =FrameDryingdata!BC$64 -> 30.10416667 | FR14: =FrameDryingdata!BD$64 -> 5.104166667 | FS14: =FrameDryingdata!BE$64 -> 85.77083333 | FT14: =FrameDryingdata!BF$64 -> 64.95833333 | FU14: =FrameDryingdata!BG$64 -> 47.16666667 | FV14: =FrameDryingdata!BH$64 -> 30.3125 | FW14: =FrameDryingdata!BI$64 -> 5.166666667
A15: Northland | B15: Open rainscreen with non-ventilated battens | C15: Exposed | D15: 0.08914153341 | E15: 0.08812866394 | F15: 0.07726488987 | G15: 0.07624648003 | H15: 0.2578238077 | I15: 0.4225480033 | J15: 0.1289056804 | K15: 0.2255375073 | L15: 96.51446917 | M15: 89.75134714 | N15: 79.7155188 | O15: 75.25159009 | P15: 172.4249519 | Q15: 250.0508915 | R15: 126.9325188 | S15: 165.7451665 | T15: =FrameDryingdata!B$13 -> 81.2 | U15: =FrameDryingdata!C$13 -> 61.55 | V15: =FrameDryingdata!D$13 -> 42.9 | W15: =FrameDryingdata!E$13 -> 26.6 | X15: =FrameDryingdata!F$13 -> 15.15 | Y15: =FrameDryingdata!G$13 -> 126.25 | Z15: =FrameDryingdata!H$13 -> 92.3 | AA15: =FrameDryingdata!I$13 -> 64.05 | AB15: =FrameDryingdata!J$13 -> 37.75 | AC15: =FrameDryingdata!K$13 -> 20.1 | AD15: =FrameDryingdata!L$13 -> 103.15 | AE15: =FrameDryingdata!M$13 -> 74.2 | AF15: =FrameDryingdata!N$13 -> 53.4 | AG15: =FrameDryingdata!O$13 -> 32.75 | AH15: =FrameDryingdata!P$13 -> 18.35 | AI15: =FrameDryingdata!Q$13 -> 107.6 | AJ15: =FrameDryingdata!R$13 -> 77.45 | AK15: =FrameDryingdata!S$13 -> 55.4 | AL15: =FrameDryingdata!T$13 -> 33.5 | AM15: =FrameDryingdata!U$13 -> 18.45 | AN15: 49.9 | AO15: 36.4 | AP15: 27.65 | AQ15: 17.65 | AR15: 10.65 | AS15: 72 | AT15: 47.8 | AU15: 32.6 | AV15: 21 | AW15: 11.7 | AX15: 51.6 | AY15: 38 | AZ15: 27.7 | BA15: 17.85 | BB15: 10.35 | BC15: 53.65 | BD15: 38.85 | BE15: 28.2 | BF15: 18.25 | BG15: 10.6 | BH15: =FrameDryingdata!B$30 -> 70.65 | BI15: =FrameDryingdata!C$30 -> 50.15 | BJ15: =FrameDryingdata!D$30 -> 32.9 | BK15: =FrameDryingdata!E$30 -> 18.35 | BL15: =FrameDryingdata!F$30 -> 5.7 | BM15: =FrameDryingdata!G$30 -> 75.95 | BN15: =FrameDryingdata!H$30 -> 56.45 | BO15: =FrameDryingdata!I$30 -> 36.05 | BP15: =FrameDryingdata!J$30 -> 19.05 | BQ15: =FrameDryingdata!K$30 -> 4.8 | BR15: =FrameDryingdata!L$30 -> 76.9 | BS15: =FrameDryingdata!M$30 -> 54.3 | BT15: =FrameDryingdata!N$30 -> 35.4 | BU15: =FrameDryingdata!O$30 -> 19.35 | BV15: =FrameDryingdata!P$30 -> 5.5 | BW15: =FrameDryingdata!Q$30 -> 75.3 | BX15: =FrameDryingdata!R$30 -> 53.65 | BY15: =FrameDryingdata!S$30 -> 35 | BZ15: =FrameDryingdata!T$30 -> 18.95 | CA15: =FrameDryingdata!U$30 -> 5.3 | CB15: =FrameDryingdata!B$64 -> 47.3 | CC15: =FrameDryingdata!C$64 -> 33.85 | CD15: =FrameDryingdata!D$64 -> 23.2 | CE15: =FrameDryingdata!E$64 -> 12.9 | CF15: =FrameDryingdata!F$64 -> 4.45 | CG15: =FrameDryingdata!G$64 -> 52.3 | CH15: =FrameDryingdata!H$64 -> 36.5 | CI15: =FrameDryingdata!I$64 -> 25.3 | CJ15: =FrameDryingdata!J$64 -> 14.3 | CK15: =FrameDryingdata!K$64 -> 4.6 | CL15: =FrameDryingdata!L$64 -> 47.35 | CM15: =FrameDryingdata!M$64 -> 33.6 | CN15: =FrameDryingdata!N$64 -> 23.15 | CO15: =FrameDryingdata!O$64 -> 12.75 | CP15: =FrameDryingdata!P$64 -> 4.15 | CQ15: =FrameDryingdata!Q$64 -> 47.85 | CR15: =FrameDryingdata!R$64 -> 34 | CS15: =FrameDryingdata!S$64 -> 23.5 | CT15: =FrameDryingdata!T$64 -> 13.35 | CU15: =FrameDryingdata!U$64 -> 4.6 | CV15: =FrameDryingdata!AP$13 -> 147.4375 | CW15: =FrameDryingdata!AQ$13 -> 116.4583333 | CX15: =FrameDryingdata!AR$13 -> 91.45833333 | CY15: =FrameDryingdata!AS$13 -> 67.64583333 | CZ15: =FrameDryingdata!AT$13 -> 35.02083333 | DA15: =FrameDryingdata!AU$13 -> 202.0833333 | DB15: =FrameDryingdata!AV$13 -> 164.6250002 | DC15: =FrameDryingdata!AW$13 -> 133.9791667 | DD15: =FrameDryingdata!AX$13 -> 98.02083333 | DE15: =FrameDryingdata!AY$13 -> 52 | DF15: =FrameDryingdata!AZ$13 -> 166.3958317 | DG15: =FrameDryingdata!BA$13 -> 135.5416667 | DH15: =FrameDryingdata!BB$13 -> 108.375 | DI15: =FrameDryingdata!BC$13 -> 78.97916667 | DJ15: =FrameDryingdata!BD$13 -> 38.0625 | DK15: =FrameDryingdata!BE$13 -> 172.1249833 | DL15: =FrameDryingdata!BF$13 -> 140.0416667 | DM15: =FrameDryingdata!BG$13 -> 112.6458333 | DN15: =FrameDryingdata!BH$13 -> 82.5625 | DO15: =FrameDryingdata!BI$13 -> 42.08333333 | DP15: =FrameDryingdata!AP$47 -> 99.08333333 | DQ15: =FrameDryingdata!AQ$47 -> 76.625 | DR15: =FrameDryingdata!AR$47 -> 59.4375 | DS15: =FrameDryingdata!AS$47 -> 43.10416667 | DT15: =FrameDryingdata!AT$47 -> 22.66666667 | DU15: =FrameDryingdata!AU$47 -> 195.875 | DV15: =FrameDryingdata!AV$47 -> 112.5208333 | DW15: =FrameDryingdata!AW$47 -> 80.4375 | DX15: =FrameDryingdata!AX$47 -> 51.60416667 | DY15: =FrameDryingdata!AY$47 -> 24.0625 | DZ15: =FrameDryingdata!AZ$47 -> 108 | EA15: =FrameDryingdata!BA$47 -> 78.64583333 | EB15: =FrameDryingdata!BB$47 -> 60.02083333 | EC15: =FrameDryingdata!BC$47 -> 42.89583333 | ED15: =FrameDryingdata!BD$47 -> 22.58333333 | EE15: =FrameDryingdata!BE$47 -> 117.125 | EF15: =FrameDryingdata!BF$47 -> 82.64583333 | EG15: =FrameDryingdata!BG$47 -> 61.1875 | EH15: =FrameDryingdata!BH$47 -> 43.54166667 | EI15: =FrameDryingdata!BI$47 -> 22.60416667 | EJ15: =FrameDryingdata!AP$30 -> 118.4583333 | EK15: =FrameDryingdata!AQ$30 -> 91.52083333 | EL15: =FrameDryingdata!AR$30 -> 68.10416667 | EM15: =FrameDryingdata!AS$30 -> 43.375 | EN15: =FrameDryingdata!AT$30 -> 6.083333333 | EO15: =FrameDryingdata!AU$30 -> 135.8958333 | EP15: =FrameDryingdata!AV$30 -> 104.6458333 | EQ15: =FrameDryingdata!AW$30 -> 74.45833333 | ER15: =FrameDryingdata!AX$30 -> 43.72916667 | ES15: =FrameDryingdata!AY$30 -> 5.416666667 | ET15: =FrameDryingdata!AZ$30 -> 128.2083333 | EU15: =FrameDryingdata!BA$30 -> 98.5 | EV15: =FrameDryingdata!BB$30 -> 71.70833333 | EW15: =FrameDryingdata!BC$30 -> 43.58333333 | EX15: =FrameDryingdata!BD$30 -> 5.958333333 | EY15: =FrameDryingdata!BE$30 -> 126.4791667 | EZ15: =FrameDryingdata!BF$30 -> 97.91666667 | FA15: =FrameDryingdata!BG$30 -> 71.70833333 | FB15: =FrameDryingdata!BH$30 -> 44.60416667 | FC15: =FrameDryingdata!BI$30 -> 6.3125 | FD15: =FrameDryingdata!AP$64 -> 84.66666667 | FE15: =FrameDryingdata!AQ$64 -> 65.125 | FF15: =FrameDryingdata!AR$64 -> 47.45833333 | FG15: =FrameDryingdata!AS$64 -> 30.08333333 | FH15: =FrameDryingdata!AT$64 -> 5.083333333 | FI15: =FrameDryingdata!AU$64 -> 92.83333333 | FJ15: =FrameDryingdata!AV$64 -> 69.02083333 | FK15: =FrameDryingdata!AW$64 -> 49.27083333 | FL15: =FrameDryingdata!AX$64 -> 29.52083333 | FM15: =FrameDryingdata!AY$64 -> 4.5625 | FN15: =FrameDryingdata!AZ$64 -> 85.58333333 | FO15: =FrameDryingdata!BA$64 -> 65.08333333 | FP15: =FrameDryingdata!BB$64 -> 47.3125 | FQ15: =FrameDryingdata!BC$64 -> 30.10416667 | FR15: =FrameDryingdata!BD$64 -> 5.104166667 | FS15: =FrameDryingdata!BE$64 -> 85.77083333 | FT15: =FrameDryingdata!BF$64 -> 64.95833333 | FU15: =FrameDryingdata!BG$64 -> 47.16666667 | FV15: =FrameDryingdata!BH$64 -> 30.3125 | FW15: =FrameDryingdata!BI$64 -> 5.166666667
A16: Northland | B16: Open rainscreen with non-ventilated battens | C16: Semi-exposed | D16: 0.07352920725 | E16: 0.06325938492 | F16: 0.06483857668 | G16: 0.05922351333 | H16: 0.2515557644 | I16: 0.4119633669 | J16: 0.1217308539 | K16: 0.2121422749 | L16: 84.52945441 | M16: 67.24777046 | N16: 66.97100963 | O16: 60.83564109 | P16: 164.6733693 | Q16: 234.9267751 | R16: 117.5232639 | S16: 148.9328667 | T16: =FrameDryingdata!B$13 -> 81.2 | U16: =FrameDryingdata!C$13 -> 61.55 | V16: =FrameDryingdata!D$13 -> 42.9 | W16: =FrameDryingdata!E$13 -> 26.6 | X16: =FrameDryingdata!F$13 -> 15.15 | Y16: =FrameDryingdata!G$13 -> 126.25 | Z16: =FrameDryingdata!H$13 -> 92.3 | AA16: =FrameDryingdata!I$13 -> 64.05 | AB16: =FrameDryingdata!J$13 -> 37.75 | AC16: =FrameDryingdata!K$13 -> 20.1 | AD16: =FrameDryingdata!L$13 -> 103.15 | AE16: =FrameDryingdata!M$13 -> 74.2 | AF16: =FrameDryingdata!N$13 -> 53.4 | AG16: =FrameDryingdata!O$13 -> 32.75 | AH16: =FrameDryingdata!P$13 -> 18.35 | AI16: =FrameDryingdata!Q$13 -> 107.6 | AJ16: =FrameDryingdata!R$13 -> 77.45 | AK16: =FrameDryingdata!S$13 -> 55.4 | AL16: =FrameDryingdata!T$13 -> 33.5 | AM16: =FrameDryingdata!U$13 -> 18.45 | AN16: 49.9 | AO16: 36.4 | AP16: 27.65 | AQ16: 17.65 | AR16: 10.65 | AS16: 72 | AT16: 47.8 | AU16: 32.6 | AV16: 21 | AW16: 11.7 | AX16: 51.6 | AY16: 38 | AZ16: 27.7 | BA16: 17.85 | BB16: 10.35 | BC16: 53.65 | BD16: 38.85 | BE16: 28.2 | BF16: 18.25 | BG16: 10.6 | BH16: =FrameDryingdata!B$30 -> 70.65 | BI16: =FrameDryingdata!C$30 -> 50.15 | BJ16: =FrameDryingdata!D$30 -> 32.9 | BK16: =FrameDryingdata!E$30 -> 18.35 | BL16: =FrameDryingdata!F$30 -> 5.7 | BM16: =FrameDryingdata!G$30 -> 75.95 | BN16: =FrameDryingdata!H$30 -> 56.45 | BO16: =FrameDryingdata!I$30 -> 36.05 | BP16: =FrameDryingdata!J$30 -> 19.05 | BQ16: =FrameDryingdata!K$30 -> 4.8 | BR16: =FrameDryingdata!L$30 -> 76.9 | BS16: =FrameDryingdata!M$30 -> 54.3 | BT16: =FrameDryingdata!N$30 -> 35.4 | BU16: =FrameDryingdata!O$30 -> 19.35 | BV16: =FrameDryingdata!P$30 -> 5.5 | BW16: =FrameDryingdata!Q$30 -> 75.3 | BX16: =FrameDryingdata!R$30 -> 53.65 | BY16: =FrameDryingdata!S$30 -> 35 | BZ16: =FrameDryingdata!T$30 -> 18.95 | CA16: =FrameDryingdata!U$30 -> 5.3 | CB16: =FrameDryingdata!B$64 -> 47.3 | CC16: =FrameDryingdata!C$64 -> 33.85 | CD16: =FrameDryingdata!D$64 -> 23.2 | CE16: =FrameDryingdata!E$64 -> 12.9 | CF16: =FrameDryingdata!F$64 -> 4.45 | CG16: =FrameDryingdata!G$64 -> 52.3 | CH16: =FrameDryingdata!H$64 -> 36.5 | CI16: =FrameDryingdata!I$64 -> 25.3 | CJ16: =FrameDryingdata!J$64 -> 14.3 | CK16: =FrameDryingdata!K$64 -> 4.6 | CL16: =FrameDryingdata!L$64 -> 47.35 | CM16: =FrameDryingdata!M$64 -> 33.6 | CN16: =FrameDryingdata!N$64 -> 23.15 | CO16: =FrameDryingdata!O$64 -> 12.75 | CP16: =FrameDryingdata!P$64 -> 4.15 | CQ16: =FrameDryingdata!Q$64 -> 47.85 | CR16: =FrameDryingdata!R$64 -> 34 | CS16: =FrameDryingdata!S$64 -> 23.5 | CT16: =FrameDryingdata!T$64 -> 13.35 | CU16: =FrameDryingdata!U$64 -> 4.6 | CV16: =FrameDryingdata!AP$13 -> 147.4375 | CW16: =FrameDryingdata!AQ$13 -> 116.4583333 | CX16: =FrameDryingdata!AR$13 -> 91.45833333 | CY16: =FrameDryingdata!AS$13 -> 67.64583333 | CZ16: =FrameDryingdata!AT$13 -> 35.02083333 | DA16: =FrameDryingdata!AU$13 -> 202.0833333 | DB16: =FrameDryingdata!AV$13 -> 164.6250002 | DC16: =FrameDryingdata!AW$13 -> 133.9791667 | DD16: =FrameDryingdata!AX$13 -> 98.02083333 | DE16: =FrameDryingdata!AY$13 -> 52 | DF16: =FrameDryingdata!AZ$13 -> 166.3958317 | DG16: =FrameDryingdata!BA$13 -> 135.5416667 | DH16: =FrameDryingdata!BB$13 -> 108.375 | DI16: =FrameDryingdata!BC$13 -> 78.97916667 | DJ16: =FrameDryingdata!BD$13 -> 38.0625 | DK16: =FrameDryingdata!BE$13 -> 172.1249833 | DL16: =FrameDryingdata!BF$13 -> 140.0416667 | DM16: =FrameDryingdata!BG$13 -> 112.6458333 | DN16: =FrameDryingdata!BH$13 -> 82.5625 | DO16: =FrameDryingdata!BI$13 -> 42.08333333 | DP16: =FrameDryingdata!AP$47 -> 99.08333333 | DQ16: =FrameDryingdata!AQ$47 -> 76.625 | DR16: =FrameDryingdata!AR$47 -> 59.4375 | DS16: =FrameDryingdata!AS$47 -> 43.10416667 | DT16: =FrameDryingdata!AT$47 -> 22.66666667 | DU16: =FrameDryingdata!AU$47 -> 195.875 | DV16: =FrameDryingdata!AV$47 -> 112.5208333 | DW16: =FrameDryingdata!AW$47 -> 80.4375 | DX16: =FrameDryingdata!AX$47 -> 51.60416667 | DY16: =FrameDryingdata!AY$47 -> 24.0625 | DZ16: =FrameDryingdata!AZ$47 -> 108 | EA16: =FrameDryingdata!BA$47 -> 78.64583333 | EB16: =FrameDryingdata!BB$47 -> 60.02083333 | EC16: =FrameDryingdata!BC$47 -> 42.89583333 | ED16: =FrameDryingdata!BD$47 -> 22.58333333 | EE16: =FrameDryingdata!BE$47 -> 117.125 | EF16: =FrameDryingdata!BF$47 -> 82.64583333 | EG16: =FrameDryingdata!BG$47 -> 61.1875 | EH16: =FrameDryingdata!BH$47 -> 43.54166667 | EI16: =FrameDryingdata!BI$47 -> 22.60416667 | EJ16: =FrameDryingdata!AP$30 -> 118.4583333 | EK16: =FrameDryingdata!AQ$30 -> 91.52083333 | EL16: =FrameDryingdata!AR$30 -> 68.10416667 | EM16: =FrameDryingdata!AS$30 -> 43.375 | EN16: =FrameDryingdata!AT$30 -> 6.083333333 | EO16: =FrameDryingdata!AU$30 -> 135.8958333 | EP16: =FrameDryingdata!AV$30 -> 104.6458333 | EQ16: =FrameDryingdata!AW$30 -> 74.45833333 | ER16: =FrameDryingdata!AX$30 -> 43.72916667 | ES16: =FrameDryingdata!AY$30 -> 5.416666667 | ET16: =FrameDryingdata!AZ$30 -> 128.2083333 | EU16: =FrameDryingdata!BA$30 -> 98.5 | EV16: =FrameDryingdata!BB$30 -> 71.70833333 | EW16: =FrameDryingdata!BC$30 -> 43.58333333 | EX16: =FrameDryingdata!BD$30 -> 5.958333333 | EY16: =FrameDryingdata!BE$30 -> 126.4791667 | EZ16: =FrameDryingdata!BF$30 -> 97.91666667 | FA16: =FrameDryingdata!BG$30 -> 71.70833333 | FB16: =FrameDryingdata!BH$30 -> 44.60416667 | FC16: =FrameDryingdata!BI$30 -> 6.3125 | FD16: =FrameDryingdata!AP$64 -> 84.66666667 | FE16: =FrameDryingdata!AQ$64 -> 65.125 | FF16: =FrameDryingdata!AR$64 -> 47.45833333 | FG16: =FrameDryingdata!AS$64 -> 30.08333333 | FH16: =FrameDryingdata!AT$64 -> 5.083333333 | FI16: =FrameDryingdata!AU$64 -> 92.83333333 | FJ16: =FrameDryingdata!AV$64 -> 69.02083333 | FK16: =FrameDryingdata!AW$64 -> 49.27083333 | FL16: =FrameDryingdata!AX$64 -> 29.52083333 | FM16: =FrameDryingdata!AY$64 -> 4.5625 | FN16: =FrameDryingdata!AZ$64 -> 85.58333333 | FO16: =FrameDryingdata!BA$64 -> 65.08333333 | FP16: =FrameDryingdata!BB$64 -> 47.3125 | FQ16: =FrameDryingdata!BC$64 -> 30.10416667 | FR16: =FrameDryingdata!BD$64 -> 5.104166667 | FS16: =FrameDryingdata!BE$64 -> 85.77083333 | FT16: =FrameDryingdata!BF$64 -> 64.95833333 | FU16: =FrameDryingdata!BG$64 -> 47.16666667 | FV16: =FrameDryingdata!BH$64 -> 30.3125 | FW16: =FrameDryingdata!BI$64 -> 5.166666667
A17: Northland | B17: Open rainscreen with non-ventilated battens | C17: Semi-sheltered | D17: 0.0524204551 | E17: 0.05108715805 | F17: 0.03650194552 | G17: 0.05231881391 | H17: 0.2387663872 | I17: 0.408873661 | J17: 0.1057377175 | K17: 0.2066174078 | L17: 68.65789687 | M17: 55.59591733 | N17: 37.44858993 | O17: 55.59955654 | P17: 148.5189312 | Q17: 232.2685421 | R17: 93.76377336 | S17: 142.2295294 | T17: =FrameDryingdata!B$13 -> 81.2 | U17: =FrameDryingdata!C$13 -> 61.55 | V17: =FrameDryingdata!D$13 -> 42.9 | W17: =FrameDryingdata!E$13 -> 26.6 | X17: =FrameDryingdata!F$13 -> 15.15 | Y17: =FrameDryingdata!G$13 -> 126.25 | Z17: =FrameDryingdata!H$13 -> 92.3 | AA17: =FrameDryingdata!I$13 -> 64.05 | AB17: =FrameDryingdata!J$13 -> 37.75 | AC17: =FrameDryingdata!K$13 -> 20.1 | AD17: =FrameDryingdata!L$13 -> 103.15 | AE17: =FrameDryingdata!M$13 -> 74.2 | AF17: =FrameDryingdata!N$13 -> 53.4 | AG17: =FrameDryingdata!O$13 -> 32.75 | AH17: =FrameDryingdata!P$13 -> 18.35 | AI17: =FrameDryingdata!Q$13 -> 107.6 | AJ17: =FrameDryingdata!R$13 -> 77.45 | AK17: =FrameDryingdata!S$13 -> 55.4 | AL17: =FrameDryingdata!T$13 -> 33.5 | AM17: =FrameDryingdata!U$13 -> 18.45 | AN17: 49.9 | AO17: 36.4 | AP17: 27.65 | AQ17: 17.65 | AR17: 10.65 | AS17: 72 | AT17: 47.8 | AU17: 32.6 | AV17: 21 | AW17: 11.7 | AX17: 51.6 | AY17: 38 | AZ17: 27.7 | BA17: 17.85 | BB17: 10.35 | BC17: 53.65 | BD17: 38.85 | BE17: 28.2 | BF17: 18.25 | BG17: 10.6 | BH17: =FrameDryingdata!B$30 -> 70.65 | BI17: =FrameDryingdata!C$30 -> 50.15 | BJ17: =FrameDryingdata!D$30 -> 32.9 | BK17: =FrameDryingdata!E$30 -> 18.35 | BL17: =FrameDryingdata!F$30 -> 5.7 | BM17: =FrameDryingdata!G$30 -> 75.95 | BN17: =FrameDryingdata!H$30 -> 56.45 | BO17: =FrameDryingdata!I$30 -> 36.05 | BP17: =FrameDryingdata!J$30 -> 19.05 | BQ17: =FrameDryingdata!K$30 -> 4.8 | BR17: =FrameDryingdata!L$30 -> 76.9 | BS17: =FrameDryingdata!M$30 -> 54.3 | BT17: =FrameDryingdata!N$30 -> 35.4 | BU17: =FrameDryingdata!O$30 -> 19.35 | BV17: =FrameDryingdata!P$30 -> 5.5 | BW17: =FrameDryingdata!Q$30 -> 75.3 | BX17: =FrameDryingdata!R$30 -> 53.65 | BY17: =FrameDryingdata!S$30 -> 35 | BZ17: =FrameDryingdata!T$30 -> 18.95 | CA17: =FrameDryingdata!U$30 -> 5.3 | CB17: =FrameDryingdata!B$64 -> 47.3 | CC17: =FrameDryingdata!C$64 -> 33.85 | CD17: =FrameDryingdata!D$64 -> 23.2 | CE17: =FrameDryingdata!E$64 -> 12.9 | CF17: =FrameDryingdata!F$64 -> 4.45 | CG17: =FrameDryingdata!G$64 -> 52.3 | CH17: =FrameDryingdata!H$64 -> 36.5 | CI17: =FrameDryingdata!I$64 -> 25.3 | CJ17: =FrameDryingdata!J$64 -> 14.3 | CK17: =FrameDryingdata!K$64 -> 4.6 | CL17: =FrameDryingdata!L$64 -> 47.35 | CM17: =FrameDryingdata!M$64 -> 33.6 | CN17: =FrameDryingdata!N$64 -> 23.15 | CO17: =FrameDryingdata!O$64 -> 12.75 | CP17: =FrameDryingdata!P$64 -> 4.15 | CQ17: =FrameDryingdata!Q$64 -> 47.85 | CR17: =FrameDryingdata!R$64 -> 34 | CS17: =FrameDryingdata!S$64 -> 23.5 | CT17: =FrameDryingdata!T$64 -> 13.35 | CU17: =FrameDryingdata!U$64 -> 4.6 | CV17: =FrameDryingdata!AP$13 -> 147.4375 | CW17: =FrameDryingdata!AQ$13 -> 116.4583333 | CX17: =FrameDryingdata!AR$13 -> 91.45833333 | CY17: =FrameDryingdata!AS$13 -> 67.64583333 | CZ17: =FrameDryingdata!AT$13 -> 35.02083333 | DA17: =FrameDryingdata!AU$13 -> 202.0833333 | DB17: =FrameDryingdata!AV$13 -> 164.6250002 | DC17: =FrameDryingdata!AW$13 -> 133.9791667 | DD17: =FrameDryingdata!AX$13 -> 98.02083333 | DE17: =FrameDryingdata!AY$13 -> 52 | DF17: =FrameDryingdata!AZ$13 -> 166.3958317 | DG17: =FrameDryingdata!BA$13 -> 135.5416667 | DH17: =FrameDryingdata!BB$13 -> 108.375 | DI17: =FrameDryingdata!BC$13 -> 78.97916667 | DJ17: =FrameDryingdata!BD$13 -> 38.0625 | DK17: =FrameDryingdata!BE$13 -> 172.1249833 | DL17: =FrameDryingdata!BF$13 -> 140.0416667 | DM17: =FrameDryingdata!BG$13 -> 112.6458333 | DN17: =FrameDryingdata!BH$13 -> 82.5625 | DO17: =FrameDryingdata!BI$13 -> 42.08333333 | DP17: =FrameDryingdata!AP$47 -> 99.08333333 | DQ17: =FrameDryingdata!AQ$47 -> 76.625 | DR17: =FrameDryingdata!AR$47 -> 59.4375 | DS17: =FrameDryingdata!AS$47 -> 43.10416667 | DT17: =FrameDryingdata!AT$47 -> 22.66666667 | DU17: =FrameDryingdata!AU$47 -> 195.875 | DV17: =FrameDryingdata!AV$47 -> 112.5208333 | DW17: =FrameDryingdata!AW$47 -> 80.4375 | DX17: =FrameDryingdata!AX$47 -> 51.60416667 | DY17: =FrameDryingdata!AY$47 -> 24.0625 | DZ17: =FrameDryingdata!AZ$47 -> 108 | EA17: =FrameDryingdata!BA$47 -> 78.64583333 | EB17: =FrameDryingdata!BB$47 -> 60.02083333 | EC17: =FrameDryingdata!BC$47 -> 42.89583333 | ED17: =FrameDryingdata!BD$47 -> 22.58333333 | EE17: =FrameDryingdata!BE$47 -> 117.125 | EF17: =FrameDryingdata!BF$47 -> 82.64583333 | EG17: =FrameDryingdata!BG$47 -> 61.1875 | EH17: =FrameDryingdata!BH$47 -> 43.54166667 | EI17: =FrameDryingdata!BI$47 -> 22.60416667 | EJ17: =FrameDryingdata!AP$30 -> 118.4583333 | EK17: =FrameDryingdata!AQ$30 -> 91.52083333 | EL17: =FrameDryingdata!AR$30 -> 68.10416667 | EM17: =FrameDryingdata!AS$30 -> 43.375 | EN17: =FrameDryingdata!AT$30 -> 6.083333333 | EO17: =FrameDryingdata!AU$30 -> 135.8958333 | EP17: =FrameDryingdata!AV$30 -> 104.6458333 | EQ17: =FrameDryingdata!AW$30 -> 74.45833333 | ER17: =FrameDryingdata!AX$30 -> 43.72916667 | ES17: =FrameDryingdata!AY$30 -> 5.416666667 | ET17: =FrameDryingdata!AZ$30 -> 128.2083333 | EU17: =FrameDryingdata!BA$30 -> 98.5 | EV17: =FrameDryingdata!BB$30 -> 71.70833333 | EW17: =FrameDryingdata!BC$30 -> 43.58333333 | EX17: =FrameDryingdata!BD$30 -> 5.958333333 | EY17: =FrameDryingdata!BE$30 -> 126.4791667 | EZ17: =FrameDryingdata!BF$30 -> 97.91666667 | FA17: =FrameDryingdata!BG$30 -> 71.70833333 | FB17: =FrameDryingdata!BH$30 -> 44.60416667 | FC17: =FrameDryingdata!BI$30 -> 6.3125 | FD17: =FrameDryingdata!AP$64 -> 84.66666667 | FE17: =FrameDryingdata!AQ$64 -> 65.125 | FF17: =FrameDryingdata!AR$64 -> 47.45833333 | FG17: =FrameDryingdata!AS$64 -> 30.08333333 | FH17: =FrameDryingdata!AT$64 -> 5.083333333 | FI17: =FrameDryingdata!AU$64 -> 92.83333333 | FJ17: =FrameDryingdata!AV$64 -> 69.02083333 | FK17: =FrameDryingdata!AW$64 -> 49.27083333 | FL17: =FrameDryingdata!AX$64 -> 29.52083333 | FM17: =FrameDryingdata!AY$64 -> 4.5625 | FN17: =FrameDryingdata!AZ$64 -> 85.58333333 | FO17: =FrameDryingdata!BA$64 -> 65.08333333 | FP17: =FrameDryingdata!BB$64 -> 47.3125 | FQ17: =FrameDryingdata!BC$64 -> 30.10416667 | FR17: =FrameDryingdata!BD$64 -> 5.104166667 | FS17: =FrameDryingdata!BE$64 -> 85.77083333 | FT17: =FrameDryingdata!BF$64 -> 64.95833333 | FU17: =FrameDryingdata!BG$64 -> 47.16666667 | FV17: =FrameDryingdata!BH$64 -> 30.3125 | FW17: =FrameDryingdata!BI$64 -> 5.166666667
A18: Northland | B18: Open rainscreen with non-ventilated battens | C18: Sheltered | D18: 0.03317835117 | E18: 0.025916579 | F18: 0.02045296397 | G18: 0.02591475463 | H18: 0.230985873 | I18: 0.3940759646 | J18: 0.0948738123 | K18: 0.1898702875 | L18: 52.89519721 | M18: 32.32425224 | N18: 21.56588816 | O18: 31.10262844 | P18: 138.1701467 | Q18: 211.141937 | R18: 80.19509047 | S18: 120.4195969 | T18: =FrameDryingdata!B$13 -> 81.2 | U18: =FrameDryingdata!C$13 -> 61.55 | V18: =FrameDryingdata!D$13 -> 42.9 | W18: =FrameDryingdata!E$13 -> 26.6 | X18: =FrameDryingdata!F$13 -> 15.15 | Y18: =FrameDryingdata!G$13 -> 126.25 | Z18: =FrameDryingdata!H$13 -> 92.3 | AA18: =FrameDryingdata!I$13 -> 64.05 | AB18: =FrameDryingdata!J$13 -> 37.75 | AC18: =FrameDryingdata!K$13 -> 20.1 | AD18: =FrameDryingdata!L$13 -> 103.15 | AE18: =FrameDryingdata!M$13 -> 74.2 | AF18: =FrameDryingdata!N$13 -> 53.4 | AG18: =FrameDryingdata!O$13 -> 32.75 | AH18: =FrameDryingdata!P$13 -> 18.35 | AI18: =FrameDryingdata!Q$13 -> 107.6 | AJ18: =FrameDryingdata!R$13 -> 77.45 | AK18: =FrameDryingdata!S$13 -> 55.4 | AL18: =FrameDryingdata!T$13 -> 33.5 | AM18: =FrameDryingdata!U$13 -> 18.45 | AN18: 49.9 | AO18: 36.4 | AP18: 27.65 | AQ18: 17.65 | AR18: 10.65 | AS18: 72 | AT18: 47.8 | AU18: 32.6 | AV18: 21 | AW18: 11.7 | AX18: 51.6 | AY18: 38 | AZ18: 27.7 | BA18: 17.85 | BB18: 10.35 | BC18: 53.65 | BD18: 38.85 | BE18: 28.2 | BF18: 18.25 | BG18: 10.6 | BH18: =FrameDryingdata!B$30 -> 70.65 | BI18: =FrameDryingdata!C$30 -> 50.15 | BJ18: =FrameDryingdata!D$30 -> 32.9 | BK18: =FrameDryingdata!E$30 -> 18.35 | BL18: =FrameDryingdata!F$30 -> 5.7 | BM18: =FrameDryingdata!G$30 -> 75.95 | BN18: =FrameDryingdata!H$30 -> 56.45 | BO18: =FrameDryingdata!I$30 -> 36.05 | BP18: =FrameDryingdata!J$30 -> 19.05 | BQ18: =FrameDryingdata!K$30 -> 4.8 | BR18: =FrameDryingdata!L$30 -> 76.9 | BS18: =FrameDryingdata!M$30 -> 54.3 | BT18: =FrameDryingdata!N$30 -> 35.4 | BU18: =FrameDryingdata!O$30 -> 19.35 | BV18: =FrameDryingdata!P$30 -> 5.5 | BW18: =FrameDryingdata!Q$30 -> 75.3 | BX18: =FrameDryingdata!R$30 -> 53.65 | BY18: =FrameDryingdata!S$30 -> 35 | BZ18: =FrameDryingdata!T$30 -> 18.95 | CA18: =FrameDryingdata!U$30 -> 5.3 | CB18: =FrameDryingdata!B$64 -> 47.3 | CC18: =FrameDryingdata!C$64 -> 33.85 | CD18: =FrameDryingdata!D$64 -> 23.2 | CE18: =FrameDryingdata!E$64 -> 12.9 | CF18: =FrameDryingdata!F$64 -> 4.45 | CG18: =FrameDryingdata!G$64 -> 52.3 | CH18: =FrameDryingdata!H$64 -> 36.5 | CI18: =FrameDryingdata!I$64 -> 25.3 | CJ18: =FrameDryingdata!J$64 -> 14.3 | CK18: =FrameDryingdata!K$64 -> 4.6 | CL18: =FrameDryingdata!L$64 -> 47.35 | CM18: =FrameDryingdata!M$64 -> 33.6 | CN18: =FrameDryingdata!N$64 -> 23.15 | CO18: =FrameDryingdata!O$64 -> 12.75 | CP18: =FrameDryingdata!P$64 -> 4.15 | CQ18: =FrameDryingdata!Q$64 -> 47.85 | CR18: =FrameDryingdata!R$64 -> 34 | CS18: =FrameDryingdata!S$64 -> 23.5 | CT18: =FrameDryingdata!T$64 -> 13.35 | CU18: =FrameDryingdata!U$64 -> 4.6 | CV18: =FrameDryingdata!AP$13 -> 147.4375 | CW18: =FrameDryingdata!AQ$13 -> 116.4583333 | CX18: =FrameDryingdata!AR$13 -> 91.45833333 | CY18: =FrameDryingdata!AS$13 -> 67.64583333 | CZ18: =FrameDryingdata!AT$13 -> 35.02083333 | DA18: =FrameDryingdata!AU$13 -> 202.0833333 | DB18: =FrameDryingdata!AV$13 -> 164.6250002 | DC18: =FrameDryingdata!AW$13 -> 133.9791667 | DD18: =FrameDryingdata!AX$13 -> 98.02083333 | DE18: =FrameDryingdata!AY$13 -> 52 | DF18: =FrameDryingdata!AZ$13 -> 166.3958317 | DG18: =FrameDryingdata!BA$13 -> 135.5416667 | DH18: =FrameDryingdata!BB$13 -> 108.375 | DI18: =FrameDryingdata!BC$13 -> 78.97916667 | DJ18: =FrameDryingdata!BD$13 -> 38.0625 | DK18: =FrameDryingdata!BE$13 -> 172.1249833 | DL18: =FrameDryingdata!BF$13 -> 140.0416667 | DM18: =FrameDryingdata!BG$13 -> 112.6458333 | DN18: =FrameDryingdata!BH$13 -> 82.5625 | DO18: =FrameDryingdata!BI$13 -> 42.08333333 | DP18: =FrameDryingdata!AP$47 -> 99.08333333 | DQ18: =FrameDryingdata!AQ$47 -> 76.625 | DR18: =FrameDryingdata!AR$47 -> 59.4375 | DS18: =FrameDryingdata!AS$47 -> 43.10416667 | DT18: =FrameDryingdata!AT$47 -> 22.66666667 | DU18: =FrameDryingdata!AU$47 -> 195.875 | DV18: =FrameDryingdata!AV$47 -> 112.5208333 | DW18: =FrameDryingdata!AW$47 -> 80.4375 | DX18: =FrameDryingdata!AX$47 -> 51.60416667 | DY18: =FrameDryingdata!AY$47 -> 24.0625 | DZ18: =FrameDryingdata!AZ$47 -> 108 | EA18: =FrameDryingdata!BA$47 -> 78.64583333 | EB18: =FrameDryingdata!BB$47 -> 60.02083333 | EC18: =FrameDryingdata!BC$47 -> 42.89583333 | ED18: =FrameDryingdata!BD$47 -> 22.58333333 | EE18: =FrameDryingdata!BE$47 -> 117.125 | EF18: =FrameDryingdata!BF$47 -> 82.64583333 | EG18: =FrameDryingdata!BG$47 -> 61.1875 | EH18: =FrameDryingdata!BH$47 -> 43.54166667 | EI18: =FrameDryingdata!BI$47 -> 22.60416667 | EJ18: =FrameDryingdata!AP$30 -> 118.4583333 | EK18: =FrameDryingdata!AQ$30 -> 91.52083333 | EL18: =FrameDryingdata!AR$30 -> 68.10416667 | EM18: =FrameDryingdata!AS$30 -> 43.375 | EN18: =FrameDryingdata!AT$30 -> 6.083333333 | EO18: =FrameDryingdata!AU$30 -> 135.8958333 | EP18: =FrameDryingdata!AV$30 -> 104.6458333 | EQ18: =FrameDryingdata!AW$30 -> 74.45833333 | ER18: =FrameDryingdata!AX$30 -> 43.72916667 | ES18: =FrameDryingdata!AY$30 -> 5.416666667 | ET18: =FrameDryingdata!AZ$30 -> 128.2083333 | EU18: =FrameDryingdata!BA$30 -> 98.5 | EV18: =FrameDryingdata!BB$30 -> 71.70833333 | EW18: =FrameDryingdata!BC$30 -> 43.58333333 | EX18: =FrameDryingdata!BD$30 -> 5.958333333 | EY18: =FrameDryingdata!BE$30 -> 126.4791667 | EZ18: =FrameDryingdata!BF$30 -> 97.91666667 | FA18: =FrameDryingdata!BG$30 -> 71.70833333 | FB18: =FrameDryingdata!BH$30 -> 44.60416667 | FC18: =FrameDryingdata!BI$30 -> 6.3125 | FD18: =FrameDryingdata!AP$64 -> 84.66666667 | FE18: =FrameDryingdata!AQ$64 -> 65.125 | FF18: =FrameDryingdata!AR$64 -> 47.45833333 | FG18: =FrameDryingdata!AS$64 -> 30.08333333 | FH18: =FrameDryingdata!AT$64 -> 5.083333333 | FI18: =FrameDryingdata!AU$64 -> 92.83333333 | FJ18: =FrameDryingdata!AV$64 -> 69.02083333 | FK18: =FrameDryingdata!AW$64 -> 49.27083333 | FL18: =FrameDryingdata!AX$64 -> 29.52083333 | FM18: =FrameDryingdata!AY$64 -> 4.5625 | FN18: =FrameDryingdata!AZ$64 -> 85.58333333 | FO18: =FrameDryingdata!BA$64 -> 65.08333333 | FP18: =FrameDryingdata!BB$64 -> 47.3125 | FQ18: =FrameDryingdata!BC$64 -> 30.10416667 | FR18: =FrameDryingdata!BD$64 -> 5.104166667 | FS18: =FrameDryingdata!BE$64 -> 85.77083333 | FT18: =FrameDryingdata!BF$64 -> 64.95833333 | FU18: =FrameDryingdata!BG$64 -> 47.16666667 | FV18: =FrameDryingdata!BH$64 -> 30.3125 | FW18: =FrameDryingdata!BI$64 -> 5.166666667
A19: Northland | B19: Drainage plane with top and bottom vents | C19: Exposed | D19: 0.3021983658 | E19: 0.3465869233 | F19: 0.25076754 | G19: 0.2855457558 | H19: 0.3727040766 | I19: 0.5612401898 | J19: 0.2297911731 | K19: 0.3762512477 | L19: 287.0861487 | M19: 289.9411317 | N19: 231.13593 | O19: 246.3385404 | P19: 328.0859543 | Q19: 416.9745166 | R19: 249.7886769 | S19: 339.5495199 | T19: =FrameDryingdata!B$13 -> 81.2 | U19: =FrameDryingdata!C$13 -> 61.55 | V19: =FrameDryingdata!D$13 -> 42.9 | W19: =FrameDryingdata!E$13 -> 26.6 | X19: =FrameDryingdata!F$13 -> 15.15 | Y19: =FrameDryingdata!G$13 -> 126.25 | Z19: =FrameDryingdata!H$13 -> 92.3 | AA19: =FrameDryingdata!I$13 -> 64.05 | AB19: =FrameDryingdata!J$13 -> 37.75 | AC19: =FrameDryingdata!K$13 -> 20.1 | AD19: =FrameDryingdata!L$13 -> 103.15 | AE19: =FrameDryingdata!M$13 -> 74.2 | AF19: =FrameDryingdata!N$13 -> 53.4 | AG19: =FrameDryingdata!O$13 -> 32.75 | AH19: =FrameDryingdata!P$13 -> 18.35 | AI19: =FrameDryingdata!Q$13 -> 107.6 | AJ19: =FrameDryingdata!R$13 -> 77.45 | AK19: =FrameDryingdata!S$13 -> 55.4 | AL19: =FrameDryingdata!T$13 -> 33.5 | AM19: =FrameDryingdata!U$13 -> 18.45 | AN19: 49.9 | AO19: 36.4 | AP19: 27.65 | AQ19: 17.65 | AR19: 10.65 | AS19: 72 | AT19: 47.8 | AU19: 32.6 | AV19: 21 | AW19: 11.7 | AX19: 51.6 | AY19: 38 | AZ19: 27.7 | BA19: 17.85 | BB19: 10.35 | BC19: 53.65 | BD19: 38.85 | BE19: 28.2 | BF19: 18.25 | BG19: 10.6 | BH19: =FrameDryingdata!B$30 -> 70.65 | BI19: =FrameDryingdata!C$30 -> 50.15 | BJ19: =FrameDryingdata!D$30 -> 32.9 | BK19: =FrameDryingdata!E$30 -> 18.35 | BL19: =FrameDryingdata!F$30 -> 5.7 | BM19: =FrameDryingdata!G$30 -> 75.95 | BN19: =FrameDryingdata!H$30 -> 56.45 | BO19: =FrameDryingdata!I$30 -> 36.05 | BP19: =FrameDryingdata!J$30 -> 19.05 | BQ19: =FrameDryingdata!K$30 -> 4.8 | BR19: =FrameDryingdata!L$30 -> 76.9 | BS19: =FrameDryingdata!M$30 -> 54.3 | BT19: =FrameDryingdata!N$30 -> 35.4 | BU19: =FrameDryingdata!O$30 -> 19.35 | BV19: =FrameDryingdata!P$30 -> 5.5 | BW19: =FrameDryingdata!Q$30 -> 75.3 | BX19: =FrameDryingdata!R$30 -> 53.65 | BY19: =FrameDryingdata!S$30 -> 35 | BZ19: =FrameDryingdata!T$30 -> 18.95 | CA19: =FrameDryingdata!U$30 -> 5.3 | CB19: =FrameDryingdata!B$64 -> 47.3 | CC19: =FrameDryingdata!C$64 -> 33.85 | CD19: =FrameDryingdata!D$64 -> 23.2 | CE19: =FrameDryingdata!E$64 -> 12.9 | CF19: =FrameDryingdata!F$64 -> 4.45 | CG19: =FrameDryingdata!G$64 -> 52.3 | CH19: =FrameDryingdata!H$64 -> 36.5 | CI19: =FrameDryingdata!I$64 -> 25.3 | CJ19: =FrameDryingdata!J$64 -> 14.3 | CK19: =FrameDryingdata!K$64 -> 4.6 | CL19: =FrameDryingdata!L$64 -> 47.35 | CM19: =FrameDryingdata!M$64 -> 33.6 | CN19: =FrameDryingdata!N$64 -> 23.15 | CO19: =FrameDryingdata!O$64 -> 12.75 | CP19: =FrameDryingdata!P$64 -> 4.15 | CQ19: =FrameDryingdata!Q$64 -> 47.85 | CR19: =FrameDryingdata!R$64 -> 34 | CS19: =FrameDryingdata!S$64 -> 23.5 | CT19: =FrameDryingdata!T$64 -> 13.35 | CU19: =FrameDryingdata!U$64 -> 4.6 | CV19: =FrameDryingdata!AP$13 -> 147.4375 | CW19: =FrameDryingdata!AQ$13 -> 116.4583333 | CX19: =FrameDryingdata!AR$13 -> 91.45833333 | CY19: =FrameDryingdata!AS$13 -> 67.64583333 | CZ19: =FrameDryingdata!AT$13 -> 35.02083333 | DA19: =FrameDryingdata!AU$13 -> 202.0833333 | DB19: =FrameDryingdata!AV$13 -> 164.6250002 | DC19: =FrameDryingdata!AW$13 -> 133.9791667 | DD19: =FrameDryingdata!AX$13 -> 98.02083333 | DE19: =FrameDryingdata!AY$13 -> 52 | DF19: =FrameDryingdata!AZ$13 -> 166.3958317 | DG19: =FrameDryingdata!BA$13 -> 135.5416667 | DH19: =FrameDryingdata!BB$13 -> 108.375 | DI19: =FrameDryingdata!BC$13 -> 78.97916667 | DJ19: =FrameDryingdata!BD$13 -> 38.0625 | DK19: =FrameDryingdata!BE$13 -> 172.1249833 | DL19: =FrameDryingdata!BF$13 -> 140.0416667 | DM19: =FrameDryingdata!BG$13 -> 112.6458333 | DN19: =FrameDryingdata!BH$13 -> 82.5625 | DO19: =FrameDryingdata!BI$13 -> 42.08333333 | DP19: =FrameDryingdata!AP$47 -> 99.08333333 | DQ19: =FrameDryingdata!AQ$47 -> 76.625 | DR19: =FrameDryingdata!AR$47 -> 59.4375 | DS19: =FrameDryingdata!AS$47 -> 43.10416667 | DT19: =FrameDryingdata!AT$47 -> 22.66666667 | DU19: =FrameDryingdata!AU$47 -> 195.875 | DV19: =FrameDryingdata!AV$47 -> 112.5208333 | DW19: =FrameDryingdata!AW$47 -> 80.4375 | DX19: =FrameDryingdata!AX$47 -> 51.60416667 | DY19: =FrameDryingdata!AY$47 -> 24.0625 | DZ19: =FrameDryingdata!AZ$47 -> 108 | EA19: =FrameDryingdata!BA$47 -> 78.64583333 | EB19: =FrameDryingdata!BB$47 -> 60.02083333 | EC19: =FrameDryingdata!BC$47 -> 42.89583333 | ED19: =FrameDryingdata!BD$47 -> 22.58333333 | EE19: =FrameDryingdata!BE$47 -> 117.125 | EF19: =FrameDryingdata!BF$47 -> 82.64583333 | EG19: =FrameDryingdata!BG$47 -> 61.1875 | EH19: =FrameDryingdata!BH$47 -> 43.54166667 | EI19: =FrameDryingdata!BI$47 -> 22.60416667 | EJ19: =FrameDryingdata!AP$30 -> 118.4583333 | EK19: =FrameDryingdata!AQ$30 -> 91.52083333 | EL19: =FrameDryingdata!AR$30 -> 68.10416667 | EM19: =FrameDryingdata!AS$30 -> 43.375 | EN19: =FrameDryingdata!AT$30 -> 6.083333333 | EO19: =FrameDryingdata!AU$30 -> 135.8958333 | EP19: =FrameDryingdata!AV$30 -> 104.6458333 | EQ19: =FrameDryingdata!AW$30 -> 74.45833333 | ER19: =FrameDryingdata!AX$30 -> 43.72916667 | ES19: =FrameDryingdata!AY$30 -> 5.416666667 | ET19: =FrameDryingdata!AZ$30 -> 128.2083333 | EU19: =FrameDryingdata!BA$30 -> 98.5 | EV19: =FrameDryingdata!BB$30 -> 71.70833333 | EW19: =FrameDryingdata!BC$30 -> 43.58333333 | EX19: =FrameDryingdata!BD$30 -> 5.958333333 | EY19: =FrameDryingdata!BE$30 -> 126.4791667 | EZ19: =FrameDryingdata!BF$30 -> 97.91666667 | FA19: =FrameDryingdata!BG$30 -> 71.70833333 | FB19: =FrameDryingdata!BH$30 -> 44.60416667 | FC19: =FrameDryingdata!BI$30 -> 6.3125 | FD19: =FrameDryingdata!AP$64 -> 84.66666667 | FE19: =FrameDryingdata!AQ$64 -> 65.125 | FF19: =FrameDryingdata!AR$64 -> 47.45833333 | FG19: =FrameDryingdata!AS$64 -> 30.08333333 | FH19: =FrameDryingdata!AT$64 -> 5.083333333 | FI19: =FrameDryingdata!AU$64 -> 92.83333333 | FJ19: =FrameDryingdata!AV$64 -> 69.02083333 | FK19: =FrameDryingdata!AW$64 -> 49.27083333 | FL19: =FrameDryingdata!AX$64 -> 29.52083333 | FM19: =FrameDryingdata!AY$64 -> 4.5625 | FN19: =FrameDryingdata!AZ$64 -> 85.58333333 | FO19: =FrameDryingdata!BA$64 -> 65.08333333 | FP19: =FrameDryingdata!BB$64 -> 47.3125 | FQ19: =FrameDryingdata!BC$64 -> 30.10416667 | FR19: =FrameDryingdata!BD$64 -> 5.104166667 | FS19: =FrameDryingdata!BE$64 -> 85.77083333 | FT19: =FrameDryingdata!BF$64 -> 64.95833333 | FU19: =FrameDryingdata!BG$64 -> 47.16666667 | FV19: =FrameDryingdata!BH$64 -> 30.3125 | FW19: =FrameDryingdata!BI$64 -> 5.166666667
A20: Northland | B20: Drainage plane with top and bottom vents | C20: Semi-exposed | D20: 0.2526306879 | E20: 0.2238138724 | F20: 0.2052261704 | G20: 0.2062264994 | H20: 0.3541959229 | I20: 0.5076238306 | J20: 0.2067633808 | K20: 0.3084570977 | L20: 262.4808766 | M20: 213.2836317 | N20: 190.106784 | O20: 198.1887561 | P20: 312.8914329 | Q20: 359.5737109 | R20: 222.1360887 | S20: 275.0629833 | T20: =FrameDryingdata!B$13 -> 81.2 | U20: =FrameDryingdata!C$13 -> 61.55 | V20: =FrameDryingdata!D$13 -> 42.9 | W20: =FrameDryingdata!E$13 -> 26.6 | X20: =FrameDryingdata!F$13 -> 15.15 | Y20: =FrameDryingdata!G$13 -> 126.25 | Z20: =FrameDryingdata!H$13 -> 92.3 | AA20: =FrameDryingdata!I$13 -> 64.05 | AB20: =FrameDryingdata!J$13 -> 37.75 | AC20: =FrameDryingdata!K$13 -> 20.1 | AD20: =FrameDryingdata!L$13 -> 103.15 | AE20: =FrameDryingdata!M$13 -> 74.2 | AF20: =FrameDryingdata!N$13 -> 53.4 | AG20: =FrameDryingdata!O$13 -> 32.75 | AH20: =FrameDryingdata!P$13 -> 18.35 | AI20: =FrameDryingdata!Q$13 -> 107.6 | AJ20: =FrameDryingdata!R$13 -> 77.45 | AK20: =FrameDryingdata!S$13 -> 55.4 | AL20: =FrameDryingdata!T$13 -> 33.5 | AM20: =FrameDryingdata!U$13 -> 18.45 | AN20: 49.9 | AO20: 36.4 | AP20: 27.65 | AQ20: 17.65 | AR20: 10.65 | AS20: 72 | AT20: 47.8 | AU20: 32.6 | AV20: 21 | AW20: 11.7 | AX20: 51.6 | AY20: 38 | AZ20: 27.7 | BA20: 17.85 | BB20: 10.35 | BC20: 53.65 | BD20: 38.85 | BE20: 28.2 | BF20: 18.25 | BG20: 10.6 | BH20: =FrameDryingdata!B$30 -> 70.65 | BI20: =FrameDryingdata!C$30 -> 50.15 | BJ20: =FrameDryingdata!D$30 -> 32.9 | BK20: =FrameDryingdata!E$30 -> 18.35 | BL20: =FrameDryingdata!F$30 -> 5.7 | BM20: =FrameDryingdata!G$30 -> 75.95 | BN20: =FrameDryingdata!H$30 -> 56.45 | BO20: =FrameDryingdata!I$30 -> 36.05 | BP20: =FrameDryingdata!J$30 -> 19.05 | BQ20: =FrameDryingdata!K$30 -> 4.8 | BR20: =FrameDryingdata!L$30 -> 76.9 | BS20: =FrameDryingdata!M$30 -> 54.3 | BT20: =FrameDryingdata!N$30 -> 35.4 | BU20: =FrameDryingdata!O$30 -> 19.35 | BV20: =FrameDryingdata!P$30 -> 5.5 | BW20: =FrameDryingdata!Q$30 -> 75.3 | BX20: =FrameDryingdata!R$30 -> 53.65 | BY20: =FrameDryingdata!S$30 -> 35 | BZ20: =FrameDryingdata!T$30 -> 18.95 | CA20: =FrameDryingdata!U$30 -> 5.3 | CB20: =FrameDryingdata!B$64 -> 47.3 | CC20: =FrameDryingdata!C$64 -> 33.85 | CD20: =FrameDryingdata!D$64 -> 23.2 | CE20: =FrameDryingdata!E$64 -> 12.9 | CF20: =FrameDryingdata!F$64 -> 4.45 | CG20: =FrameDryingdata!G$64 -> 52.3 | CH20: =FrameDryingdata!H$64 -> 36.5 | CI20: =FrameDryingdata!I$64 -> 25.3 | CJ20: =FrameDryingdata!J$64 -> 14.3 | CK20: =FrameDryingdata!K$64 -> 4.6 | CL20: =FrameDryingdata!L$64 -> 47.35 | CM20: =FrameDryingdata!M$64 -> 33.6 | CN20: =FrameDryingdata!N$64 -> 23.15 | CO20: =FrameDryingdata!O$64 -> 12.75 | CP20: =FrameDryingdata!P$64 -> 4.15 | CQ20: =FrameDryingdata!Q$64 -> 47.85 | CR20: =FrameDryingdata!R$64 -> 34 | CS20: =FrameDryingdata!S$64 -> 23.5 | CT20: =FrameDryingdata!T$64 -> 13.35 | CU20: =FrameDryingdata!U$64 -> 4.6 | CV20: =FrameDryingdata!AP$13 -> 147.4375 | CW20: =FrameDryingdata!AQ$13 -> 116.4583333 | CX20: =FrameDryingdata!AR$13 -> 91.45833333 | CY20: =FrameDryingdata!AS$13 -> 67.64583333 | CZ20: =FrameDryingdata!AT$13 -> 35.02083333 | DA20: =FrameDryingdata!AU$13 -> 202.0833333 | DB20: =FrameDryingdata!AV$13 -> 164.6250002 | DC20: =FrameDryingdata!AW$13 -> 133.9791667 | DD20: =FrameDryingdata!AX$13 -> 98.02083333 | DE20: =FrameDryingdata!AY$13 -> 52 | DF20: =FrameDryingdata!AZ$13 -> 166.3958317 | DG20: =FrameDryingdata!BA$13 -> 135.5416667 | DH20: =FrameDryingdata!BB$13 -> 108.375 | DI20: =FrameDryingdata!BC$13 -> 78.97916667 | DJ20: =FrameDryingdata!BD$13 -> 38.0625 | DK20: =FrameDryingdata!BE$13 -> 172.1249833 | DL20: =FrameDryingdata!BF$13 -> 140.0416667 | DM20: =FrameDryingdata!BG$13 -> 112.6458333 | DN20: =FrameDryingdata!BH$13 -> 82.5625 | DO20: =FrameDryingdata!BI$13 -> 42.08333333 | DP20: =FrameDryingdata!AP$47 -> 99.08333333 | DQ20: =FrameDryingdata!AQ$47 -> 76.625 | DR20: =FrameDryingdata!AR$47 -> 59.4375 | DS20: =FrameDryingdata!AS$47 -> 43.10416667 | DT20: =FrameDryingdata!AT$47 -> 22.66666667 | DU20: =FrameDryingdata!AU$47 -> 195.875 | DV20: =FrameDryingdata!AV$47 -> 112.5208333 | DW20: =FrameDryingdata!AW$47 -> 80.4375 | DX20: =FrameDryingdata!AX$47 -> 51.60416667 | DY20: =FrameDryingdata!AY$47 -> 24.0625 | DZ20: =FrameDryingdata!AZ$47 -> 108 | EA20: =FrameDryingdata!BA$47 -> 78.64583333 | EB20: =FrameDryingdata!BB$47 -> 60.02083333 | EC20: =FrameDryingdata!BC$47 -> 42.89583333 | ED20: =FrameDryingdata!BD$47 -> 22.58333333 | EE20: =FrameDryingdata!BE$47 -> 117.125 | EF20: =FrameDryingdata!BF$47 -> 82.64583333 | EG20: =FrameDryingdata!BG$47 -> 61.1875 | EH20: =FrameDryingdata!BH$47 -> 43.54166667 | EI20: =FrameDryingdata!BI$47 -> 22.60416667 | EJ20: =FrameDryingdata!AP$30 -> 118.4583333 | EK20: =FrameDryingdata!AQ$30 -> 91.52083333 | EL20: =FrameDryingdata!AR$30 -> 68.10416667 | EM20: =FrameDryingdata!AS$30 -> 43.375 | EN20: =FrameDryingdata!AT$30 -> 6.083333333 | EO20: =FrameDryingdata!AU$30 -> 135.8958333 | EP20: =FrameDryingdata!AV$30 -> 104.6458333 | EQ20: =FrameDryingdata!AW$30 -> 74.45833333 | ER20: =FrameDryingdata!AX$30 -> 43.72916667 | ES20: =FrameDryingdata!AY$30 -> 5.416666667 | ET20: =FrameDryingdata!AZ$30 -> 128.2083333 | EU20: =FrameDryingdata!BA$30 -> 98.5 | EV20: =FrameDryingdata!BB$30 -> 71.70833333 | EW20: =FrameDryingdata!BC$30 -> 43.58333333 | EX20: =FrameDryingdata!BD$30 -> 5.958333333 | EY20: =FrameDryingdata!BE$30 -> 126.4791667 | EZ20: =FrameDryingdata!BF$30 -> 97.91666667 | FA20: =FrameDryingdata!BG$30 -> 71.70833333 | FB20: =FrameDryingdata!BH$30 -> 44.60416667 | FC20: =FrameDryingdata!BI$30 -> 6.3125 | FD20: =FrameDryingdata!AP$64 -> 84.66666667 | FE20: =FrameDryingdata!AQ$64 -> 65.125 | FF20: =FrameDryingdata!AR$64 -> 47.45833333 | FG20: =FrameDryingdata!AS$64 -> 30.08333333 | FH20: =FrameDryingdata!AT$64 -> 5.083333333 | FI20: =FrameDryingdata!AU$64 -> 92.83333333 | FJ20: =FrameDryingdata!AV$64 -> 69.02083333 | FK20: =FrameDryingdata!AW$64 -> 49.27083333 | FL20: =FrameDryingdata!AX$64 -> 29.52083333 | FM20: =FrameDryingdata!AY$64 -> 4.5625 | FN20: =FrameDryingdata!AZ$64 -> 85.58333333 | FO20: =FrameDryingdata!BA$64 -> 65.08333333 | FP20: =FrameDryingdata!BB$64 -> 47.3125 | FQ20: =FrameDryingdata!BC$64 -> 30.10416667 | FR20: =FrameDryingdata!BD$64 -> 5.104166667 | FS20: =FrameDryingdata!BE$64 -> 85.77083333 | FT20: =FrameDryingdata!BF$64 -> 64.95833333 | FU20: =FrameDryingdata!BG$64 -> 47.16666667 | FV20: =FrameDryingdata!BH$64 -> 30.3125 | FW20: =FrameDryingdata!BI$64 -> 5.166666667
A21: Northland | B21: Drainage plane with top and bottom vents | C21: Semi-sheltered | D21: 0.1808756036 | E21: 0.1760690595 | F21: 0.1184772265 | G21: 0.1737672773 | H21: 0.3159453847 | I21: 0.4907375239 | J21: 0.159217616 | K21: 0.2931376221 | L21: 221.8486945 | M21: 178.6177185 | N21: 115.3803077 | O21: 174.1385521 | P21: 276.1794772 | Q21: 347.2654311 | R21: 161.6485167 | S21: 258.3939225 | T21: =FrameDryingdata!B$13 -> 81.2 | U21: =FrameDryingdata!C$13 -> 61.55 | V21: =FrameDryingdata!D$13 -> 42.9 | W21: =FrameDryingdata!E$13 -> 26.6 | X21: =FrameDryingdata!F$13 -> 15.15 | Y21: =FrameDryingdata!G$13 -> 126.25 | Z21: =FrameDryingdata!H$13 -> 92.3 | AA21: =FrameDryingdata!I$13 -> 64.05 | AB21: =FrameDryingdata!J$13 -> 37.75 | AC21: =FrameDryingdata!K$13 -> 20.1 | AD21: =FrameDryingdata!L$13 -> 103.15 | AE21: =FrameDryingdata!M$13 -> 74.2 | AF21: =FrameDryingdata!N$13 -> 53.4 | AG21: =FrameDryingdata!O$13 -> 32.75 | AH21: =FrameDryingdata!P$13 -> 18.35 | AI21: =FrameDryingdata!Q$13 -> 107.6 | AJ21: =FrameDryingdata!R$13 -> 77.45 | AK21: =FrameDryingdata!S$13 -> 55.4 | AL21: =FrameDryingdata!T$13 -> 33.5 | AM21: =FrameDryingdata!U$13 -> 18.45 | AN21: 49.9 | AO21: 36.4 | AP21: 27.65 | AQ21: 17.65 | AR21: 10.65 | AS21: 72 | AT21: 47.8 | AU21: 32.6 | AV21: 21 | AW21: 11.7 | AX21: 51.6 | AY21: 38 | AZ21: 27.7 | BA21: 17.85 | BB21: 10.35 | BC21: 53.65 | BD21: 38.85 | BE21: 28.2 | BF21: 18.25 | BG21: 10.6 | BH21: =FrameDryingdata!B$30 -> 70.65 | BI21: =FrameDryingdata!C$30 -> 50.15 | BJ21: =FrameDryingdata!D$30 -> 32.9 | BK21: =FrameDryingdata!E$30 -> 18.35 | BL21: =FrameDryingdata!F$30 -> 5.7 | BM21: =FrameDryingdata!G$30 -> 75.95 | BN21: =FrameDryingdata!H$30 -> 56.45 | BO21: =FrameDryingdata!I$30 -> 36.05 | BP21: =FrameDryingdata!J$30 -> 19.05 | BQ21: =FrameDryingdata!K$30 -> 4.8 | BR21: =FrameDryingdata!L$30 -> 76.9 | BS21: =FrameDryingdata!M$30 -> 54.3 | BT21: =FrameDryingdata!N$30 -> 35.4 | BU21: =FrameDryingdata!O$30 -> 19.35 | BV21: =FrameDryingdata!P$30 -> 5.5 | BW21: =FrameDryingdata!Q$30 -> 75.3 | BX21: =FrameDryingdata!R$30 -> 53.65 | BY21: =FrameDryingdata!S$30 -> 35 | BZ21: =FrameDryingdata!T$30 -> 18.95 | CA21: =FrameDryingdata!U$30 -> 5.3 | CB21: =FrameDryingdata!B$64 -> 47.3 | CC21: =FrameDryingdata!C$64 -> 33.85 | CD21: =FrameDryingdata!D$64 -> 23.2 | CE21: =FrameDryingdata!E$64 -> 12.9 | CF21: =FrameDryingdata!F$64 -> 4.45 | CG21: =FrameDryingdata!G$64 -> 52.3 | CH21: =FrameDryingdata!H$64 -> 36.5 | CI21: =FrameDryingdata!I$64 -> 25.3 | CJ21: =FrameDryingdata!J$64 -> 14.3 | CK21: =FrameDryingdata!K$64 -> 4.6 | CL21: =FrameDryingdata!L$64 -> 47.35 | CM21: =FrameDryingdata!M$64 -> 33.6 | CN21: =FrameDryingdata!N$64 -> 23.15 | CO21: =FrameDryingdata!O$64 -> 12.75 | CP21: =FrameDryingdata!P$64 -> 4.15 | CQ21: =FrameDryingdata!Q$64 -> 47.85 | CR21: =FrameDryingdata!R$64 -> 34 | CS21: =FrameDryingdata!S$64 -> 23.5 | CT21: =FrameDryingdata!T$64 -> 13.35 | CU21: =FrameDryingdata!U$64 -> 4.6 | CV21: =FrameDryingdata!AP$13 -> 147.4375 | CW21: =FrameDryingdata!AQ$13 -> 116.4583333 | CX21: =FrameDryingdata!AR$13 -> 91.45833333 | CY21: =FrameDryingdata!AS$13 -> 67.64583333 | CZ21: =FrameDryingdata!AT$13 -> 35.02083333 | DA21: =FrameDryingdata!AU$13 -> 202.0833333 | DB21: =FrameDryingdata!AV$13 -> 164.6250002 | DC21: =FrameDryingdata!AW$13 -> 133.9791667 | DD21: =FrameDryingdata!AX$13 -> 98.02083333 | DE21: =FrameDryingdata!AY$13 -> 52 | DF21: =FrameDryingdata!AZ$13 -> 166.3958317 | DG21: =FrameDryingdata!BA$13 -> 135.5416667 | DH21: =FrameDryingdata!BB$13 -> 108.375 | DI21: =FrameDryingdata!BC$13 -> 78.97916667 | DJ21: =FrameDryingdata!BD$13 -> 38.0625 | DK21: =FrameDryingdata!BE$13 -> 172.1249833 | DL21: =FrameDryingdata!BF$13 -> 140.0416667 | DM21: =FrameDryingdata!BG$13 -> 112.6458333 | DN21: =FrameDryingdata!BH$13 -> 82.5625 | DO21: =FrameDryingdata!BI$13 -> 42.08333333 | DP21: =FrameDryingdata!AP$47 -> 99.08333333 | DQ21: =FrameDryingdata!AQ$47 -> 76.625 | DR21: =FrameDryingdata!AR$47 -> 59.4375 | DS21: =FrameDryingdata!AS$47 -> 43.10416667 | DT21: =FrameDryingdata!AT$47 -> 22.66666667 | DU21: =FrameDryingdata!AU$47 -> 195.875 | DV21: =FrameDryingdata!AV$47 -> 112.5208333 | DW21: =FrameDryingdata!AW$47 -> 80.4375 | DX21: =FrameDryingdata!AX$47 -> 51.60416667 | DY21: =FrameDryingdata!AY$47 -> 24.0625 | DZ21: =FrameDryingdata!AZ$47 -> 108 | EA21: =FrameDryingdata!BA$47 -> 78.64583333 | EB21: =FrameDryingdata!BB$47 -> 60.02083333 | EC21: =FrameDryingdata!BC$47 -> 42.89583333 | ED21: =FrameDryingdata!BD$47 -> 22.58333333 | EE21: =FrameDryingdata!BE$47 -> 117.125 | EF21: =FrameDryingdata!BF$47 -> 82.64583333 | EG21: =FrameDryingdata!BG$47 -> 61.1875 | EH21: =FrameDryingdata!BH$47 -> 43.54166667 | EI21: =FrameDryingdata!BI$47 -> 22.60416667 | EJ21: =FrameDryingdata!AP$30 -> 118.4583333 | EK21: =FrameDryingdata!AQ$30 -> 91.52083333 | EL21: =FrameDryingdata!AR$30 -> 68.10416667 | EM21: =FrameDryingdata!AS$30 -> 43.375 | EN21: =FrameDryingdata!AT$30 -> 6.083333333 | EO21: =FrameDryingdata!AU$30 -> 135.8958333 | EP21: =FrameDryingdata!AV$30 -> 104.6458333 | EQ21: =FrameDryingdata!AW$30 -> 74.45833333 | ER21: =FrameDryingdata!AX$30 -> 43.72916667 | ES21: =FrameDryingdata!AY$30 -> 5.416666667 | ET21: =FrameDryingdata!AZ$30 -> 128.2083333 | EU21: =FrameDryingdata!BA$30 -> 98.5 | EV21: =FrameDryingdata!BB$30 -> 71.70833333 | EW21: =FrameDryingdata!BC$30 -> 43.58333333 | EX21: =FrameDryingdata!BD$30 -> 5.958333333 | EY21: =FrameDryingdata!BE$30 -> 126.4791667 | EZ21: =FrameDryingdata!BF$30 -> 97.91666667 | FA21: =FrameDryingdata!BG$30 -> 71.70833333 | FB21: =FrameDryingdata!BH$30 -> 44.60416667 | FC21: =FrameDryingdata!BI$30 -> 6.3125 | FD21: =FrameDryingdata!AP$64 -> 84.66666667 | FE21: =FrameDryingdata!AQ$64 -> 65.125 | FF21: =FrameDryingdata!AR$64 -> 47.45833333 | FG21: =FrameDryingdata!AS$64 -> 30.08333333 | FH21: =FrameDryingdata!AT$64 -> 5.083333333 | FI21: =FrameDryingdata!AU$64 -> 92.83333333 | FJ21: =FrameDryingdata!AV$64 -> 69.02083333 | FK21: =FrameDryingdata!AW$64 -> 49.27083333 | FL21: =FrameDryingdata!AX$64 -> 29.52083333 | FM21: =FrameDryingdata!AY$64 -> 4.5625 | FN21: =FrameDryingdata!AZ$64 -> 85.58333333 | FO21: =FrameDryingdata!BA$64 -> 65.08333333 | FP21: =FrameDryingdata!BB$64 -> 47.3125 | FQ21: =FrameDryingdata!BC$64 -> 30.10416667 | FR21: =FrameDryingdata!BD$64 -> 5.104166667 | FS21: =FrameDryingdata!BE$64 -> 85.77083333 | FT21: =FrameDryingdata!BF$64 -> 64.95833333 | FU21: =FrameDryingdata!BG$64 -> 47.16666667 | FV21: =FrameDryingdata!BH$64 -> 30.3125 | FW21: =FrameDryingdata!BI$64 -> 5.166666667
A22: Northland | B22: Drainage plane with top and bottom vents | C22: Sheltered | D22: 0.1230054626 | E22: 0.1031202145 | F22: 0.07001555498 | G22: 0.1038805675 | H22: 0.2923675274 | I22: 0.4525361247 | J22: 0.1289576973 | K22: 0.2471111458 | L22: 182.7128546 | M22: 121.8269648 | N22: 68.31338577 | O22: 118.8991925 | P22: 249.6956337 | Q22: 299.7445759 | R22: 122.6443965 | S22: 207.3753261 | T22: =FrameDryingdata!B$13 -> 81.2 | U22: =FrameDryingdata!C$13 -> 61.55 | V22: =FrameDryingdata!D$13 -> 42.9 | W22: =FrameDryingdata!E$13 -> 26.6 | X22: =FrameDryingdata!F$13 -> 15.15 | Y22: =FrameDryingdata!G$13 -> 126.25 | Z22: =FrameDryingdata!H$13 -> 92.3 | AA22: =FrameDryingdata!I$13 -> 64.05 | AB22: =FrameDryingdata!J$13 -> 37.75 | AC22: =FrameDryingdata!K$13 -> 20.1 | AD22: =FrameDryingdata!L$13 -> 103.15 | AE22: =FrameDryingdata!M$13 -> 74.2 | AF22: =FrameDryingdata!N$13 -> 53.4 | AG22: =FrameDryingdata!O$13 -> 32.75 | AH22: =FrameDryingdata!P$13 -> 18.35 | AI22: =FrameDryingdata!Q$13 -> 107.6 | AJ22: =FrameDryingdata!R$13 -> 77.45 | AK22: =FrameDryingdata!S$13 -> 55.4 | AL22: =FrameDryingdata!T$13 -> 33.5 | AM22: =FrameDryingdata!U$13 -> 18.45 | AN22: 49.9 | AO22: 36.4 | AP22: 27.65 | AQ22: 17.65 | AR22: 10.65 | AS22: 72 | AT22: 47.8 | AU22: 32.6 | AV22: 21 | AW22: 11.7 | AX22: 51.6 | AY22: 38 | AZ22: 27.7 | BA22: 17.85 | BB22: 10.35 | BC22: 53.65 | BD22: 38.85 | BE22: 28.2 | BF22: 18.25 | BG22: 10.6 | BH22: =FrameDryingdata!B$30 -> 70.65 | BI22: =FrameDryingdata!C$30 -> 50.15 | BJ22: =FrameDryingdata!D$30 -> 32.9 | BK22: =FrameDryingdata!E$30 -> 18.35 | BL22: =FrameDryingdata!F$30 -> 5.7 | BM22: =FrameDryingdata!G$30 -> 75.95 | BN22: =FrameDryingdata!H$30 -> 56.45 | BO22: =FrameDryingdata!I$30 -> 36.05 | BP22: =FrameDryingdata!J$30 -> 19.05 | BQ22: =FrameDryingdata!K$30 -> 4.8 | BR22: =FrameDryingdata!L$30 -> 76.9 | BS22: =FrameDryingdata!M$30 -> 54.3 | BT22: =FrameDryingdata!N$30 -> 35.4 | BU22: =FrameDryingdata!O$30 -> 19.35 | BV22: =FrameDryingdata!P$30 -> 5.5 | BW22: =FrameDryingdata!Q$30 -> 75.3 | BX22: =FrameDryingdata!R$30 -> 53.65 | BY22: =FrameDryingdata!S$30 -> 35 | BZ22: =FrameDryingdata!T$30 -> 18.95 | CA22: =FrameDryingdata!U$30 -> 5.3 | CB22: =FrameDryingdata!B$64 -> 47.3 | CC22: =FrameDryingdata!C$64 -> 33.85 | CD22: =FrameDryingdata!D$64 -> 23.2 | CE22: =FrameDryingdata!E$64 -> 12.9 | CF22: =FrameDryingdata!F$64 -> 4.45 | CG22: =FrameDryingdata!G$64 -> 52.3 | CH22: =FrameDryingdata!H$64 -> 36.5 | CI22: =FrameDryingdata!I$64 -> 25.3 | CJ22: =FrameDryingdata!J$64 -> 14.3 | CK22: =FrameDryingdata!K$64 -> 4.6 | CL22: =FrameDryingdata!L$64 -> 47.35 | CM22: =FrameDryingdata!M$64 -> 33.6 | CN22: =FrameDryingdata!N$64 -> 23.15 | CO22: =FrameDryingdata!O$64 -> 12.75 | CP22: =FrameDryingdata!P$64 -> 4.15 | CQ22: =FrameDryingdata!Q$64 -> 47.85 | CR22: =FrameDryingdata!R$64 -> 34 | CS22: =FrameDryingdata!S$64 -> 23.5 | CT22: =FrameDryingdata!T$64 -> 13.35 | CU22: =FrameDryingdata!U$64 -> 4.6 | CV22: =FrameDryingdata!AP$13 -> 147.4375 | CW22: =FrameDryingdata!AQ$13 -> 116.4583333 | CX22: =FrameDryingdata!AR$13 -> 91.45833333 | CY22: =FrameDryingdata!AS$13 -> 67.64583333 | CZ22: =FrameDryingdata!AT$13 -> 35.02083333 | DA22: =FrameDryingdata!AU$13 -> 202.0833333 | DB22: =FrameDryingdata!AV$13 -> 164.6250002 | DC22: =FrameDryingdata!AW$13 -> 133.9791667 | DD22: =FrameDryingdata!AX$13 -> 98.02083333 | DE22: =FrameDryingdata!AY$13 -> 52 | DF22: =FrameDryingdata!AZ$13 -> 166.3958317 | DG22: =FrameDryingdata!BA$13 -> 135.5416667 | DH22: =FrameDryingdata!BB$13 -> 108.375 | DI22: =FrameDryingdata!BC$13 -> 78.97916667 | DJ22: =FrameDryingdata!BD$13 -> 38.0625 | DK22: =FrameDryingdata!BE$13 -> 172.1249833 | DL22: =FrameDryingdata!BF$13 -> 140.0416667 | DM22: =FrameDryingdata!BG$13 -> 112.6458333 | DN22: =FrameDryingdata!BH$13 -> 82.5625 | DO22: =FrameDryingdata!BI$13 -> 42.08333333 | DP22: =FrameDryingdata!AP$47 -> 99.08333333 | DQ22: =FrameDryingdata!AQ$47 -> 76.625 | DR22: =FrameDryingdata!AR$47 -> 59.4375 | DS22: =FrameDryingdata!AS$47 -> 43.10416667 | DT22: =FrameDryingdata!AT$47 -> 22.66666667 | DU22: =FrameDryingdata!AU$47 -> 195.875 | DV22: =FrameDryingdata!AV$47 -> 112.5208333 | DW22: =FrameDryingdata!AW$47 -> 80.4375 | DX22: =FrameDryingdata!AX$47 -> 51.60416667 | DY22: =FrameDryingdata!AY$47 -> 24.0625 | DZ22: =FrameDryingdata!AZ$47 -> 108 | EA22: =FrameDryingdata!BA$47 -> 78.64583333 | EB22: =FrameDryingdata!BB$47 -> 60.02083333 | EC22: =FrameDryingdata!BC$47 -> 42.89583333 | ED22: =FrameDryingdata!BD$47 -> 22.58333333 | EE22: =FrameDryingdata!BE$47 -> 117.125 | EF22: =FrameDryingdata!BF$47 -> 82.64583333 | EG22: =FrameDryingdata!BG$47 -> 61.1875 | EH22: =FrameDryingdata!BH$47 -> 43.54166667 | EI22: =FrameDryingdata!BI$47 -> 22.60416667 | EJ22: =FrameDryingdata!AP$30 -> 118.4583333 | EK22: =FrameDryingdata!AQ$30 -> 91.52083333 | EL22: =FrameDryingdata!AR$30 -> 68.10416667 | EM22: =FrameDryingdata!AS$30 -> 43.375 | EN22: =FrameDryingdata!AT$30 -> 6.083333333 | EO22: =FrameDryingdata!AU$30 -> 135.8958333 | EP22: =FrameDryingdata!AV$30 -> 104.6458333 | EQ22: =FrameDryingdata!AW$30 -> 74.45833333 | ER22: =FrameDryingdata!AX$30 -> 43.72916667 | ES22: =FrameDryingdata!AY$30 -> 5.416666667 | ET22: =FrameDryingdata!AZ$30 -> 128.2083333 | EU22: =FrameDryingdata!BA$30 -> 98.5 | EV22: =FrameDryingdata!BB$30 -> 71.70833333 | EW22: =FrameDryingdata!BC$30 -> 43.58333333 | EX22: =FrameDryingdata!BD$30 -> 5.958333333 | EY22: =FrameDryingdata!BE$30 -> 126.4791667 | EZ22: =FrameDryingdata!BF$30 -> 97.91666667 | FA22: =FrameDryingdata!BG$30 -> 71.70833333 | FB22: =FrameDryingdata!BH$30 -> 44.60416667 | FC22: =FrameDryingdata!BI$30 -> 6.3125 | FD22: =FrameDryingdata!AP$64 -> 84.66666667 | FE22: =FrameDryingdata!AQ$64 -> 65.125 | FF22: =FrameDryingdata!AR$64 -> 47.45833333 | FG22: =FrameDryingdata!AS$64 -> 30.08333333 | FH22: =FrameDryingdata!AT$64 -> 5.083333333 | FI22: =FrameDryingdata!AU$64 -> 92.83333333 | FJ22: =FrameDryingdata!AV$64 -> 69.02083333 | FK22: =FrameDryingdata!AW$64 -> 49.27083333 | FL22: =FrameDryingdata!AX$64 -> 29.52083333 | FM22: =FrameDryingdata!AY$64 -> 4.5625 | FN22: =FrameDryingdata!AZ$64 -> 85.58333333 | FO22: =FrameDryingdata!BA$64 -> 65.08333333 | FP22: =FrameDryingdata!BB$64 -> 47.3125 | FQ22: =FrameDryingdata!BC$64 -> 30.10416667 | FR22: =FrameDryingdata!BD$64 -> 5.104166667 | FS22: =FrameDryingdata!BE$64 -> 85.77083333 | FT22: =FrameDryingdata!BF$64 -> 64.95833333 | FU22: =FrameDryingdata!BG$64 -> 47.16666667 | FV22: =FrameDryingdata!BH$64 -> 30.3125 | FW22: =FrameDryingdata!BI$64 -> 5.166666667
A23: Northland | B23: Direct fixed weatherboards warped and leaky | C23: Exposed | D23: 2.426704109 | E23: 3.405876626 | F23: 2.368151089 | G23: 2.673935411 | H23: 2.315590975 | I23: 3.107244179 | J23: 2.133842983 | K23: 2.49993376 | L23: 551.7873481 | M23: 453.5006779 | N23: 392.495949 | O23: 436.4568932 | P23: 674.0239449 | Q23: 641.9987658 | R23: 538.1560388 | S23: 622.0800002 | T23: =FrameDryingdata!B$13 -> 81.2 | U23: =FrameDryingdata!C$13 -> 61.55 | V23: =FrameDryingdata!D$13 -> 42.9 | W23: =FrameDryingdata!E$13 -> 26.6 | X23: =FrameDryingdata!F$13 -> 15.15 | Y23: =FrameDryingdata!G$13 -> 126.25 | Z23: =FrameDryingdata!H$13 -> 92.3 | AA23: =FrameDryingdata!I$13 -> 64.05 | AB23: =FrameDryingdata!J$13 -> 37.75 | AC23: =FrameDryingdata!K$13 -> 20.1 | AD23: =FrameDryingdata!L$13 -> 103.15 | AE23: =FrameDryingdata!M$13 -> 74.2 | AF23: =FrameDryingdata!N$13 -> 53.4 | AG23: =FrameDryingdata!O$13 -> 32.75 | AH23: =FrameDryingdata!P$13 -> 18.35 | AI23: =FrameDryingdata!Q$13 -> 107.6 | AJ23: =FrameDryingdata!R$13 -> 77.45 | AK23: =FrameDryingdata!S$13 -> 55.4 | AL23: =FrameDryingdata!T$13 -> 33.5 | AM23: =FrameDryingdata!U$13 -> 18.45 | AN23: 49.9 | AO23: 36.4 | AP23: 27.65 | AQ23: 17.65 | AR23: 10.65 | AS23: 72 | AT23: 47.8 | AU23: 32.6 | AV23: 21 | AW23: 11.7 | AX23: 51.6 | AY23: 38 | AZ23: 27.7 | BA23: 17.85 | BB23: 10.35 | BC23: 53.65 | BD23: 38.85 | BE23: 28.2 | BF23: 18.25 | BG23: 10.6 | BH23: =FrameDryingdata!B$30 -> 70.65 | BI23: =FrameDryingdata!C$30 -> 50.15 | BJ23: =FrameDryingdata!D$30 -> 32.9 | BK23: =FrameDryingdata!E$30 -> 18.35 | BL23: =FrameDryingdata!F$30 -> 5.7 | BM23: =FrameDryingdata!G$30 -> 75.95 | BN23: =FrameDryingdata!H$30 -> 56.45 | BO23: =FrameDryingdata!I$30 -> 36.05 | BP23: =FrameDryingdata!J$30 -> 19.05 | BQ23: =FrameDryingdata!K$30 -> 4.8 | BR23: =FrameDryingdata!L$30 -> 76.9 | BS23: =FrameDryingdata!M$30 -> 54.3 | BT23: =FrameDryingdata!N$30 -> 35.4 | BU23: =FrameDryingdata!O$30 -> 19.35 | BV23: =FrameDryingdata!P$30 -> 5.5 | BW23: =FrameDryingdata!Q$30 -> 75.3 | BX23: =FrameDryingdata!R$30 -> 53.65 | BY23: =FrameDryingdata!S$30 -> 35 | BZ23: =FrameDryingdata!T$30 -> 18.95 | CA23: =FrameDryingdata!U$30 -> 5.3 | CB23: =FrameDryingdata!B$64 -> 47.3 | CC23: =FrameDryingdata!C$64 -> 33.85 | CD23: =FrameDryingdata!D$64 -> 23.2 | CE23: =FrameDryingdata!E$64 -> 12.9 | CF23: =FrameDryingdata!F$64 -> 4.45 | CG23: =FrameDryingdata!G$64 -> 52.3 | CH23: =FrameDryingdata!H$64 -> 36.5 | CI23: =FrameDryingdata!I$64 -> 25.3 | CJ23: =FrameDryingdata!J$64 -> 14.3 | CK23: =FrameDryingdata!K$64 -> 4.6 | CL23: =FrameDryingdata!L$64 -> 47.35 | CM23: =FrameDryingdata!M$64 -> 33.6 | CN23: =FrameDryingdata!N$64 -> 23.15 | CO23: =FrameDryingdata!O$64 -> 12.75 | CP23: =FrameDryingdata!P$64 -> 4.15 | CQ23: =FrameDryingdata!Q$64 -> 47.85 | CR23: =FrameDryingdata!R$64 -> 34 | CS23: =FrameDryingdata!S$64 -> 23.5 | CT23: =FrameDryingdata!T$64 -> 13.35 | CU23: =FrameDryingdata!U$64 -> 4.6 | CV23: =FrameDryingdata!AP$13 -> 147.4375 | CW23: =FrameDryingdata!AQ$13 -> 116.4583333 | CX23: =FrameDryingdata!AR$13 -> 91.45833333 | CY23: =FrameDryingdata!AS$13 -> 67.64583333 | CZ23: =FrameDryingdata!AT$13 -> 35.02083333 | DA23: =FrameDryingdata!AU$13 -> 202.0833333 | DB23: =FrameDryingdata!AV$13 -> 164.6250002 | DC23: =FrameDryingdata!AW$13 -> 133.9791667 | DD23: =FrameDryingdata!AX$13 -> 98.02083333 | DE23: =FrameDryingdata!AY$13 -> 52 | DF23: =FrameDryingdata!AZ$13 -> 166.3958317 | DG23: =FrameDryingdata!BA$13 -> 135.5416667 | DH23: =FrameDryingdata!BB$13 -> 108.375 | DI23: =FrameDryingdata!BC$13 -> 78.97916667 | DJ23: =FrameDryingdata!BD$13 -> 38.0625 | DK23: =FrameDryingdata!BE$13 -> 172.1249833 | DL23: =FrameDryingdata!BF$13 -> 140.0416667 | DM23: =FrameDryingdata!BG$13 -> 112.6458333 | DN23: =FrameDryingdata!BH$13 -> 82.5625 | DO23: =FrameDryingdata!BI$13 -> 42.08333333 | DP23: =FrameDryingdata!AP$47 -> 99.08333333 | DQ23: =FrameDryingdata!AQ$47 -> 76.625 | DR23: =FrameDryingdata!AR$47 -> 59.4375 | DS23: =FrameDryingdata!AS$47 -> 43.10416667 | DT23: =FrameDryingdata!AT$47 -> 22.66666667 | DU23: =FrameDryingdata!AU$47 -> 195.875 | DV23: =FrameDryingdata!AV$47 -> 112.5208333 | DW23: =FrameDryingdata!AW$47 -> 80.4375 | DX23: =FrameDryingdata!AX$47 -> 51.60416667 | DY23: =FrameDryingdata!AY$47 -> 24.0625 | DZ23: =FrameDryingdata!AZ$47 -> 108 | EA23: =FrameDryingdata!BA$47 -> 78.64583333 | EB23: =FrameDryingdata!BB$47 -> 60.02083333 | EC23: =FrameDryingdata!BC$47 -> 42.89583333 | ED23: =FrameDryingdata!BD$47 -> 22.58333333 | EE23: =FrameDryingdata!BE$47 -> 117.125 | EF23: =FrameDryingdata!BF$47 -> 82.64583333 | EG23: =FrameDryingdata!BG$47 -> 61.1875 | EH23: =FrameDryingdata!BH$47 -> 43.54166667 | EI23: =FrameDryingdata!BI$47 -> 22.60416667 | EJ23: =FrameDryingdata!AP$30 -> 118.4583333 | EK23: =FrameDryingdata!AQ$30 -> 91.52083333 | EL23: =FrameDryingdata!AR$30 -> 68.10416667 | EM23: =FrameDryingdata!AS$30 -> 43.375 | EN23: =FrameDryingdata!AT$30 -> 6.083333333 | EO23: =FrameDryingdata!AU$30 -> 135.8958333 | EP23: =FrameDryingdata!AV$30 -> 104.6458333 | EQ23: =FrameDryingdata!AW$30 -> 74.45833333 | ER23: =FrameDryingdata!AX$30 -> 43.72916667 | ES23: =FrameDryingdata!AY$30 -> 5.416666667 | ET23: =FrameDryingdata!AZ$30 -> 128.2083333 | EU23: =FrameDryingdata!BA$30 -> 98.5 | EV23: =FrameDryingdata!BB$30 -> 71.70833333 | EW23: =FrameDryingdata!BC$30 -> 43.58333333 | EX23: =FrameDryingdata!BD$30 -> 5.958333333 | EY23: =FrameDryingdata!BE$30 -> 126.4791667 | EZ23: =FrameDryingdata!BF$30 -> 97.91666667 | FA23: =FrameDryingdata!BG$30 -> 71.70833333 | FB23: =FrameDryingdata!BH$30 -> 44.60416667 | FC23: =FrameDryingdata!BI$30 -> 6.3125 | FD23: =FrameDryingdata!AP$64 -> 84.66666667 | FE23: =FrameDryingdata!AQ$64 -> 65.125 | FF23: =FrameDryingdata!AR$64 -> 47.45833333 | FG23: =FrameDryingdata!AS$64 -> 30.08333333 | FH23: =FrameDryingdata!AT$64 -> 5.083333333 | FI23: =FrameDryingdata!AU$64 -> 92.83333333 | FJ23: =FrameDryingdata!AV$64 -> 69.02083333 | FK23: =FrameDryingdata!AW$64 -> 49.27083333 | FL23: =FrameDryingdata!AX$64 -> 29.52083333 | FM23: =FrameDryingdata!AY$64 -> 4.5625 | FN23: =FrameDryingdata!AZ$64 -> 85.58333333 | FO23: =FrameDryingdata!BA$64 -> 65.08333333 | FP23: =FrameDryingdata!BB$64 -> 47.3125 | FQ23: =FrameDryingdata!BC$64 -> 30.10416667 | FR23: =FrameDryingdata!BD$64 -> 5.104166667 | FS23: =FrameDryingdata!BE$64 -> 85.77083333 | FT23: =FrameDryingdata!BF$64 -> 64.95833333 | FU23: =FrameDryingdata!BG$64 -> 47.16666667 | FV23: =FrameDryingdata!BH$64 -> 30.3125 | FW23: =FrameDryingdata!BI$64 -> 5.166666667
A24: Northland | B24: Direct fixed weatherboards warped and leaky | C24: Semi-exposed | D24: 2.089258518 | E24: 2.698095521 | F24: 2.079839473 | G24: 2.082103702 | H24: 1.948210867 | I24: 2.507829887 | J24: 1.98041461 | K24: 1.972730258 | L24: 526.0743447 | M24: 442.0836598 | N24: 368.9937014 | O24: 429.2654279 | P24: 640.7735519 | Q24: 628.520088 | R24: 509.3296841 | S24: 613.7152469 | T24: =FrameDryingdata!B$13 -> 81.2 | U24: =FrameDryingdata!C$13 -> 61.55 | V24: =FrameDryingdata!D$13 -> 42.9 | W24: =FrameDryingdata!E$13 -> 26.6 | X24: =FrameDryingdata!F$13 -> 15.15 | Y24: =FrameDryingdata!G$13 -> 126.25 | Z24: =FrameDryingdata!H$13 -> 92.3 | AA24: =FrameDryingdata!I$13 -> 64.05 | AB24: =FrameDryingdata!J$13 -> 37.75 | AC24: =FrameDryingdata!K$13 -> 20.1 | AD24: =FrameDryingdata!L$13 -> 103.15 | AE24: =FrameDryingdata!M$13 -> 74.2 | AF24: =FrameDryingdata!N$13 -> 53.4 | AG24: =FrameDryingdata!O$13 -> 32.75 | AH24: =FrameDryingdata!P$13 -> 18.35 | AI24: =FrameDryingdata!Q$13 -> 107.6 | AJ24: =FrameDryingdata!R$13 -> 77.45 | AK24: =FrameDryingdata!S$13 -> 55.4 | AL24: =FrameDryingdata!T$13 -> 33.5 | AM24: =FrameDryingdata!U$13 -> 18.45 | AN24: 49.9 | AO24: 36.4 | AP24: 27.65 | AQ24: 17.65 | AR24: 10.65 | AS24: 72 | AT24: 47.8 | AU24: 32.6 | AV24: 21 | AW24: 11.7 | AX24: 51.6 | AY24: 38 | AZ24: 27.7 | BA24: 17.85 | BB24: 10.35 | BC24: 53.65 | BD24: 38.85 | BE24: 28.2 | BF24: 18.25 | BG24: 10.6 | BH24: =FrameDryingdata!B$30 -> 70.65 | BI24: =FrameDryingdata!C$30 -> 50.15 | BJ24: =FrameDryingdata!D$30 -> 32.9 | BK24: =FrameDryingdata!E$30 -> 18.35 | BL24: =FrameDryingdata!F$30 -> 5.7 | BM24: =FrameDryingdata!G$30 -> 75.95 | BN24: =FrameDryingdata!H$30 -> 56.45 | BO24: =FrameDryingdata!I$30 -> 36.05 | BP24: =FrameDryingdata!J$30 -> 19.05 | BQ24: =FrameDryingdata!K$30 -> 4.8 | BR24: =FrameDryingdata!L$30 -> 76.9 | BS24: =FrameDryingdata!M$30 -> 54.3 | BT24: =FrameDryingdata!N$30 -> 35.4 | BU24: =FrameDryingdata!O$30 -> 19.35 | BV24: =FrameDryingdata!P$30 -> 5.5 | BW24: =FrameDryingdata!Q$30 -> 75.3 | BX24: =FrameDryingdata!R$30 -> 53.65 | BY24: =FrameDryingdata!S$30 -> 35 | BZ24: =FrameDryingdata!T$30 -> 18.95 | CA24: =FrameDryingdata!U$30 -> 5.3 | CB24: =FrameDryingdata!B$64 -> 47.3 | CC24: =FrameDryingdata!C$64 -> 33.85 | CD24: =FrameDryingdata!D$64 -> 23.2 | CE24: =FrameDryingdata!E$64 -> 12.9 | CF24: =FrameDryingdata!F$64 -> 4.45 | CG24: =FrameDryingdata!G$64 -> 52.3 | CH24: =FrameDryingdata!H$64 -> 36.5 | CI24: =FrameDryingdata!I$64 -> 25.3 | CJ24: =FrameDryingdata!J$64 -> 14.3 | CK24: =FrameDryingdata!K$64 -> 4.6 | CL24: =FrameDryingdata!L$64 -> 47.35 | CM24: =FrameDryingdata!M$64 -> 33.6 | CN24: =FrameDryingdata!N$64 -> 23.15 | CO24: =FrameDryingdata!O$64 -> 12.75 | CP24: =FrameDryingdata!P$64 -> 4.15 | CQ24: =FrameDryingdata!Q$64 -> 47.85 | CR24: =FrameDryingdata!R$64 -> 34 | CS24: =FrameDryingdata!S$64 -> 23.5 | CT24: =FrameDryingdata!T$64 -> 13.35 | CU24: =FrameDryingdata!U$64 -> 4.6 | CV24: =FrameDryingdata!AP$13 -> 147.4375 | CW24: =FrameDryingdata!AQ$13 -> 116.4583333 | CX24: =FrameDryingdata!AR$13 -> 91.45833333 | CY24: =FrameDryingdata!AS$13 -> 67.64583333 | CZ24: =FrameDryingdata!AT$13 -> 35.02083333 | DA24: =FrameDryingdata!AU$13 -> 202.0833333 | DB24: =FrameDryingdata!AV$13 -> 164.6250002 | DC24: =FrameDryingdata!AW$13 -> 133.9791667 | DD24: =FrameDryingdata!AX$13 -> 98.02083333 | DE24: =FrameDryingdata!AY$13 -> 52 | DF24: =FrameDryingdata!AZ$13 -> 166.3958317 | DG24: =FrameDryingdata!BA$13 -> 135.5416667 | DH24: =FrameDryingdata!BB$13 -> 108.375 | DI24: =FrameDryingdata!BC$13 -> 78.97916667 | DJ24: =FrameDryingdata!BD$13 -> 38.0625 | DK24: =FrameDryingdata!BE$13 -> 172.1249833 | DL24: =FrameDryingdata!BF$13 -> 140.0416667 | DM24: =FrameDryingdata!BG$13 -> 112.6458333 | DN24: =FrameDryingdata!BH$13 -> 82.5625 | DO24: =FrameDryingdata!BI$13 -> 42.08333333 | DP24: =FrameDryingdata!AP$47 -> 99.08333333 | DQ24: =FrameDryingdata!AQ$47 -> 76.625 | DR24: =FrameDryingdata!AR$47 -> 59.4375 | DS24: =FrameDryingdata!AS$47 -> 43.10416667 | DT24: =FrameDryingdata!AT$47 -> 22.66666667 | DU24: =FrameDryingdata!AU$47 -> 195.875 | DV24: =FrameDryingdata!AV$47 -> 112.5208333 | DW24: =FrameDryingdata!AW$47 -> 80.4375 | DX24: =FrameDryingdata!AX$47 -> 51.60416667 | DY24: =FrameDryingdata!AY$47 -> 24.0625 | DZ24: =FrameDryingdata!AZ$47 -> 108 | EA24: =FrameDryingdata!BA$47 -> 78.64583333 | EB24: =FrameDryingdata!BB$47 -> 60.02083333 | EC24: =FrameDryingdata!BC$47 -> 42.89583333 | ED24: =FrameDryingdata!BD$47 -> 22.58333333 | EE24: =FrameDryingdata!BE$47 -> 117.125 | EF24: =FrameDryingdata!BF$47 -> 82.64583333 | EG24: =FrameDryingdata!BG$47 -> 61.1875 | EH24: =FrameDryingdata!BH$47 -> 43.54166667 | EI24: =FrameDryingdata!BI$47 -> 22.60416667 | EJ24: =FrameDryingdata!AP$30 -> 118.4583333 | EK24: =FrameDryingdata!AQ$30 -> 91.52083333 | EL24: =FrameDryingdata!AR$30 -> 68.10416667 | EM24: =FrameDryingdata!AS$30 -> 43.375 | EN24: =FrameDryingdata!AT$30 -> 6.083333333 | EO24: =FrameDryingdata!AU$30 -> 135.8958333 | EP24: =FrameDryingdata!AV$30 -> 104.6458333 | EQ24: =FrameDryingdata!AW$30 -> 74.45833333 | ER24: =FrameDryingdata!AX$30 -> 43.72916667 | ES24: =FrameDryingdata!AY$30 -> 5.416666667 | ET24: =FrameDryingdata!AZ$30 -> 128.2083333 | EU24: =FrameDryingdata!BA$30 -> 98.5 | EV24: =FrameDryingdata!BB$30 -> 71.70833333 | EW24: =FrameDryingdata!BC$30 -> 43.58333333 | EX24: =FrameDryingdata!BD$30 -> 5.958333333 | EY24: =FrameDryingdata!BE$30 -> 126.4791667 | EZ24: =FrameDryingdata!BF$30 -> 97.91666667 | FA24: =FrameDryingdata!BG$30 -> 71.70833333 | FB24: =FrameDryingdata!BH$30 -> 44.60416667 | FC24: =FrameDryingdata!BI$30 -> 6.3125 | FD24: =FrameDryingdata!AP$64 -> 84.66666667 | FE24: =FrameDryingdata!AQ$64 -> 65.125 | FF24: =FrameDryingdata!AR$64 -> 47.45833333 | FG24: =FrameDryingdata!AS$64 -> 30.08333333 | FH24: =FrameDryingdata!AT$64 -> 5.083333333 | FI24: =FrameDryingdata!AU$64 -> 92.83333333 | FJ24: =FrameDryingdata!AV$64 -> 69.02083333 | FK24: =FrameDryingdata!AW$64 -> 49.27083333 | FL24: =FrameDryingdata!AX$64 -> 29.52083333 | FM24: =FrameDryingdata!AY$64 -> 4.5625 | FN24: =FrameDryingdata!AZ$64 -> 85.58333333 | FO24: =FrameDryingdata!BA$64 -> 65.08333333 | FP24: =FrameDryingdata!BB$64 -> 47.3125 | FQ24: =FrameDryingdata!BC$64 -> 30.10416667 | FR24: =FrameDryingdata!BD$64 -> 5.104166667 | FS24: =FrameDryingdata!BE$64 -> 85.77083333 | FT24: =FrameDryingdata!BF$64 -> 64.95833333 | FU24: =FrameDryingdata!BG$64 -> 47.16666667 | FV24: =FrameDryingdata!BH$64 -> 30.3125 | FW24: =FrameDryingdata!BI$64 -> 5.166666667
A25: Northland | B25: Direct fixed weatherboards warped and leaky | C25: Semi-sheltered | D25: 1.585066965 | E25: 1.993419808 | F25: 1.385547011 | G25: 1.675771486 | H25: 1.532562634 | I25: 1.887457088 | J25: 1.36671531 | K25: 1.631593255 | L25: 493.8058661 | M25: 400.5514442 | N25: 345.7691413 | O25: 386.4168022 | P25: 599.5471998 | Q25: 569.9826042 | R25: 474.4023421 | S25: 554.4407779 | T25: =FrameDryingdata!B$13 -> 81.2 | U25: =FrameDryingdata!C$13 -> 61.55 | V25: =FrameDryingdata!D$13 -> 42.9 | W25: =FrameDryingdata!E$13 -> 26.6 | X25: =FrameDryingdata!F$13 -> 15.15 | Y25: =FrameDryingdata!G$13 -> 126.25 | Z25: =FrameDryingdata!H$13 -> 92.3 | AA25: =FrameDryingdata!I$13 -> 64.05 | AB25: =FrameDryingdata!J$13 -> 37.75 | AC25: =FrameDryingdata!K$13 -> 20.1 | AD25: =FrameDryingdata!L$13 -> 103.15 | AE25: =FrameDryingdata!M$13 -> 74.2 | AF25: =FrameDryingdata!N$13 -> 53.4 | AG25: =FrameDryingdata!O$13 -> 32.75 | AH25: =FrameDryingdata!P$13 -> 18.35 | AI25: =FrameDryingdata!Q$13 -> 107.6 | AJ25: =FrameDryingdata!R$13 -> 77.45 | AK25: =FrameDryingdata!S$13 -> 55.4 | AL25: =FrameDryingdata!T$13 -> 33.5 | AM25: =FrameDryingdata!U$13 -> 18.45 | AN25: 49.9 | AO25: 36.4 | AP25: 27.65 | AQ25: 17.65 | AR25: 10.65 | AS25: 72 | AT25: 47.8 | AU25: 32.6 | AV25: 21 | AW25: 11.7 | AX25: 51.6 | AY25: 38 | AZ25: 27.7 | BA25: 17.85 | BB25: 10.35 | BC25: 53.65 | BD25: 38.85 | BE25: 28.2 | BF25: 18.25 | BG25: 10.6 | BH25: =FrameDryingdata!B$30 -> 70.65 | BI25: =FrameDryingdata!C$30 -> 50.15 | BJ25: =FrameDryingdata!D$30 -> 32.9 | BK25: =FrameDryingdata!E$30 -> 18.35 | BL25: =FrameDryingdata!F$30 -> 5.7 | BM25: =FrameDryingdata!G$30 -> 75.95 | BN25: =FrameDryingdata!H$30 -> 56.45 | BO25: =FrameDryingdata!I$30 -> 36.05 | BP25: =FrameDryingdata!J$30 -> 19.05 | BQ25: =FrameDryingdata!K$30 -> 4.8 | BR25: =FrameDryingdata!L$30 -> 76.9 | BS25: =FrameDryingdata!M$30 -> 54.3 | BT25: =FrameDryingdata!N$30 -> 35.4 | BU25: =FrameDryingdata!O$30 -> 19.35 | BV25: =FrameDryingdata!P$30 -> 5.5 | BW25: =FrameDryingdata!Q$30 -> 75.3 | BX25: =FrameDryingdata!R$30 -> 53.65 | BY25: =FrameDryingdata!S$30 -> 35 | BZ25: =FrameDryingdata!T$30 -> 18.95 | CA25: =FrameDryingdata!U$30 -> 5.3 | CB25: =FrameDryingdata!B$64 -> 47.3 | CC25: =FrameDryingdata!C$64 -> 33.85 | CD25: =FrameDryingdata!D$64 -> 23.2 | CE25: =FrameDryingdata!E$64 -> 12.9 | CF25: =FrameDryingdata!F$64 -> 4.45 | CG25: =FrameDryingdata!G$64 -> 52.3 | CH25: =FrameDryingdata!H$64 -> 36.5 | CI25: =FrameDryingdata!I$64 -> 25.3 | CJ25: =FrameDryingdata!J$64 -> 14.3 | CK25: =FrameDryingdata!K$64 -> 4.6 | CL25: =FrameDryingdata!L$64 -> 47.35 | CM25: =FrameDryingdata!M$64 -> 33.6 | CN25: =FrameDryingdata!N$64 -> 23.15 | CO25: =FrameDryingdata!O$64 -> 12.75 | CP25: =FrameDryingdata!P$64 -> 4.15 | CQ25: =FrameDryingdata!Q$64 -> 47.85 | CR25: =FrameDryingdata!R$64 -> 34 | CS25: =FrameDryingdata!S$64 -> 23.5 | CT25: =FrameDryingdata!T$64 -> 13.35 | CU25: =FrameDryingdata!U$64 -> 4.6 | CV25: =FrameDryingdata!AP$13 -> 147.4375 | CW25: =FrameDryingdata!AQ$13 -> 116.4583333 | CX25: =FrameDryingdata!AR$13 -> 91.45833333 | CY25: =FrameDryingdata!AS$13 -> 67.64583333 | CZ25: =FrameDryingdata!AT$13 -> 35.02083333 | DA25: =FrameDryingdata!AU$13 -> 202.0833333 | DB25: =FrameDryingdata!AV$13 -> 164.6250002 | DC25: =FrameDryingdata!AW$13 -> 133.9791667 | DD25: =FrameDryingdata!AX$13 -> 98.02083333 | DE25: =FrameDryingdata!AY$13 -> 52 | DF25: =FrameDryingdata!AZ$13 -> 166.3958317 | DG25: =FrameDryingdata!BA$13 -> 135.5416667 | DH25: =FrameDryingdata!BB$13 -> 108.375 | DI25: =FrameDryingdata!BC$13 -> 78.97916667 | DJ25: =FrameDryingdata!BD$13 -> 38.0625 | DK25: =FrameDryingdata!BE$13 -> 172.1249833 | DL25: =FrameDryingdata!BF$13 -> 140.0416667 | DM25: =FrameDryingdata!BG$13 -> 112.6458333 | DN25: =FrameDryingdata!BH$13 -> 82.5625 | DO25: =FrameDryingdata!BI$13 -> 42.08333333 | DP25: =FrameDryingdata!AP$47 -> 99.08333333 | DQ25: =FrameDryingdata!AQ$47 -> 76.625 | DR25: =FrameDryingdata!AR$47 -> 59.4375 | DS25: =FrameDryingdata!AS$47 -> 43.10416667 | DT25: =FrameDryingdata!AT$47 -> 22.66666667 | DU25: =FrameDryingdata!AU$47 -> 195.875 | DV25: =FrameDryingdata!AV$47 -> 112.5208333 | DW25: =FrameDryingdata!AW$47 -> 80.4375 | DX25: =FrameDryingdata!AX$47 -> 51.60416667 | DY25: =FrameDryingdata!AY$47 -> 24.0625 | DZ25: =FrameDryingdata!AZ$47 -> 108 | EA25: =FrameDryingdata!BA$47 -> 78.64583333 | EB25: =FrameDryingdata!BB$47 -> 60.02083333 | EC25: =FrameDryingdata!BC$47 -> 42.89583333 | ED25: =FrameDryingdata!BD$47 -> 22.58333333 | EE25: =FrameDryingdata!BE$47 -> 117.125 | EF25: =FrameDryingdata!BF$47 -> 82.64583333 | EG25: =FrameDryingdata!BG$47 -> 61.1875 | EH25: =FrameDryingdata!BH$47 -> 43.54166667 | EI25: =FrameDryingdata!BI$47 -> 22.60416667 | EJ25: =FrameDryingdata!AP$30 -> 118.4583333 | EK25: =FrameDryingdata!AQ$30 -> 91.52083333 | EL25: =FrameDryingdata!AR$30 -> 68.10416667 | EM25: =FrameDryingdata!AS$30 -> 43.375 | EN25: =FrameDryingdata!AT$30 -> 6.083333333 | EO25: =FrameDryingdata!AU$30 -> 135.8958333 | EP25: =FrameDryingdata!AV$30 -> 104.6458333 | EQ25: =FrameDryingdata!AW$30 -> 74.45833333 | ER25: =FrameDryingdata!AX$30 -> 43.72916667 | ES25: =FrameDryingdata!AY$30 -> 5.416666667 | ET25: =FrameDryingdata!AZ$30 -> 128.2083333 | EU25: =FrameDryingdata!BA$30 -> 98.5 | EV25: =FrameDryingdata!BB$30 -> 71.70833333 | EW25: =FrameDryingdata!BC$30 -> 43.58333333 | EX25: =FrameDryingdata!BD$30 -> 5.958333333 | EY25: =FrameDryingdata!BE$30 -> 126.4791667 | EZ25: =FrameDryingdata!BF$30 -> 97.91666667 | FA25: =FrameDryingdata!BG$30 -> 71.70833333 | FB25: =FrameDryingdata!BH$30 -> 44.60416667 | FC25: =FrameDryingdata!BI$30 -> 6.3125 | FD25: =FrameDryingdata!AP$64 -> 84.66666667 | FE25: =FrameDryingdata!AQ$64 -> 65.125 | FF25: =FrameDryingdata!AR$64 -> 47.45833333 | FG25: =FrameDryingdata!AS$64 -> 30.08333333 | FH25: =FrameDryingdata!AT$64 -> 5.083333333 | FI25: =FrameDryingdata!AU$64 -> 92.83333333 | FJ25: =FrameDryingdata!AV$64 -> 69.02083333 | FK25: =FrameDryingdata!AW$64 -> 49.27083333 | FL25: =FrameDryingdata!AX$64 -> 29.52083333 | FM25: =FrameDryingdata!AY$64 -> 4.5625 | FN25: =FrameDryingdata!AZ$64 -> 85.58333333 | FO25: =FrameDryingdata!BA$64 -> 65.08333333 | FP25: =FrameDryingdata!BB$64 -> 47.3125 | FQ25: =FrameDryingdata!BC$64 -> 30.10416667 | FR25: =FrameDryingdata!BD$64 -> 5.104166667 | FS25: =FrameDryingdata!BE$64 -> 85.77083333 | FT25: =FrameDryingdata!BF$64 -> 64.95833333 | FU25: =FrameDryingdata!BG$64 -> 47.16666667 | FV25: =FrameDryingdata!BH$64 -> 30.3125 | FW25: =FrameDryingdata!BI$64 -> 5.166666667
A26: Northland | B26: Direct fixed weatherboards warped and leaky | C26: Sheltered | D26: 1.124114909 | E26: 1.09792922 | F26: 0.8199013777 | G26: 1.107125747 | H26: 1.085548112 | I26: 1.149086187 | J26: 0.9070712364 | K26: 1.163345201 | L26: 422.6639993 | M26: 345.9641332 | N26: 265.5349375 | O26: 339.8915553 | P26: 501.7477463 | Q26: 499.0820718 | R26: 372.4182982 | S26: 495.7201983 | T26: =FrameDryingdata!B$13 -> 81.2 | U26: =FrameDryingdata!C$13 -> 61.55 | V26: =FrameDryingdata!D$13 -> 42.9 | W26: =FrameDryingdata!E$13 -> 26.6 | X26: =FrameDryingdata!F$13 -> 15.15 | Y26: =FrameDryingdata!G$13 -> 126.25 | Z26: =FrameDryingdata!H$13 -> 92.3 | AA26: =FrameDryingdata!I$13 -> 64.05 | AB26: =FrameDryingdata!J$13 -> 37.75 | AC26: =FrameDryingdata!K$13 -> 20.1 | AD26: =FrameDryingdata!L$13 -> 103.15 | AE26: =FrameDryingdata!M$13 -> 74.2 | AF26: =FrameDryingdata!N$13 -> 53.4 | AG26: =FrameDryingdata!O$13 -> 32.75 | AH26: =FrameDryingdata!P$13 -> 18.35 | AI26: =FrameDryingdata!Q$13 -> 107.6 | AJ26: =FrameDryingdata!R$13 -> 77.45 | AK26: =FrameDryingdata!S$13 -> 55.4 | AL26: =FrameDryingdata!T$13 -> 33.5 | AM26: =FrameDryingdata!U$13 -> 18.45 | AN26: 49.9 | AO26: 36.4 | AP26: 27.65 | AQ26: 17.65 | AR26: 10.65 | AS26: 72 | AT26: 47.8 | AU26: 32.6 | AV26: 21 | AW26: 11.7 | AX26: 51.6 | AY26: 38 | AZ26: 27.7 | BA26: 17.85 | BB26: 10.35 | BC26: 53.65 | BD26: 38.85 | BE26: 28.2 | BF26: 18.25 | BG26: 10.6 | BH26: =FrameDryingdata!B$30 -> 70.65 | BI26: =FrameDryingdata!C$30 -> 50.15 | BJ26: =FrameDryingdata!D$30 -> 32.9 | BK26: =FrameDryingdata!E$30 -> 18.35 | BL26: =FrameDryingdata!F$30 -> 5.7 | BM26: =FrameDryingdata!G$30 -> 75.95 | BN26: =FrameDryingdata!H$30 -> 56.45 | BO26: =FrameDryingdata!I$30 -> 36.05 | BP26: =FrameDryingdata!J$30 -> 19.05 | BQ26: =FrameDryingdata!K$30 -> 4.8 | BR26: =FrameDryingdata!L$30 -> 76.9 | BS26: =FrameDryingdata!M$30 -> 54.3 | BT26: =FrameDryingdata!N$30 -> 35.4 | BU26: =FrameDryingdata!O$30 -> 19.35 | BV26: =FrameDryingdata!P$30 -> 5.5 | BW26: =FrameDryingdata!Q$30 -> 75.3 | BX26: =FrameDryingdata!R$30 -> 53.65 | BY26: =FrameDryingdata!S$30 -> 35 | BZ26: =FrameDryingdata!T$30 -> 18.95 | CA26: =FrameDryingdata!U$30 -> 5.3 | CB26: =FrameDryingdata!B$64 -> 47.3 | CC26: =FrameDryingdata!C$64 -> 33.85 | CD26: =FrameDryingdata!D$64 -> 23.2 | CE26: =FrameDryingdata!E$64 -> 12.9 | CF26: =FrameDryingdata!F$64 -> 4.45 | CG26: =FrameDryingdata!G$64 -> 52.3 | CH26: =FrameDryingdata!H$64 -> 36.5 | CI26: =FrameDryingdata!I$64 -> 25.3 | CJ26: =FrameDryingdata!J$64 -> 14.3 | CK26: =FrameDryingdata!K$64 -> 4.6 | CL26: =FrameDryingdata!L$64 -> 47.35 | CM26: =FrameDryingdata!M$64 -> 33.6 | CN26: =FrameDryingdata!N$64 -> 23.15 | CO26: =FrameDryingdata!O$64 -> 12.75 | CP26: =FrameDryingdata!P$64 -> 4.15 | CQ26: =FrameDryingdata!Q$64 -> 47.85 | CR26: =FrameDryingdata!R$64 -> 34 | CS26: =FrameDryingdata!S$64 -> 23.5 | CT26: =FrameDryingdata!T$64 -> 13.35 | CU26: =FrameDryingdata!U$64 -> 4.6 | CV26: =FrameDryingdata!AP$13 -> 147.4375 | CW26: =FrameDryingdata!AQ$13 -> 116.4583333 | CX26: =FrameDryingdata!AR$13 -> 91.45833333 | CY26: =FrameDryingdata!AS$13 -> 67.64583333 | CZ26: =FrameDryingdata!AT$13 -> 35.02083333 | DA26: =FrameDryingdata!AU$13 -> 202.0833333 | DB26: =FrameDryingdata!AV$13 -> 164.6250002 | DC26: =FrameDryingdata!AW$13 -> 133.9791667 | DD26: =FrameDryingdata!AX$13 -> 98.02083333 | DE26: =FrameDryingdata!AY$13 -> 52 | DF26: =FrameDryingdata!AZ$13 -> 166.3958317 | DG26: =FrameDryingdata!BA$13 -> 135.5416667 | DH26: =FrameDryingdata!BB$13 -> 108.375 | DI26: =FrameDryingdata!BC$13 -> 78.97916667 | DJ26: =FrameDryingdata!BD$13 -> 38.0625 | DK26: =FrameDryingdata!BE$13 -> 172.1249833 | DL26: =FrameDryingdata!BF$13 -> 140.0416667 | DM26: =FrameDryingdata!BG$13 -> 112.6458333 | DN26: =FrameDryingdata!BH$13 -> 82.5625 | DO26: =FrameDryingdata!BI$13 -> 42.08333333 | DP26: =FrameDryingdata!AP$47 -> 99.08333333 | DQ26: =FrameDryingdata!AQ$47 -> 76.625 | DR26: =FrameDryingdata!AR$47 -> 59.4375 | DS26: =FrameDryingdata!AS$47 -> 43.10416667 | DT26: =FrameDryingdata!AT$47 -> 22.66666667 | DU26: =FrameDryingdata!AU$47 -> 195.875 | DV26: =FrameDryingdata!AV$47 -> 112.5208333 | DW26: =FrameDryingdata!AW$47 -> 80.4375 | DX26: =FrameDryingdata!AX$47 -> 51.60416667 | DY26: =FrameDryingdata!AY$47 -> 24.0625 | DZ26: =FrameDryingdata!AZ$47 -> 108 | EA26: =FrameDryingdata!BA$47 -> 78.64583333 | EB26: =FrameDryingdata!BB$47 -> 60.02083333 | EC26: =FrameDryingdata!BC$47 -> 42.89583333 | ED26: =FrameDryingdata!BD$47 -> 22.58333333 | EE26: =FrameDryingdata!BE$47 -> 117.125 | EF26: =FrameDryingdata!BF$47 -> 82.64583333 | EG26: =FrameDryingdata!BG$47 -> 61.1875 | EH26: =FrameDryingdata!BH$47 -> 43.54166667 | EI26: =FrameDryingdata!BI$47 -> 22.60416667 | EJ26: =FrameDryingdata!AP$30 -> 118.4583333 | EK26: =FrameDryingdata!AQ$30 -> 91.52083333 | EL26: =FrameDryingdata!AR$30 -> 68.10416667 | EM26: =FrameDryingdata!AS$30 -> 43.375 | EN26: =FrameDryingdata!AT$30 -> 6.083333333 | EO26: =FrameDryingdata!AU$30 -> 135.8958333 | EP26: =FrameDryingdata!AV$30 -> 104.6458333 | EQ26: =FrameDryingdata!AW$30 -> 74.45833333 | ER26: =FrameDryingdata!AX$30 -> 43.72916667 | ES26: =FrameDryingdata!AY$30 -> 5.416666667 | ET26: =FrameDryingdata!AZ$30 -> 128.2083333 | EU26: =FrameDryingdata!BA$30 -> 98.5 | EV26: =FrameDryingdata!BB$30 -> 71.70833333 | EW26: =FrameDryingdata!BC$30 -> 43.58333333 | EX26: =FrameDryingdata!BD$30 -> 5.958333333 | EY26: =FrameDryingdata!BE$30 -> 126.4791667 | EZ26: =FrameDryingdata!BF$30 -> 97.91666667 | FA26: =FrameDryingdata!BG$30 -> 71.70833333 | FB26: =FrameDryingdata!BH$30 -> 44.60416667 | FC26: =FrameDryingdata!BI$30 -> 6.3125 | FD26: =FrameDryingdata!AP$64 -> 84.66666667 | FE26: =FrameDryingdata!AQ$64 -> 65.125 | FF26: =FrameDryingdata!AR$64 -> 47.45833333 | FG26: =FrameDryingdata!AS$64 -> 30.08333333 | FH26: =FrameDryingdata!AT$64 -> 5.083333333 | FI26: =FrameDryingdata!AU$64 -> 92.83333333 | FJ26: =FrameDryingdata!AV$64 -> 69.02083333 | FK26: =FrameDryingdata!AW$64 -> 49.27083333 | FL26: =FrameDryingdata!AX$64 -> 29.52083333 | FM26: =FrameDryingdata!AY$64 -> 4.5625 | FN26: =FrameDryingdata!AZ$64 -> 85.58333333 | FO26: =FrameDryingdata!BA$64 -> 65.08333333 | FP26: =FrameDryingdata!BB$64 -> 47.3125 | FQ26: =FrameDryingdata!BC$64 -> 30.10416667 | FR26: =FrameDryingdata!BD$64 -> 5.104166667 | FS26: =FrameDryingdata!BE$64 -> 85.77083333 | FT26: =FrameDryingdata!BF$64 -> 64.95833333 | FU26: =FrameDryingdata!BG$64 -> 47.16666667 | FV26: =FrameDryingdata!BH$64 -> 30.3125 | FW26: =FrameDryingdata!BI$64 -> 5.166666667
A27: Northland | B27: Direct fixed weatherboards (average) | C27: Exposed | D27: 0.1633635605 | E27: 0.284879849 | F27: 0.1611816383 | G27: 0.1914296149 | H27: 0.1536713922 | I27: 0.2432585514 | J27: 0.1389355509 | K27: 0.1743344682 | L27: 157.0738313 | M27: 137.314445 | N27: 102.3905022 | O27: 111.2356618 | P27: 177.7362505 | Q27: 194.5842295 | R27: 136.739607 | S27: 162.1493569 | T27: =FrameDryingdata!B$13 -> 81.2 | U27: =FrameDryingdata!C$13 -> 61.55 | V27: =FrameDryingdata!D$13 -> 42.9 | W27: =FrameDryingdata!E$13 -> 26.6 | X27: =FrameDryingdata!F$13 -> 15.15 | Y27: =FrameDryingdata!G$13 -> 126.25 | Z27: =FrameDryingdata!H$13 -> 92.3 | AA27: =FrameDryingdata!I$13 -> 64.05 | AB27: =FrameDryingdata!J$13 -> 37.75 | AC27: =FrameDryingdata!K$13 -> 20.1 | AD27: =FrameDryingdata!L$13 -> 103.15 | AE27: =FrameDryingdata!M$13 -> 74.2 | AF27: =FrameDryingdata!N$13 -> 53.4 | AG27: =FrameDryingdata!O$13 -> 32.75 | AH27: =FrameDryingdata!P$13 -> 18.35 | AI27: =FrameDryingdata!Q$13 -> 107.6 | AJ27: =FrameDryingdata!R$13 -> 77.45 | AK27: =FrameDryingdata!S$13 -> 55.4 | AL27: =FrameDryingdata!T$13 -> 33.5 | AM27: =FrameDryingdata!U$13 -> 18.45 | AN27: 49.9 | AO27: 36.4 | AP27: 27.65 | AQ27: 17.65 | AR27: 10.65 | AS27: 72 | AT27: 47.8 | AU27: 32.6 | AV27: 21 | AW27: 11.7 | AX27: 51.6 | AY27: 38 | AZ27: 27.7 | BA27: 17.85 | BB27: 10.35 | BC27: 53.65 | BD27: 38.85 | BE27: 28.2 | BF27: 18.25 | BG27: 10.6 | BH27: =FrameDryingdata!B$30 -> 70.65 | BI27: =FrameDryingdata!C$30 -> 50.15 | BJ27: =FrameDryingdata!D$30 -> 32.9 | BK27: =FrameDryingdata!E$30 -> 18.35 | BL27: =FrameDryingdata!F$30 -> 5.7 | BM27: =FrameDryingdata!G$30 -> 75.95 | BN27: =FrameDryingdata!H$30 -> 56.45 | BO27: =FrameDryingdata!I$30 -> 36.05 | BP27: =FrameDryingdata!J$30 -> 19.05 | BQ27: =FrameDryingdata!K$30 -> 4.8 | BR27: =FrameDryingdata!L$30 -> 76.9 | BS27: =FrameDryingdata!M$30 -> 54.3 | BT27: =FrameDryingdata!N$30 -> 35.4 | BU27: =FrameDryingdata!O$30 -> 19.35 | BV27: =FrameDryingdata!P$30 -> 5.5 | BW27: =FrameDryingdata!Q$30 -> 75.3 | BX27: =FrameDryingdata!R$30 -> 53.65 | BY27: =FrameDryingdata!S$30 -> 35 | BZ27: =FrameDryingdata!T$30 -> 18.95 | CA27: =FrameDryingdata!U$30 -> 5.3 | CB27: =FrameDryingdata!B$64 -> 47.3 | CC27: =FrameDryingdata!C$64 -> 33.85 | CD27: =FrameDryingdata!D$64 -> 23.2 | CE27: =FrameDryingdata!E$64 -> 12.9 | CF27: =FrameDryingdata!F$64 -> 4.45 | CG27: =FrameDryingdata!G$64 -> 52.3 | CH27: =FrameDryingdata!H$64 -> 36.5 | CI27: =FrameDryingdata!I$64 -> 25.3 | CJ27: =FrameDryingdata!J$64 -> 14.3 | CK27: =FrameDryingdata!K$64 -> 4.6 | CL27: =FrameDryingdata!L$64 -> 47.35 | CM27: =FrameDryingdata!M$64 -> 33.6 | CN27: =FrameDryingdata!N$64 -> 23.15 | CO27: =FrameDryingdata!O$64 -> 12.75 | CP27: =FrameDryingdata!P$64 -> 4.15 | CQ27: =FrameDryingdata!Q$64 -> 47.85 | CR27: =FrameDryingdata!R$64 -> 34 | CS27: =FrameDryingdata!S$64 -> 23.5 | CT27: =FrameDryingdata!T$64 -> 13.35 | CU27: =FrameDryingdata!U$64 -> 4.6 | CV27: =FrameDryingdata!AP$13 -> 147.4375 | CW27: =FrameDryingdata!AQ$13 -> 116.4583333 | CX27: =FrameDryingdata!AR$13 -> 91.45833333 | CY27: =FrameDryingdata!AS$13 -> 67.64583333 | CZ27: =FrameDryingdata!AT$13 -> 35.02083333 | DA27: =FrameDryingdata!AU$13 -> 202.0833333 | DB27: =FrameDryingdata!AV$13 -> 164.6250002 | DC27: =FrameDryingdata!AW$13 -> 133.9791667 | DD27: =FrameDryingdata!AX$13 -> 98.02083333 | DE27: =FrameDryingdata!AY$13 -> 52 | DF27: =FrameDryingdata!AZ$13 -> 166.3958317 | DG27: =FrameDryingdata!BA$13 -> 135.5416667 | DH27: =FrameDryingdata!BB$13 -> 108.375 | DI27: =FrameDryingdata!BC$13 -> 78.97916667 | DJ27: =FrameDryingdata!BD$13 -> 38.0625 | DK27: =FrameDryingdata!BE$13 -> 172.1249833 | DL27: =FrameDryingdata!BF$13 -> 140.0416667 | DM27: =FrameDryingdata!BG$13 -> 112.6458333 | DN27: =FrameDryingdata!BH$13 -> 82.5625 | DO27: =FrameDryingdata!BI$13 -> 42.08333333 | DP27: =FrameDryingdata!AP$47 -> 99.08333333 | DQ27: =FrameDryingdata!AQ$47 -> 76.625 | DR27: =FrameDryingdata!AR$47 -> 59.4375 | DS27: =FrameDryingdata!AS$47 -> 43.10416667 | DT27: =FrameDryingdata!AT$47 -> 22.66666667 | DU27: =FrameDryingdata!AU$47 -> 195.875 | DV27: =FrameDryingdata!AV$47 -> 112.5208333 | DW27: =FrameDryingdata!AW$47 -> 80.4375 | DX27: =FrameDryingdata!AX$47 -> 51.60416667 | DY27: =FrameDryingdata!AY$47 -> 24.0625 | DZ27: =FrameDryingdata!AZ$47 -> 108 | EA27: =FrameDryingdata!BA$47 -> 78.64583333 | EB27: =FrameDryingdata!BB$47 -> 60.02083333 | EC27: =FrameDryingdata!BC$47 -> 42.89583333 | ED27: =FrameDryingdata!BD$47 -> 22.58333333 | EE27: =FrameDryingdata!BE$47 -> 117.125 | EF27: =FrameDryingdata!BF$47 -> 82.64583333 | EG27: =FrameDryingdata!BG$47 -> 61.1875 | EH27: =FrameDryingdata!BH$47 -> 43.54166667 | EI27: =FrameDryingdata!BI$47 -> 22.60416667 | EJ27: =FrameDryingdata!AP$30 -> 118.4583333 | EK27: =FrameDryingdata!AQ$30 -> 91.52083333 | EL27: =FrameDryingdata!AR$30 -> 68.10416667 | EM27: =FrameDryingdata!AS$30 -> 43.375 | EN27: =FrameDryingdata!AT$30 -> 6.083333333 | EO27: =FrameDryingdata!AU$30 -> 135.8958333 | EP27: =FrameDryingdata!AV$30 -> 104.6458333 | EQ27: =FrameDryingdata!AW$30 -> 74.45833333 | ER27: =FrameDryingdata!AX$30 -> 43.72916667 | ES27: =FrameDryingdata!AY$30 -> 5.416666667 | ET27: =FrameDryingdata!AZ$30 -> 128.2083333 | EU27: =FrameDryingdata!BA$30 -> 98.5 | EV27: =FrameDryingdata!BB$30 -> 71.70833333 | EW27: =FrameDryingdata!BC$30 -> 43.58333333 | EX27: =FrameDryingdata!BD$30 -> 5.958333333 | EY27: =FrameDryingdata!BE$30 -> 126.4791667 | EZ27: =FrameDryingdata!BF$30 -> 97.91666667 | FA27: =FrameDryingdata!BG$30 -> 71.70833333 | FB27: =FrameDryingdata!BH$30 -> 44.60416667 | FC27: =FrameDryingdata!BI$30 -> 6.3125 | FD27: =FrameDryingdata!AP$64 -> 84.66666667 | FE27: =FrameDryingdata!AQ$64 -> 65.125 | FF27: =FrameDryingdata!AR$64 -> 47.45833333 | FG27: =FrameDryingdata!AS$64 -> 30.08333333 | FH27: =FrameDryingdata!AT$64 -> 5.083333333 | FI27: =FrameDryingdata!AU$64 -> 92.83333333 | FJ27: =FrameDryingdata!AV$64 -> 69.02083333 | FK27: =FrameDryingdata!AW$64 -> 49.27083333 | FL27: =FrameDryingdata!AX$64 -> 29.52083333 | FM27: =FrameDryingdata!AY$64 -> 4.5625 | FN27: =FrameDryingdata!AZ$64 -> 85.58333333 | FO27: =FrameDryingdata!BA$64 -> 65.08333333 | FP27: =FrameDryingdata!BB$64 -> 47.3125 | FQ27: =FrameDryingdata!BC$64 -> 30.10416667 | FR27: =FrameDryingdata!BD$64 -> 5.104166667 | FS27: =FrameDryingdata!BE$64 -> 85.77083333 | FT27: =FrameDryingdata!BF$64 -> 64.95833333 | FU27: =FrameDryingdata!BG$64 -> 47.16666667 | FV27: =FrameDryingdata!BH$64 -> 30.3125 | FW27: =FrameDryingdata!BI$64 -> 5.166666667
